{"text_format":"1","workbook":"xlsx","n_sheets":6,"sheets":["Datos_Auditoria","Medidas_Ahorro_Energetico","Codigos_Provincia","Codigos_Municipio","Codigos_ComunidadesAutonomas","Codigos_CNAE"],"not_rendered":{"charts":0,"images":0,"macros":1,"external_links":0,"defined_names":65,"comments":2,"pivot_tables":0},"unopened":[],"bounds":{"document_bytes":16777216,"sheet_cells":100000,"rows_first":2000,"rows_last":500,"rows_between":2000,"halvings":0,"cell_chars":16384,"cell_head_chars":4096},"cells_cut":0,"cells_raw":0,"read":"whole","date_system":"1900"}

{"sheet":"Datos_Auditoria","index":0,"n_rows":20,"n_cols":50,"rows_kept":20,"cut":false,"hidden":false,"merged":[[0,0,0,14],[0,21,0,29],[0,44,0,49],[0,30,0,43],[1,30,1,33],[1,34,1,37],[0,15,0,20]]}
["Datos de la empresa",null,null,null,null,null,null,null,null,null,null,null,null,null,null,"Datos del Auditor",null,null,null,null,null,"Datos de la instalación auditada",null,null,null,null,null,null,null,null,"Datos del resultado de la auditoria (1-5)",null,null,null,null,null,null,null,null,null,null,null,null,null,"Datos de la persona que envía la solicitud"]
[null,null,null,null,null,null,null,null,null,null,null,null,null,null,null,null,null,null,null,null,null,null,null,null,null,null,null,null,null,null,"Ahorro_energetico_estimado",null,null,null,"Consumo_Energetico"]
["Nombre","Primer_Apellido","Segundo_Apellido","DNI","Nombre_Empresa","CIF","Direccion","Comunidad_Autonoma","Provincia","Municipio","Codigo_Postal","Telefono_Contacto","Correo_Electronico","Fecha_Presentacion","Lugar_Presentacion","Nombre_Auditor","Primer_Apellido_Auditor","Segundo_Apellido_Auditor","DNI_Auditor","Titulacion_Auditor","Tipo_Auditor_(Externo/Interno)","Nombre_Empresa/Instalacion_Auditada","Fecha_Auditoria","Ubicaciones_multiples (SI/NO) (opcional)","Direccion_Instalacion","Comunidad_Autonoma_Instalacion","Provincia_Instalacion","Municipio_Instalacion","Codigo_Postal_Instalacion","CNAE_de_la_Empresa","Ahorro_energetico_estimado (kWh/año)","Ahorro_energetico_estimado En. electrica (kWh/año)","Ahorro_energetico_estimado En. termica (kWh/año)","Ahorro_energetico_estimado Transporte (kWh/año)","Consumo_Energetico (kWh/año)","Consumo_Energetico En. electrica (kWh/año)","Consumo_Energetico En. termica (kWh/año)","Consumo_Energetico Transporte (kWh/año)","Emisiones_CO2 (tCO2 e/año)","Inversion_Estimada (euros)","%_sobre_Consumo_Energetico_Total (opcional)","Retorno_Inversion (años con dos decimales)","Ahorros_Energeticos_mejoras_auditoria_previa (kWh/año)","Tiene un sistema de gestión certificado (SI/NO) (opcional)","DNI_PS","Nombre_PS","Primer_Apellido_PS","Segundo_Apellido_PS","Telefono_Contacto_PS","Correo_Electronico_PS"]
[]
[]
[]
[]
[]
[]
[null,null,null,null,null,null,null,null,null,null,null,null,null,null,null,null,null,null,null,null,null,null,null,null,null,null,null,null,null,null,{"$f":"IF(AF10=\"\",\"\",AF10+AG10+AH10)","v":""},null,null,null,{"$f":"IF(AJ10=\"\",\"\",AJ10+AK10+AL10)","v":""}]
[null,null,null,null,null,null,null,null,null,null,null,null,null,null,null,null,null,null,null,null,null,null,null,null,null,null,null,null,null,null,"",null,null,null,""]
[null,null,null,null,null,null,null,null,null,null,null,null,null,null,null,null,null,null,null,null,null,null,null,null,null,null,null,null,null,null,"",null,null,null,""]
[null,null,null,null,null,null,null,null,null,null,null,null,null,null,null,null,null,null,null,null,null,null,null,null,null,null,null,null,null,null,"",null,null,null,""]
[null,null,null,null,null,null,null,null,null,null,null,null,null,null,null,null,null,null,null,null,null,null,null,null,null,null,null,null,null,null,"",null,null,null,""]
[null,null,null,null,null,null,null,null,null,null,null,null,null,null,null,null,null,null,null,null,null,null,null,null,null,null,null,null,null,null,"",null,null,null,""]
[null,null,null,null,null,null,null,null,null,null,null,null,null,null,null,null,null,null,null,null,null,null,null,null,null,null,null,null,null,null,"",null,null,null,""]
[null,null,null,null,null,null,null,null,null,null,null,null,null,null,null,null,null,null,null,null,null,null,null,null,null,null,null,null,null,null,"",null,null,null,""]
[null,null,null,null,null,null,null,null,null,null,null,null,null,null,null,null,null,null,null,null,null,null,null,null,null,null,null,null,null,null,"",null,null,null,""]
[null,null,null,null,null,null,null,null,null,null,null,null,null,null,null,null,null,null,null,null,null,null,null,null,null,null,null,null,null,null,"",null,null,null,""]
[null,null,null,null,null,null,null,null,null,null,null,null,null,null,null,null,null,null,null,null,null,null,null,null,null,null,null,null,null,null,"",null,null,null,""]

{"sheet":"Medidas_Ahorro_Energetico","index":1,"n_rows":3,"n_cols":11,"rows_kept":3,"cut":false,"hidden":false,"merged":[[1,4,1,6],[1,7,1,10],[0,0,0,10],[1,0,1,3]]}
["Ahorros Energéticos Mejoras Auditoría Previa"]
["Informacion_General",null,null,null,"Datos_Economicos",null,null,"Datos_Energeticos"]
["Nombre_Empresa/Instalacion_Auditada","Denominacion_Medida","Descripcion_Medida","Fecha_Implantacion","Inversion_Total(€)","Denominacion_Programa_Ayuda (Opcional)","Cuantia_Recibida(€) (Opcional)","Ahorro energetico (kWh/año)","Ahorro energetico En. electrica (kWh/año)","Ahorro energetico En. termica (kWh/año)","Ahorro energetico Transporte (kWh/año)"]

{"sheet":"Codigos_Provincia","index":2,"n_rows":54,"n_cols":3,"rows_kept":54,"cut":false,"hidden":true,"merged":[]}
["CodProvincia","Provincia","CodComunidad"]
["0",null,0]
[4,"Almería",1]
[11,"Cádiz",1]
[14,"Córdoba",1]
[18,"Granada",1]
[21,"Huelva",1]
[23,"Jaén",1]
[29,"Málaga",1]
[41,"Sevilla",1]
[22,"Huesca",2]
[44,"Teruel",2]
[50,"Zaragoza",2]
[33,"Asturias",3]
[7,"Baleares",4]
[35,"Palmas (Las)",5]
[38,"Santa Cruz de Tenerife",5]
[39,"Cantabria",6]
[5,"Ávila",7]
[9,"Burgos",7]
[24,"León",7]
[34,"Palencia",7]
[37,"Salamanca",7]
[40,"Segovia",7]
[42,"Soria",7]
[47,"Valladolid",7]
[49,"Zamora",7]
[2,"Albacete",8]
[13,"Ciudad Real",8]
[16,"Cuenca",8]
[19,"Guadalajara",8]
[45,"Toledo",8]
[8,"Barcelona",9]
[17,"Gerona",9]
[25,"Lérida",9]
[43,"Tarragona",9]
[3,"Alicante",10]
[12,"Castellón",10]
[46,"Valencia",10]
[6,"Badajoz",11]
[10,"Cáceres",11]
[15,"Coruña (La)",12]
[27,"Lugo",12]
[32,"Orense",12]
[36,"Pontevedra",12]
[28,"Madrid",13]
[30,"Murcia",14]
[31,"Navarra",15]
[1,"Araba/Álava",16]
[20,"Gipuzkoa",16]
[48,"Bizkaia",16]
[26,"Rioja (La)",17]
[51,"Ceuta",18]
[52,"Melilla",19]

{"sheet":"Codigos_Municipio","index":3,"n_rows":8121,"n_cols":6,"rows_kept":8121,"cut":false,"hidden":true,"merged":[]}
["CodMunicipio","CodProvincia","Municipio"]
[0,0]
["0014",1,"Alegría-Dulantzi",null,{"$f":"localidad(Datos_Auditoria!I3)","v":""},{"$f":"localidad(Datos_Auditoria!AA3)","v":""}]
["0029",1,"Amurrio",null,{"$f":"localidad(Datos_Auditoria!I4)","v":""},{"$f":"localidad(Datos_Auditoria!AA4)","v":""}]
["0493",1,"Añana",null,{"$f":"localidad(Datos_Auditoria!I5)","v":""},{"$f":"localidad(Datos_Auditoria!AA5)","v":""}]
["0035",1,"Aramaio",null,{"$f":"localidad(Datos_Auditoria!I6)","v":""},{"$f":"localidad(Datos_Auditoria!AA6)","v":""}]
["0066",1,"Armiñón",null,{"$f":"localidad(Datos_Auditoria!I7)","v":""},{"$f":"localidad(Datos_Auditoria!AA7)","v":""}]
["0376",1,"Arraia-Maeztu",null,{"$f":"localidad(Datos_Auditoria!I8)","v":""},{"$f":"localidad(Datos_Auditoria!AA8)","v":""}]
["0088",1,"Arratzua-Ubarrundia",null,{"$f":"localidad(Datos_Auditoria!I9)","v":""},{"$f":"localidad(Datos_Auditoria!AA9)","v":""}]
["0040",1,"Artziniega",null,{"$f":"localidad(Datos_Auditoria!I10)","v":""},{"$f":"localidad(Datos_Auditoria!AA10)","v":""}]
["0091",1,"Asparrena",null,{"$f":"localidad(Datos_Auditoria!I11)","v":""},{"$f":"localidad(Datos_Auditoria!AA11)","v":""}]
["0105",1,"Ayala/Aiara",null,{"$f":"localidad(Datos_Auditoria!I12)","v":""},{"$f":"localidad(Datos_Auditoria!AA12)","v":""}]
["0112",1,"Baños de Ebro/Mañueta",null,{"$f":"localidad(Datos_Auditoria!I13)","v":""},{"$f":"localidad(Datos_Auditoria!AA13)","v":""}]
["0133",1,"Barrundia",null,{"$f":"localidad(Datos_Auditoria!I14)","v":""},{"$f":"localidad(Datos_Auditoria!AA14)","v":""}]
["0148",1,"Berantevilla",null,{"$f":"localidad(Datos_Auditoria!I15)","v":""},{"$f":"localidad(Datos_Auditoria!AA15)","v":""}]
["0164",1,"Bernedo",null,{"$f":"localidad(Datos_Auditoria!I16)","v":""},{"$f":"localidad(Datos_Auditoria!AA16)","v":""}]
["0170",1,"Campezo/Kanpezu",null,{"$f":"localidad(Datos_Auditoria!I17)","v":""},{"$f":"localidad(Datos_Auditoria!AA17)","v":""}]
["0210",1,"Elburgo/Burgelu",null,{"$f":"localidad(Datos_Auditoria!I18)","v":""},{"$f":"localidad(Datos_Auditoria!AA18)","v":""}]
["0225",1,"Elciego",null,{"$f":"localidad(Datos_Auditoria!I19)","v":""},{"$f":"localidad(Datos_Auditoria!AA19)","v":""}]
["0231",1,"Elvillar/Bilar",null,{"$f":"localidad(Datos_Auditoria!I20)","v":""},{"$f":"localidad(Datos_Auditoria!AA20)","v":""}]
["0468",1,"Erriberagoitia/Ribera Alta",null,{"$f":"localidad(Datos_Auditoria!I21)","v":""},{"$f":"localidad(Datos_Auditoria!AA21)","v":""}]
["0565",1,"Harana/Valle de Arana",null,{"$f":"localidad(Datos_Auditoria!I22)","v":""},{"$f":"localidad(Datos_Auditoria!AA22)","v":""}]
["9015",1,"Iruña Oka/Iruña de Oca",null,{"$f":"localidad(Datos_Auditoria!I23)","v":""},{"$f":"localidad(Datos_Auditoria!AA23)","v":""}]
["0278",1,"Iruraiz-Gauna",null,{"$f":"localidad(Datos_Auditoria!I24)","v":""},{"$f":"localidad(Datos_Auditoria!AA24)","v":""}]
["0199",1,"Kripan",null,{"$f":"localidad(Datos_Auditoria!I25)","v":""},{"$f":"localidad(Datos_Auditoria!AA25)","v":""}]
["0203",1,"Kuartango",null,{"$f":"localidad(Datos_Auditoria!I26)","v":""},{"$f":"localidad(Datos_Auditoria!AA26)","v":""}]
["0284",1,"Labastida/Bastida",null,{"$f":"localidad(Datos_Auditoria!I27)","v":""},{"$f":"localidad(Datos_Auditoria!AA27)","v":""}]
["0301",1,"Lagrán",null,{"$f":"localidad(Datos_Auditoria!I28)","v":""},{"$f":"localidad(Datos_Auditoria!AA28)","v":""}]
["0318",1,"Laguardia",null,{"$f":"localidad(Datos_Auditoria!I29)","v":""},{"$f":"localidad(Datos_Auditoria!AA29)","v":""}]
["0323",1,"Lanciego/Lantziego",null,{"$f":"localidad(Datos_Auditoria!I30)","v":""},{"$f":"localidad(Datos_Auditoria!AA30)","v":""}]
["9020",1,"Lantarón",null,{"$f":"localidad(Datos_Auditoria!I31)","v":""},{"$f":"localidad(Datos_Auditoria!AA31)","v":""}]
["0339",1,"Lapuebla de Labarca",null,{"$f":"localidad(Datos_Auditoria!I32)","v":""},{"$f":"localidad(Datos_Auditoria!AA32)","v":""}]
["0360",1,"Laudio/Llodio",null,{"$f":"localidad(Datos_Auditoria!I33)","v":""},{"$f":"localidad(Datos_Auditoria!AA33)","v":""}]
["0587",1,"Legutio",null,{"$f":"localidad(Datos_Auditoria!I34)","v":""},{"$f":"localidad(Datos_Auditoria!AA34)","v":""}]
["0344",1,"Leza",null,{"$f":"localidad(Datos_Auditoria!I35)","v":""},{"$f":"localidad(Datos_Auditoria!AA35)","v":""}]
["0395",1,"Moreda de Álava/Moreda Araba",null,{"$f":"localidad(Datos_Auditoria!I36)","v":""},{"$f":"localidad(Datos_Auditoria!AA36)","v":""}]
["0416",1,"Navaridas",null,{"$f":"localidad(Datos_Auditoria!I37)","v":""},{"$f":"localidad(Datos_Auditoria!AA37)","v":""}]
["0421",1,"Okondo",null,{"$f":"localidad(Datos_Auditoria!I38)","v":""},{"$f":"localidad(Datos_Auditoria!AA38)","v":""}]
["0437",1,"Oyón-Oion",null,{"$f":"localidad(Datos_Auditoria!I39)","v":""},{"$f":"localidad(Datos_Auditoria!AA39)","v":""}]
["0442",1,"Peñacerrada-Urizaharra",null,{"$f":"localidad(Datos_Auditoria!I40)","v":""},{"$f":"localidad(Datos_Auditoria!AA40)","v":""}]
["0474",1,"Ribera Baja/Erribera Beitia",null,{"$f":"localidad(Datos_Auditoria!I41)","v":""},{"$f":"localidad(Datos_Auditoria!AA41)","v":""}]
["0513",1,"Salvatierra/Agurain",null,{"$f":"localidad(Datos_Auditoria!I42)","v":""},{"$f":"localidad(Datos_Auditoria!AA42)","v":""}]
["0528",1,"Samaniego",null,{"$f":"localidad(Datos_Auditoria!I43)","v":""},{"$f":"localidad(Datos_Auditoria!AA43)","v":""}]
["0534",1,"San Millán/Donemiliaga",null,{"$f":"localidad(Datos_Auditoria!I44)","v":""},{"$f":"localidad(Datos_Auditoria!AA44)","v":""}]
["0549",1,"Urkabustaiz",null,{"$f":"localidad(Datos_Auditoria!I45)","v":""},{"$f":"localidad(Datos_Auditoria!AA45)","v":""}]
["0552",1,"Valdegovía/Gaubea",null,{"$f":"localidad(Datos_Auditoria!I46)","v":""},{"$f":"localidad(Datos_Auditoria!AA46)","v":""}]
["0571",1,"Villabuena de Álava/Eskuernaga",null,{"$f":"localidad(Datos_Auditoria!I47)","v":""},{"$f":"localidad(Datos_Auditoria!AA47)","v":""}]
["0590",1,"Vitoria-Gasteiz",null,{"$f":"localidad(Datos_Auditoria!I48)","v":""},{"$f":"localidad(Datos_Auditoria!AA48)","v":""}]
["0604",1,"Yécora/Iekora",null,{"$f":"localidad(Datos_Auditoria!I49)","v":""},{"$f":"localidad(Datos_Auditoria!AA49)","v":""}]
["0611",1,"Zalduondo",null,{"$f":"localidad(Datos_Auditoria!I50)","v":""},{"$f":"localidad(Datos_Auditoria!AA50)","v":""}]
["0626",1,"Zambrana",null,{"$f":"localidad(Datos_Auditoria!I51)","v":""},{"$f":"localidad(Datos_Auditoria!AA51)","v":""}]
["0186",1,"Zigoitia",null,{"$f":"localidad(Datos_Auditoria!I52)","v":""},{"$f":"localidad(Datos_Auditoria!AA52)","v":""}]
["0632",1,"Zuia",null,{"$f":"localidad(Datos_Auditoria!I53)","v":""},{"$f":"localidad(Datos_Auditoria!AA53)","v":""}]
["0019",2,"Abengibre",null,{"$f":"localidad(Datos_Auditoria!I54)","v":""},{"$f":"localidad(Datos_Auditoria!AA54)","v":""}]
["0024",2,"Alatoz",null,{"$f":"localidad(Datos_Auditoria!I55)","v":""},{"$f":"localidad(Datos_Auditoria!AA55)","v":""}]
["0030",2,"Albacete",null,{"$f":"localidad(Datos_Auditoria!I56)","v":""},{"$f":"localidad(Datos_Auditoria!AA56)","v":""}]
["0045",2,"Albatana",null,{"$f":"localidad(Datos_Auditoria!I57)","v":""},{"$f":"localidad(Datos_Auditoria!AA57)","v":""}]
["0058",2,"Alborea",null,{"$f":"localidad(Datos_Auditoria!I58)","v":""},{"$f":"localidad(Datos_Auditoria!AA58)","v":""}]
["0061",2,"Alcadozo",null,{"$f":"localidad(Datos_Auditoria!I59)","v":""},{"$f":"localidad(Datos_Auditoria!AA59)","v":""}]
["0077",2,"Alcalá del Júcar",null,{"$f":"localidad(Datos_Auditoria!I60)","v":""},{"$f":"localidad(Datos_Auditoria!AA60)","v":""}]
["0083",2,"Alcaraz",null,{"$f":"localidad(Datos_Auditoria!I61)","v":""},{"$f":"localidad(Datos_Auditoria!AA61)","v":""}]
["0096",2,"Almansa",null,{"$f":"localidad(Datos_Auditoria!I62)","v":""},{"$f":"localidad(Datos_Auditoria!AA62)","v":""}]
["0100",2,"Alpera",null,{"$f":"localidad(Datos_Auditoria!I63)","v":""},{"$f":"localidad(Datos_Auditoria!AA63)","v":""}]
["0117",2,"Ayna",null,{"$f":"localidad(Datos_Auditoria!I64)","v":""},{"$f":"localidad(Datos_Auditoria!AA64)","v":""}]
["0122",2,"Balazote",null,{"$f":"localidad(Datos_Auditoria!I65)","v":""},{"$f":"localidad(Datos_Auditoria!AA65)","v":""}]
["0143",2,"Ballestero, El",null,{"$f":"localidad(Datos_Auditoria!I66)","v":""},{"$f":"localidad(Datos_Auditoria!AA66)","v":""}]
["0138",2,"Balsa de Ves",null,{"$f":"localidad(Datos_Auditoria!I67)","v":""},{"$f":"localidad(Datos_Auditoria!AA67)","v":""}]
["0156",2,"Barrax",null,{"$f":"localidad(Datos_Auditoria!I68)","v":""},{"$f":"localidad(Datos_Auditoria!AA68)","v":""}]
["0169",2,"Bienservida",null,{"$f":"localidad(Datos_Auditoria!I69)","v":""},{"$f":"localidad(Datos_Auditoria!AA69)","v":""}]
["0175",2,"Bogarra",null,{"$f":"localidad(Datos_Auditoria!I70)","v":""},{"$f":"localidad(Datos_Auditoria!AA70)","v":""}]
["0181",2,"Bonete",null,{"$f":"localidad(Datos_Auditoria!I71)","v":""},{"$f":"localidad(Datos_Auditoria!AA71)","v":""}]
["0194",2,"Bonillo, El",null,{"$f":"localidad(Datos_Auditoria!I72)","v":""},{"$f":"localidad(Datos_Auditoria!AA72)","v":""}]
["0208",2,"Carcelén",null,{"$f":"localidad(Datos_Auditoria!I73)","v":""},{"$f":"localidad(Datos_Auditoria!AA73)","v":""}]
["0215",2,"Casas de Juan Núñez",null,{"$f":"localidad(Datos_Auditoria!I74)","v":""},{"$f":"localidad(Datos_Auditoria!AA74)","v":""}]
["0220",2,"Casas de Lázaro",null,{"$f":"localidad(Datos_Auditoria!I75)","v":""},{"$f":"localidad(Datos_Auditoria!AA75)","v":""}]
["0236",2,"Casas de Ves",null,{"$f":"localidad(Datos_Auditoria!I76)","v":""},{"$f":"localidad(Datos_Auditoria!AA76)","v":""}]
["0241",2,"Casas-Ibáñez",null,{"$f":"localidad(Datos_Auditoria!I77)","v":""},{"$f":"localidad(Datos_Auditoria!AA77)","v":""}]
["0254",2,"Caudete",null,{"$f":"localidad(Datos_Auditoria!I78)","v":""},{"$f":"localidad(Datos_Auditoria!AA78)","v":""}]
["0267",2,"Cenizate",null,{"$f":"localidad(Datos_Auditoria!I79)","v":""},{"$f":"localidad(Datos_Auditoria!AA79)","v":""}]
["0292",2,"Chinchilla de Monte-Aragón",null,{"$f":"localidad(Datos_Auditoria!I80)","v":""},{"$f":"localidad(Datos_Auditoria!AA80)","v":""}]
["0273",2,"Corral-Rubio",null,{"$f":"localidad(Datos_Auditoria!I81)","v":""},{"$f":"localidad(Datos_Auditoria!AA81)","v":""}]
["0289",2,"Cotillas",null,{"$f":"localidad(Datos_Auditoria!I82)","v":""},{"$f":"localidad(Datos_Auditoria!AA82)","v":""}]
["0306",2,"Elche de la Sierra",null,{"$f":"localidad(Datos_Auditoria!I83)","v":""},{"$f":"localidad(Datos_Auditoria!AA83)","v":""}]
["0313",2,"Férez",null,{"$f":"localidad(Datos_Auditoria!I84)","v":""},{"$f":"localidad(Datos_Auditoria!AA84)","v":""}]
["0328",2,"Fuensanta",null,{"$f":"localidad(Datos_Auditoria!I85)","v":""},{"$f":"localidad(Datos_Auditoria!AA85)","v":""}]
["0334",2,"Fuente-Álamo",null,{"$f":"localidad(Datos_Auditoria!I86)","v":""},{"$f":"localidad(Datos_Auditoria!AA86)","v":""}]
["0349",2,"Fuentealbilla",null,{"$f":"localidad(Datos_Auditoria!I87)","v":""},{"$f":"localidad(Datos_Auditoria!AA87)","v":""}]
["0352",2,"Gineta, La",null,{"$f":"localidad(Datos_Auditoria!I88)","v":""},{"$f":"localidad(Datos_Auditoria!AA88)","v":""}]
["0365",2,"Golosalvo",null,{"$f":"localidad(Datos_Auditoria!I89)","v":""},{"$f":"localidad(Datos_Auditoria!AA89)","v":""}]
["0371",2,"Hellín",null,{"$f":"localidad(Datos_Auditoria!I90)","v":""},{"$f":"localidad(Datos_Auditoria!AA90)","v":""}]
["0387",2,"Herrera, La",null,{"$f":"localidad(Datos_Auditoria!I91)","v":""},{"$f":"localidad(Datos_Auditoria!AA91)","v":""}]
["0390",2,"Higueruela",null,{"$f":"localidad(Datos_Auditoria!I92)","v":""},{"$f":"localidad(Datos_Auditoria!AA92)","v":""}]
["0404",2,"Hoya-Gonzalo",null,{"$f":"localidad(Datos_Auditoria!I93)","v":""},{"$f":"localidad(Datos_Auditoria!AA93)","v":""}]
["0411",2,"Jorquera",null,{"$f":"localidad(Datos_Auditoria!I94)","v":""},{"$f":"localidad(Datos_Auditoria!AA94)","v":""}]
["0426",2,"Letur",null,{"$f":"localidad(Datos_Auditoria!I95)","v":""},{"$f":"localidad(Datos_Auditoria!AA95)","v":""}]
["0432",2,"Lezuza",null,{"$f":"localidad(Datos_Auditoria!I96)","v":""},{"$f":"localidad(Datos_Auditoria!AA96)","v":""}]
["0447",2,"Liétor",null,{"$f":"localidad(Datos_Auditoria!I97)","v":""},{"$f":"localidad(Datos_Auditoria!AA97)","v":""}]
["0450",2,"Madrigueras",null,{"$f":"localidad(Datos_Auditoria!I98)","v":""},{"$f":"localidad(Datos_Auditoria!AA98)","v":""}]
["0463",2,"Mahora",null,{"$f":"localidad(Datos_Auditoria!I99)","v":""},{"$f":"localidad(Datos_Auditoria!AA99)","v":""}]
["0479",2,"Masegoso",null,{"$f":"localidad(Datos_Auditoria!I100)","v":""},{"$f":"localidad(Datos_Auditoria!AA100)","v":""}]
["0485",2,"Minaya",null,{"$f":"localidad(Datos_Auditoria!I101)","v":""},{"$f":"localidad(Datos_Auditoria!AA101)","v":""}]
["0498",2,"Molinicos",null,{"$f":"localidad(Datos_Auditoria!I102)","v":""},{"$f":"localidad(Datos_Auditoria!AA102)","v":""}]
["0501",2,"Montalvos",null,{"$f":"localidad(Datos_Auditoria!I103)","v":""},{"$f":"localidad(Datos_Auditoria!AA103)","v":""}]
["0518",2,"Montealegre del Castillo",null,{"$f":"localidad(Datos_Auditoria!I104)","v":""},{"$f":"localidad(Datos_Auditoria!AA104)","v":""}]
["0523",2,"Motilleja",null,{"$f":"localidad(Datos_Auditoria!I105)","v":""},{"$f":"localidad(Datos_Auditoria!AA105)","v":""}]
["0539",2,"Munera",null,{"$f":"localidad(Datos_Auditoria!I106)","v":""},{"$f":"localidad(Datos_Auditoria!AA106)","v":""}]
["0544",2,"Navas de Jorquera",null,{"$f":"localidad(Datos_Auditoria!I107)","v":""},{"$f":"localidad(Datos_Auditoria!AA107)","v":""}]
["0557",2,"Nerpio",null,{"$f":"localidad(Datos_Auditoria!I108)","v":""},{"$f":"localidad(Datos_Auditoria!AA108)","v":""}]
["0560",2,"Ontur",null,{"$f":"localidad(Datos_Auditoria!I109)","v":""},{"$f":"localidad(Datos_Auditoria!AA109)","v":""}]
["0576",2,"Ossa de Montiel",null,{"$f":"localidad(Datos_Auditoria!I110)","v":""},{"$f":"localidad(Datos_Auditoria!AA110)","v":""}]
["0582",2,"Paterna del Madera",null,{"$f":"localidad(Datos_Auditoria!I111)","v":""},{"$f":"localidad(Datos_Auditoria!AA111)","v":""}]
["0609",2,"Peñas de San Pedro",null,{"$f":"localidad(Datos_Auditoria!I112)","v":""},{"$f":"localidad(Datos_Auditoria!AA112)","v":""}]
["0595",2,"Peñascosa",null,{"$f":"localidad(Datos_Auditoria!I113)","v":""},{"$f":"localidad(Datos_Auditoria!AA113)","v":""}]
["0616",2,"Pétrola",null,{"$f":"localidad(Datos_Auditoria!I114)","v":""},{"$f":"localidad(Datos_Auditoria!AA114)","v":""}]
["0621",2,"Povedilla",null,{"$f":"localidad(Datos_Auditoria!I115)","v":""},{"$f":"localidad(Datos_Auditoria!AA115)","v":""}]
["9010",2,"Pozo Cañada",null,{"$f":"localidad(Datos_Auditoria!I116)","v":""},{"$f":"localidad(Datos_Auditoria!AA116)","v":""}]
["0637",2,"Pozohondo",null,{"$f":"localidad(Datos_Auditoria!I117)","v":""},{"$f":"localidad(Datos_Auditoria!AA117)","v":""}]
["0642",2,"Pozo-Lorente",null,{"$f":"localidad(Datos_Auditoria!I118)","v":""},{"$f":"localidad(Datos_Auditoria!AA118)","v":""}]
["0655",2,"Pozuelo",null,{"$f":"localidad(Datos_Auditoria!I119)","v":""},{"$f":"localidad(Datos_Auditoria!AA119)","v":""}]
["0668",2,"Recueja, La",null,{"$f":"localidad(Datos_Auditoria!I120)","v":""},{"$f":"localidad(Datos_Auditoria!AA120)","v":""}]
["0674",2,"Riópar",null,{"$f":"localidad(Datos_Auditoria!I121)","v":""},{"$f":"localidad(Datos_Auditoria!AA121)","v":""}]
["0680",2,"Robledo",null,{"$f":"localidad(Datos_Auditoria!I122)","v":""},{"$f":"localidad(Datos_Auditoria!AA122)","v":""}]
["0693",2,"Roda, La",null,{"$f":"localidad(Datos_Auditoria!I123)","v":""},{"$f":"localidad(Datos_Auditoria!AA123)","v":""}]
["0707",2,"Salobre",null,{"$f":"localidad(Datos_Auditoria!I124)","v":""},{"$f":"localidad(Datos_Auditoria!AA124)","v":""}]
["0714",2,"San Pedro",null,{"$f":"localidad(Datos_Auditoria!I125)","v":""},{"$f":"localidad(Datos_Auditoria!AA125)","v":""}]
["0729",2,"Socovos",null,{"$f":"localidad(Datos_Auditoria!I126)","v":""},{"$f":"localidad(Datos_Auditoria!AA126)","v":""}]
["0735",2,"Tarazona de la Mancha",null,{"$f":"localidad(Datos_Auditoria!I127)","v":""},{"$f":"localidad(Datos_Auditoria!AA127)","v":""}]
["0740",2,"Tobarra",null,{"$f":"localidad(Datos_Auditoria!I128)","v":""},{"$f":"localidad(Datos_Auditoria!AA128)","v":""}]
["0753",2,"Valdeganga",null,{"$f":"localidad(Datos_Auditoria!I129)","v":""},{"$f":"localidad(Datos_Auditoria!AA129)","v":""}]
["0766",2,"Vianos",null,{"$f":"localidad(Datos_Auditoria!I130)","v":""},{"$f":"localidad(Datos_Auditoria!AA130)","v":""}]
["0772",2,"Villa de Ves",null,{"$f":"localidad(Datos_Auditoria!I131)","v":""},{"$f":"localidad(Datos_Auditoria!AA131)","v":""}]
["0788",2,"Villalgordo del Júcar",null,{"$f":"localidad(Datos_Auditoria!I132)","v":""},{"$f":"localidad(Datos_Auditoria!AA132)","v":""}]
["0791",2,"Villamalea",null,{"$f":"localidad(Datos_Auditoria!I133)","v":""},{"$f":"localidad(Datos_Auditoria!AA133)","v":""}]
["0805",2,"Villapalacios",null,{"$f":"localidad(Datos_Auditoria!I134)","v":""},{"$f":"localidad(Datos_Auditoria!AA134)","v":""}]
["0812",2,"Villarrobledo",null,{"$f":"localidad(Datos_Auditoria!I135)","v":""},{"$f":"localidad(Datos_Auditoria!AA135)","v":""}]
["0827",2,"Villatoya",null,{"$f":"localidad(Datos_Auditoria!I136)","v":""},{"$f":"localidad(Datos_Auditoria!AA136)","v":""}]
["0833",2,"Villavaliente",null,{"$f":"localidad(Datos_Auditoria!I137)","v":""},{"$f":"localidad(Datos_Auditoria!AA137)","v":""}]
["0848",2,"Villaverde de Guadalimar",null,{"$f":"localidad(Datos_Auditoria!I138)","v":""},{"$f":"localidad(Datos_Auditoria!AA138)","v":""}]
["0851",2,"Viveros",null,{"$f":"localidad(Datos_Auditoria!I139)","v":""},{"$f":"localidad(Datos_Auditoria!AA139)","v":""}]
["0864",2,"Yeste",null,{"$f":"localidad(Datos_Auditoria!I140)","v":""},{"$f":"localidad(Datos_Auditoria!AA140)","v":""}]
["0015",3,"Adsubia",null,{"$f":"localidad(Datos_Auditoria!I141)","v":""},{"$f":"localidad(Datos_Auditoria!AA141)","v":""}]
["0020",3,"Agost",null,{"$f":"localidad(Datos_Auditoria!I142)","v":""},{"$f":"localidad(Datos_Auditoria!AA142)","v":""}]
["0036",3,"Agres",null,{"$f":"localidad(Datos_Auditoria!I143)","v":""},{"$f":"localidad(Datos_Auditoria!AA143)","v":""}]
["0041",3,"Aigües",null,{"$f":"localidad(Datos_Auditoria!I144)","v":""},{"$f":"localidad(Datos_Auditoria!AA144)","v":""}]
["0054",3,"Albatera",null,{"$f":"localidad(Datos_Auditoria!I145)","v":""},{"$f":"localidad(Datos_Auditoria!AA145)","v":""}]
["0067",3,"Alcalalí",null,{"$f":"localidad(Datos_Auditoria!I146)","v":""},{"$f":"localidad(Datos_Auditoria!AA146)","v":""}]
["0073",3,"Alcocer de Planes",null,{"$f":"localidad(Datos_Auditoria!I147)","v":""},{"$f":"localidad(Datos_Auditoria!AA147)","v":""}]
["0089",3,"Alcoleja",null,{"$f":"localidad(Datos_Auditoria!I148)","v":""},{"$f":"localidad(Datos_Auditoria!AA148)","v":""}]
["0092",3,"Alcoy/Alcoi",null,{"$f":"localidad(Datos_Auditoria!I149)","v":""},{"$f":"localidad(Datos_Auditoria!AA149)","v":""}]
["0106",3,"Alfafara",null,{"$f":"localidad(Datos_Auditoria!I150)","v":""},{"$f":"localidad(Datos_Auditoria!AA150)","v":""}]
["0113",3,"Alfàs del Pi, l'",null,{"$f":"localidad(Datos_Auditoria!I151)","v":""},{"$f":"localidad(Datos_Auditoria!AA151)","v":""}]
["0128",3,"Algorfa",null,{"$f":"localidad(Datos_Auditoria!I152)","v":""},{"$f":"localidad(Datos_Auditoria!AA152)","v":""}]
["0134",3,"Algueña",null,{"$f":"localidad(Datos_Auditoria!I153)","v":""},{"$f":"localidad(Datos_Auditoria!AA153)","v":""}]
["0149",3,"Alicante/Alacant",null,{"$f":"localidad(Datos_Auditoria!I154)","v":""},{"$f":"localidad(Datos_Auditoria!AA154)","v":""}]
["0152",3,"Almoradí",null,{"$f":"localidad(Datos_Auditoria!I155)","v":""},{"$f":"localidad(Datos_Auditoria!AA155)","v":""}]
["0165",3,"Almudaina",null,{"$f":"localidad(Datos_Auditoria!I156)","v":""},{"$f":"localidad(Datos_Auditoria!AA156)","v":""}]
["0171",3,"Alqueria d'Asnar, l'",null,{"$f":"localidad(Datos_Auditoria!I157)","v":""},{"$f":"localidad(Datos_Auditoria!AA157)","v":""}]
["0187",3,"Altea",null,{"$f":"localidad(Datos_Auditoria!I158)","v":""},{"$f":"localidad(Datos_Auditoria!AA158)","v":""}]
["0190",3,"Aspe",null,{"$f":"localidad(Datos_Auditoria!I159)","v":""},{"$f":"localidad(Datos_Auditoria!AA159)","v":""}]
["0204",3,"Balones",null,{"$f":"localidad(Datos_Auditoria!I160)","v":""},{"$f":"localidad(Datos_Auditoria!AA160)","v":""}]
["0211",3,"Banyeres de Mariola",null,{"$f":"localidad(Datos_Auditoria!I161)","v":""},{"$f":"localidad(Datos_Auditoria!AA161)","v":""}]
["0226",3,"Benasau",null,{"$f":"localidad(Datos_Auditoria!I162)","v":""},{"$f":"localidad(Datos_Auditoria!AA162)","v":""}]
["0232",3,"Beneixama",null,{"$f":"localidad(Datos_Auditoria!I163)","v":""},{"$f":"localidad(Datos_Auditoria!AA163)","v":""}]
["0247",3,"Benejúzar",null,{"$f":"localidad(Datos_Auditoria!I164)","v":""},{"$f":"localidad(Datos_Auditoria!AA164)","v":""}]
["0250",3,"Benferri",null,{"$f":"localidad(Datos_Auditoria!I165)","v":""},{"$f":"localidad(Datos_Auditoria!AA165)","v":""}]
["0263",3,"Beniarbeig",null,{"$f":"localidad(Datos_Auditoria!I166)","v":""},{"$f":"localidad(Datos_Auditoria!AA166)","v":""}]
["0279",3,"Beniardá",null,{"$f":"localidad(Datos_Auditoria!I167)","v":""},{"$f":"localidad(Datos_Auditoria!AA167)","v":""}]
["0285",3,"Beniarrés",null,{"$f":"localidad(Datos_Auditoria!I168)","v":""},{"$f":"localidad(Datos_Auditoria!AA168)","v":""}]
["0302",3,"Benidoleig",null,{"$f":"localidad(Datos_Auditoria!I169)","v":""},{"$f":"localidad(Datos_Auditoria!AA169)","v":""}]
["0319",3,"Benidorm",null,{"$f":"localidad(Datos_Auditoria!I170)","v":""},{"$f":"localidad(Datos_Auditoria!AA170)","v":""}]
["0324",3,"Benifallim",null,{"$f":"localidad(Datos_Auditoria!I171)","v":""},{"$f":"localidad(Datos_Auditoria!AA171)","v":""}]
["0330",3,"Benifato",null,{"$f":"localidad(Datos_Auditoria!I172)","v":""},{"$f":"localidad(Datos_Auditoria!AA172)","v":""}]
["0298",3,"Benigembla",null,{"$f":"localidad(Datos_Auditoria!I173)","v":""},{"$f":"localidad(Datos_Auditoria!AA173)","v":""}]
["0345",3,"Benijófar",null,{"$f":"localidad(Datos_Auditoria!I174)","v":""},{"$f":"localidad(Datos_Auditoria!AA174)","v":""}]
["0358",3,"Benilloba",null,{"$f":"localidad(Datos_Auditoria!I175)","v":""},{"$f":"localidad(Datos_Auditoria!AA175)","v":""}]
["0361",3,"Benillup",null,{"$f":"localidad(Datos_Auditoria!I176)","v":""},{"$f":"localidad(Datos_Auditoria!AA176)","v":""}]
["0377",3,"Benimantell",null,{"$f":"localidad(Datos_Auditoria!I177)","v":""},{"$f":"localidad(Datos_Auditoria!AA177)","v":""}]
["0383",3,"Benimarfull",null,{"$f":"localidad(Datos_Auditoria!I178)","v":""},{"$f":"localidad(Datos_Auditoria!AA178)","v":""}]
["0396",3,"Benimassot",null,{"$f":"localidad(Datos_Auditoria!I179)","v":""},{"$f":"localidad(Datos_Auditoria!AA179)","v":""}]
["0400",3,"Benimeli",null,{"$f":"localidad(Datos_Auditoria!I180)","v":""},{"$f":"localidad(Datos_Auditoria!AA180)","v":""}]
["0417",3,"Benissa",null,{"$f":"localidad(Datos_Auditoria!I181)","v":""},{"$f":"localidad(Datos_Auditoria!AA181)","v":""}]
["0422",3,"Benitachell/Poble Nou de Benitatxell, el",null,{"$f":"localidad(Datos_Auditoria!I182)","v":""},{"$f":"localidad(Datos_Auditoria!AA182)","v":""}]
["0438",3,"Biar",null,{"$f":"localidad(Datos_Auditoria!I183)","v":""},{"$f":"localidad(Datos_Auditoria!AA183)","v":""}]
["0443",3,"Bigastro",null,{"$f":"localidad(Datos_Auditoria!I184)","v":""},{"$f":"localidad(Datos_Auditoria!AA184)","v":""}]
["0456",3,"Bolulla",null,{"$f":"localidad(Datos_Auditoria!I185)","v":""},{"$f":"localidad(Datos_Auditoria!AA185)","v":""}]
["0469",3,"Busot",null,{"$f":"localidad(Datos_Auditoria!I186)","v":""},{"$f":"localidad(Datos_Auditoria!AA186)","v":""}]
["0494",3,"Callosa de Segura",null,{"$f":"localidad(Datos_Auditoria!I187)","v":""},{"$f":"localidad(Datos_Auditoria!AA187)","v":""}]
["0481",3,"Callosa d'en Sarrià",null,{"$f":"localidad(Datos_Auditoria!I188)","v":""},{"$f":"localidad(Datos_Auditoria!AA188)","v":""}]
["0475",3,"Calp",null,{"$f":"localidad(Datos_Auditoria!I189)","v":""},{"$f":"localidad(Datos_Auditoria!AA189)","v":""}]
["0507",3,"Campello, el",null,{"$f":"localidad(Datos_Auditoria!I190)","v":""},{"$f":"localidad(Datos_Auditoria!AA190)","v":""}]
["0514",3,"Campo de Mirra/Camp de Mirra, el",null,{"$f":"localidad(Datos_Auditoria!I191)","v":""},{"$f":"localidad(Datos_Auditoria!AA191)","v":""}]
["0529",3,"Cañada",null,{"$f":"localidad(Datos_Auditoria!I192)","v":""},{"$f":"localidad(Datos_Auditoria!AA192)","v":""}]
["0535",3,"Castalla",null,{"$f":"localidad(Datos_Auditoria!I193)","v":""},{"$f":"localidad(Datos_Auditoria!AA193)","v":""}]
["0540",3,"Castell de Castells",null,{"$f":"localidad(Datos_Auditoria!I194)","v":""},{"$f":"localidad(Datos_Auditoria!AA194)","v":""}]
["0759",3,"Castell de Guadalest, el",null,{"$f":"localidad(Datos_Auditoria!I195)","v":""},{"$f":"localidad(Datos_Auditoria!AA195)","v":""}]
["0553",3,"Catral",null,{"$f":"localidad(Datos_Auditoria!I196)","v":""},{"$f":"localidad(Datos_Auditoria!AA196)","v":""}]
["0566",3,"Cocentaina",null,{"$f":"localidad(Datos_Auditoria!I197)","v":""},{"$f":"localidad(Datos_Auditoria!AA197)","v":""}]
["0572",3,"Confrides",null,{"$f":"localidad(Datos_Auditoria!I198)","v":""},{"$f":"localidad(Datos_Auditoria!AA198)","v":""}]
["0588",3,"Cox",null,{"$f":"localidad(Datos_Auditoria!I199)","v":""},{"$f":"localidad(Datos_Auditoria!AA199)","v":""}]
["0591",3,"Crevillent"]
["0612",3,"Daya Nueva"]
["0627",3,"Daya Vieja"]
["0633",3,"Dénia"]
["0648",3,"Dolores"]
["0651",3,"Elche/Elx"]
["0664",3,"Elda"]
["0670",3,"Facheca"]
["0686",3,"Famorca"]
["0699",3,"Finestrat"]
["0778",3,"Fondó de les Neus, el/Hondón de las Nieves"]
["0703",3,"Formentera del Segura"]
["0725",3,"Gaianes"]
["0710",3,"Gata de Gorgos"]
["0731",3,"Gorga"]
["0746",3,"Granja de Rocamora"]
["0762",3,"Guardamar del Segura"]
["0784",3,"Hondón de los Frailes"]
["0797",3,"Ibi"]
["0801",3,"Jacarilla"]
["0823",3,"Jávea/Xàbia"]
["0839",3,"Jijona/Xixona"]
["0857",3,"Llíber"]
["0844",3,"Lorcha/Orxa, l'"]
["0860",3,"Millena"]
["0882",3,"Monforte del Cid"]
["0895",3,"Monóvar/Monòver"]
["9037",3,"Montesinos, Los"]
["0916",3,"Murla"]
["0921",3,"Muro de Alcoy"]
["0909",3,"Mutxamel"]
["0937",3,"Novelda"]
["0942",3,"Nucia, la"]
["0955",3,"Ondara"]
["0968",3,"Onil"]
["0974",3,"Orba"]
["0993",3,"Orihuela"]
["0980",3,"Orxeta"]
["1007",3,"Parcent"]
["1014",3,"Pedreguer"]
["1029",3,"Pego"]
["1035",3,"Penàguila"]
["1040",3,"Petrer"]
["9021",3,"Pilar de la Horadada"]
["1053",3,"Pinós, el/Pinoso"]
["1066",3,"Planes"]
["9016",3,"Poblets, els"]
["1072",3,"Polop"]
["0605",3,"Quatretondeta"]
["1091",3,"Rafal"]
["1105",3,"Ràfol d'Almúnia, el"]
["1112",3,"Redován"]
["1127",3,"Relleu"]
["1133",3,"Rojales"]
["1148",3,"Romana, la"]
["1151",3,"Sagra"]
["1164",3,"Salinas"]
["1186",3,"San Fulgencio"]
["9042",3,"San Isidro"]
["1203",3,"San Miguel de Salinas"]
["1225",3,"San Vicente del Raspeig/Sant Vicent del Raspeig"]
["1170",3,"Sanet y Negrals"]
["1199",3,"Sant Joan d'Alacant"]
["1210",3,"Santa Pola"]
["1231",3,"Sax"]
["1246",3,"Sella"]
["1259",3,"Senija"]
["1278",3,"Tàrbena"]
["1284",3,"Teulada"]
["1297",3,"Tibi"]
["1301",3,"Tollos"]
["1318",3,"Tormos"]
["1323",3,"Torremanzanas/Torre de les Maçanes, la"]
["1339",3,"Torrevieja"]
["1344",3,"Vall d'Alcalà, la"]
["1360",3,"Vall de Gallinera"]
["1376",3,"Vall de Laguar, la"]
["1357",3,"Vall d'Ebo, la"]
["1382",3,"Verger, el"]
["1395",3,"Villajoyosa/Vila Joiosa, la"]
["1409",3,"Villena"]
["0818",3,"Xaló"]
["0010",4,"Abla"]
["0025",4,"Abrucena"]
["0031",4,"Adra"]
["0046",4,"Albánchez"]
["0059",4,"Alboloduy"]
["0062",4,"Albox"]
["0078",4,"Alcolea"]
["0084",4,"Alcóntar"]
["0097",4,"Alcudia de Monteagud"]
["0101",4,"Alhabia"]
["0118",4,"Alhama de Almería"]
["0123",4,"Alicún"]
["0139",4,"Almería"]
["0144",4,"Almócita"]
["0157",4,"Alsodux"]
["0160",4,"Antas"]
["0176",4,"Arboleas"]
["0182",4,"Armuña de Almanzora"]
["0195",4,"Bacares"]
["0209",4,"Bayárcal"]
["0216",4,"Bayarque"]
["0221",4,"Bédar"]
["0237",4,"Beires"]
["0242",4,"Benahadux"]
["0268",4,"Benitagla"]
["0274",4,"Benizalón"]
["0280",4,"Bentarique"]
["0293",4,"Berja"]
["0307",4,"Canjáyar"]
["0314",4,"Cantoria"]
["0329",4,"Carboneras"]
["0335",4,"Castro de Filabres"]
["0366",4,"Chercos"]
["0372",4,"Chirivel"]
["0340",4,"Cóbdar"]
["0353",4,"Cuevas del Almanzora"]
["0388",4,"Dalías"]
["9026",4,"Ejido, El"]
["0412",4,"Enix"]
["0433",4,"Felix"]
["0448",4,"Fines"]
["0451",4,"Fiñana"]
["0464",4,"Fondón"]
["0470",4,"Gádor"]
["0486",4,"Gallardos, Los"]
["0499",4,"Garrucha"]
["0502",4,"Gérgal"]
["0519",4,"Huécija"]
["0524",4,"Huércal de Almería"]
["0530",4,"Huércal-Overa"]
["0545",4,"Illar"]
["0558",4,"Instinción"]
["0561",4,"Laroya"]
["0577",4,"Láujar de Andarax"]
["0583",4,"Líjar"]
["0596",4,"Lubrín"]
["0600",4,"Lucainena de las Torres"]
["0617",4,"Lúcar"]
["0622",4,"Macael"]
["0638",4,"María"]
["0643",4,"Mojácar"]
["9032",4,"Mojonera, La"]
["0656",4,"Nacimiento"]
["0669",4,"Níjar"]
["0675",4,"Ohanes"]
["0681",4,"Olula de Castro"]
["0694",4,"Olula del Río"]
["0708",4,"Oria"]
["0715",4,"Padules"]
["0720",4,"Partaloa"]
["0736",4,"Paterna del Río"]
["0741",4,"Pechina"]
["0754",4,"Pulpí"]
["0767",4,"Purchena"]
["0773",4,"Rágol"]
["0789",4,"Rioja"]
["0792",4,"Roquetas de Mar"]
["0806",4,"Santa Cruz de Marchena"]
["0813",4,"Santa Fe de Mondújar"]
["0828",4,"Senés"]
["0834",4,"Serón"]
["0849",4,"Sierro"]
["0852",4,"Somontín"]
["0865",4,"Sorbas"]
["0871",4,"Suflí"]
["0887",4,"Tabernas"]
["0890",4,"Taberno"]
["0904",4,"Tahal"]
["0911",4,"Terque"]
["0926",4,"Tíjola"]
["9011",4,"Tres Villas, Las"]
["0932",4,"Turre"]
["0947",4,"Turrillas"]
["0950",4,"Uleila del Campo"]
["0963",4,"Urrácal"]
["0979",4,"Velefique"]
["0985",4,"Vélez-Blanco"]
["0998",4,"Vélez-Rubio"]
["1002",4,"Vera"]
["1019",4,"Viator"]
["1024",4,"Vícar"]
["1030",4,"Zurgena"]
["0013",5,"Adanero"]
["0028",5,"Adrada, La"]
["0052",5,"Albornos"]
["0071",5,"Aldeanueva de Santa Cruz"]
["0087",5,"Aldeaseca"]
["0104",5,"Aldehuela, La"]
["0126",5,"Amavida"]
["0132",5,"Arenal, El"]
["0147",5,"Arenas de San Pedro"]
["0150",5,"Arevalillo"]
["0163",5,"Arévalo"]
["0179",5,"Aveinte"]
["0185",5,"Avellaneda"]
["0198",5,"Ávila"]
["0219",5,"Barco de Ávila, El"]
["0224",5,"Barraco, El"]
["0230",5,"Barromán"]
["0245",5,"Becedas"]
["0258",5,"Becedillas"]
["0261",5,"Bercial de Zapardiel"]
["0277",5,"Berlanas, Las"]
["0296",5,"Bernuy-Zapardiel"]
["0300",5,"Berrocalejo de Aragona"]
["0338",5,"Blascomillán"]
["0343",5,"Blasconuño de Matacabras"]
["0356",5,"Blascosancho"]
["0369",5,"Bohodón, El"]
["0375",5,"Bohoyo"]
["0381",5,"Bonilla de la Sierra"]
["0394",5,"Brabos"]
["0408",5,"Bularros"]
["0415",5,"Burgohondo"]
["0420",5,"Cabezas de Alambre"]
["0436",5,"Cabezas del Pozo"]
["0441",5,"Cabezas del Villar"]
["0454",5,"Cabizuela"]
["0467",5,"Canales"]
["0473",5,"Candeleda"]
["0489",5,"Cantiveros"]
["0492",5,"Cardeñosa"]
["0512",5,"Carrera, La"]
["0527",5,"Casas del Puerto"]
["0533",5,"Casasola"]
["0548",5,"Casavieja"]
["0551",5,"Casillas"]
["0564",5,"Castellanos de Zapardiel"]
["0570",5,"Cebreros"]
["0586",5,"Cepeda la Mora"]
["0678",5,"Chamartín"]
["0599",5,"Cillán"]
["0603",5,"Cisla"]
["0610",5,"Colilla, La"]
["0625",5,"Collado de Contreras"]
["0631",5,"Collado del Mirón"]
["0646",5,"Constanzana"]
["0659",5,"Crespos"]
["0662",5,"Cuevas del Valle"]
["9035",5,"Diego del Carpio"]
["0697",5,"Donjimeno"]
["0701",5,"Donvidas"]
["0723",5,"Espinosa de los Caballeros"]
["0739",5,"Flores de Ávila"]
["0744",5,"Fontiveros"]
["0757",5,"Fresnedilla"]
["0760",5,"Fresno, El"]
["0776",5,"Fuente el Saúz"]
["0782",5,"Fuentes de Año"]
["0795",5,"Gallegos de Altamiros"]
["0809",5,"Gallegos de Sobrinos"]
["0816",5,"Garganta del Villar"]
["0821",5,"Gavilanes"]
["0837",5,"Gemuño"]
["0855",5,"Gil García"]
["0842",5,"Gilbuena"]
["0868",5,"Gimialcón"]
["0874",5,"Gotarrendura"]
["0880",5,"Grandes y San Martín"]
["0893",5,"Guisando"]
["0907",5,"Gutierre-Muñoz"]
["0929",5,"Hernansancho"]
["0935",5,"Herradón de Pinares"]
["0940",5,"Herreros de Suso"]
["0953",5,"Higuera de las Dueñas"]
["0966",5,"Hija de Dios, La"]
["0972",5,"Horcajada, La"]
["0991",5,"Horcajo de las Torres"]
["1005",5,"Hornillo, El"]
["1027",5,"Hoyo de Pinares, El"]
["1012",5,"Hoyocasero"]
["1033",5,"Hoyorredondo"]
["1064",5,"Hoyos de Miguel Muñoz"]
["1048",5,"Hoyos del Collado"]
["1051",5,"Hoyos del Espino"]
["1070",5,"Hurtumpascual"]
["1086",5,"Junciana"]
["1099",5,"Langa"]
["1103",5,"Lanzahíta"]
["1131",5,"Llanos de Tormes, Los"]
["1125",5,"Losar del Barco, El"]
["1146",5,"Madrigal de las Altas Torres"]
["1159",5,"Maello"]
["1162",5,"Malpartida de Corneja"]
["1178",5,"Mamblas"]
["1184",5,"Mancera de Arriba"]
["1197",5,"Manjabálago y Ortigosa de Rioalmar"]
["1201",5,"Marlín"]
["1218",5,"Martiherrero"]
["1223",5,"Martínez"]
["1239",5,"Mediana de Voltoya"]
["1244",5,"Medinilla"]
["1257",5,"Mengamuñoz"]
["1260",5,"Mesegar de Corneja"]
["1276",5,"Mijares"]
["1282",5,"Mingorría"]
["1295",5,"Mirón, El"]
["1309",5,"Mironcillo"]
["1316",5,"Mirueña de los Infanzones"]
["1321",5,"Mombeltrán"]
["1337",5,"Monsalupe"]
["1342",5,"Moraleja de Matacabras"]
["1355",5,"Muñana"]
["1368",5,"Muñico"]
["1380",5,"Muñogalindo"]
["1393",5,"Muñogrande"]
["1407",5,"Muñomer del Peco"]
["1414",5,"Muñopepe"]
["1429",5,"Muñosancho"]
["1435",5,"Muñotello"]
["1440",5,"Narrillos del Álamo"]
["1453",5,"Narrillos del Rebollar"]
["1491",5,"Narros de Saldueña"]
["1472",5,"Narros del Castillo"]
["1488",5,"Narros del Puerto"]
["1526",5,"Nava de Arévalo"]
["1532",5,"Nava del Barco"]
["1511",5,"Navacepedilla de Corneja"]
["1547",5,"Navadijos"]
["1550",5,"Navaescurial"]
["1563",5,"Navahondilla"]
["1579",5,"Navalacruz"]
["1585",5,"Navalmoral"]
["1598",5,"Navalonguilla"]
["1602",5,"Navalosa"]
["1619",5,"Navalperal de Pinares"]
["1624",5,"Navalperal de Tormes"]
["1630",5,"Navaluenga"]
["1645",5,"Navaquesera"]
["1658",5,"Navarredonda de Gredos"]
["1661",5,"Navarredondilla"]
["1677",5,"Navarrevisca"]
["1683",5,"Navas del Marqués, Las"]
["1696",5,"Navatalgordo"]
["1700",5,"Navatejares"]
["1717",5,"Neila de San Miguel"]
["1722",5,"Niharra"]
["1738",5,"Ojos-Albos"]
["1743",5,"Orbita"]
["1756",5,"Oso, El"]
["1769",5,"Padiernos"]
["1775",5,"Pajares de Adaja"]
["1781",5,"Palacios de Goda"]
["1794",5,"Papatrigo"]
["1808",5,"Parral, El"]
["1815",5,"Pascualcobo"]
["1820",5,"Pedro Bernardo"]
["1836",5,"Pedro-Rodríguez"]
["1841",5,"Peguerinos"]
["1854",5,"Peñalba de Ávila"]
["1867",5,"Piedrahíta"]
["1873",5,"Piedralaves"]
["1889",5,"Poveda"]
["1892",5,"Poyales del Hoyo"]
["1906",5,"Pozanco"]
["1913",5,"Pradosegar"]
["1928",5,"Puerto Castilla"]
["1934",5,"Rasueros"]
["1949",5,"Riocabado"]
["1952",5,"Riofrío"]
["1965",5,"Rivilla de Barajas"]
["1971",5,"Salobral"]
["1987",5,"Salvadiós"]
["1990",5,"San Bartolomé de Béjar"]
["2004",5,"San Bartolomé de Corneja"]
["2011",5,"San Bartolomé de Pinares"]
["2063",5,"San Esteban de los Patos"]
["2085",5,"San Esteban de Zapardiel"]
["2079",5,"San Esteban del Valle"]
["2098",5,"San García de Ingelmos"]
["9014",5,"San Juan de Gredos"]
["2102",5,"San Juan de la Encinilla"]
["2119",5,"San Juan de la Nava"]
["2124",5,"San Juan del Molinillo"]
["2130",5,"San Juan del Olmo"]
["2145",5,"San Lorenzo de Tormes"]
["2158",5,"San Martín de la Vega del Alberche"]
["2161",5,"San Martín del Pimpollar"]
["2177",5,"San Miguel de Corneja"]
["2183",5,"San Miguel de Serrezuela"]
["2196",5,"San Pascual"]
["2200",5,"San Pedro del Arroyo"]
["2315",5,"San Vicente de Arévalo"]
["2047",5,"Sanchidrián"]
["2050",5,"Sanchorreja"]
["2222",5,"Santa Cruz de Pinares"]
["2217",5,"Santa Cruz del Valle"]
["2269",5,"Santa María de los Caballeros"]
["2243",5,"Santa María del Arroyo"]
["2256",5,"Santa María del Berrocal"]
["9029",5,"Santa María del Cubillo"]
["2275",5,"Santa María del Tiétar"]
["2281",5,"Santiago del Collado"]
["9040",5,"Santiago del Tormes"]
["2294",5,"Santo Domingo de las Posadas"]
["2308",5,"Santo Tomé de Zabarcos"]
["2320",5,"Serrada, La"]
["2336",5,"Serranillos"]
["2341",5,"Sigeres"]
["2354",5,"Sinlabajos"]
["2367",5,"Solana de Ávila"]
["2373",5,"Solana de Rioalmar"]
["2389",5,"Solosancho"]
["2392",5,"Sotalbo"]
["2406",5,"Sotillo de la Adrada"]
["2413",5,"Tiemblo, El"]
["2428",5,"Tiñosillos"]
["2434",5,"Tolbaños"]
["2449",5,"Tormellas"]
["2452",5,"Tornadizos de Ávila"]
["2471",5,"Torre, La"]
["2465",5,"Tórtoles"]
["2490",5,"Umbrías"]
["2510",5,"Vadillo de la Sierra"]
["2525",5,"Valdecasa"]
["2531",5,"Vega de Santa María"]
["2546",5,"Velayos"]
["2562",5,"Villaflor"]
["2578",5,"Villafranca de la Sierra"]
["9053",5,"Villanueva de Ávila"]
["2584",5,"Villanueva de Gómez"]
["2597",5,"Villanueva del Aceral"]
["2601",5,"Villanueva del Campillo"]
["2618",5,"Villar de Corneja"]
["2623",5,"Villarejo del Valle"]
["2639",5,"Villatoro"]
["2644",5,"Viñegra de Moraña"]
["2657",5,"Vita"]
["2660",5,"Zapardiel de la Cañada"]
["2676",5,"Zapardiel de la Ribera"]
["0016",6,"Acedera"]
["0021",6,"Aceuchal"]
["0037",6,"Ahillones"]
["0042",6,"Alange"]
["0055",6,"Albuera, La"]
["0068",6,"Alburquerque"]
["0074",6,"Alconchel"]
["0080",6,"Alconera"]
["0093",6,"Aljucén"]
["0107",6,"Almendral"]
["0114",6,"Almendralejo"]
["0129",6,"Arroyo de San Serván"]
["0135",6,"Atalaya"]
["0140",6,"Azuaga"]
["0153",6,"Badajoz"]
["0166",6,"Barcarrota"]
["0172",6,"Baterno"]
["0188",6,"Benquerencia de la Serena"]
["0191",6,"Berlanga"]
["0205",6,"Bienvenida"]
["0212",6,"Bodonal de la Sierra"]
["0227",6,"Burguillos del Cerro"]
["0233",6,"Cabeza del Buey"]
["0248",6,"Cabeza la Vaca"]
["0251",6,"Calamonte"]
["0264",6,"Calera de León"]
["0270",6,"Calzadilla de los Barros"]
["0286",6,"Campanario"]
["0299",6,"Campillo de Llerena"]
["0303",6,"Capilla"]
["0310",6,"Carmonita"]
["0325",6,"Carrascalejo, El"]
["0331",6,"Casas de Don Pedro"]
["0346",6,"Casas de Reina"]
["0359",6,"Castilblanco"]
["0362",6,"Castuera"]
["0423",6,"Cheles"]
["0378",6,"Codosera, La"]
["0384",6,"Cordobilla de Lácara"]
["0397",6,"Coronada, La"]
["0401",6,"Corte de Peleas"]
["0418",6,"Cristina"]
["0439",6,"Don Álvaro"]
["0444",6,"Don Benito"]
["0457",6,"Entrín Bajo"]
["0460",6,"Esparragalejo"]
["0476",6,"Esparragosa de la Serena"]
["0482",6,"Esparragosa de Lares"]
["0495",6,"Feria"]
["0508",6,"Fregenal de la Sierra"]
["0515",6,"Fuenlabrada de los Montes"]
["0520",6,"Fuente de Cantos"]
["0536",6,"Fuente del Arco"]
["0541",6,"Fuente del Maestre"]
["0554",6,"Fuentes de León"]
["0567",6,"Garbayuela"]
["0573",6,"Garlitos"]
["0589",6,"Garrovilla, La"]
["0592",6,"Granja de Torrehermosa"]
["9038",6,"Guadiana del Caudillo"]
["0606",6,"Guareña"]
["0613",6,"Haba, La"]
["0628",6,"Helechosa de los Montes"]
["0634",6,"Herrera del Duque"]
["0649",6,"Higuera de la Serena"]
["0652",6,"Higuera de Llerena"]
["0665",6,"Higuera de Vargas"]
["0671",6,"Higuera la Real"]
["0687",6,"Hinojosa del Valle"]
["0690",6,"Hornachos"]
["0704",6,"Jerez de los Caballeros"]
["0711",6,"Lapa, La"]
["0732",6,"Llera"]
["0747",6,"Llerena"]
["0726",6,"Lobón"]
["0750",6,"Magacela"]
["0763",6,"Maguilla"]
["0779",6,"Malcocinado"]
["0785",6,"Malpartida de la Serena"]
["0798",6,"Manchita"]
["0802",6,"Medellín"]
["0819",6,"Medina de las Torres"]
["0824",6,"Mengabril"]
["0830",6,"Mérida"]
["0845",6,"Mirandilla"]
["0858",6,"Monesterio"]
["0861",6,"Montemolín"]
["0877",6,"Monterrubio de la Serena"]
["0883",6,"Montijo"]
["0896",6,"Morera, La"]
["0900",6,"Nava de Santiago, La"]
["0917",6,"Navalvillar de Pela"]
["0922",6,"Nogales"]
["0938",6,"Oliva de la Frontera"]
["0943",6,"Oliva de Mérida"]
["0956",6,"Olivenza"]
["0969",6,"Orellana de la Sierra"]
["0975",6,"Orellana la Vieja"]
["0981",6,"Palomas"]
["0994",6,"Parra, La"]
["1008",6,"Peñalsordo"]
["1015",6,"Peraleda del Zaucejo"]
["1020",6,"Puebla de Alcocer"]
["1036",6,"Puebla de la Calzada"]
["1041",6,"Puebla de la Reina"]
["1073",6,"Puebla de Obando"]
["1089",6,"Puebla de Sancho Pérez"]
["1054",6,"Puebla del Maestre"]
["1067",6,"Puebla del Prior"]
["9022",6,"Pueblonuevo del Guadiana"]
["1092",6,"Quintana de la Serena"]
["1106",6,"Reina"]
["1113",6,"Rena"]
["1128",6,"Retamal de Llerena"]
["1134",6,"Ribera del Fresno"]
["1149",6,"Risco"]
["1152",6,"Roca de la Sierra, La"]
["1165",6,"Salvaleón"]
["1171",6,"Salvatierra de los Barros"]
["1190",6,"San Pedro de Mérida"]
["1232",6,"San Vicente de Alcántara"]
["1187",6,"Sancti-Spíritus"]
["1204",6,"Santa Amalia"]
["1211",6,"Santa Marta"]
["1226",6,"Santos de Maimona, Los"]
["1247",6,"Segura de León"]
["1250",6,"Siruela"]
["1263",6,"Solana de los Barros"]
["1279",6,"Talarrubias"]
["1285",6,"Talavera la Real"]
["1298",6,"Táliga"]
["1302",6,"Tamurejo"]
["1319",6,"Torre de Miguel Sesmero"]
["1324",6,"Torremayor"]
["1330",6,"Torremejía"]
["1345",6,"Trasierra"]
["1358",6,"Trujillanos"]
["1361",6,"Usagre"]
["1377",6,"Valdecaballeros"]
["9017",6,"Valdelacalzada"]
["1383",6,"Valdetorres"]
["1396",6,"Valencia de las Torres"]
["1400",6,"Valencia del Mombuey"]
["1417",6,"Valencia del Ventoso"]
["1469",6,"Valle de la Serena"]
["1475",6,"Valle de Matamoros"]
["1481",6,"Valle de Santa Ana"]
["1422",6,"Valverde de Burguillos"]
["1438",6,"Valverde de Leganés"]
["1443",6,"Valverde de Llerena"]
["1456",6,"Valverde de Mérida"]
["1494",6,"Villafranca de los Barros"]
["1507",6,"Villagarcía de la Torre"]
["1514",6,"Villagonzalo"]
["1529",6,"Villalba de los Barros"]
["1535",6,"Villanueva de la Serena"]
["1540",6,"Villanueva del Fresno"]
["1566",6,"Villar de Rena"]
["1553",6,"Villar del Rey"]
["1572",6,"Villarta de los Montes"]
["1588",6,"Zafra"]
["1591",6,"Zahínos"]
["1605",6,"Zalamea de la Serena"]
["1627",6,"Zarza, La"]
["1612",6,"Zarza-Capilla"]
["0027",7,"Alaior"]
["0012",7,"Alaró"]
["0033",7,"Alcúdia"]
["0048",7,"Algaida"]
["0051",7,"Andratx"]
["9013",7,"Ariany"]
["0064",7,"Artà"]
["0070",7,"Banyalbufar"]
["0086",7,"Binissalem"]
["0099",7,"Búger"]
["0103",7,"Bunyola"]
["0110",7,"Calvià"]
["0125",7,"Campanet"]
["0131",7,"Campos"]
["0146",7,"Capdepera"]
["0645",7,"Castell, Es"]
["0159",7,"Ciutadella de Menorca"]
["0162",7,"Consell"]
["0178",7,"Costitx"]
["0184",7,"Deià"]
["0260",7,"Eivissa"]
["0197",7,"Escorca"]
["0201",7,"Esporles"]
["0218",7,"Estellencs"]
["0223",7,"Felanitx"]
["0239",7,"Ferreries"]
["0244",7,"Formentera"]
["0257",7,"Fornalutx"]
["0276",7,"Inca"]
["0282",7,"Lloret de Vistalegre"]
["0295",7,"Lloseta"]
["0309",7,"Llubí"]
["0316",7,"Llucmajor"]
["0337",7,"Manacor"]
["0342",7,"Mancor de la Vall"]
["0321",7,"Maó-Mahón"]
["0355",7,"Maria de la Salut"]
["0368",7,"Marratxí"]
["0374",7,"Mercadal, Es"]
["9028",7,"Migjorn Gran, Es"]
["0380",7,"Montuïri"]
["0393",7,"Muro"]
["0407",7,"Palma de Mallorca"]
["0414",7,"Petra"]
["0440",7,"Pobla, Sa"]
["0429",7,"Pollença"]
["0435",7,"Porreres"]
["0453",7,"Puigpunyent"]
["0598",7,"Salines, Ses"]
["0466",7,"Sant Antoni de Portmany"]
["0491",7,"Sant Joan"]
["0504",7,"Sant Joan de Labritja"]
["0488",7,"Sant Josep de sa Talaia"]
["0511",7,"Sant Llorenç des Cardassar"]
["0526",7,"Sant Lluís"]
["0532",7,"Santa Eugènia"]
["0547",7,"Santa Eulària des Riu"]
["0550",7,"Santa Margalida"]
["0563",7,"Santa María del Camí"]
["0579",7,"Santanyí"]
["0585",7,"Selva"]
["0472",7,"Sencelles"]
["0602",7,"Sineu"]
["0619",7,"Sóller"]
["0624",7,"Son Servera"]
["0630",7,"Valldemossa"]
["0658",7,"Vilafranca de Bonany"]
["0018",8,"Abrera"]
["0023",8,"Aguilar de Segarra"]
["0142",8,"Aiguafreda"]
["0039",8,"Alella"]
["0044",8,"Alpens"]
["0057",8,"Ametlla del Vallès, L'"]
["0060",8,"Arenys de Mar"]
["0076",8,"Arenys de Munt"]
["0082",8,"Argençola"]
["0095",8,"Argentona"]
["0109",8,"Artés"]
["0116",8,"Avià"]
["0121",8,"Avinyó"]
["0137",8,"Avinyonet del Penedès"]
["0155",8,"Badalona"]
["9045",8,"Badia del Vallès"]
["0168",8,"Bagà"]
["0174",8,"Balenyà"]
["0180",8,"Balsareny"]
["2520",8,"Barberà del Vallès"]
["0193",8,"Barcelona"]
["0207",8,"Begues"]
["0214",8,"Bellprat"]
["0229",8,"Berga"]
["0235",8,"Bigues i Riells"]
["0240",8,"Borredà"]
["0253",8,"Bruc, El"]
["0266",8,"Brull, El"]
["0272",8,"Cabanyes, Les"]
["0288",8,"Cabrera d'Anoia"]
["0291",8,"Cabrera de Mar"]
["0305",8,"Cabrils"]
["0312",8,"Calaf"]
["0348",8,"Calders"]
["0333",8,"Caldes de Montbui"]
["0327",8,"Caldes d'Estrac"]
["0351",8,"Calella"]
["0370",8,"Calldetenes"]
["0386",8,"Callús"]
["0364",8,"Calonge de Segarra"]
["0399",8,"Campins"]
["0403",8,"Canet de Mar"]
["0410",8,"Canovelles"]
["0425",8,"Cànoves i Samalús"]
["0431",8,"Canyelles"]
["0446",8,"Capellades"]
["0459",8,"Capolat"]
["0462",8,"Cardedeu"]
["0478",8,"Cardona"]
["0484",8,"Carme"]
["0497",8,"Casserres"]
["0575",8,"Castell de l'Areny"]
["0522",8,"Castellar de n'Hug"]
["0500",8,"Castellar del Riu"]
["0517",8,"Castellar del Vallès"]
["0538",8,"Castellbell i el Vilar"]
["0543",8,"Castellbisbal"]
["0556",8,"Castellcir"]
["0569",8,"Castelldefels"]
["0581",8,"Castellet i la Gornal"]
["0608",8,"Castellfollit de Riubregós"]
["0594",8,"Castellfollit del Boix"]
["0615",8,"Castellgalí"]
["0620",8,"Castellnou de Bages"]
["0636",8,"Castellolí"]
["0641",8,"Castellterçol"]
["0654",8,"Castellví de la Marca"]
["0667",8,"Castellví de Rosanes"]
["0673",8,"Centelles"]
["2687",8,"Cercs"]
["2665",8,"Cerdanyola del Vallès"]
["0689",8,"Cervelló"]
["0692",8,"Collbató"]
["0706",8,"Collsuspina"]
["0713",8,"Copons"]
["0728",8,"Corbera de Llobregat"]
["0734",8,"Cornellà de Llobregat"]
["0749",8,"Cubelles"]
["0752",8,"Dosrius"]
["0765",8,"Esparreguera"]
["0771",8,"Esplugues de Llobregat"]
["0787",8,"Espunyola, L'"]
["2541",8,"Esquirol, L'"]
["0790",8,"Estany, L'"]
["1347",8,"Figaró-Montmany"]
["0804",8,"Fígols"]
["0826",8,"Fogars de la Selva"]
["0811",8,"Fogars de Montclús"]
["0832",8,"Folgueroles"]
["0847",8,"Fonollosa"]
["0850",8,"Font-rubí"]
["0863",8,"Franqueses del Vallès, Les"]
["0902",8,"Gaià"]
["0879",8,"Gallifa"]
["0885",8,"Garriga, La"]
["0898",8,"Gavà"]
["0919",8,"Gelida"]
["0924",8,"Gironella"]
["0930",8,"Gisclareny"]
["0945",8,"Granada, La"]
["0958",8,"Granera"]
["0961",8,"Granollers"]
["0977",8,"Gualba"]
["0996",8,"Guardiola de Berguedà"]
["1000",8,"Gurb"]
["1017",8,"Hospitalet de Llobregat, L'"]
["1629",8,"Hostalets de Pierola, Els"]
["1022",8,"Igualada"]
["1038",8,"Jorba"]
["1043",8,"Llacuna, La"]
["1056",8,"Llagosta, La"]
["1075",8,"Lliçà d'Amunt"]
["1081",8,"Lliçà de Vall"]
["1069",8,"Llinars del Vallès"]
["1094",8,"Lluçà"]
["1108",8,"Malgrat de Mar"]
["1115",8,"Malla"]
["1120",8,"Manlleu"]
["1136",8,"Manresa"]
["2423",8,"Marganell"]
["1141",8,"Martorell"]
["1154",8,"Martorelles"]
["1167",8,"Masies de Roda, Les"]
["1173",8,"Masies de Voltregà, Les"]
["1189",8,"Masnou, El"]
["1192",8,"Masquefa"]
["1206",8,"Matadepera"]
["1213",8,"Mataró"]
["1228",8,"Mediona"]
["1385",8,"Moià"]
["1234",8,"Molins de Rei"]
["1249",8,"Mollet del Vallès"]
["1287",8,"Monistrol de Calders"]
["1271",8,"Monistrol de Montserrat"]
["1252",8,"Montcada i Reixac"]
["1304",8,"Montclar"]
["1311",8,"Montesquiu"]
["1265",8,"Montgat"]
["1326",8,"Montmajor"]
["1332",8,"Montmaneu"]
["1350",8,"Montmeló"]
["1363",8,"Montornès del Vallès"]
["1379",8,"Montseny"]
["1290",8,"Muntanyola"]
["1398",8,"Mura"]
["1402",8,"Navarcles"]
["1419",8,"Navàs"]
["1424",8,"Nou de Berguedà, La"]
["1430",8,"Òdena"]
["1458",8,"Olèrdola"]
["1461",8,"Olesa de Bonesvalls"]
["1477",8,"Olesa de Montserrat"]
["1483",8,"Olivella"]
["1496",8,"Olost"]
["1445",8,"Olvan"]
["1509",8,"Orís"]
["1516",8,"Oristà"]
["1521",8,"Orpí"]
["1537",8,"Òrrius"]
["1542",8,"Pacs del Penedès"]
["1555",8,"Palafolls"]
["1568",8,"Palau-solità i Plegamans"]
["1574",8,"Pallejà"]
["9058",8,"Palma de Cervelló, La"]
["1580",8,"Papiol, El"]
["1593",8,"Parets del Vallès"]
["1607",8,"Perafita"]
["1614",8,"Piera"]
["1635",8,"Pineda de Mar"]
["1640",8,"Pla del Penedès, El"]
["1653",8,"Pobla de Claramunt, La"]
["1666",8,"Pobla de Lillet, La"]
["1672",8,"Polinyà"]
["1825",8,"Pont de Vilomara i Rocafort, El"]
["1688",8,"Pontons"]
["1691",8,"Prat de Llobregat, El"]
["1712",8,"Prats de Lluçanès"]
["1705",8,"Prats de Rei, Els"]
["2303",8,"Premià de Dalt"]
["1727",8,"Premià de Mar"]
["1748",8,"Puigdàlber"]
["1751",8,"Puig-reig"]
["1764",8,"Pujalt"]
["1770",8,"Quar, La"]
["1786",8,"Rajadell"]
["1799",8,"Rellinars"]
["1803",8,"Ripollet"]
["1810",8,"Roca del Vallès, La"]
["1831",8,"Roda de Ter"]
["1846",8,"Rubí"]
["1859",8,"Rubió"]
["9019",8,"Rupit i Pruit"]
["1878",8,"Sabadell"]
["1884",8,"Sagàs"]
["1901",8,"Saldes"]
["1918",8,"Sallent"]
["1944",8,"Sant Adrià de Besòs"]
["1957",8,"Sant Agustí de Lluçanès"]
["1960",8,"Sant Andreu de la Barca"]
["1976",8,"Sant Andreu de Llavaneres"]
["1982",8,"Sant Antoni de Vilamajor"]
["1995",8,"Sant Bartomeu del Grau"]
["2009",8,"Sant Boi de Llobregat"]
["2016",8,"Sant Boi de Lluçanès"]
["2037",8,"Sant Cebrià de Vallalta"]
["2021",8,"Sant Celoni"]
["2042",8,"Sant Climent de Llobregat"]
["2055",8,"Sant Cugat del Vallès"]
["2068",8,"Sant Cugat Sesgarrigues"]
["2074",8,"Sant Esteve de Palautordera"]
["2080",8,"Sant Esteve Sesrovires"]
["2107",8,"Sant Feliu de Codines"]
["2114",8,"Sant Feliu de Llobregat"]
["2129",8,"Sant Feliu Sasserra"]
["2093",8,"Sant Fost de Campsentelles"]
["2135",8,"Sant Fruitós de Bages"]
["2153",8,"Sant Hipòlit de Voltregà"]
["1939",8,"Sant Iscle de Vallalta"]
["2166",8,"Sant Jaume de Frontanyà"]
["2188",8,"Sant Joan de Vilatorrada"]
["2172",8,"Sant Joan Despí"]
["9030",8,"Sant Julià de Cerdanyola"]
["2205",8,"Sant Julià de Vilatorta"]
["2212",8,"Sant Just Desvern"]
["2227",8,"Sant Llorenç d'Hortons"]
["2233",8,"Sant Llorenç Savall"]
["2251",8,"Sant Martí d'Albars"]
["2248",8,"Sant Martí de Centelles"]
["2264",8,"Sant Martí de Tous"]
["2270",8,"Sant Martí Sarroca"]
["2286",8,"Sant Martí Sesgueioles"]
["2299",8,"Sant Mateu de Bages"]
["2310",8,"Sant Pere de Ribes"]
["2325",8,"Sant Pere de Riudebitlles"]
["2331",8,"Sant Pere de Torelló"]
["2346",8,"Sant Pere de Vilamajor"]
["1897",8,"Sant Pere Sallavinera"]
["2359",8,"Sant Pol de Mar"]
["2362",8,"Sant Quintí de Mediona"]
["2378",8,"Sant Quirze de Besora"]
["2384",8,"Sant Quirze del Vallès"]
["2397",8,"Sant Quirze Safaja"]
["2401",8,"Sant Sadurní d'Anoia"]
["2418",8,"Sant Sadurní d'Osormort"]
["0983",8,"Sant Salvador de Guardiola"]
["2628",8,"Sant Vicenç de Castellet"]
["2649",8,"Sant Vicenç de Montalt"]
["2652",8,"Sant Vicenç de Torelló"]
["2634",8,"Sant Vicenç dels Horts"]
["2439",8,"Santa Cecília de Voltregà"]
["2444",8,"Santa Coloma de Cervelló"]
["2457",8,"Santa Coloma de Gramenet"]
["2460",8,"Santa Eugènia de Berga"]
["2476",8,"Santa Eulàlia de Riuprimer"]
["2482",8,"Santa Eulàlia de Ronçana"]
["2495",8,"Santa Fe del Penedès"]
["2508",8,"Santa Margarida de Montbui"]
["2515",8,"Santa Margarida i els Monjos"]
["2536",8,"Santa Maria de Besora"]
["2567",8,"Santa Maria de Martorelles"]
["2554",8,"Santa Maria de Merlès"]
["2573",8,"Santa Maria de Miralles"]
["2592",8,"Santa Maria de Palautordera"]
["2589",8,"Santa Maria d'Oló"]
["2606",8,"Santa Perpètua de Mogoda"]
["2613",8,"Santa Susanna"]
["1923",8,"Santpedor"]
["2671",8,"Sentmenat"]
["2690",8,"Seva"]
["2704",8,"Sitges"]
["2711",8,"Sobremunt"]
["2726",8,"Sora"]
["2732",8,"Subirats"]
["2747",8,"Súria"]
["2763",8,"Tagamanent"]
["2779",8,"Talamanca"]
["2785",8,"Taradell"]
["2750",8,"Tavèrnoles"]
["2802",8,"Tavertet"]
["2819",8,"Teià"]
["2798",8,"Terrassa"]
["2824",8,"Tiana"]
["2830",8,"Tona"]
["2845",8,"Tordera"]
["2858",8,"Torelló"]
["2861",8,"Torre de Claramunt, La"]
["2877",8,"Torrelavit"]
["2883",8,"Torrelles de Foix"]
["2896",8,"Torrelles de Llobregat"]
["2900",8,"Ullastrell"]
["2917",8,"Vacarisses"]
["2922",8,"Vallbona d'Anoia"]
["2938",8,"Vallcebre"]
["2943",8,"Vallgorguina"]
["2956",8,"Vallirana"]
["2969",8,"Vallromanes"]
["2975",8,"Veciana"]
["2981",8,"Vic"]
["2994",8,"Vilada"]
["3015",8,"Viladecans"]
["3008",8,"Viladecavalls"]
["3054",8,"Vilafranca del Penedès"]
["3067",8,"Vilalba Sasserra"]
["3036",8,"Vilanova de Sau"]
["3020",8,"Vilanova del Camí"]
["9024",8,"Vilanova del Vallès"]
["3073",8,"Vilanova i la Geltrú"]
["2140",8,"Vilassar de Dalt"]
["2191",8,"Vilassar de Mar"]
["3041",8,"Vilobí del Penedès"]
["3089",8,"Viver i Serrateix"]
["0011",9,"Abajas"]
["0032",9,"Adrada de Haza"]
["0063",9,"Aguas Cándidas"]
["0079",9,"Aguilar de Bureba"]
["0098",9,"Albillos"]
["0102",9,"Alcocero de Mola"]
["0119",9,"Alfoz de Bricia"]
["9070",9,"Alfoz de Quintanadueñas"]
["0124",9,"Alfoz de Santa Gadea"]
["0130",9,"Altable"]
["0145",9,"Altos, Los"]
["0161",9,"Ameyugo"]
["0177",9,"Anguix"]
["0183",9,"Aranda de Duero"]
["0196",9,"Arandilla"]
["0200",9,"Arauzo de Miel"]
["0217",9,"Arauzo de Salce"]
["0222",9,"Arauzo de Torre"]
["0238",9,"Arcos"]
["0243",9,"Arenillas de Riopisuerga"]
["0256",9,"Arija"]
["0269",9,"Arlanzón"]
["0275",9,"Arraya de Oca"]
["0294",9,"Atapuerca"]
["0308",9,"Ausines, Los"]
["0320",9,"Avellanosa de Muñó"]
["0336",9,"Bahabón de Esgueva"]
["0341",9,"Balbases, Los"]
["0354",9,"Baños de Valdearados"]
["0367",9,"Bañuelos de Bureba"]
["0373",9,"Barbadillo de Herreros"]
["0389",9,"Barbadillo del Mercado"]
["0392",9,"Barbadillo del Pez"]
["0413",9,"Barrio de Muñó"]
["0434",9,"Barrios de Bureba, Los"]
["0449",9,"Barrios de Colina"]
["0452",9,"Basconcillos del Tozo"]
["0465",9,"Bascuñana"]
["0471",9,"Belbimbre"]
["0487",9,"Belorado"]
["0503",9,"Berberana"]
["0510",9,"Berlangas de Roa"]
["0525",9,"Berzosa de Bureba"]
["0546",9,"Bozoó"]
["0559",9,"Brazacorta"]
["0562",9,"Briviesca"]
["0578",9,"Bugedo"]
["0584",9,"Buniel"]
["0597",9,"Burgos"]
["0601",9,"Busto de Bureba"]
["0618",9,"Cabañes de Esgueva"]
["0623",9,"Cabezón de la Sierra"]
["0644",9,"Caleruega"]
["0657",9,"Campillo de Aranda"]
["0660",9,"Campolara"]
["0676",9,"Canicosa de la Sierra"]
["0682",9,"Cantabrana"]
["0709",9,"Carazo"]
["0716",9,"Carcedo de Bureba"]
["0721",9,"Carcedo de Burgos"]
["0737",9,"Cardeñadijo"]
["0742",9,"Cardeñajimeno"]
["0755",9,"Cardeñuela Riopico"]
["0768",9,"Carrias"]
["0774",9,"Cascajares de Bureba"]
["0780",9,"Cascajares de la Sierra"]
["0793",9,"Castellanos de Castro"]
["0835",9,"Castil de Peones"]
["0829",9,"Castildelgado"]
["0840",9,"Castrillo de la Reina"]
["0853",9,"Castrillo de la Vega"]
["0888",9,"Castrillo de Riopisuerga"]
["0866",9,"Castrillo del Val"]
["0905",9,"Castrillo Matajudíos"]
["0912",9,"Castrojeriz"]
["0639",9,"Cavia"]
["0933",9,"Cayuela"]
["0948",9,"Cebrecos"]
["0951",9,"Celada del Camino"]
["0986",9,"Cerezo de Río Tirón"]
["1003",9,"Cerratón de Juarros"]
["1010",9,"Ciadoncha"]
["1025",9,"Cillaperlata"]
["1031",9,"Cilleruelo de Abajo"]
["1046",9,"Cilleruelo de Arriba"]
["1059",9,"Ciruelos de Cervera"]
["1084",9,"Cogollos"]
["1097",9,"Condado de Treviño"]
["1101",9,"Contreras"]
["1123",9,"Coruña del Conde"]
["1139",9,"Covarrubias"]
["1144",9,"Cubillo del Campo"]
["1157",9,"Cubo de Bureba"]
["1176",9,"Cueva de Roa, La"]
["1195",9,"Cuevas de San Clemente"]
["1209",9,"Encío"]
["1221",9,"Espinosa de Cervera"]
["1242",9,"Espinosa de los Monteros"]
["1237",9,"Espinosa del Camino"]
["1255",9,"Estépar"]
["1274",9,"Fontioso"]
["1280",9,"Frandovínez"]
["1293",9,"Fresneda de la Sierra Tirón"]
["1307",9,"Fresneña"]
["1314",9,"Fresnillo de las Dueñas"]
["1329",9,"Fresno de Río Tirón"]
["1335",9,"Fresno de Rodilla"]
["1340",9,"Frías"]
["1353",9,"Fuentebureba"]
["1366",9,"Fuentecén"]
["1372",9,"Fuentelcésped"]
["1388",9,"Fuentelisendo"]
["1391",9,"Fuentemolinos"]
["1405",9,"Fuentenebro"]
["1412",9,"Fuentespina"]
["1433",9,"Galbarros"]
["1448",9,"Gallega, La"]
["1486",9,"Grijalba"]
["1499",9,"Grisaleña"]
["1519",9,"Gumiel de Izán"]
["1524",9,"Gumiel de Mercado"]
["1545",9,"Hacinas"]
["1558",9,"Haza"]
["1596",9,"Hontanas"]
["1600",9,"Hontangas"]
["1622",9,"Hontoria de la Cantera"]
["1643",9,"Hontoria de Valdearados"]
["1638",9,"Hontoria del Pinar"]
["1669",9,"Hormazas, Las"]
["1675",9,"Hornillos del Camino"]
["1681",9,"Horra, La"]
["1694",9,"Hortigüela"]
["1708",9,"Hoyales de Roa"]
["1720",9,"Huérmeces"]
["1736",9,"Huerta de Arriba"]
["1741",9,"Huerta de Rey"]
["1754",9,"Humada"]
["1767",9,"Hurones"]
["1773",9,"Ibeas de Juarros"]
["1789",9,"Ibrillos"]
["1792",9,"Iglesiarrubia"]
["1806",9,"Iglesias"]
["1813",9,"Isar"]
["1828",9,"Itero del Castillo"]
["1834",9,"Jaramillo de la Fuente"]
["1849",9,"Jaramillo Quemado"]
["1890",9,"Junta de Traslaloma"]
["1904",9,"Junta de Villalba de Losa"]
["1911",9,"Jurisdicción de Lara"]
["1926",9,"Jurisdicción de San Zadornil"]
["1947",9,"Lerma"]
["1950",9,"Llano de Bureba"]
["1963",9,"Madrigal del Monte"]
["1979",9,"Madrigalejo del Monte"]
["1985",9,"Mahamud"]
["1998",9,"Mambrilla de Castrejón"]
["2002",9,"Mambrillas de Lara"]
["2019",9,"Mamolar"]
["2024",9,"Manciles"]
["2061",9,"Mazuela"]
["2083",9,"Mecerreyes"]
["2096",9,"Medina de Pomar"]
["2117",9,"Melgar de Fernamental"]
["2138",9,"Merindad de Cuesta-Urria"]
["2143",9,"Merindad de Montija"]
["9064",9,"Merindad de Río Ubierna"]
["2156",9,"Merindad de Sotoscueva"]
["2169",9,"Merindad de Valdeporres"]
["2175",9,"Merindad de Valdivielso"]
["2181",9,"Milagros"]
["2194",9,"Miranda de Ebro"]
["2208",9,"Miraveche"]
["2215",9,"Modúbar de la Emparedada"]
["2236",9,"Monasterio de la Sierra"]
["2241",9,"Monasterio de Rodilla"]
["2254",9,"Moncalvillo"]
["2267",9,"Monterrubio de la Demanda"]
["2273",9,"Montorio"]
["2289",9,"Moradillo de Roa"]
["2292",9,"Nava de Roa"]
["2306",9,"Navas de Bureba"]
["2313",9,"Nebreda"]
["2328",9,"Neila"]
["2352",9,"Olmedillo de Roa"]
["2365",9,"Olmillos de Muñó"]
["2387",9,"Oña"]
["2390",9,"Oquillas"]
["2411",9,"Orbaneja Riopico"]
["2426",9,"Padilla de Abajo"]
["2432",9,"Padilla de Arriba"]
["2447",9,"Padrones de Bureba"]
["2463",9,"Palacios de la Sierra"]
["2479",9,"Palacios de Riopisuerga"]
["2485",9,"Palazuelos de la Sierra"]
["2498",9,"Palazuelos de Muñó"]
["2501",9,"Pampliega"]
["2518",9,"Pancorbo"]
["2539",9,"Pardilla"]
["2557",9,"Partido de la Sierra en Tobalina"]
["2560",9,"Pedrosa de Duero"]
["2595",9,"Pedrosa de Río Úrbel"]
["2576",9,"Pedrosa del Páramo"]
["2582",9,"Pedrosa del Príncipe"]
["2616",9,"Peñaranda de Duero"]
["2621",9,"Peral de Arlanza"]
["2655",9,"Piérnigas"]
["2668",9,"Pineda de la Sierra"]
["2674",9,"Pineda Trasmonte"]
["2680",9,"Pinilla de los Barruecos"]
["2693",9,"Pinilla de los Moros"]
["2707",9,"Pinilla Trasmonte"]
["2729",9,"Poza de la Sal"]
["2735",9,"Prádanos de Bureba"]
["2740",9,"Pradoluengo"]
["2753",9,"Presencio"]
["2766",9,"Puebla de Arganzón, La"]
["2772",9,"Puentedura"]
["2791",9,"Quemada"]
["2812",9,"Quintana del Pidio"]
["2805",9,"Quintanabureba"]
["2833",9,"Quintanaélez"]
["2870",9,"Quintanaortuño"]
["2886",9,"Quintanapalla"]
["2899",9,"Quintanar de la Sierra"]
["2925",9,"Quintanavides"]
["2946",9,"Quintanilla de la Mata"]
["9012",9,"Quintanilla del Agua y Tordueles"]
["2959",9,"Quintanilla del Coco"]
["2984",9,"Quintanilla San García"]
["3018",9,"Quintanilla Vivar"]
["2978",9,"Quintanillas, Las"]
["3023",9,"Rabanera del Pinar"]
["3039",9,"Rábanos"]
["3044",9,"Rabé de las Calzadas"]
["3060",9,"Rebolledo de la Torre"]
["3076",9,"Redecilla del Camino"]
["3082",9,"Redecilla del Campo"]
["3095",9,"Regumiel de la Sierra"]
["3109",9,"Reinoso"]
["3116",9,"Retuerta"]
["3142",9,"Revilla del Campo"]
["3168",9,"Revilla Vallejera"]
["3121",9,"Revilla y Ahedo, La"]
["3155",9,"Revillarruz"]
["3174",9,"Rezmondo"]
["3180",9,"Riocavado de la Sierra"]
["3214",9,"Roa"]
["3235",9,"Rojas"]
["3253",9,"Royuela de Río Franco"]
["3266",9,"Rubena"]
["3272",9,"Rublacedo de Abajo"]
["3288",9,"Rucandio"]
["3291",9,"Salas de Bureba"]
["3305",9,"Salas de los Infantes"]
["3327",9,"Saldaña de Burgos"]
["3348",9,"Salinillas de Bureba"]
["3351",9,"San Adrián de Juarros"]
["3370",9,"San Juan del Monte"]
["3386",9,"San Mamés de Burgos"]
["3399",9,"San Martín de Rubiales"]
["3403",9,"San Millán de Lara"]
["3608",9,"San Vicente del Valle"]
["3431",9,"Santa Cecilia"]
["3459",9,"Santa Cruz de la Salceda"]
["3462",9,"Santa Cruz del Valle Urbión"]
["3478",9,"Santa Gadea del Cid"]
["3484",9,"Santa Inés"]
["3500",9,"Santa María del Campo"]
["3517",9,"Santa María del Invierno"]
["3522",9,"Santa María del Mercadillo"]
["3538",9,"Santa María Rivarredonda"]
["3543",9,"Santa Olalla de Bureba"]
["3556",9,"Santibáñez de Esgueva"]
["3569",9,"Santibáñez del Val"]
["3581",9,"Santo Domingo de Silos"]
["3615",9,"Sargentes de la Lora"]
["3620",9,"Sarracín"]
["3636",9,"Sasamón"]
["3654",9,"Sequera de Haza, La"]
["3667",9,"Solarana"]
["3689",9,"Sordillos"]
["3692",9,"Sotillo de la Ribera"]
["3728",9,"Sotragero"]
["3734",9,"Sotresgudo"]
["3749",9,"Susinos del Páramo"]
["3752",9,"Tamarón"]
["3771",9,"Tardajos"]
["3787",9,"Tejada"]
["3804",9,"Terradillos de Esgueva"]
["3811",9,"Tinieblas de la Sierra"]
["3826",9,"Tobar"]
["3847",9,"Tordómar"]
["3863",9,"Torrecilla del Monte"]
["3879",9,"Torregalindo"]
["3885",9,"Torrelara"]
["3898",9,"Torrepadre"]
["3902",9,"Torresandino"]
["3919",9,"Tórtoles de Esgueva"]
["3924",9,"Tosantos"]
["3945",9,"Trespaderne"]
["3958",9,"Tubilla del Agua"]
["3961",9,"Tubilla del Lago"]
["3983",9,"Úrbel del Castillo"]
["4000",9,"Vadocondes"]
["4038",9,"Valdeande"]
["4056",9,"Valdezate"]
["4069",9,"Valdorros"]
["4081",9,"Vallarta de Bureba"]
["9048",9,"Valle de las Navas"]
["9086",9,"Valle de Losa"]
["4094",9,"Valle de Manzanedo"]
["4108",9,"Valle de Mena"]
["4115",9,"Valle de Oca"]
["9027",9,"Valle de Santibáñez"]
["9051",9,"Valle de Sedano"]
["4120",9,"Valle de Tobalina"]
["4136",9,"Valle de Valdebezana"]
["4141",9,"Valle de Valdelaguna"]
["4154",9,"Valle de Valdelucio"]
["4167",9,"Valle de Zamanzas"]
["4173",9,"Vallejera"]
["4189",9,"Valles de Palenzuela"]
["4192",9,"Valluércanes"]
["4075",9,"Valmala"]
["4228",9,"Vid de Bureba, La"]
["4213",9,"Vid y Barrios, La"]
["4234",9,"Vileña"]
["4271",9,"Villadiego"]
["4287",9,"Villaescusa de Roa"]
["4290",9,"Villaescusa la Sombría"]
["4304",9,"Villaespasa"]
["4311",9,"Villafranca Montes de Oca"]
["4326",9,"Villafruela"]
["4332",9,"Villagalijo"]
["4347",9,"Villagonzalo Pedernales"]
["4379",9,"Villahoz"]
["4385",9,"Villalba de Duero"]
["4398",9,"Villalbilla de Burgos"]
["4402",9,"Villalbilla de Gumiel"]
["4419",9,"Villaldemiro"]
["4424",9,"Villalmanzo"]
["4430",9,"Villamayor de los Montes"]
["4445",9,"Villamayor de Treviño"]
["4458",9,"Villambistia"]
["4461",9,"Villamedianilla"]
["4477",9,"Villamiel de la Sierra"]
["4483",9,"Villangómez"]
["4496",9,"Villanueva de Argaño"]
["4509",9,"Villanueva de Carazo"]
["4516",9,"Villanueva de Gumiel"]
["4542",9,"Villanueva de Teba"]
["4555",9,"Villaquirán de la Puebla"]
["4568",9,"Villaquirán de los Infantes"]
["9033",9,"Villarcayo de Merindad de Castilla la Vieja"]
["4580",9,"Villariezo"]
["4607",9,"Villasandino"]
["4635",9,"Villasur de Herreros"]
["4640",9,"Villatuelda"]
["4666",9,"Villaverde del Monte"]
["4672",9,"Villaverde-Mogina"]
["4712",9,"Villayerno Morquillas"]
["4727",9,"Villazopeque"]
["4733",9,"Villegas"]
["4764",9,"Villoruebo"]
["4249",9,"Viloria de Rioja"]
["4252",9,"Vilviestre del Pinar"]
["4786",9,"Vizcaínos"]
["4803",9,"Zael"]
["4825",9,"Zarzosa de Río Pisuerga"]
["4831",9,"Zazuar"]
["4859",9,"Zuñeda"]
["0015",10,"Abadía"]
["0020","10","Abertura"]
["0036","10","Acebo"]
["0041","10","Acehúche"]
["0054","10","Aceituna"]
["0067","10","Ahigal"]
["9037","10","Alagón del Río"]
["0073","10","Albalá"]
["0089","10","Alcántara"]
["0092","10","Alcollarín"]
["0106","10","Alcuéscar"]
["0128","10","Aldea del Cano"]
["0134","10","Aldea del Obispo, La"]
["0113","10","Aldeacentenera"]
["0149","10","Aldeanueva de la Vera"]
["0152","10","Aldeanueva del Camino"]
["0165","10","Aldehuela de Jerte"]
["0171","10","Alía"]
["0187","10","Aliseda"]
["0190","10","Almaraz"]
["0204","10","Almoharín"]
["0211","10","Arroyo de la Luz"]
["0232","10","Arroyomolinos"]
["0226","10","Arroyomolinos de la Vera"]
["0247","10","Baños de Montemayor"]
["0250","10","Barrado"]
["0263","10","Belvís de Monroy"]
["0279","10","Benquerencia"]
["0285","10","Berrocalejo"]
["0298","10","Berzocana"]
["0302","10","Bohonal de Ibor"]
["0319","10","Botija"]
["0324","10","Brozas"]
["0330","10","Cabañas del Castillo"]
["0345","10","Cabezabellosa"]
["0358","10","Cabezuela del Valle"]
["0361","10","Cabrero"]
["0377","10","Cáceres"]
["0383","10","Cachorrilla"]
["0396","10","Cadalso"]
["0400","10","Calzadilla"]
["0417","10","Caminomorisco"]
["0422","10","Campillo de Deleitosa"]
["0438","10","Campo Lugar"]
["0443","10","Cañamero"]
["0456","10","Cañaveral"]
["0469","10","Carbajo"]
["0475","10","Carcaboso"]
["0481","10","Carrascalejo"]
["0494","10","Casar de Cáceres"]
["0507","10","Casar de Palomero"]
["0514","10","Casares de las Hurdes"]
["0529","10","Casas de Don Antonio"]
["0535","10","Casas de Don Gómez"]
["0566","10","Casas de Millán"]
["0572","10","Casas de Miravete"]
["0540","10","Casas del Castañar"]
["0553","10","Casas del Monte"]
["0588","10","Casatejada"]
["0591","10","Casillas de Coria"]
["0605","10","Castañar de Ibor"]
["0612","10","Ceclavín"]
["0627","10","Cedillo"]
["0633","10","Cerezo"]
["0648","10","Cilleros"]
["0651","10","Collado de la Vera"]
["0664","10","Conquista de la Sierra"]
["0670","10","Coria"]
["0686","10","Cuacos de Yuste"]
["0699","10","Cumbre, La"]
["0703","10","Deleitosa"]
["0710","10","Descargamaría"]
["0725","10","Eljas"]
["0731","10","Escurial"]
["0759","10","Fresnedoso de Ibor"]
["0762","10","Galisteo"]
["0778","10","Garciaz"]
["0797","10","Garganta la Olla"]
["0784","10","Garganta, La"]
["0801","10","Gargantilla"]
["0818","10","Gargüera"]
["0823","10","Garrovillas de Alconétar"]
["0839","10","Garvín"]
["0844","10","Gata"]
["0857","10","Gordo, El"]
["0860","10","Granja, La"]
["0876","10","Guadalupe"]
["0882","10","Guijo de Coria"]
["0895","10","Guijo de Galisteo"]
["0909","10","Guijo de Granadilla"]
["0916","10","Guijo de Santa Bárbara"]
["0921","10","Herguijuela"]
["0937","10","Hernán-Pérez"]
["0942","10","Herrera de Alcántara"]
["0955","10","Herreruela"]
["0968","10","Hervás"]
["0974","10","Higuera"]
["0980","10","Hinojal"]
["0993","10","Holguera"]
["1007","10","Hoyos"]
["1014","10","Huélaga"]
["1029","10","Ibahernando"]
["1035","10","Jaraicejo"]
["1040","10","Jaraíz de la Vera"]
["1053","10","Jarandilla de la Vera"]
["1066","10","Jarilla"]
["1072","10","Jerte"]
["1088","10","Ladrillar"]
["1091","10","Logrosán"]
["1105","10","Losar de la Vera"]
["1112","10","Madrigal de la Vera"]
["1127","10","Madrigalejo"]
["1133","10","Madroñera"]
["1148","10","Majadas"]
["1151","10","Malpartida de Cáceres"]
["1164","10","Malpartida de Plasencia"]
["1170","10","Marchagaz"]
["1186","10","Mata de Alcántara"]
["1199","10","Membrío"]
["1203","10","Mesas de Ibor"]
["1210","10","Miajadas"]
["1225","10","Millanes"]
["1231","10","Mirabel"]
["1246","10","Mohedas de Granadilla"]
["1259","10","Monroy"]
["1262","10","Montánchez"]
["1278","10","Montehermoso"]
["1284","10","Moraleja"]
["1297","10","Morcillo"]
["1301","10","Navaconcejo"]
["1318","10","Navalmoral de la Mata"]
["1323","10","Navalvillar de Ibor"]
["1339","10","Navas del Madroño"]
["1344","10","Navezuelas"]
["1357","10","Nuñomoral"]
["1360","10","Oliva de Plasencia"]
["1376","10","Palomero"]
["1382","10","Pasarón de la Vera"]
["1395","10","Pedroso de Acim"]
["1409","10","Peraleda de la Mata"]
["1416","10","Peraleda de San Román"]
["1421","10","Perales del Puerto"]
["1437","10","Pescueza"]
["1442","10","Pesga, La"]
["1455","10","Piedras Albas"]
["1468","10","Pinofranqueado"]
["1474","10","Piornal"]
["1480","10","Plasencia"]
["1493","10","Plasenzuela"]
["1506","10","Portaje"]
["1513","10","Portezuelo"]
["1528","10","Pozuelo de Zarzón"]
["1534","10","Puerto de Santa Cruz"]
["1549","10","Rebollar"]
["1552","10","Riolobos"]
["1565","10","Robledillo de Gata"]
["1571","10","Robledillo de la Vera"]
["1587","10","Robledillo de Trujillo"]
["1590","10","Robledollano"]
["1604","10","Romangordo"]
["9016","10","Rosalejo"]
["1611","10","Ruanes"]
["1626","10","Salorino"]
["1632","10","Salvatierra de Santiago"]
["1647","10","San Martín de Trevejo"]
["1650","10","Santa Ana"]
["1663","10","Santa Cruz de la Sierra"]
["1679","10","Santa Cruz de Paniagua"]
["1685","10","Santa Marta de Magasca"]
["1698","10","Santiago de Alcántara"]
["1702","10","Santiago del Campo"]
["1719","10","Santibáñez el Alto"]
["1724","10","Santibáñez el Bajo"]
["1730","10","Saucedilla"]
["1745","10","Segura de Toro"]
["1758","10","Serradilla"]
["1761","10","Serrejón"]
["1777","10","Sierra de Fuentes"]
["1783","10","Talaván"]
["1796","10","Talaveruela de la Vera"]
["1800","10","Talayuela"]
["1817","10","Tejeda de Tiétar"]
["9042","10","Tiétar"]
["1822","10","Toril"]
["1838","10","Tornavacas"]
["1843","10","Torno, El"]
["1875","10","Torre de Don Miguel"]
["1881","10","Torre de Santa María"]
["1856","10","Torrecilla de los Ángeles"]
["1869","10","Torrecillas de la Tiesa"]
["1908","10","Torrejón el Rubio"]
["1894","10","Torrejoncillo"]
["1915","10","Torremenga"]
["1920","10","Torremocha"]
["1936","10","Torreorgaz"]
["1941","10","Torrequemada"]
["1954","10","Trujillo"]
["1967","10","Valdastillas"]
["1973","10","Valdecañas de Tajo"]
["1989","10","Valdefuentes"]
["1992","10","Valdehúncar"]
["2006","10","Valdelacasa de Tajo"]
["2013","10","Valdemorales"]
["2028","10","Valdeobispo"]
["2034","10","Valencia de Alcántara"]
["2049","10","Valverde de la Vera"]
["2052","10","Valverde del Fresno"]
["9021","10","Vegaviana"]
["2065","10","Viandar de la Vera"]
["2071","10","Villa del Campo"]
["2087","10","Villa del Rey"]
["2090","10","Villamesías"]
["2104","10","Villamiel"]
["2111","10","Villanueva de la Sierra"]
["2126","10","Villanueva de la Vera"]
["2147","10","Villar de Plasencia"]
["2132","10","Villar del Pedroso"]
["2150","10","Villasbuenas de Gata"]
["2163","10","Zarza de Granadilla"]
["2179","10","Zarza de Montánchez"]
["2185","10","Zarza la Mayor"]
["2198","10","Zorita"]
["0012",11,"Alcalá de los Gazules"]
["0027","11","Alcalá del Valle"]
["0033","11","Algar"]
["0048","11","Algeciras"]
["0051","11","Algodonales"]
["0064","11","Arcos de la Frontera"]
["0070","11","Barbate"]
["0086","11","Barrios, Los"]
["9013","11","Benalup-Casas Viejas"]
["0099","11","Benaocaz"]
["0103","11","Bornos"]
["0110","11","Bosque, El"]
["0125","11","Cádiz"]
["0131","11","Castellar de la Frontera"]
["0159","11","Chiclana de la Frontera"]
["0162","11","Chipiona"]
["0146","11","Conil de la Frontera"]
["0178","11","Espera"]
["0184","11","Gastor, El"]
["0197","11","Grazalema"]
["0201","11","Jerez de la Frontera"]
["0218","11","Jimena de la Frontera"]
["0223","11","Línea de la Concepción, La"]
["0239","11","Medina-Sidonia"]
["0244","11","Olvera"]
["0257","11","Paterna de Rivera"]
["0260","11","Prado del Rey"]
["0276","11","Puerto de Santa María, El"]
["0282","11","Puerto Real"]
["0295","11","Puerto Serrano"]
["0309","11","Rota"]
["0316","11","San Fernando"]
["9028","11","San José del Valle"]
["0337","11","San Roque"]
["0321","11","Sanlúcar de Barrameda"]
["0342","11","Setenil de las Bodegas"]
["0355","11","Tarifa"]
["0368","11","Torre Alháquime"]
["0374","11","Trebujena"]
["0380","11","Ubrique"]
["0393","11","Vejer de la Frontera"]
["0407","11","Villaluenga del Rosario"]
["0414","11","Villamartín"]
["0429","11","Zahara"]
["0022",12,"Aín"]
["0038","12","Albocàsser"]
["0043","12","Alcalà de Xivert"]
["0056","12","Alcora, l'"]
["0069","12","Alcudia de Veo"]
["0075","12","Alfondeguilla"]
["0081","12","Algimia de Almonacid"]
["0094","12","Almazora/Almassora"]
["0108","12","Almedíjar"]
["0115","12","Almenara"]
["9018","12","Alquerías del Niño Perdido"]
["0120","12","Altura"]
["0136","12","Arañuel"]
["0141","12","Ares del Maestrat"]
["0154","12","Argelita"]
["0167","12","Artana"]
["0017","12","Atzeneta del Maestrat"]
["0173","12","Ayódar"]
["0189","12","Azuébar"]
["0206","12","Barracas"]
["0228","12","Bejís"]
["0249","12","Benafer"]
["0252","12","Benafigos"]
["0265","12","Benasal"]
["0271","12","Benicarló"]
["0287","12","Benicasim/Benicàssim"]
["0290","12","Benlloch"]
["0213","12","Betxí"]
["0326","12","Borriana/Burriana"]
["0311","12","Borriol"]
["0332","12","Cabanes"]
["0347","12","Càlig"]
["0363","12","Canet lo Roig"]
["0379","12","Castell de Cabres"]
["0385","12","Castellfort"]
["0398","12","Castellnovo"]
["0402","12","Castellón de la Plana/Castelló de la Plana"]
["0419","12","Castillo de Villamalefa"]
["0424","12","Catí"]
["0430","12","Caudiel"]
["0445","12","Cervera del Maestre"]
["0537","12","Chilches/Xilxes"]
["0555","12","Chodos/Xodos"]
["0568","12","Chóvar"]
["0458","12","Cinctorres"]
["0461","12","Cirat"]
["0483","12","Cortes de Arenoso"]
["0496","12","Costur"]
["0509","12","Coves de Vinromà, les"]
["0516","12","Culla"]
["0574","12","Eslida"]
["0580","12","Espadilla"]
["0593","12","Fanzara"]
["0607","12","Figueroles"]
["0614","12","Forcall"]
["0635","12","Fuente la Reina"]
["0640","12","Fuentes de Ayódar"]
["0653","12","Gaibiel"]
["0672","12","Geldo"]
["0688","12","Herbés"]
["0691","12","Higueras"]
["0705","12","Jana, la"]
["0712","12","Jérica"]
["0748","12","Llosa, la"]
["0727","12","Lucena del Cid"]
["0733","12","Ludiente"]
["0751","12","Mata de Morella, la"]
["0764","12","Matet"]
["0770","12","Moncofa"]
["0786","12","Montán"]
["0799","12","Montanejos"]
["0803","12","Morella"]
["0810","12","Navajas"]
["0825","12","Nules"]
["0831","12","Olocau del Rey"]
["0846","12","Onda"]
["0859","12","Oropesa del Mar/Orpesa"]
["0878","12","Palanques"]
["0884","12","Pavías"]
["0897","12","Peníscola/Peñíscola"]
["0901","12","Pina de Montalgrao"]
["0939","12","Pobla de Benifassà, la"]
["0944","12","Pobla Tornesa, la"]
["0918","12","Portell de Morella"]
["0923","12","Puebla de Arenoso"]
["0957","12","Ribesalbes"]
["0960","12","Rossell"]
["0976","12","Sacañet"]
["0982","12","Salzadella, la"]
["1016","12","San Rafael del Río"]
["9023","12","Sant Joan de Moró"]
["0995","12","Sant Jordi/San Jorge"]
["1009","12","Sant Mateu"]
["1021","12","Santa Magdalena de Pulpis"]
["1042","12","Segorbe"]
["1037","12","Serratella, la"]
["1055","12","Sierra Engarcerán"]
["1068","12","Soneja"]
["1074","12","Sot de Ferrer"]
["1080","12","Sueras/Suera"]
["1093","12","Tales"]
["1107","12","Teresa"]
["1114","12","Tírig"]
["1129","12","Todolella"]
["1135","12","Toga"]
["1140","12","Torás"]
["1153","12","Toro, El"]
["1166","12","Torralba del Pinar"]
["1191","12","Torre d'En Besora, la"]
["1205","12","Torre d'en Doménec, la"]
["1172","12","Torreblanca"]
["1188","12","Torrechiva"]
["1212","12","Traiguera"]
["1227","12","Useras/Useres, les"]
["1248","12","Vall d'Alba"]
["1251","12","Vall de Almonacid"]
["1264","12","Vall d'Uixó, la"]
["1233","12","Vallat"]
["1270","12","Vallibona"]
["1286","12","Vilafamés"]
["1325","12","Vilanova d'Alcolea"]
["1346","12","Vilar de Canes"]
["1359","12","Vila-real"]
["1362","12","Vilavella, la"]
["1299","12","Villafranca del Cid/Vilafranca"]
["1303","12","Villahermosa del Río"]
["1310","12","Villamalur"]
["1331","12","Villanueva de Viver"]
["1378","12","Villores"]
["1384","12","Vinaròs"]
["1397","12","Vistabella del Maestrat"]
["1401","12","Viver"]
["0521","12","Xert"]
["1418","12","Zorita del Maestrazgo"]
["1423","12","Zucaina"]
["0013",13,"Abenójar"]
["0028","13","Agudo"]
["0034","13","Alamillo"]
["0049","13","Albaladejo"]
["0052","13","Alcázar de San Juan"]
["0065","13","Alcoba"]
["0071","13","Alcolea de Calatrava"]
["0087","13","Alcubillas"]
["0090","13","Aldea del Rey"]
["0104","13","Alhambra"]
["0111","13","Almadén"]
["0126","13","Almadenejos"]
["0132","13","Almagro"]
["0147","13","Almedina"]
["0150","13","Almodóvar del Campo"]
["0163","13","Almuradiel"]
["0179","13","Anchuras"]
["9035","13","Arenales de San Gregorio"]
["0185","13","Arenas de San Juan"]
["0198","13","Argamasilla de Alba"]
["0202","13","Argamasilla de Calatrava"]
["0219","13","Arroba de los Montes"]
["0224","13","Ballesteros de Calatrava"]
["0230","13","Bolaños de Calatrava"]
["0245","13","Brazatortas"]
["0258","13","Cabezarados"]
["0261","13","Cabezarrubias del Puerto"]
["0277","13","Calzada de Calatrava"]
["0283","13","Campo de Criptana"]
["0296","13","Cañada de Calatrava"]
["0300","13","Caracuel de Calatrava"]
["0317","13","Carrión de Calatrava"]
["0322","13","Carrizosa"]
["0338","13","Castellar de Santiago"]
["0381","13","Chillón"]
["0343","13","Ciudad Real"]
["0356","13","Corral de Calatrava"]
["0369","13","Cortijos, Los"]
["0375","13","Cózar"]
["0394","13","Daimiel"]
["0408","13","Fernán Caballero"]
["0415","13","Fontanarejo"]
["0420","13","Fuencaliente"]
["0436","13","Fuenllana"]
["0441","13","Fuente el Fresno"]
["0454","13","Granátula de Calatrava"]
["0467","13","Guadalmez"]
["0473","13","Herencia"]
["0489","13","Hinojosas de Calatrava"]
["0492","13","Horcajo de los Montes"]
["0505","13","Labores, Las"]
["9040","13","Llanos del Caudillo"]
["0512","13","Luciana"]
["0527","13","Malagón"]
["0533","13","Manzanares"]
["0548","13","Membrilla"]
["0551","13","Mestanza"]
["0564","13","Miguelturra"]
["0570","13","Montiel"]
["0586","13","Moral de Calatrava"]
["0599","13","Navalpino"]
["0603","13","Navas de Estena"]
["0610","13","Pedro Muñoz"]
["0625","13","Picón"]
["0631","13","Piedrabuena"]
["0646","13","Poblete"]
["0659","13","Porzuna"]
["0662","13","Pozuelo de Calatrava"]
["0678","13","Pozuelos de Calatrava, Los"]
["0684","13","Puebla de Don Rodrigo"]
["0697","13","Puebla del Príncipe"]
["0701","13","Puerto Lápice"]
["0718","13","Puertollano"]
["0723","13","Retuerta del Bullaque"]
["9014","13","Robledo, El"]
["9029","13","Ruidera"]
["0739","13","Saceruela"]
["0744","13","San Carlos del Valle"]
["0757","13","San Lorenzo de Calatrava"]
["0760","13","Santa Cruz de los Cáñamos"]
["0776","13","Santa Cruz de Mudela"]
["0782","13","Socuéllamos"]
["0809","13","Solana del Pino"]
["0795","13","Solana, La"]
["0816","13","Terrinches"]
["0821","13","Tomelloso"]
["0837","13","Torralba de Calatrava"]
["0842","13","Torre de Juan Abad"]
["0855","13","Torrenueva"]
["0868","13","Valdemanco del Esteras"]
["0874","13","Valdepeñas"]
["0880","13","Valenzuela de Calatrava"]
["0893","13","Villahermosa"]
["0907","13","Villamanrique"]
["0914","13","Villamayor de Calatrava"]
["0929","13","Villanueva de la Fuente"]
["0935","13","Villanueva de los Infantes"]
["0940","13","Villanueva de San Carlos"]
["0953","13","Villar del Pozo"]
["0966","13","Villarrubia de los Ojos"]
["0972","13","Villarta de San Juan"]
["0988","13","Viso del Marqués"]
["0018",14,"Adamuz"]
["0023","14","Aguilar de la Frontera"]
["0039","14","Alcaracejos"]
["0044","14","Almedinilla"]
["0057","14","Almodóvar del Río"]
["0060","14","Añora"]
["0076","14","Baena"]
["0082","14","Belalcázar"]
["0095","14","Belmez"]
["0109","14","Benamejí"]
["0116","14","Blázquez, Los"]
["0121","14","Bujalance"]
["0137","14","Cabra"]
["0142","14","Cañete de las Torres"]
["0155","14","Carcabuey"]
["0168","14","Cardeña"]
["0174","14","Carlota, La"]
["0180","14","Carpio, El"]
["0193","14","Castro del Río"]
["0207","14","Conquista"]
["0214","14","Córdoba"]
["0229","14","Doña Mencía"]
["0235","14","Dos Torres"]
["0240","14","Encinas Reales"]
["0253","14","Espejo"]
["0266","14","Espiel"]
["0272","14","Fernán-Núñez"]
["0288","14","Fuente la Lancha"]
["0291","14","Fuente Obejuna"]
["0305","14","Fuente Palmera"]
["0312","14","Fuente-Tójar"]
["0327","14","Granjuela, La"]
["0333","14","Guadalcázar"]
["0348","14","Guijo, El"]
["0351","14","Hinojosa del Duque"]
["0364","14","Hornachuelos"]
["0370","14","Iznájar"]
["0386","14","Lucena"]
["0399","14","Luque"]
["0403","14","Montalbán de Córdoba"]
["0410","14","Montemayor"]
["0425","14","Montilla"]
["0431","14","Montoro"]
["0446","14","Monturque"]
["0459","14","Moriles"]
["0462","14","Nueva Carteya"]
["0478","14","Obejo"]
["0484","14","Palenciana"]
["0497","14","Palma del Río"]
["0500","14","Pedro Abad"]
["0517","14","Pedroche"]
["0522","14","Peñarroya-Pueblonuevo"]
["0538","14","Posadas"]
["0543","14","Pozoblanco"]
["0556","14","Priego de Córdoba"]
["0569","14","Puente Genil"]
["0575","14","Rambla, La"]
["0581","14","Rute"]
["0594","14","San Sebastián de los Ballesteros"]
["0615","14","Santa Eufemia"]
["0608","14","Santaella"]
["0620","14","Torrecampo"]
["0636","14","Valenzuela"]
["0641","14","Valsequillo"]
["0654","14","Victoria, La"]
["0667","14","Villa del Río"]
["0673","14","Villafranca de Córdoba"]
["0689","14","Villaharta"]
["0692","14","Villanueva de Córdoba"]
["0706","14","Villanueva del Duque"]
["0713","14","Villanueva del Rey"]
["0728","14","Villaralto"]
["0734","14","Villaviciosa de Córdoba"]
["0749","14","Viso, El"]
["0752","14","Zuheros"]
["0011",15,"Abegondo"]
["0026","15","Ames"]
["0032","15","Aranga"]
["0047","15","Ares"]
["0050","15","Arteixo"]
["0063","15","Arzúa"]
["0079","15","Baña, A"]
["0085","15","Bergondo"]
["0098","15","Betanzos"]
["0102","15","Boimorto"]
["0119","15","Boiro"]
["0124","15","Boqueixón"]
["0130","15","Brión"]
["0145","15","Cabana de Bergantiños"]
["0158","15","Cabanas"]
["0161","15","Camariñas"]
["0177","15","Cambre"]
["0183","15","Capela, A"]
["0196","15","Carballo"]
["9012","15","Cariño"]
["0200","15","Carnota"]
["0217","15","Carral"]
["0222","15","Cedeira"]
["0238","15","Cee"]
["0243","15","Cerceda"]
["0256","15","Cerdido"]
["0275","15","Coirós"]
["0281","15","Corcubión"]
["0294","15","Coristanco"]
["0308","15","Coruña, A"]
["0315","15","Culleredo"]
["0320","15","Curtis"]
["0336","15","Dodro"]
["0341","15","Dumbría"]
["0354","15","Fene"]
["0367","15","Ferrol"]
["0373","15","Fisterra"]
["0389","15","Frades"]
["0392","15","Irixoa"]
["0413","15","Laracha, A"]
["0406","15","Laxe"]
["0428","15","Lousame"]
["0434","15","Malpica de Bergantiños"]
["0449","15","Mañón"]
["0452","15","Mazaricos"]
["0465","15","Melide"]
["0471","15","Mesía"]
["0487","15","Miño"]
["0490","15","Moeche"]
["0503","15","Monfero"]
["0510","15","Mugardos"]
["0531","15","Muros"]
["0525","15","Muxía"]
["0546","15","Narón"]
["0559","15","Neda"]
["0562","15","Negreira"]
["0578","15","Noia"]
["0584","15","Oleiros"]
["0597","15","Ordes"]
["0601","15","Oroso"]
["0618","15","Ortigueira"]
["0623","15","Outes"]
["9027","15","Oza-Cesuras"]
["0644","15","Paderne"]
["0657","15","Padrón"]
["0660","15","Pino, O"]
["0676","15","Pobra do Caramiñal, A"]
["0682","15","Ponteceso"]
["0695","15","Pontedeume"]
["0709","15","Pontes de García Rodríguez, As"]
["0716","15","Porto do Son"]
["0721","15","Rianxo"]
["0737","15","Ribeira"]
["0742","15","Rois"]
["0755","15","Sada"]
["0768","15","San Sadurniño"]
["0774","15","Santa Comba"]
["0780","15","Santiago de Compostela"]
["0793","15","Santiso"]
["0807","15","Sobrado"]
["0814","15","Somozas, As"]
["0829","15","Teo"]
["0835","15","Toques"]
["0840","15","Tordoia"]
["0853","15","Touro"]
["0866","15","Trazo"]
["0888","15","Val do Dubra"]
["0872","15","Valdoviño"]
["0891","15","Vedra"]
["0912","15","Vilarmaior"]
["0905","15","Vilasantar"]
["0927","15","Vimianzo"]
["0933","15","Zas"]
["0014",16,"Abia de la Obispalía"]
["0029","16","Acebrón, El"]
["0035","16","Alarcón"]
["0040","16","Albaladejo del Cuende"]
["0053","16","Albalate de las Nogueras"]
["0066","16","Albendea"]
["0072","16","Alberca de Záncara, La"]
["0088","16","Alcalá de la Vega"]
["0091","16","Alcantud"]
["0105","16","Alcázar del Rey"]
["0112","16","Alcohujate"]
["0127","16","Alconchel de la Estrella"]
["0133","16","Algarra"]
["0148","16","Aliaguilla"]
["0151","16","Almarcha, La"]
["0164","16","Almendros"]
["0170","16","Almodóvar del Pinar"]
["0186","16","Almonacid del Marquesado"]
["0199","16","Altarejos"]
["0203","16","Arandilla del Arroyo"]
["9054","16","Arcas"]
["0225","16","Arcos de la Sierra"]
["0246","16","Arguisuelas"]
["0259","16","Arrancacepas"]
["0262","16","Atalaya del Cañavate"]
["0278","16","Barajas de Melo"]
["0297","16","Barchín del Hoyo"]
["0301","16","Bascuñana de San Pedro"]
["0318","16","Beamud"]
["0323","16","Belinchón"]
["0339","16","Belmonte"]
["0344","16","Belmontejo"]
["0357","16","Beteta"]
["0360","16","Boniches"]
["0382","16","Buciegas"]
["0395","16","Buenache de Alarcón"]
["0409","16","Buenache de la Sierra"]
["0416","16","Buendía"]
["0421","16","Campillo de Altobuey"]
["0437","16","Campillos-Paravientos"]
["0442","16","Campillos-Sierra"]
["9015","16","Campos del Paraíso"]
["0455","16","Canalejas del Arroyo"]
["0468","16","Cañada del Hoyo"]
["0474","16","Cañada Juncosa"]
["0480","16","Cañamares"]
["0493","16","Cañavate, El"]
["0506","16","Cañaveras"]
["0513","16","Cañaveruelas"]
["0528","16","Cañete"]
["0534","16","Cañizares"]
["0552","16","Carboneras de Guadazaón"]
["0565","16","Cardenete"]
["0571","16","Carrascosa"]
["0587","16","Carrascosa de Haro"]
["0604","16","Casas de Benítez"]
["0611","16","Casas de Fernando Alonso"]
["0626","16","Casas de Garcimolina"]
["0632","16","Casas de Guijarro"]
["0647","16","Casas de Haro"]
["0650","16","Casas de los Pinos"]
["0663","16","Casasimarro"]
["0679","16","Castejón"]
["0685","16","Castillejo de Iniesta"]
["0702","16","Castillejo-Sierra"]
["0724","16","Castillo de Garcimuñoz"]
["0719","16","Castillo-Albaráñez"]
["0730","16","Cervera del Llano"]
["0231","16","Chillarón de Cuenca"]
["0817","16","Chumillas"]
["0745","16","Cierva, La"]
["0783","16","Cuenca"]
["0796","16","Cueva del Hierro"]
["0822","16","Enguídanos"]
["0838","16","Fresneda de Altarejos"]
["0843","16","Fresneda de la Sierra"]
["0856","16","Frontera, La"]
["0869","16","Fuente de Pedro Naharro"]
["0875","16","Fuentelespino de Haro"]
["0881","16","Fuentelespino de Moya"]
["9041","16","Fuentenava de Jábaga"]
["0894","16","Fuentes"]
["0915","16","Fuertescusa"]
["0920","16","Gabaldón"]
["0936","16","Garaballa"]
["0941","16","Gascueña"]
["0954","16","Graja de Campalbo"]
["0967","16","Graja de Iniesta"]
["0973","16","Henarejos"]
["0989","16","Herrumblar, El"]
["0992","16","Hinojosa, La"]
["1006","16","Hinojosos, Los"]
["1013","16","Hito, El"]
["1028","16","Honrubia"]
["1034","16","Hontanaya"]
["1049","16","Hontecillas"]
["1065","16","Horcajo de Santiago"]
["1071","16","Huélamo"]
["1087","16","Huelves"]
["1090","16","Huérguina"]
["1104","16","Huerta de la Obispalía"]
["1111","16","Huerta del Marquesado"]
["1126","16","Huete"]
["1132","16","Iniesta"]
["1150","16","Laguna del Marquesado"]
["1163","16","Lagunaseca"]
["1179","16","Landete"]
["1185","16","Ledaña"]
["1198","16","Leganiel"]
["1219","16","Majadas, Las"]
["1224","16","Mariana"]
["1230","16","Masegosa"]
["1245","16","Mesas, Las"]
["1258","16","Minglanilla"]
["1261","16","Mira"]
["1283","16","Monreal del Llano"]
["1296","16","Montalbanejo"]
["1300","16","Montalbo"]
["1317","16","Monteagudo de las Salinas"]
["1322","16","Mota de Altarejos"]
["1338","16","Mota del Cuervo"]
["1343","16","Motilla del Palancar"]
["1356","16","Moya"]
["1375","16","Narboneta"]
["1394","16","Olivares de Júcar"]
["1408","16","Olmeda de la Cuesta"]
["1415","16","Olmeda del Rey"]
["1420","16","Olmedilla de Alarcón"]
["1436","16","Olmedilla de Eliz"]
["1454","16","Osa de la Vega"]
["1467","16","Pajarón"]
["1473","16","Pajaroncillo"]
["1489","16","Palomares del Campo"]
["1492","16","Palomera"]
["1505","16","Paracuellos"]
["1512","16","Paredes"]
["1527","16","Parra de las Vegas, La"]
["1533","16","Pedernoso, El"]
["1548","16","Pedroñeras, Las"]
["1551","16","Peral, El"]
["1564","16","Peraleja, La"]
["1570","16","Pesquera, La"]
["1586","16","Picazo, El"]
["1599","16","Pinarejo"]
["1603","16","Pineda de Gigüela"]
["1610","16","Piqueras del Castillo"]
["1625","16","Portalrubio de Guadamejud"]
["1631","16","Portilla"]
["1659","16","Poyatos"]
["1662","16","Pozoamargo"]
["9089","16","Pozorrubielos de la Mancha"]
["1678","16","Pozorrubio de Santiago"]
["1697","16","Pozuelo, El"]
["1701","16","Priego"]
["1718","16","Provencio, El"]
["1723","16","Puebla de Almenara"]
["1744","16","Puebla del Salvador"]
["1757","16","Quintanar del Rey"]
["1760","16","Rada de Haro"]
["1776","16","Reíllo"]
["1816","16","Rozalén del Monte"]
["1855","16","Saceda-Trasierra"]
["1868","16","Saelices"]
["1874","16","Salinas del Manzano"]
["1880","16","Salmeroncillos"]
["1893","16","Salvacañete"]
["1907","16","San Clemente"]
["1914","16","San Lorenzo de la Parrilla"]
["1929","16","San Martín de Boniches"]
["1935","16","San Pedro Palmiches"]
["1940","16","Santa Cruz de Moya"]
["1966","16","Santa María de los Llanos"]
["1953","16","Santa María del Campo Rus"]
["1972","16","Santa María del Val"]
["1988","16","Sisante"]
["1991","16","Solera de Gabaldón"]
["9092","16","Sotorribas"]
["2027","16","Talayuelas"]
["2033","16","Tarancón"]
["2048","16","Tébar"]
["2051","16","Tejadillos"]
["2064","16","Tinajas"]
["2099","16","Torralba"]
["2110","16","Torrejoncillo del Rey"]
["2125","16","Torrubia del Campo"]
["2131","16","Torrubia del Castillo"]
["2159","16","Tragacete"]
["2162","16","Tresjuncos"]
["2178","16","Tribaldos"]
["2184","16","Uclés"]
["2197","16","Uña"]
["9067","16","Valdecolmenas, Los"]
["2244","16","Valdemeca"]
["2257","16","Valdemorillo de la Sierra"]
["2276","16","Valdemoro-Sierra"]
["2282","16","Valdeolivas"]
["9020","16","Valdetórtola"]
["9036","16","Valeras, Las"]
["2316","16","Valhermoso de la Fuente"]
["1739","16","Valle de Altomira, El"]
["2342","16","Valsalobre"]
["2368","16","Valverde de Júcar"]
["2374","16","Valverdejo"]
["2380","16","Vara de Rey"]
["2393","16","Vega del Codorno"]
["2407","16","Vellisca"]
["2429","16","Villaconejos de Trabaque"]
["2435","16","Villaescusa de Haro"]
["2440","16","Villagarcía del Llano"]
["2453","16","Villalba de la Sierra"]
["2466","16","Villalba del Rey"]
["2472","16","Villalgordo del Marquesado"]
["2488","16","Villalpardo"]
["2491","16","Villamayor de Santiago"]
["2504","16","Villanueva de Guadamejud"]
["2511","16","Villanueva de la Jara"]
["2532","16","Villar de Cañas"]
["2547","16","Villar de Domingo García"]
["2550","16","Villar de la Encina"]
["2630","16","Villar de Olalla"]
["2585","16","Villar del Humo"]
["2598","16","Villar del Infantado"]
["9106","16","Villar y Velasco"]
["2645","16","Villarejo de Fuentes"]
["2658","16","Villarejo de la Peñuela"]
["2661","16","Villarejo-Periesteban"]
["2696","16","Villares del Saz"]
["2700","16","Villarrubio"]
["2717","16","Villarta"]
["2722","16","Villas de la Ventosa"]
["2738","16","Villaverde y Pasaconsol"]
["2743","16","Víllora"]
["2756","16","Vindel"]
["2769","16","Yémeda"]
["2775","16","Zafra de Záncara"]
["2781","16","Zafrilla"]
["2794","16","Zarza de Tajo"]
["2808","16","Zarzuela"]
["0010",17,"Agullana"]
["0025","17","Aiguaviva"]
["0031","17","Albanyà"]
["0046","17","Albons"]
["0062","17","Alp"]
["0078","17","Amer"]
["0084","17","Anglès"]
["0097","17","Arbúcies"]
["0101","17","Argelaguer"]
["0118","17","Armentera, L'"]
["0123","17","Avinyonet de Puigventós"]
["0157","17","Banyoles"]
["0160","17","Bàscara"]
["0139","17","Begur"]
["0182","17","Bellcaire d'Empordà"]
["0195","17","Besalú"]
["0209","17","Bescanó"]
["0216","17","Beuda"]
["0221","17","Bisbal d'Empordà, La"]
["2348","17","Biure"]
["0237","17","Blanes"]
["0293","17","Boadella i les Escaules"]
["0242","17","Bolvir"]
["0255","17","Bordils"]
["0268","17","Borrassà"]
["0274","17","Breda"]
["0280","17","Brunyola"]
["0314","17","Cabanelles"]
["0307","17","Cabanes"]
["0329","17","Cadaqués"]
["0335","17","Caldes de Malavella"]
["0340","17","Calonge"]
["0353","17","Camós"]
["0366","17","Campdevànol"]
["0372","17","Campelles"]
["0388","17","Campllong"]
["0391","17","Camprodon"]
["0405","17","Canet d'Adri"]
["0412","17","Cantallops"]
["0427","17","Capmany"]
["0448","17","Cassà de la Selva"]
["0464","17","Castellfollit de la Roca"]
["0470","17","Castelló d'Empúries"]
["0486","17","Castell-Platja d'Aro"]
["1899","17","Cellera de Ter, La"]
["0499","17","Celrà"]
["0502","17","Cervià de Ter"]
["0519","17","Cistella"]
["0545","17","Colera"]
["0558","17","Colomers"]
["0577","17","Corçà"]
["0561","17","Cornellà del Terri"]
["0583","17","Crespià"]
["9011","17","Cruïlles, Monells i Sant Sadurní de l'Heura"]
["0600","17","Darnius"]
["0617","17","Das"]
["0622","17","Escala, L'"]
["0638","17","Espinelves"]
["0643","17","Espolla"]
["0656","17","Esponellà"]
["0059","17","Far d'Empordà, El"]
["0669","17","Figueres"]
["0675","17","Flaçà"]
["0681","17","Foixà"]
["0694","17","Fontanals de Cerdanya"]
["0708","17","Fontanilles"]
["0715","17","Fontcoberta"]
["9026","17","Forallac"]
["0736","17","Fornells de la Selva"]
["0741","17","Fortià"]
["0754","17","Garrigàs"]
["0767","17","Garrigoles"]
["0773","17","Garriguella"]
["0789","17","Ger"]
["0792","17","Girona"]
["0806","17","Gombrèn"]
["0813","17","Gualta"]
["0828","17","Guils de Cerdanya"]
["0834","17","Hostalric"]
["0849","17","Isòvol"]
["0852","17","Jafre"]
["0865","17","Jonquera, La"]
["0871","17","Juià"]
["0887","17","Lladó"]
["0890","17","Llagostera"]
["0904","17","Llambilles"]
["0911","17","Llanars"]
["0926","17","Llançà"]
["0932","17","Llers"]
["0947","17","Llívia"]
["0950","17","Lloret de Mar"]
["0963","17","Llosses, Les"]
["1024","17","Maçanet de Cabrenys"]
["1030","17","Maçanet de la Selva"]
["0979","17","Madremanya"]
["0985","17","Maià de Montcal"]
["1002","17","Masarac"]
["1019","17","Massanes"]
["0998","17","Meranges"]
["1058","17","Mieres"]
["1061","17","Mollet de Peralada"]
["1077","17","Molló"]
["1096","17","Montagut i Oix"]
["1100","17","Mont-ras"]
["1117","17","Navata"]
["1122","17","Ogassa"]
["1143","17","Olot"]
["1156","17","Ordis"]
["1169","17","Osor"]
["1175","17","Palafrugell"]
["1181","17","Palamós"]
["1194","17","Palau de Santa Eulàlia"]
["1215","17","Palau-sator"]
["1208","17","Palau-saverdera"]
["1236","17","Palol de Revardit"]
["1241","17","Pals"]
["1254","17","Pardines"]
["1267","17","Parlavà"]
["1289","17","Pau"]
["1292","17","Pedret i Marzà"]
["1306","17","Pera, La"]
["1328","17","Peralada"]
["1334","17","Planes d'Hostoles, Les"]
["1349","17","Planoles"]
["1352","17","Pont de Molins"]
["1365","17","Pontós"]
["1371","17","Porqueres"]
["1404","17","Port de la Selva, El"]
["1387","17","Portbou"]
["1390","17","Preses, Les"]
["1411","17","Puigcerdà"]
["1426","17","Quart"]
["0433","17","Queralbs"]
["1432","17","Rabós"]
["1447","17","Regencós"]
["1450","17","Ribes de Freser"]
["1463","17","Riells i Viabrea"]
["1479","17","Ripoll"]
["1485","17","Riudarenes"]
["1498","17","Riudaura"]
["1501","17","Riudellots de la Selva"]
["1518","17","Riumors"]
["1523","17","Roses"]
["1539","17","Rupià"]
["1544","17","Sales de Llierca"]
["1557","17","Salt"]
["1576","17","Sant Andreu Salou"]
["1833","17","Sant Aniol de Finestres"]
["1582","17","Sant Climent Sescebes"]
["1595","17","Sant Feliu de Buixalleu"]
["1609","17","Sant Feliu de Guíxols"]
["1616","17","Sant Feliu de Pallerols"]
["1621","17","Sant Ferriol"]
["1637","17","Sant Gregori"]
["1642","17","Sant Hilari Sacalm"]
["1655","17","Sant Jaume de Llierca"]
["1674","17","Sant Joan de les Abadesses"]
["1680","17","Sant Joan de Mollet"]
["1851","17","Sant Joan les Fonts"]
["1668","17","Sant Jordi Desvalls"]
["1693","17","Sant Julià de Ramis"]
["9032","17","Sant Julià del Llor i Bonmatí"]
["1714","17","Sant Llorenç de la Muga"]
["1729","17","Sant Martí de Llémena"]
["1735","17","Sant Martí Vell"]
["1740","17","Sant Miquel de Campmajor"]
["1753","17","Sant Miquel de Fluvià"]
["1766","17","Sant Mori"]
["1772","17","Sant Pau de Segúries"]
["1788","17","Sant Pere Pescador"]
["1805","17","Santa Coloma de Farners"]
["1812","17","Santa Cristina d'Aro"]
["1827","17","Santa Llogaia d'Àlguema"]
["1848","17","Santa Pau"]
["1864","17","Sarrià de Ter"]
["1870","17","Saus, Camallera i Llampaies"]
["1886","17","Selva de Mar, La"]
["1903","17","Serinyà"]
["1910","17","Serra de Daró"]
["1925","17","Setcases"]
["1931","17","Sils"]
["0524","17","Siurana"]
["1946","17","Susqueda"]
["1959","17","Tallada d'Empordà, La"]
["1962","17","Terrades"]
["1978","17","Torrent"]
["1984","17","Torroella de Fluvià"]
["1997","17","Torroella de Montgrí"]
["2001","17","Tortellà"]
["2018","17","Toses"]
["2023","17","Tossa de Mar"]
["2044","17","Ullà"]
["2057","17","Ullastret"]
["2039","17","Ultramort"]
["2060","17","Urús"]
["0144","17","Vajol, La"]
["2082","17","Vall de Bianya, La"]
["2076","17","Vall d'en Bas, La"]
["1707","17","Vallfogona de Ripollès"]
["2095","17","Vall-llobrega"]
["2109","17","Ventalló"]
["2116","17","Verges"]
["2121","17","Vidrà"]
["2137","17","Vidreres"]
["2142","17","Vilabertran"]
["2155","17","Vilablareix"]
["2174","17","Viladamat"]
["2168","17","Viladasens"]
["2180","17","Vilademuls"]
["2207","17","Viladrau"]
["2214","17","Vilafant"]
["2235","17","Vilajuïga"]
["2240","17","Vilallonga de Ter"]
["2253","17","Vilamacolum"]
["2266","17","Vilamalla"]
["2272","17","Vilamaniscle"]
["2288","17","Vilanant"]
["2305","17","Vila-sacra"]
["2229","17","Vilaür"]
["2333","17","Vilobí d'Onyar"]
["2327","17","Vilopriu"]
["0016",18,"Agrón"]
["0021","18","Alamedilla"]
["0037","18","Albolote"]
["0042","18","Albondón"]
["0055","18","Albuñán"]
["0068","18","Albuñol"]
["0074","18","Albuñuelas"]
["0107","18","Aldeire"]
["0114","18","Alfacar"]
["0129","18","Algarinejo"]
["0135","18","Alhama de Granada"]
["0140","18","Alhendín"]
["0153","18","Alicún de Ortega"]
["0166","18","Almegíjar"]
["0172","18","Almuñécar"]
["9043","18","Alpujarra de la Sierra"]
["0188","18","Alquife"]
["0205","18","Arenas del Rey"]
["0212","18","Armilla"]
["0227","18","Atarfe"]
["0233","18","Baza"]
["0248","18","Beas de Granada"]
["0251","18","Beas de Guadix"]
["0270","18","Benalúa"]
["0286","18","Benalúa de las Villas"]
["0299","18","Benamaurel"]
["0303","18","Bérchules"]
["0325","18","Bubión"]
["0331","18","Busquístar"]
["0346","18","Cacín"]
["0359","18","Cádiar"]
["0362","18","Cájar"]
["1149","18","Calahorra, La"]
["0378","18","Calicasas"]
["0384","18","Campotéjar"]
["0397","18","Caniles"]
["0401","18","Cáñar"]
["0423","18","Capileira"]
["0439","18","Carataunas"]
["0444","18","Cástaras"]
["0457","18","Castilléjar"]
["0460","18","Castril"]
["0476","18","Cenes de la Vega"]
["0592","18","Chauchina"]
["0613","18","Chimeneas"]
["0628","18","Churriana de la Vega"]
["0482","18","Cijuela"]
["0495","18","Cogollos de Guadix"]
["0508","18","Cogollos de la Vega"]
["0515","18","Colomera"]
["0536","18","Cortes de Baza"]
["0541","18","Cortes y Graena"]
["9120","18","Cuevas del Campo"]
["0567","18","Cúllar"]
["0573","18","Cúllar Vega"]
["0634","18","Darro"]
["0649","18","Dehesas de Guadix"]
["0652",18,"Dehesas Viejas"]
["0665","18","Deifontes"]
["0671","18","Diezma"]
["0687","18","Dílar"]
["0690","18","Dólar"]
["0704","18","Dúdar"]
["0711","18","Dúrcal"]
["0726","18","Escúzar"]
["0747","18","Ferreira"]
["0763","18","Fonelas"]
["0785","18","Freila"]
["0798","18","Fuente Vaqueros"]
["9056","18","Gabias, Las"]
["0824","18","Galera"]
["0830","18","Gobernador"]
["0845","18","Gójar"]
["0858","18","Gor"]
["0861","18","Gorafe"]
["0877","18","Granada"]
["0883","18","Guadahortuna"]
["0896","18","Guadix"]
["9069","18","Guajares, Los"]
["0938","18","Gualchos"]
["0943","18","Güejar Sierra"]
["0956","18","Güevéjar"]
["0969","18","Huélago"]
["0975","18","Huéneja"]
["0981","18","Huéscar"]
["0994","18","Huétor de Santillán"]
["1008","18","Huétor Tájar"]
["1015","18","Huétor Vega"]
["1020","18","Illora"]
["1036","18","Itrabo"]
["1054","18","Iznalloz"]
["1073","18","Jayena"]
["1089","18","Jerez del Marquesado"]
["1092","18","Jete"]
["1113","18","Jun"]
["1128","18","Juviles"]
["1152","18","Láchar"]
["1165","18","Lanjarón"]
["1171","18","Lanteira"]
["1190","18","Lecrín"]
["1204","18","Lentegí"]
["1211","18","Lobras"]
["1226","18","Loja"]
["1232","18","Lugros"]
["1247","18","Lújar"]
["1263","18","Malahá, La"]
["1279","18","Maracena"]
["1285","18","Marchal"]
["1324","18","Moclín"]
["1330","18","Molvízar"]
["1345","18","Monachil"]
["1358","18","Montefrío"]
["1361","18","Montejícar"]
["1377","18","Montillana"]
["1383","18","Moraleda de Zafayona"]
["9094","18","Morelábor"]
["1400","18","Motril"]
["1417","18","Murtas"]
["9038","18","Nevada"]
["1438","18","Nigüelas"]
["1443","18","Nívar"]
["1456","18","Ogíjares"]
["1469","18","Orce"]
["1475","18","Órgiva"]
["1481","18","Otívar"]
["1507","18","Padul"]
["1514","18","Pampaneira"]
["1529","18","Pedro Martínez"]
["1535","18","Peligros"]
["1540","18","Peza, La"]
["9108","18","Pinar, El"]
["1572","18","Pinos Genil"]
["1588","18","Pinos Puente"]
["1591","18","Píñar"]
["1612","18","Polícar"]
["1627","18","Polopos"]
["1633","18","Pórtugos"]
["1648","18","Puebla de Don Fadrique"]
["1651","18","Pulianas"]
["1670","18","Purullena"]
["1686","18","Quéntar"]
["1703","18","Rubite"]
["1710","18","Salar"]
["1731","18","Salobreña"]
["1746","18","Santa Cruz del Comercio"]
["1759","18","Santa Fe"]
["1762","18","Soportújar"]
["1778","18","Sorvilán"]
["9017","18","Taha, La"]
["1784","18","Torre-Cardela"]
["1797","18","Torvizcón"]
["1801","18","Trevélez"]
["1818","18","Turón"]
["1823","18","Ugíjar"]
["9141",18,"Valderrubio"]
["9075","18","Valle del Zalabí"]
["9022","18","Valle, El"]
["1839","18","Válor"]
["9115","18","Vegas del Genil"]
["1844","18","Vélez de Benaudalla"]
["1857","18","Ventas de Huelma"]
["1494","18","Villa de Otura"]
["9081","18","Villamena"]
["1876","18","Villanueva de las Torres"]
["1882","18","Villanueva Mesía"]
["1895","18","Víznar"]
["1921","18","Zafarraya"]
["9136","18","Zagra"]
["1937","18","Zubia, La"]
["1942","18","Zújar"]
["0019",19,"Abánades"]
["0024","19","Ablanque"]
["0030","19","Adobes"]
["0045","19","Alaminos"]
["0058","19","Alarilla"]
["0061","19","Albalate de Zorita"]
["0077","19","Albares"]
["0083","19","Albendiego"]
["0096","19","Alcocer"]
["0100","19","Alcolea de las Peñas"]
["0117","19","Alcolea del Pinar"]
["0138","19","Alcoroches"]
["0156","19","Aldeanueva de Guadalajara"]
["0169","19","Algar de Mesa"]
["0175","19","Algora"]
["0181","19","Alhóndiga"]
["0194","19","Alique"]
["0208","19","Almadrones"]
["0215","19","Almoguera"]
["0220","19","Almonacid de Zorita"]
["0236","19","Alocén"]
["0241","19","Alovera"]
["0273","19","Alustante"]
["0313","19","Angón"]
["0328","19","Anguita"]
["0334","19","Anquela del Ducado"]
["0349","19","Anquela del Pedregal"]
["0365","19","Aranzueque"]
["0371","19","Arbancón"]
["0387","19","Arbeteta"]
["0390","19","Argecilla"]
["0404","19","Armallones"]
["0411","19","Armuña de Tajuña"]
["0426","19","Arroyo de las Fraguas"]
["0432","19","Atanzón"]
["0447","19","Atienza"]
["0450","19","Auñón"]
["0463","19","Azuqueca de Henares"]
["0479","19","Baides"]
["0485","19","Baños de Tajo"]
["0498","19","Bañuelos"]
["0501","19","Barriopedro"]
["0518","19","Berninches"]
["0523","19","Bodera, La"]
["0539","19","Brihuega"]
["0544","19","Budia"]
["0557","19","Bujalaro"]
["0576","19","Bustares"]
["0582","19","Cabanillas del Campo"]
["0595","19","Campillo de Dueñas"]
["0609","19","Campillo de Ranas"]
["0616","19","Campisábalos"]
["0642","19","Canredondo"]
["0655","19","Cantalojas"]
["0668","19","Cañizar"]
["0674","19","Cardoso de la Sierra, El"]
["0707","19","Casa de Uceda"]
["0714","19","Casar, El"]
["0735","19","Casas de San Galindo"]
["0740","19","Caspueñas"]
["0753","19","Castejón de Henares"]
["0766","19","Castellar de la Muela"]
["0788","19","Castilforte"]
["0791","19","Castilnuevo"]
["0805","19","Cendejas de Enmedio"]
["0812","19","Cendejas de la Torre"]
["0827","19","Centenera"]
["1039","19","Checa"]
["1044","19","Chequilla"]
["1060","19","Chillarón del Rey"]
["1057","19","Chiloeches"]
["0864","19","Cifuentes"]
["0870","19","Cincovillas"]
["0886","19","Ciruelas"]
["0899","19","Ciruelos del Pinar"]
["0903","19","Cobeta"]
["0910","19","Cogollor"]
["0925","19","Cogolludo"]
["0959","19","Condemios de Abajo"]
["0962","19","Condemios de Arriba"]
["0978","19","Congostrina"]
["0984","19","Copernal"]
["0997","19","Corduente"]
["1023","19","Cubillo de Uceda, El"]
["1076","19","Driebes"]
["1082","19","Durón"]
["1095","19","Embid"]
["1109","19","Escamilla"]
["1116","19","Escariche"]
["1121","19","Escopete"]
["1137","19","Espinosa de Henares"]
["1142","19","Esplegares"]
["1155","19","Establés"]
["1168","19","Estriégana"]
["1174","19","Fontanar"]
["1180","19","Fuembellida"]
["1193","19","Fuencemillán"]
["1207","19","Fuentelahiguera de Albatages"]
["1214","19","Fuentelencina"]
["1229","19","Fuentelsaz"]
["1235","19","Fuentelviejo"]
["1240","19","Fuentenovilla"]
["1253","19","Gajanejos"]
["1266","19","Galápagos"]
["1272","19","Galve de Sorbe"]
["1291","19","Gascueña de Bornova"]
["1305","19","Guadalajara"]
["1327","19","Henche"]
["1333","19","Heras de Ayuso"]
["1348","19","Herrería"]
["1351","19","Hiendelaencina"]
["1364","19","Hijes"]
["1386","19","Hita"]
["1399","19","Hombrados"]
["1425","19","Hontoba"]
["1431","19","Horche"]
["1459","19","Hortezuela de Océn"]
["1462","19","Huerce, La"]
["1478","19","Huérmeces del Cerro"]
["1484","19","Huertahernando"]
["1500","19","Hueva"]
["1517","19","Humanes"]
["1522","19","Illana"]
["1538","19","Iniéstola"]
["1543","19","Inviernas, Las"]
["1556","19","Irueste"]
["1569","19","Jadraque"]
["1575","19","Jirueque"]
["1594","19","Ledanca"]
["1608","19","Loranca de Tajuña"]
["1615","19","Lupiana"]
["1620","19","Luzaga"]
["1636","19","Luzón"]
["1654","19","Majaelrayo"]
["1667","19","Málaga del Fresno"]
["1673","19","Malaguilla"]
["1689","19","Mandayona"]
["1692","19","Mantiel"]
["1706","19","Maranchón"]
["1713","19","Marchamalo"]
["1728","19","Masegoso de Tajuña"]
["1734","19","Matarrubia"]
["1749","19","Matillas"]
["1752","19","Mazarete"]
["1765","19","Mazuecos"]
["1771","19","Medranda"]
["1787","19","Megina"]
["1790","19","Membrillera"]
["1811","19","Miedes de Atienza"]
["1826","19","Mierla, La"]
["1847","19","Millana"]
["1832","19","Milmarcos"]
["1850","19","Miñosa, La"]
["1863","19","Mirabueno"]
["1879","19","Miralrío"]
["1885","19","Mochales"]
["1898","19","Mohernando"]
["1902","19","Molina de Aragón"]
["1919","19","Monasterio"]
["1924","19","Mondéjar"]
["1930","19","Montarrón"]
["1945","19","Moratilla de los Meleros"]
["1958","19","Morenilla"]
["1961","19","Muduex"]
["1977","19","Navas de Jadraque, Las"]
["1983","19","Negredo"]
["1996","19","Ocentejo"]
["2000","19","Olivar, El"]
["2017","19","Olmeda de Cobeta"]
["2022","19","Olmeda de Jadraque, La"]
["2038","19","Ordial, El"]
["2043","19","Orea"]
["2081","19","Pálmaces de Jadraque"]
["2094","19","Pardos"]
["2108","19","Paredes de Sigüenza"]
["2115","19","Pareja"]
["2120","19","Pastrana"]
["2136","19","Pedregal, El"]
["2141","19","Peñalén"]
["2154","19","Peñalver"]
["2167","19","Peralejos de las Truchas"]
["2173","19","Peralveche"]
["2189","19","Pinilla de Jadraque"]
["2192","19","Pinilla de Molina"]
["2206","19","Pioz"]
["2213","19","Piqueras"]
["2228","19","Pobo de Dueñas, El"]
["2234","19","Poveda de la Sierra"]
["2249","19","Pozo de Almoguera"]
["2252","19","Pozo de Guadalajara"]
["2265","19","Prádena de Atienza"]
["2271","19","Prados Redondos"]
["2287","19","Puebla de Beleña"]
["2290","19","Puebla de Valles"]
["2304","19","Quer"]
["2311","19","Rebollosa de Jadraque"]
["2326","19","Recuenco, El"]
["2332","19","Renera"]
["2347","19","Retiendas"]
["2350","19","Riba de Saelices"]
["2379","19","Rillo de Gallo"]
["2385","19","Riofrío del Llano"]
["2398","19","Robledillo de Mohernando"]
["2402","19","Robledo de Corpes"]
["2419","19","Romanillos de Atienza"]
["2424","19","Romanones"]
["2430","19","Rueda de la Sierra"]
["2445","19","Sacecorbo"]
["2458","19","Sacedón"]
["2461","19","Saelices de la Sal"]
["2477","19","Salmerón"]
["2483","19","San Andrés del Congosto"]
["2496","19","San Andrés del Rey"]
["2509","19","Santiuste"]
["2516","19","Saúca"]
["2521","19","Sayatón"]
["2542","19","Selas"]
["9010","19","Semillas"]
["2555","19","Setiles"]
["2568","19","Sienes"]
["2574","19","Sigüenza"]
["2580","19","Solanillos del Extremo"]
["2593","19","Somolinos"]
["2607","19","Sotillo, El"]
["2614","19","Sotodosos"]
["2629","19","Tamajón"]
["2635","19","Taragudo"]
["2640","19","Taravilla"]
["2653","19","Tartanedo"]
["2666","19","Tendilla"]
["2672","19","Terzaga"]
["2688","19","Tierzo"]
["2691","19","Toba, La"]
["2712","19","Tordellego"]
["2705","19","Tordelrábano"]
["2727","19","Tordesilos"]
["2748","19","Torija"]
["2799","19","Torre del Burgo"]
["2770","19","Torrecuadrada de Molina"]
["2786","19","Torrecuadradilla"]
["2803","19","Torrejón del Rey"]
["2810","19","Torremocha de Jadraque"]
["2825","19","Torremocha del Campo"]
["2831","19","Torremocha del Pinar"]
["2846","19","Torremochuela"]
["2859","19","Torrubia"]
["2862","19","Tórtola de Henares"]
["2878","19","Tortuera"]
["2884","19","Tortuero"]
["2897","19","Traíd"]
["2901","19","Trijueque"]
["2918","19","Trillo"]
["2939","19","Uceda"]
["2944","19","Ujados"]
["2960","19","Utande"]
["2976","19","Valdarachas"]
["2982","19","Valdearenas"]
["2995","19","Valdeavellano"]
["3009","19","Valdeaveruelo"]
["3016","19","Valdeconcha"]
["3021","19","Valdegrudas"]
["3037","19","Valdelcubo"]
["3042","19","Valdenuño Fernández"]
["3055","19","Valdepeñas de la Sierra"]
["3068","19","Valderrebollo"]
["3074","19","Valdesotos"]
["3080","19","Valfermoso de Tajuña"]
["3093","19","Valhermoso"]
["3107","19","Valtablado del Río"]
["3114","19","Valverde de los Arroyos"]
["3140","19","Viana de Jadraque"]
["3172","19","Villanueva de Alcorón"]
["3188","19","Villanueva de Argecilla"]
["3191","19","Villanueva de la Torre"]
["3212","19","Villares de Jadraque"]
["3227","19","Villaseca de Henares"]
["3233","19","Villaseca de Uceda"]
["3248","19","Villel de Mesa"]
["3251","19","Viñuelas"]
["3264","19","Yebes"]
["3270","19","Yebra"]
["3299","19","Yélamos de Abajo"]
["3303","19","Yélamos de Arriba"]
["3310","19","Yunquera de Henares"]
["3325","19","Yunta, La"]
["3331","19","Zaorejas"]
["3346","19","Zarzuela de Jadraque"]
["3359","19","Zorita de los Canes"]
["0013",20,"Abaltzisketa"]
["0028","20","Aduna"]
["0163","20","Aia"]
["0034","20","Aizarnazabal"]
["0049","20","Albiztur"]
["0052","20","Alegia"]
["0065","20","Alkiza"]
["9066","20","Altzaga"]
["0071","20","Altzo"]
["0087","20","Amezketa"]
["0090","20","Andoain"]
["0104","20","Anoeta"]
["0111","20","Antzuola"]
["0126","20","Arama"]
["0132","20","Aretxabaleta"]
["0551","20","Arrasate/Mondragón"]
["0147","20","Asteasu"]
["9035","20","Astigarraga"]
["0150","20","Ataun"]
["0179","20","Azkoitia"]
["0185","20","Azpeitia"]
["9040","20","Baliarrain"]
["0198","20","Beasain"]
["0202","20","Beizama"]
["0219","20","Belauntza"]
["0224","20","Berastegi"]
["0744","20","Bergara"]
["0230","20","Berrobi"]
["0245","20","Bidania-Goiatz"]
["0296","20","Deba"]
["0697","20","Donostia/San Sebastián"]
["0300","20","Eibar"]
["0317","20","Elduain"]
["0338","20","Elgeta"]
["0322","20","Elgoibar"]
["0678","20","Errenteria"]
["0662","20","Errezil"]
["0343","20","Eskoriatza"]
["0356","20","Ezkio-Itsaso"]
["0381","20","Gabiria"]
["0375","20","Gaintza"]
["9072","20","Gaztelu"]
["0394","20","Getaria"]
["0408","20","Hernani"]
["0415","20","Hernialde"]
["0369","20","Hondarribia"]
["0420","20","Ibarra"]
["0436","20","Idiazabal"]
["0441","20","Ikaztegieta"]
["0454","20","Irun"]
["0467","20","Irura"]
["0473","20","Itsasondo"]
["0489","20","Larraul"]
["9029","20","Lasarte-Oria"]
["0492","20","Lazkao"]
["0505","20","Leaburu"]
["0512","20","Legazpi"]
["0527","20","Legorreta"]
["0684","20","Leintz-Gatzaga"]
["0533","20","Lezo"]
["0548","20","Lizartza"]
["9014","20","Mendaro"]
["0570","20","Mutiloa"]
["0564","20","Mutriku"]
["0631","20","Oiartzun"]
["0586","20","Olaberria"]
["0599","20","Oñati"]
["0760","20","Ordizia"]
["9053","20","Orendain"]
["0603","20","Orexa"]
["0610","20","Orio"]
["0625","20","Ormaiztegi"]
["0646","20","Pasaia"]
["0701","20","Segura"]
["0659","20","Soraluze-Placencia de las Armas"]
["0718","20","Tolosa"]
["0723","20","Urnieta"]
["0776","20","Urretxu"]
["0739","20","Usurbil"]
["0757","20","Villabona"]
["0782","20","Zaldibia"]
["0795","20","Zarautz"]
["0258","20","Zegama"]
["0261","20","Zerain"]
["0277","20","Zestoa"]
["0283","20","Zizurkil"]
["0816","20","Zumaia"]
["0809","20","Zumarraga"]
["0010",21,"Alájar"]
["0025","21","Aljaraque"]
["0031","21","Almendro, El"]
["0046","21","Almonaster la Real"]
["0059","21","Almonte"]
["0062","21","Alosno"]
["0078","21","Aracena"]
["0084","21","Aroche"]
["0097","21","Arroyomolinos de León"]
["0101","21","Ayamonte"]
["0118","21","Beas"]
["0123","21","Berrocal"]
["0139","21","Bollullos Par del Condado"]
["0144","21","Bonares"]
["0157","21","Cabezas Rubias"]
["0160","21","Cala"]
["0176","21","Calañas"]
["0182","21","Campillo, El"]
["0195","21","Campofrío"]
["0209","21","Cañaveral de León"]
["0216","21","Cartaya"]
["0221","21","Castaño del Robledo"]
["0237","21","Cerro de Andévalo, El"]
["0307","21","Chucena"]
["0242","21","Corteconcepción"]
["0255","21","Cortegana"]
["0268","21","Cortelazor"]
["0274","21","Cumbres de Enmedio"]
["0280","21","Cumbres de San Bartolomé"]
["0293","21","Cumbres Mayores"]
["0314","21","Encinasola"]
["0329","21","Escacena del Campo"]
["0335","21","Fuenteheridos"]
["0340","21","Galaroza"]
["0353","21","Gibraleón"]
["0366","21","Granada de Río-Tinto, La"]
["0372","21","Granado, El"]
["0388","21","Higuera de la Sierra"]
["0391","21","Hinojales"]
["0405","21","Hinojos"]
["0412","21","Huelva"]
["0427","21","Isla Cristina"]
["0433","21","Jabugo"]
["0448","21","Lepe"]
["0451","21","Linares de la Sierra"]
["0464","21","Lucena del Puerto"]
["0470","21","Manzanilla"]
["0486","21","Marines, Los"]
["0499","21","Minas de Riotinto"]
["0502","21","Moguer"]
["0519","21","Nava, La"]
["0524","21","Nerva"]
["0530","21","Niebla"]
["0545","21","Palma del Condado, La"]
["0558","21","Palos de la Frontera"]
["0561","21","Paterna del Campo"]
["0577","21","Paymogo"]
["0583","21","Puebla de Guzmán"]
["0596","21","Puerto Moral"]
["0600","21","Punta Umbría"]
["0617","21","Rociana del Condado"]
["0622","21","Rosal de la Frontera"]
["0638","21","San Bartolomé de la Torre"]
["0643","21","San Juan del Puerto"]
["0669","21","San Silvestre de Guzmán"]
["0656","21","Sanlúcar de Guadiana"]
["0675","21","Santa Ana la Real"]
["0681","21","Santa Bárbara de Casa"]
["0694","21","Santa Olalla del Cala"]
["0708","21","Trigueros"]
["0715","21","Valdelarco"]
["0720","21","Valverde del Camino"]
["0736","21","Villablanca"]
["0741","21","Villalba del Alcor"]
["0754","21","Villanueva de las Cruces"]
["0767","21","Villanueva de los Castillejos"]
["0773","21","Villarrasa"]
["0789","21","Zalamea la Real"]
["0792","21","Zufre"]
["0015",22,"Abiego"]
["0020","22","Abizanda"]
["0036","22","Adahuesca"]
["0041","22","Agüero"]
["9074","22","Aínsa-Sobrarbe"]
["0067","22","Aisa"]
["0073","22","Albalate de Cinca"]
["0089","22","Albalatillo"]
["0092","22","Albelda"]
["0113","22","Albero Alto"]
["0128","22","Albero Bajo"]
["0134","22","Alberuela de Tubo"]
["0149","22","Alcalá de Gurrea"]
["0152","22","Alcalá del Obispo"]
["0165","22","Alcampell"]
["0171","22","Alcolea de Cinca"]
["0187","22","Alcubierre"]
["0190","22","Alerre"]
["0204","22","Alfántega"]
["0211","22","Almudévar"]
["0226","22","Almunia de San Juan"]
["0232","22","Almuniente"]
["0247","22","Alquézar"]
["0250","22","Altorricón"]
["0279","22","Angüés"]
["0285","22","Ansó"]
["0298","22","Antillón"]
["0324","22","Aragüés del Puerto"]
["0358","22","Arén"]
["0361","22","Argavieso"]
["0377","22","Arguis"]
["0396","22","Ayerbe"]
["0400","22","Azanuy-Alins"]
["0417","22","Azara"]
["0422","22","Azlor"]
["0438","22","Baélls"]
["0443","22","Bailo"]
["0456","22","Baldellou"]
["0469","22","Ballobar"]
["0475","22","Banastás"]
["0481","22","Barbastro"]
["0494","22","Barbués"]
["0507","22","Barbuñales"]
["0514","22","Bárcabo"]
["0529","22","Belver de Cinca"]
["0535","22","Benabarre"]
["0540","22","Benasque"]
["2467","22","Beranuy"]
["0553","22","Berbegal"]
["0572","22","Bielsa"]
["0588","22","Bierge"]
["0591","22","Biescas"]
["0605","22","Binaced"]
["0612","22","Binéfar"]
["0627","22","Bisaurri"]
["0633","22","Biscarrués"]
["0648","22","Blecua y Torres"]
["0664","22","Boltaña"]
["0670","22","Bonansa"]
["0686","22","Borau"]
["0699","22","Broto"]
["0725","22","Caldearenas"]
["0746","22","Campo"]
["0759","22","Camporrélls"]
["0762","22","Canal de Berdún"]
["0778","22","Candasnos"]
["0784","22","Canfranc"]
["0797","22","Capdesaso"]
["0801","22","Capella"]
["0818","22","Casbas de Huesca"]
["0839","22","Castejón de Monegros"]
["0844","22","Castejón de Sos"]
["0823","22","Castejón del Puente"]
["0857","22","Castelflorite"]
["0860","22","Castiello de Jaca"]
["0876","22","Castigaleu"]
["0882","22","Castillazuelo"]
["0895","22","Castillonroy"]
["0942","22","Chalamera"]
["0955","22","Chía"]
["0968","22","Chimillas"]
["0909","22","Colungo"]
["0993","22","Esplús"]
["1029","22","Estada"]
["1035","22","Estadilla"]
["1053","22","Estopiñán del Castillo"]
["1066","22","Fago"]
["1072","22","Fanlo"]
["1091","22","Fiscal"]
["1105","22","Fonz"]
["1112","22","Foradada del Toscar"]
["1127","22","Fraga"]
["1133","22","Fueva, La"]
["1148","22","Gistaín"]
["1151","22","Grado, El"]
["1164","22","Grañén"]
["1170","22","Graus"]
["1199","22","Gurrea de Gállego"]
["1225","22","Hoz de Jaca"]
["9080","22","Hoz y Costean"]
["1246","22","Huerto"]
["1259","22","Huesca"]
["1262","22","Ibieca"]
["1278","22","Igriés"]
["1284","22","Ilche"]
["1297","22","Isábena"]
["1301","22","Jaca"]
["1318","22","Jasa"]
["1339","22","Labuerda"]
["1357","22","Laluenga"]
["1360","22","Lalueza"]
["1376","22","Lanaja"]
["1395","22","Laperdiguera"]
["1416","22","Lascellas-Ponzano"]
["1421","22","Lascuarre"]
["1437","22","Laspaúles"]
["1442","22","Laspuña"]
["1493","22","Loarre"]
["1506","22","Loporzano"]
["1513","22","Loscorrales"]
["9055","22","Lupiñén-Ortilla"]
["1552","22","Monesma y Cajigar"]
["1565","22","Monflorite-Lascasas"]
["1571","22","Montanuy"]
["1587","22","Monzón"]
["1604","22","Naval"]
["1626","22","Novales"]
["1632","22","Nueno"]
["1647","22","Olvena"]
["1650","22","Ontiñena"]
["1679","22","Osso de Cinca"]
["1685","22","Palo"]
["1702","22","Panticosa"]
["1724","22","Peñalba"]
["1730","22","Peñas de Riglos, Las"]
["1745","22","Peralta de Alcofea"]
["1758","22","Peralta de Calasanz"]
["1761","22","Peraltilla"]
["1777","22","Perarrúa"]
["1783","22","Pertusa"]
["1817","22","Piracés"]
["1822","22","Plan"]
["1843","22","Poleñino"]
["1869","22","Pozán de Vero"]
["1875","22","Puebla de Castro, La"]
["1881","22","Puente de Montañana"]
["9021","22","Puente la Reina de Jaca"]
["1894","22","Puértolas"]
["1908","22","Pueyo de Araguás, El"]
["1936","22","Pueyo de Santa Cruz"]
["1954","22","Quicena"]
["1973","22","Robres"]
["1992","22","Sabiñánigo"]
["2006","22","Sahún"]
["2013","22","Salas Altas"]
["2028","22","Salas Bajas"]
["2034","22","Salillas"]
["2049","22","Sallent de Gállego"]
["2052","22","San Esteban de Litera"]
["2071","22","San Juan de Plan"]
["9037","22","San Miguel del Cinca"]
["2065","22","Sangarrén"]
["2087","22","Santa Cilia"]
["2090","22","Santa Cruz de la Serós"]
["9068","22","Santa María de Dulcis"]
["2126","22","Santaliestra y San Quílez"]
["2132","22","Sariñena"]
["2147","22","Secastilla"]
["2150","22","Seira"]
["2179","22","Sena"]
["2185","22","Senés de Alcubierre"]
["2202","22","Sesa"]
["2219","22","Sesué"]
["2224","22","Siétamo"]
["2230","22","Sopeira"]
["9042","22","Sotonera, La"]
["2258","22","Tamarite de Litera"]
["2261","22","Tardienta"]
["2277","22","Tella-Sin"]
["2283","22","Tierz"]
["2296","22","Tolva"]
["2300","22","Torla-Ordesa"]
["2322","22","Torralba de Aragón"]
["2338","22","Torre la Ribera"]
["2343","22","Torrente de Cinca"]
["2356","22","Torres de Alcanadre"]
["2369","22","Torres de Barbués"]
["2394","22","Tramaced"]
["2420","22","Valfarta"]
["2436","22","Valle de Bardají"]
["9016","22","Valle de Hecho"]
["2441","22","Valle de Lierp"]
["2454","22","Velilla de Cinca"]
["9093","22","Vencillón"]
["2473","22","Viacamp y Litera"]
["2489","22","Vicién"]
["2492","22","Villanova"]
["2505","22","Villanúa"]
["2512","22","Villanueva de Sigena"]
["2527","22","Yebra de Basa"]
["2533","22","Yésero"]
["2548","22","Zaidín"]
["0011",23,"Albanchez de Mágina"]
["0026","23","Alcalá la Real"]
["0032","23","Alcaudete"]
["0047","23","Aldeaquemada"]
["0050","23","Andújar"]
["0063","23","Arjona"]
["0079","23","Arjonilla"]
["0085","23","Arquillos"]
["9051","23","Arroyo del Ojanco"]
["0098","23","Baeza"]
["0102","23","Bailén"]
["0119","23","Baños de la Encina"]
["0124","23","Beas de Segura"]
["9027","23","Bedmar y Garcíez"]
["0145","23","Begíjar"]
["0158","23","Bélmez de la Moraleda"]
["0161","23","Benatae"]
["0177","23","Cabra del Santo Cristo"]
["0183","23","Cambil"]
["0196","23","Campillo de Arenas"]
["0200","23","Canena"]
["0217","23","Carboneros"]
["9012","23","Cárcheles"]
["0243","23","Carolina, La"]
["0256","23","Castellar"]
["0269","23","Castillo de Locubín"]
["0275","23","Cazalilla"]
["0281","23","Cazorla"]
["0294","23","Chiclana de Segura"]
["0308","23","Chilluévar"]
["0315","23","Escañuela"]
["0320","23","Espelúy"]
["0336","23","Frailes"]
["0341","23","Fuensanta de Martos"]
["0354","23","Fuerte del Rey"]
["0373","23","Génave"]
["0389","23","Guardia de Jaén, La"]
["0392","23","Guarromán"]
["0413","23","Higuera de Calatrava"]
["0428","23","Hinojares"]
["0434","23","Hornos"]
["0449","23","Huelma"]
["0452","23","Huesa"]
["0465","23","Ibros"]
["0471","23","Iruela, La"]
["0487","23","Iznatoraf"]
["0490","23","Jabalquinto"]
["0503","23","Jaén"]
["0510","23","Jamilena"]
["0525","23","Jimena"]
["0531","23","Jódar"]
["0406","23","Lahiguera"]
["0546","23","Larva"]
["0559","23","Linares"]
["0562","23","Lopera"]
["0578","23","Lupión"]
["0584","23","Mancha Real"]
["0597","23","Marmolejo"]
["0601","23","Martos"]
["0618","23","Mengíbar"]
["0623","23","Montizón"]
["0639","23","Navas de San Juan"]
["0644","23","Noalejo"]
["0657","23","Orcera"]
["0660","23","Peal de Becerro"]
["0676","23","Pegalajar"]
["0695","23","Porcuna"]
["0709","23","Pozo Alcón"]
["0716","23","Puente de Génave"]
["0721","23","Puerta de Segura, La"]
["0737","23","Quesada"]
["0742","23","Rus"]
["0755","23","Sabiote"]
["0768","23","Santa Elena"]
["0774","23","Santiago de Calatrava"]
["9048","23","Santiago-Pontones"]
["0793","23","Santisteban del Puerto"]
["0807","23","Santo Tomé"]
["0814","23","Segura de la Sierra"]
["0829","23","Siles"]
["0840","23","Sorihuela del Guadalimar"]
["0853","23","Torreblascopedro"]
["0866","23","Torredelcampo"]
["0872","23","Torredonjimeno"]
["0888","23","Torreperogil"]
["0905","23","Torres"]
["0912","23","Torres de Albánchez"]
["0927","23","Úbeda"]
["0933","23","Valdepeñas de Jaén"]
["0948","23","Vilches"]
["0951","23","Villacarrillo"]
["0964","23","Villanueva de la Reina"]
["0970","23","Villanueva del Arzobispo"]
["0986","23","Villardompardo"]
["0999","23","Villares, Los"]
["1010","23","Villarrodrigo"]
["9033","23","Villatorres"]
["0016",24,"Acebedo"]
["0021","24","Algadefe"]
["0037","24","Alija del Infantado"]
["0042","24","Almanza"]
["0055","24","Antigua, La"]
["0068","24","Ardón"]
["0074","24","Arganza"]
["0080","24","Astorga"]
["0093","24","Balboa"]
["0107","24","Bañeza, La"]
["0114","24","Barjas"]
["0129","24","Barrios de Luna, Los"]
["0140","24","Bembibre"]
["0153","24","Benavides"]
["0166","24","Benuza"]
["0172","24","Bercianos del Páramo"]
["0188","24","Bercianos del Real Camino"]
["0191","24","Berlanga del Bierzo"]
["0205","24","Boca de Huérgano"]
["0212","24","Boñar"]
["0227","24","Borrenes"]
["0233","24","Brazuelo"]
["0248","24","Burgo Ranero, El"]
["0251","24","Burón"]
["0264","24","Bustillo del Páramo"]
["0270","24","Cabañas Raras"]
["0286","24","Cabreros del Río"]
["0299","24","Cabrillanes"]
["0303","24","Cacabelos"]
["0310","24","Calzada del Coto"]
["0325","24","Campazas"]
["0331","24","Campo de Villavidel"]
["0346","24","Camponaraya"]
["0362","24","Candín"]
["0378","24","Cármenes"]
["0384","24","Carracedelo"]
["0397","24","Carrizo"]
["0401","24","Carrocera"]
["0418","24","Carucedo"]
["0423","24","Castilfalé"]
["0439","24","Castrillo de Cabrera"]
["0444","24","Castrillo de la Valduerna"]
["0460","24","Castrocalbón"]
["0476","24","Castrocontrigo"]
["0495","24","Castropodame"]
["0508","24","Castrotierra de Valmadrigal"]
["0515","24","Cea"]
["0520","24","Cebanico"]
["0536","24","Cebrones del Río"]
["0652","24","Chozas de Abajo"]
["0541","24","Cimanes de la Vega"]
["0554","24","Cimanes del Tejar"]
["0567","24","Cistierna"]
["0573","24","Congosto"]
["0589","24","Corbillos de los Oteros"]
["0592","24","Corullón"]
["0606","24","Crémenes"]
["0613","24","Cuadros"]
["0628","24","Cubillas de los Oteros"]
["0634","24","Cubillas de Rueda"]
["0649","24","Cubillos del Sil"]
["0665","24","Destriana"]
["0671","24","Encinedo"]
["0687","24","Ercina, La"]
["0690","24","Escobar de Campos"]
["0704","24","Fabero"]
["0711","24","Folgoso de la Ribera"]
["0732","24","Fresno de la Vega"]
["0747","24","Fuentes de Carbajal"]
["0763","24","Garrafe de Torío"]
["0779","24","Gordaliza del Pino"]
["0785","24","Gordoncillo"]
["0798","24","Gradefes"]
["0802","24","Grajal de Campos"]
["0819","24","Gusendos de los Oteros"]
["0824","24","Hospital de Órbigo"]
["0830","24","Igüeña"]
["0845","24","Izagre"]
["0861","24","Joarilla de las Matas"]
["0877","24","Laguna Dalga"]
["0883","24","Laguna de Negrillos"]
["0896","24","León"]
["0922","24","Llamas de la Ribera"]
["0900","24","Lucillo"]
["0917","24","Luyego"]
["0938","24","Magaz de Cepeda"]
["0943","24","Mansilla de las Mulas"]
["0956","24","Mansilla Mayor"]
["0969","24","Maraña"]
["0975","24","Matadeón de los Oteros"]
["0981","24","Matallana de Torío"]
["0994","24","Matanza"]
["1008","24","Molinaseca"]
["1015","24","Murias de Paredes"]
["1020","24","Noceda del Bierzo"]
["1036","24","Oencia"]
["1041","24","Omañas, Las"]
["1054","24","Onzonilla"]
["1067","24","Oseja de Sajambre"]
["1073","24","Pajares de los Oteros"]
["1089","24","Palacios de la Valduerna"]
["1092","24","Palacios del Sil"]
["1106","24","Páramo del Sil"]
["1128","24","Peranzanes"]
["1134","24","Pobladura de Pelayo García"]
["1149","24","Pola de Gordón, La"]
["1152","24","Ponferrada"]
["1165","24","Posada de Valdeón"]
["1171","24","Pozuelo del Páramo"]
["1187","24","Prado de la Guzpeña"]
["1190","24","Priaranza del Bierzo"]
["1204","24","Prioro"]
["1211","24","Puebla de Lillo"]
["1226","24","Puente de Domingo Flórez"]
["1232","24","Quintana del Castillo"]
["1247","24","Quintana del Marco"]
["1250","24","Quintana y Congosto"]
["1279","24","Regueras de Arriba"]
["1298","24","Reyero"]
["1302","24","Riaño"]
["1319","24","Riego de la Vega"]
["1324","24","Riello"]
["1330","24","Rioseco de Tapia"]
["1345","24","Robla, La"]
["1361","24","Roperuelos del Páramo"]
["1377","24","Sabero"]
["1396","24","Sahagún"]
["1417","24","San Adrián del Valle"]
["1422","24","San Andrés del Rabanedo"]
["1443","24","San Cristóbal de la Polantera"]
["1456","24","San Emiliano"]
["1469","24","San Esteban de Nogales"]
["1481","24","San Justo de la Vega"]
["1494","24","San Millán de los Caballeros"]
["1507","24","San Pedro Bercianos"]
["1438","24","Sancedo"]
["1514","24","Santa Colomba de Curueño"]
["1529","24","Santa Colomba de Somoza"]
["1535","24","Santa Cristina de Valmadrigal"]
["1540","24","Santa Elena de Jamuz"]
["1553","24","Santa María de la Isla"]
["1588","24","Santa María de Ordás"]
["1566","24","Santa María del Monte de Cea"]
["1572","24","Santa María del Páramo"]
["1591","24","Santa Marina del Rey"]
["1605","24","Santas Martas"]
["1612","24","Santiago Millas"]
["1627","24","Santovenia de la Valdoncina"]
["1633","24","Sariegos"]
["1648","24","Sena de Luna"]
["1651","24","Sobrado"]
["1664","24","Soto de la Vega"]
["1670","24","Soto y Amío"]
["1686","24","Toral de los Guzmanes"]
["2066","24","Toral de los Vados"]
["1699","24","Toreno"]
["1703","24","Torre del Bierzo"]
["1710","24","Trabadelo"]
["1725","24","Truchas"]
["1731","24","Turcia"]
["1746","24","Urdiales del Páramo"]
["1857","24","Val de San Lorenzo"]
["1759","24","Valdefresno"]
["1762","24","Valdefuentes del Páramo"]
["1778","24","Valdelugueros"]
["1784","24","Valdemora"]
["1797","24","Valdepiélago"]
["1801","24","Valdepolo"]
["1818","24","Valderas"]
["1823","24","Valderrey"]
["1839","24","Valderrueda"]
["1844","24","Valdesamario"]
["1876","24","Valdevimbre"]
["1882","24","Valencia de Don Juan"]
["1916","24","Vallecillo"]
["1895","24","Valverde de la Virgen"]
["1909","24","Valverde-Enrique"]
["1937","24","Vecilla, La"]
["1968","24","Vega de Espinareda"]
["1974","24","Vega de Infanzones"]
["1980","24","Vega de Valcarce"]
["1942","24","Vegacervera"]
["1993","24","Vegaquemada"]
["2014","24","Vegas del Condado"]
["2029","24","Villablino"]
["2035","24","Villabraz"]
["2053","24","Villadangos del Páramo"]
["2072","24","Villademor de la Vega"]
["2091","24","Villafranca del Bierzo"]
["2105","24","Villagatón"]
["2112","24","Villamandos"]
["9017","24","Villamanín"]
["2127","24","Villamañán"]
["2133","24","Villamartín de Don Sancho"]
["2148","24","Villamejil"]
["2151","24","Villamol"]
["2164","24","Villamontán de la Valduerna"]
["2170","24","Villamoratiel de las Matas"]
["2186","24","Villanueva de las Manzanas"]
["2199","24","Villaobispo de Otero"]
["9022","24","Villaornate y Castro"]
["2210","24","Villaquejida"]
["2225","24","Villaquilambre"]
["2231","24","Villarejo de Órbigo"]
["2246","24","Villares de Órbigo"]
["2259","24","Villasabariego"]
["2262","24","Villaselán"]
["2278","24","Villaturiel"]
["2284","24","Villazala"]
["2297","24","Villazanzo de Valderaduey"]
["2301","24","Zotes del Páramo"]
["0019",25,"Abella de la Conca"]
["0024","25","Àger"]
["0030","25","Agramunt"]
["0387","25","Aitona"]
["0045","25","Alamús, Els"]
["0058","25","Alàs i Cerc"]
["0061","25","Albagés, L'"]
["0077","25","Albatàrrec"]
["0083","25","Albesa"]
["0096","25","Albi, L'"]
["0100","25","Alcanó"]
["0117","25","Alcarràs"]
["0122","25","Alcoletge"]
["0138","25","Alfarràs"]
["0143","25","Alfés"]
["0156","25","Algerri"]
["0169","25","Alguaire"]
["0175","25","Alins"]
["0194","25","Almacelles"]
["0208","25","Almatret"]
["0215","25","Almenar"]
["0220","25","Alòs de Balaguer"]
["0236","25","Alpicat"]
["0241","25","Alt Àneu"]
["0273","25","Anglesola"]
["0292","25","Arbeca"]
["0313","25","Arres"]
["0328","25","Arsèguel"]
["0334","25","Artesa de Lleida"]
["0349","25","Artesa de Segre"]
["0365","25","Aspa"]
["0371","25","Avellanes i Santa Linya, Les"]
["0390","25","Baix Pallars"]
["0404","25","Balaguer"]
["0411","25","Barbens"]
["0426","25","Baronia de Rialb, La"]
["0447","25","Bassella"]
["0450","25","Bausen"]
["0463","25","Belianes"]
["1706","25","Bellaguarda"]
["0479","25","Bellcaire d'Urgell"]
["0485","25","Bell-lloc d'Urgell"]
["0498","25","Bellmunt d'Urgell"]
["0501","25","Bellpuig"]
["0518","25","Bellver de Cerdanya"]
["0523","25","Bellvís"]
["0539","25","Benavent de Segrià"]
["0557","25","Biosca"]
["0576","25","Bòrdes, Es"]
["0582","25","Borges Blanques, Les"]
["0595","25","Bossòst"]
["0560","25","Bovera"]
["0609","25","Cabanabona"]
["0616","25","Cabó"]
["0621","25","Camarasa"]
["0637","25","Canejan"]
["9046","25","Castell de Mur"]
["0642","25","Castellar de la Ribera"]
["0674","25","Castelldans"]
["0680","25","Castellnou de Seana"]
["0693","25","Castelló de Farfanya"]
["0707","25","Castellserà"]
["0714","25","Cava"]
["0729","25","Cervera"]
["0735","25","Cervià de les Garrigues"]
["0740","25","Ciutadilla"]
["0753","25","Clariana de Cardener"]
["0766","25","Cogul, El"]
["0772","25","Coll de Nargó"]
["1636","25","Coma i la Pedra, La"]
["1615","25","Conca de Dalt"]
["0788","25","Corbins"]
["0791","25","Cubells"]
["0812","25","Espluga Calba, L'"]
["0827","25","Espot"]
["0886","25","Estamariu"]
["0851","25","Estaràs"]
["0864","25","Esterri d'Àneu"]
["0870","25","Esterri de Cardós"]
["0899","25","Farrera"]
["9084","25","Fígols i Alinyà"]
["0925","25","Floresta, La"]
["0931","25","Fondarella"]
["0946","25","Foradada"]
["0962","25","Fuliola, La"]
["0978","25","Fulleda"]
["0984","25","Gavet de la Conca"]
["9123","25","Gimenells i el Pla de la Font"]
["0997","25","Golmés"]
["1001","25","Gósol"]
["1018","25","Granadella, La"]
["1023","25","Granja d'Escarp, La"]
["1039","25","Granyanella"]
["1057","25","Granyena de les Garrigues"]
["1044","25","Granyena de Segarra"]
["1095","25","Guimerà"]
["9031","25","Guingueta d'Àneu, La"]
["1109","25","Guissona"]
["1116","25","Guixers"]
["1155","25","Isona i Conca Dellà"]
["1121","25","Ivars de Noguera"]
["1137","25","Ivars d'Urgell"]
["1142","25","Ivorra"]
["9101","25","Josa i Tuixén"]
["1180","25","Juncosa"]
["1193","25","Juneda"]
["1214","25","Les"]
["1229","25","Linyola"]
["1235","25","Lladorre"]
["1240","25","Lladurs"]
["1253","25","Llardecans"]
["1266","25","Llavorsí"]
["1207","25","Lleida"]
["1272","25","Lles de Cerdanya"]
["1288","25","Llimiana"]
["1291","25","Llobera"]
["1333","25","Maials"]
["1305","25","Maldà"]
["1312","25","Massalcoreig"]
["1327","25","Massoteres"]
["1348","25","Menàrguens"]
["1351","25","Miralcamp"]
["1370","25","Mollerussa"]
["1364","25","Molsosa, La"]
["1399","25","Montellà i Martinet"]
["1403","25","Montferrer i Castellbò"]
["1386","25","Montgai"]
["1425","25","Montoliu de Lleida"]
["1410","25","Montoliu de Segarra"]
["1431","25","Montornès de Segarra"]
["1459","25","Nalec"]
["0254","25","Naut Aran"]
["1462","25","Navès"]
["1484","25","Odèn"]
["1497","25","Oliana"]
["1500","25","Oliola"]
["1517","25","Olius"]
["1522","25","Oluges, Les"]
["1538","25","Omellons, Els"]
["1543","25","Omells de na Gaia, Els"]
["1556","25","Organyà"]
["1569","25","Os de Balaguer"]
["1575","25","Ossó de Sió"]
["1581","25","Palau d'Anglesola, El"]
["1641","25","Penelles"]
["1654","25","Peramola"]
["1667","25","Pinell de Solsonès"]
["1673","25","Pinós"]
["9118","25","Plans de Sió, Els"]
["1689","25","Poal, El"]
["1692","25","Pobla de Cérvoles, La"]
["1713","25","Pobla de Segur, La"]
["0306","25","Pont de Bar, El"]
["1734","25","Pont de Suert, El"]
["1728","25","Ponts"]
["1749","25","Portella, La"]
["1752","25","Prats i Sansor"]
["1765","25","Preixana"]
["1771","25","Preixens"]
["1790","25","Prullans"]
["1804","25","Puiggròs"]
["1811","25","Puigverd d'Agramunt"]
["1826","25","Puigverd de Lleida"]
["1832","25","Rialp"]
["9059","25","Ribera d'Ondara"]
["1850","25","Ribera d'Urgellet"]
["1863","25","Riner"]
["9139","25","Riu de Cerdanya"]
["1898","25","Rosselló"]
["1902","25","Salàs de Pallars"]
["1919","25","Sanaüja"]
["1961","25","Sant Esteve de la Sarga"]
["1924","25","Sant Guim de Freixenet"]
["1977","25","Sant Guim de la Plana"]
["1930","25","Sant Llorenç de Morunys"]
["9025","25","Sant Martí de Riucorb"]
["1945","25","Sant Ramon"]
["2017","25","Sarroca de Bellera"]
["2000","25","Sarroca de Lleida"]
["2022","25","Senterada"]
["0352","25","Sentiu de Sió, La"]
["2043","25","Seròs"]
["2038","25","Seu d'Urgell, La"]
["2056","25","Sidamon"]
["2069","25","Soleràs, El"]
["2075","25","Solsona"]
["2081","25","Soriguera"]
["2094","25","Sort"]
["2108","25","Soses"]
["2115","25","Sudanell"]
["2120","25","Sunyer"]
["2154","25","Talarn"]
["2167","25","Talavera"]
["2173","25","Tàrrega"]
["2189","25","Tarrés"]
["2192","25","Tarroja de Segarra"]
["2206","25","Térmens"]
["2213","25","Tírvia"]
["2228","25","Tiurana"]
["2234","25","Torà"]
["2249","25","Torms, Els"]
["2252","25","Tornabous"]
["2271","25","Torre de Cabdella, La"]
["2265","25","Torrebesses"]
["2287","25","Torrefarrera"]
["9078","25","Torrefeta i Florejacs"]
["2304","25","Torregrossa"]
["2311","25","Torrelameu"]
["2326","25","Torres de Segre"]
["2332","25","Torre-serona"]
["2347","25","Tremp"]
["0432","25","Vall de Boí, La"]
["9010","25","Vall de Cardós"]
["2385","25","Vallbona de les Monges"]
["2402","25","Vallfogona de Balaguer"]
["9062","25","Valls d'Aguilar, Les"]
["2398","25","Valls de Valira, Les"]
["9097","25","Vansa i Fórnols, La"]
["2424","25","Verdú"]
["2430","25","Vielha e Mijaran"]
["2445","25","Vilagrassa"]
["2458","25","Vilaller"]
["2477","25","Vilamòs"]
["2483","25","Vilanova de Bellpuig"]
["2542","25","Vilanova de la Barca"]
["2496","25","Vilanova de l'Aguda"]
["2509","25","Vilanova de Meià"]
["2516","25","Vilanova de Segrià"]
["2521","25","Vila-sana"]
["2537","25","Vilosell, El"]
["2555","25","Vinaixa"]
["0012",26,"Ábalos"]
["0027","26","Agoncillo"]
["0033","26","Aguilar del Río Alhama"]
["0048","26","Ajamil de Cameros"]
["0051","26","Albelda de Iregua"]
["0064","26","Alberite"]
["0070","26","Alcanadre"]
["0086","26","Aldeanueva de Ebro"]
["0099","26","Alesanco"]
["0103","26","Alesón"]
["0110","26","Alfaro"]
["0125","26","Almarza de Cameros"]
["0131","26","Anguciana"]
["0146","26","Anguiano"]
["0159","26","Arenzana de Abajo"]
["0162","26","Arenzana de Arriba"]
["0178","26","Arnedillo"]
["0184","26","Arnedo"]
["0197","26","Arrúbal"]
["0201","26","Ausejo"]
["0218","26","Autol"]
["0223","26","Azofra"]
["0239","26","Badarán"]
["0244","26","Bañares"]
["0260","26","Baños de Río Tobía"]
["0257","26","Baños de Rioja"]
["0276","26","Berceo"]
["0282","26","Bergasa"]
["0295","26","Bergasillas Bajera"]
["0309","26","Bezares"]
["0316","26","Bobadilla"]
["0321","26","Brieva de Cameros"]
["0337","26","Briñas"]
["0342","26","Briones"]
["0355","26","Cabezón de Cameros"]
["0368","26","Calahorra"]
["0374","26","Camprovín"]
["0380","26","Canales de la Sierra"]
["0393","26","Canillas de Río Tuerto"]
["0407","26","Cañas"]
["0414","26","Cárdenas"]
["0429","26","Casalarreina"]
["0435","26","Castañares de Rioja"]
["0440","26","Castroviejo"]
["0453","26","Cellorigo"]
["0466","26","Cenicero"]
["0472","26","Cervera del Río Alhama"]
["0488","26","Cidamón"]
["0491","26","Cihuri"]
["0504","26","Cirueña"]
["0511","26","Clavijo"]
["0526","26","Cordovín"]
["0532","26","Corera"]
["0547","26","Cornago"]
["0550","26","Corporales"]
["0563","26","Cuzcurrita de Río Tirón"]
["0579","26","Daroca de Rioja"]
["0585","26","Enciso"]
["0598","26","Entrena"]
["0602","26","Estollo"]
["0619","26","Ezcaray"]
["0624","26","Foncea"]
["0630","26","Fonzaleche"]
["0645","26","Fuenmayor"]
["0658","26","Galbárruli"]
["0661","26","Galilea"]
["0677","26","Gallinero de Cameros"]
["0683","26","Gimileo"]
["0696","26","Grañón"]
["0700","26","Grávalos"]
["0717","26","Haro"]
["0722","26","Herce"]
["0738","26","Herramélluri"]
["0743","26","Hervías"]
["0756","26","Hormilla"]
["0769","26","Hormilleja"]
["0775","26","Hornillos de Cameros"]
["0781","26","Hornos de Moncalvillo"]
["0794","26","Huércanos"]
["0808","26","Igea"]
["0815","26","Jalón de Cameros"]
["0820","26","Laguna de Cameros"]
["0836","26","Lagunilla del Jubera"]
["0841","26","Lardero"]
["0867","26","Ledesma de la Cogolla"]
["0873","26","Leiva"]
["0889","26","Leza de Río Leza"]
["0892","26","Logroño"]
["0913","26","Lumbreras"]
["0928","26","Manjarrés"]
["0934","26","Mansilla de la Sierra"]
["0949","26","Manzanares de Rioja"]
["0952","26","Matute"]
["0965","26","Medrano"]
["0987","26","Munilla"]
["0990","26","Murillo de Río Leza"]
["1004","26","Muro de Aguas"]
["1011","26","Muro en Cameros"]
["1026","26","Nájera"]
["1032","26","Nalda"]
["1047","26","Navajún"]
["1050","26","Navarrete"]
["1063","26","Nestares"]
["1079","26","Nieva de Cameros"]
["1098","26","Ochánduri"]
["1085","26","Ocón"]
["1102","26","Ojacastro"]
["1119","26","Ollauri"]
["1124","26","Ortigosa de Cameros"]
["1130","26","Pazuengos"]
["1145","26","Pedroso"]
["1158","26","Pinillos"]
["1177","26","Pradejón"]
["1183","26","Pradillo"]
["1196","26","Préjano"]
["1200","26","Quel"]
["1217","26","Rabanera"]
["1222","26","Rasillo de Cameros, El"]
["1238","26","Redal, El"]
["1243","26","Ribafrecha"]
["1256","26","Rincón de Soto"]
["1269","26","Robres del Castillo"]
["1275","26","Rodezno"]
["1281","26","Sajazarra"]
["1294","26","San Asensio"]
["1308","26","San Millán de la Cogolla"]
["1315","26","San Millán de Yécora"]
["1320","26","San Román de Cameros"]
["1392","26","San Torcuato"]
["1428","26","San Vicente de la Sonsierra"]
["1341","26","Santa Coloma"]
["1354","26","Santa Engracia del Jubera"]
["1367","26","Santa Eulalia Bajera"]
["1389","26","Santo Domingo de la Calzada"]
["1406","26","Santurde de Rioja"]
["1413","26","Santurdejo"]
["1434","26","Sojuela"]
["1449","26","Sorzano"]
["1452","26","Sotés"]
["1465","26","Soto en Cameros"]
["1471","26","Terroba"]
["1487","26","Tirgo"]
["1490","26","Tobía"]
["1503","26","Tormantos"]
["1531","26","Torre en Cameros"]
["1510","26","Torrecilla en Cameros"]
["1525","26","Torrecilla sobre Alesanco"]
["1546","26","Torremontalbo"]
["1559","26","Treviana"]
["1578","26","Tricio"]
["1584","26","Tudelilla"]
["1601","26","Uruñuela"]
["1618","26","Valdemadera"]
["1623","26","Valgañón"]
["1639","26","Ventosa"]
["1644","26","Ventrosa"]
["1657","26","Viguera"]
["1660","26","Villalba de Rioja"]
["1676","26","Villalobar de Rioja"]
["1682","26","Villamediana de Iregua"]
["1695","26","Villanueva de Cameros"]
["1709","26","Villar de Arnedo, El"]
["1716","26","Villar de Torre"]
["1721","26","Villarejo"]
["1737","26","Villarroya"]
["1742","26","Villarta-Quintana"]
["1755","26","Villavelayo"]
["1768","26","Villaverde de Rioja"]
["1774","26","Villoslada de Cameros"]
["1780","26","Viniegra de Abajo"]
["1793","26","Viniegra de Arriba"]
["1807","26","Zarratón"]
["1814","26","Zarzosa"]
["1835","26","Zorraquín"]
["0018",27,"Abadín"]
["0023","27","Alfoz"]
["0039","27","Antas de Ulla"]
["0044","27","Baleira"]
["9019","27","Baralla"]
["0057","27","Barreiros"]
["0060","27","Becerreá"]
["0076","27","Begonte"]
["0082","27","Bóveda"]
["9024","27","Burela"]
["0095","27","Carballedo"]
["0109","27","Castro de Rei"]
["0116","27","Castroverde"]
["0121","27","Cervantes"]
["0137","27","Cervo"]
["0168","27","Chantada"]
["0142","27","Corgo, O"]
["0155","27","Cospeito"]
["0174","27","Folgoso do Courel"]
["0180","27","Fonsagrada, A"]
["0193","27","Foz"]
["0207","27","Friol"]
["0229","27","Guitiriz"]
["0235","27","Guntín"]
["0240","27","Incio, O"]
["0266","27","Láncara"]
["0272","27","Lourenzá"]
["0288","27","Lugo"]
["0291","27","Meira"]
["0305","27","Mondoñedo"]
["0312","27","Monforte de Lemos"]
["0327","27","Monterroso"]
["0333","27","Muras"]
["0348","27","Navia de Suarna"]
["0351","27","Negueira de Muñiz"]
["0370","27","Nogais, As"]
["0386","27","Ourol"]
["0399","27","Outeiro de Rei"]
["0403","27","Palas de Rei"]
["0410","27","Pantón"]
["0425","27","Paradela"]
["0431","27","Páramo, O"]
["0446","27","Pastoriza, A"]
["0459","27","Pedrafita do Cebreiro"]
["0478","27","Pobra do Brollón, A"]
["0462","27","Pol"]
["0484","27","Pontenova, A"]
["0497","27","Portomarín"]
["0500","27","Quiroga"]
["0569","27","Rábade"]
["0517","27","Ribadeo"]
["0522","27","Ribas de Sil"]
["0538","27","Ribeira de Piquín"]
["0543","27","Riotorto"]
["0556","27","Samos"]
["0575","27","Sarria"]
["0581","27","Saviñao, O"]
["0594","27","Sober"]
["0608","27","Taboada"]
["0615","27","Trabada"]
["0620","27","Triacastela"]
["0636","27","Valadouro, O"]
["0641","27","Vicedo, O"]
["0654","27","Vilalba"]
["0667","27","Viveiro"]
["0214","27","Xermade"]
["0253","27","Xove"]
["0014",28,"Acebeda, La"]
["0029","28","Ajalvir"]
["0035","28","Alameda del Valle"]
["0040","28","Álamo, El"]
["0053","28","Alcalá de Henares"]
["0066","28","Alcobendas"]
["0072","28","Alcorcón"]
["0088","28","Aldea del Fresno"]
["0091","28","Algete"]
["0105","28","Alpedrete"]
["0112","28","Ambite"]
["0127","28","Anchuelo"]
["0133","28","Aranjuez"]
["0148","28","Arganda del Rey"]
["0151","28","Arroyomolinos"]
["0164","28","Atazar, El"]
["0170","28","Batres"]
["0186","28","Becerril de la Sierra"]
["0199","28","Belmonte de Tajo"]
["0210","28","Berrueco, El"]
["0203","28","Berzosa del Lozoya"]
["0225","28","Boadilla del Monte"]
["0231","28","Boalo, El"]
["0246","28","Braojos"]
["0259","28","Brea de Tajo"]
["0262","28","Brunete"]
["0278","28","Buitrago del Lozoya"]
["0284","28","Bustarviejo"]
["0297","28","Cabanillas de la Sierra"]
["0301","28","Cabrera, La"]
["0318","28","Cadalso de los Vidrios"]
["0323","28","Camarma de Esteruelas"]
["0339","28","Campo Real"]
["0344","28","Canencia"]
["0357","28","Carabaña"]
["0360","28","Casarrubuelos"]
["0376","28","Cenicientos"]
["0382","28","Cercedilla"]
["0395","28","Cervera de Buitrago"]
["0513","28","Chapinería"]
["0528","28","Chinchón"]
["0409","28","Ciempozuelos"]
["0416","28","Cobeña"]
["0468","28","Collado Mediano"]
["0474","28","Collado Villalba"]
["0437","28","Colmenar de Oreja"]
["0421","28","Colmenar del Arroyo"]
["0455","28","Colmenar Viejo"]
["0442","28","Colmenarejo"]
["0480","28","Corpa"]
["0493","28","Coslada"]
["0506","28","Cubas de la Sagra"]
["0534","28","Daganzo de Arriba"]
["0549","28","Escorial, El"]
["0552","28","Estremera"]
["0565","28","Fresnedillas de la Oliva"]
["0571","28","Fresno de Torote"]
["0587","28","Fuenlabrada"]
["0590","28","Fuente el Saz de Jarama"]
["0604","28","Fuentidueña de Tajo"]
["0611","28","Galapagar"]
["0626","28","Garganta de los Montes"]
["0632","28","Gargantilla del Lozoya y Pinilla de Buitrago"]
["0647","28","Gascones"]
["0650","28","Getafe"]
["0663","28","Griñón"]
["0679","28","Guadalix de la Sierra"]
["0685","28","Guadarrama"]
["0698","28","Hiruela, La"]
["0702","28","Horcajo de la Sierra-Aoslos"]
["0719","28","Horcajuelo de la Sierra"]
["0724","28","Hoyo de Manzanares"]
["0730","28","Humanes de Madrid"]
["0745","28","Leganés"]
["0758","28","Loeches"]
["0761","28","Lozoya"]
["9015","28","Lozoyuela-Navas-Sieteiglesias"]
["0783","28","Madarcos"]
["0796","28","Madrid"]
["0800","28","Majadahonda"]
["0822","28","Manzanares el Real"]
["0838","28","Meco"]
["0843","28","Mejorada del Campo"]
["0856","28","Miraflores de la Sierra"]
["0869","28","Molar, El"]
["0875","28","Molinos, Los"]
["0881","28","Montejo de la Sierra"]
["0894","28","Moraleja de Enmedio"]
["0908","28","Moralzarzal"]
["0915","28","Morata de Tajuña"]
["0920","28","Móstoles"]
["0936","28","Navacerrada"]
["0941","28","Navalafuente"]
["0954","28","Navalagamella"]
["0967","28","Navalcarnero"]
["0973","28","Navarredonda y San Mamés"]
["0992","28","Navas del Rey"]
["1006","28","Nuevo Baztán"]
["1013","28","Olmeda de las Fuentes"]
["1028","28","Orusco de Tajuña"]
["1049","28","Paracuellos de Jarama"]
["1065","28","Parla"]
["1071","28","Patones"]
["1087","28","Pedrezuela"]
["1090","28","Pelayos de la Presa"]
["1104","28","Perales de Tajuña"]
["1111","28","Pezuela de las Torres"]
["1126","28","Pinilla del Valle"]
["1132","28","Pinto"]
["1147","28","Piñuécar-Gandullas"]
["1150","28","Pozuelo de Alarcón"]
["1163","28","Pozuelo del Rey"]
["1179","28","Prádena del Rincón"]
["1185","28","Puebla de la Sierra"]
["9020","28","Puentes Viejas"]
["1198","28","Quijorna"]
["1202","28","Rascafría"]
["1219","28","Redueña"]
["1224","28","Ribatejada"]
["1230","28","Rivas-Vaciamadrid"]
["1245","28","Robledillo de la Jara"]
["1258","28","Robledo de Chavela"]
["1261","28","Robregordo"]
["1277","28","Rozas de Madrid, Las"]
["1283","28","Rozas de Puerto Real"]
["1296","28","San Agustín del Guadalix"]
["1300","28","San Fernando de Henares"]
["1317","28","San Lorenzo de El Escorial"]
["1322","28","San Martín de la Vega"]
["1338","28","San Martín de Valdeiglesias"]
["1343","28","San Sebastián de los Reyes"]
["1356","28","Santa María de la Alameda"]
["1369","28","Santorcaz"]
["1375","28","Santos de la Humosa, Los"]
["1381","28","Serna del Monte, La"]
["1408","28","Serranillos del Valle"]
["1415","28","Sevilla la Nueva"]
["1436","28","Somosierra"]
["1441","28","Soto del Real"]
["1454","28","Talamanca de Jarama"]
["1467","28","Tielmes"]
["1473","28","Titulcia"]
["1489","28","Torrejón de Ardoz"]
["1492","28","Torrejón de la Calzada"]
["1505","28","Torrejón de Velasco"]
["1512","28","Torrelaguna"]
["1527","28","Torrelodones"]
["1533","28","Torremocha de Jarama"]
["1548","28","Torres de la Alameda"]
["9036","28","Tres Cantos"]
["1551","28","Valdaracete"]
["1564","28","Valdeavero"]
["1570","28","Valdelaguna"]
["1586","28","Valdemanco"]
["1599","28","Valdemaqueda"]
["1603","28","Valdemorillo"]
["1610","28","Valdemoro"]
["1625","28","Valdeolmos-Alalpardo"]
["1631","28","Valdepiélagos"]
["1646","28","Valdetorres de Jarama"]
["1659","28","Valdilecha"]
["1662","28","Valverde de Alcalá"]
["1678","28","Velilla de San Antonio"]
["1684","28","Vellón, El"]
["1697","28","Venturada"]
["1718","28","Villa del Prado"]
["1701","28","Villaconejos"]
["1723","28","Villalbilla"]
["1739","28","Villamanrique de Tajo"]
["1744","28","Villamanta"]
["1757","28","Villamantilla"]
["1760","28","Villanueva de la Cañada"]
["1782","28","Villanueva de Perales"]
["1776","28","Villanueva del Pardillo"]
["1795","28","Villar del Olmo"]
["1809","28","Villarejo de Salvanés"]
["1816","28","Villaviciosa de Odón"]
["1821","28","Villavieja del Lozoya"]
["1837","28","Zarzalejo"]
["0017",29,"Alameda"]
["0022","29","Alcaucín"]
["0038","29","Alfarnate"]
["0043","29","Alfarnatejo"]
["0056","29","Algarrobo"]
["0069","29","Algatocín"]
["0075","29","Alhaurín de la Torre"]
["0081","29","Alhaurín el Grande"]
["0094","29","Almáchar"]
["0108","29","Almargen"]
["0115","29","Almogía"]
["0120","29","Álora"]
["0136","29","Alozaina"]
["0141","29","Alpandeire"]
["0154","29","Antequera"]
["0167","29","Árchez"]
["0173","29","Archidona"]
["0189","29","Ardales"]
["0192","29","Arenas"]
["0206","29","Arriate"]
["0213","29","Atajate"]
["0228","29","Benadalid"]
["0234","29","Benahavís"]
["0249","29","Benalauría"]
["0252","29","Benalmádena"]
["0265","29","Benamargosa"]
["0271","29","Benamocarra"]
["0287","29","Benaoján"]
["0290","29","Benarrabá"]
["0304","29","Borge, El"]
["0311","29","Burgo, El"]
["0326","29","Campillos"]
["0332","29","Canillas de Aceituno"]
["0347","29","Canillas de Albaida"]
["0350","29","Cañete la Real"]
["0363","29","Carratraca"]
["0379","29","Cartajima"]
["0385","29","Cártama"]
["0398","29","Casabermeja"]
["0402","29","Casarabonela"]
["0419","29","Casares"]
["0424","29","Coín"]
["0430","29","Colmenar"]
["0445","29","Comares"]
["0458","29","Cómpeta"]
["0461","29","Cortes de la Frontera"]
["0477","29","Cuevas Bajas"]
["0496","29","Cuevas de San Marcos"]
["0483","29","Cuevas del Becerro"]
["0509","29","Cútar"]
["0516","29","Estepona"]
["0521","29","Faraján"]
["0537","29","Frigiliana"]
["0542","29","Fuengirola"]
["0555","29","Fuente de Piedra"]
["0568","29","Gaucín"]
["0574","29","Genalguacil"]
["0580","29","Guaro"]
["0593","29","Humilladero"]
["0607","29","Igualeja"]
["0614","29","Istán"]
["0629","29","Iznate"]
["0635","29","Jimera de Líbar"]
["0640","29","Jubrique"]
["0653","29","Júzcar"]
["0666","29","Macharaviaya"]
["0672","29","Málaga"]
["0688","29","Manilva"]
["0691","29","Marbella"]
["0705","29","Mijas"]
["0712","29","Moclinejo"]
["0727","29","Mollina"]
["0733","29","Monda"]
["0748","29","Montejaque"]
["0751","29","Nerja"]
["0764","29","Ojén"]
["0770","29","Parauta"]
["0799","29","Periana"]
["0803","29","Pizarra"]
["0810","29","Pujerra"]
["0825","29","Rincón de la Victoria"]
["0831","29","Riogordo"]
["0846","29","Ronda"]
["0859","29","Salares"]
["0862","29","Sayalonga"]
["0878","29","Sedella"]
["0884","29","Sierra de Yeguas"]
["0897","29","Teba"]
["0901","29","Tolox"]
["9018","29","Torremolinos"]
["0918","29","Torrox"]
["0923","29","Totalán"]
["0939","29","Valle de Abdalajís"]
["0944","29","Vélez-Málaga"]
["0957","29","Villanueva de Algaidas"]
["9023","29","Villanueva de la Concepción"]
["0982","29","Villanueva de Tapia"]
["0960","29","Villanueva del Rosario"]
["0976","29","Villanueva del Trabuco"]
["0995","29","Viñuela"]
["1009","29","Yunquera"]
["0011",30,"Abanilla"]
["0026","30","Abarán"]
["0032","30","Águilas"]
["0047","30","Albudeite"]
["0050","30","Alcantarilla"]
["9027","30","Alcázares, Los"]
["0063","30","Aledo"]
["0079","30","Alguazas"]
["0085","30","Alhama de Murcia"]
["0098","30","Archena"]
["0102","30","Beniel"]
["0119","30","Blanca"]
["0124","30","Bullas"]
["0130","30","Calasparra"]
["0145","30","Campos del Río"]
["0158","30","Caravaca de la Cruz"]
["0161","30","Cartagena"]
["0177","30","Cehegín"]
["0183","30","Ceutí"]
["0196","30","Cieza"]
["0200","30","Fortuna"]
["0217","30","Fuente Álamo de Murcia"]
["0222","30","Jumilla"]
["0238","30","Librilla"]
["0243","30","Lorca"]
["0256","30","Lorquí"]
["0269","30","Mazarrón"]
["0275","30","Molina de Segura"]
["0281","30","Moratalla"]
["0294","30","Mula"]
["0308","30","Murcia"]
["0315","30","Ojós"]
["0320","30","Pliego"]
["0336","30","Puerto Lumbreras"]
["0341","30","Ricote"]
["0354","30","San Javier"]
["0367","30","San Pedro del Pinatar"]
["9012","30","Santomera"]
["0373","30","Torre-Pacheco"]
["0389","30","Torres de Cotillas, Las"]
["0392","30","Totana"]
["0406","30","Ulea"]
["0413","30","Unión, La"]
["0428","30","Villanueva del Río Segura"]
["0434","30","Yecla"]
["0018",31,"Abáigar"]
["0023","31","Abárzuza/Abartzuza"]
["0039","31","Abaurregaina/Abaurrea Alta"]
["0044","31","Abaurrepea/Abaurrea Baja"]
["0057","31","Aberin"]
["0060","31","Ablitas"]
["0076","31","Adiós"]
["0082","31","Aguilar de Codés"]
["0095","31","Aibar/Oibar"]
["0116","31","Allín/Allin"]
["0121","31","Allo"]
["0109","31","Altsasu/Alsasua"]
["0137","31","Améscoa Baja"]
["0142","31","Ancín/Antzin"]
["0155","31","Andosilla"]
["0168","31","Ansoáin/Antsoain"]
["0174","31","Anue"]
["0180","31","Añorbe"]
["0193","31","Aoiz/Agoitz"]
["0207","31","Araitz"]
["0253","31","Arakil"]
["0214","31","Aranarache/Aranaratxe"]
["0235","31","Aranguren"]
["0240","31","Arano"]
["0229","31","Arantza"]
["0266","31","Aras"]
["0272","31","Arbizu"]
["0288","31","Arce/Artzi"]
["0291","31","Arcos, Los"]
["0305","31","Arellano"]
["0312","31","Areso"]
["0327","31","Arguedas"]
["0333","31","Aria"]
["0348","31","Aribe"]
["0351","31","Armañanzas"]
["0364","31","Arróniz"]
["0370","31","Arruazu"]
["0386","31","Artajona"]
["0399","31","Artazu"]
["0403","31","Atez/Atetz"]
["0581","31","Auritz/Burguete"]
["0410","31","Ayegui/Aiegi"]
["0425","31","Azagra"]
["0431","31","Azuelo"]
["0446","31","Bakaiku"]
["9019","31","Barañain"]
["0459","31","Barásoain"]
["0462","31","Barbarin"]
["0478","31","Bargota"]
["0484","31","Barillas"]
["0497","31","Basaburua"]
["0500","31","Baztan"]
["1379","31","Beintza-Labaien"]
["0517","31","Beire"]
["0522","31","Belascoáin"]
["2508","31","Bera"]
["0538","31","Berbinzana"]
["9058","31","Beriáin"]
["9024","31","Berrioplano/Berriobeiti"]
["9030","31","Berriozar"]
["0543","31","Bertizarana"]
["0556","31","Betelu"]
["2536","31","Bidaurreta"]
["0569","31","Biurrun-Olcoz"]
["0575","31","Buñuel"]
["0594","31","Burgui/Burgi"]
["0608","31","Burlada/Burlata"]
["0615","31","Busto, El"]
["0620","31","Cabanillas"]
["0636","31","Cabredo"]
["0641","31","Cadreita"]
["0654","31","Caparroso"]
["0667","31","Cárcar"]
["0673","31","Carcastillo"]
["0689","31","Cascante"]
["0692","31","Cáseda"]
["0706","31","Castejón"]
["0713","31","Castillonuevo"]
["1939","31","Cendea de Olza/Oltza Zendea"]
["0728","31","Cintruénigo"]
["0749","31","Cirauqui/Zirauki"]
["0752","31","Ciriza/Ziritza"]
["0765","31","Cizur"]
["0771","31","Corella"]
["0787","31","Cortes"]
["0790","31","Desojo"]
["0804","31","Dicastillo"]
["0811","31","Donamaria"]
["2212","31","Doneztebe/Santesteban"]
["0832","31","Echarri"]
["0879","31","Elgorriaga"]
["0898","31","Enériz/Eneritz"]
["0902","31","Eratsun"]
["0919","31","Ergoiena"]
["0924","31","Erro"]
["0945","31","Eslava"]
["0958","31","Esparza de Salazar/Espartza Zaraitzu"]
["0961","31","Espronceda"]
["0977","31","Estella-Lizarra"]
["0983","31","Esteribar"]
["0996","31","Etayo"]
["0826","31","Etxalar"]
["0847","31","Etxarri Aranatz"]
["0850","31","Etxauri"]
["1000","31","Eulate"]
["1017","31","Ezcabarte"]
["0930","31","Ezcároz/Ezkaroze"]
["1022","31","Ezkurra"]
["1038","31","Ezprogui"]
["1043","31","Falces"]
["1056","31","Fitero"]
["1069","31","Fontellas"]
["1075","31","Funes"]
["1081","31","Fustiñana"]
["1094","31","Galar"]
["1108","31","Gallipienzo/Galipentzu"]
["1115","31","Gallués/Galoze"]
["1120","31","Garaioa"]
["1136","31","Garde"]
["1141","31","Garínoain"]
["1154","31","Garralda"]
["1167","31","Genevilla"]
["1173","31","Goizueta"]
["1189","31","Goñi"]
["1192","31","Güesa/Gorza"]
["1206","31","Guesálaz/Gesalatz"]
["1213","31","Guirguillano"]
["2567","31","Hiriberri/Villanueva de Aezkoa"]
["1228","31","Huarte/Uharte"]
["1249","31","Ibargoiti"]
["2592","31","Igantzi"]
["1252","31","Igúzquiza"]
["1265","31","Imotz"]
["1271","31","Irañeta"]
["9045","31","Irurtzun"]
["1287","31","Isaba/Izaba"]
["1290","31","Ituren"]
["1304","31","Iturmendi"]
["1311","31","Iza/Itza"]
["1326","31","Izagaondoa"]
["1332","31","Izalzu/Itzaltzu"]
["1347","31","Jaurrieta"]
["1350","31","Javier"]
["1363","31","Juslapeña"]
["1385","31","Lakuntza"]
["1398","31","Lana"]
["1402","31","Lantz"]
["1419","31","Lapoblación"]
["1424","31","Larraga"]
["1430","31","Larraona"]
["1445","31","Larraun"]
["1458","31","Lazagurría"]
["1461","31","Leache/Leatxe"]
["1477","31","Legarda"]
["1483","31","Legaria"]
["1496","31","Leitza"]
["9083","31","Lekunberri"]
["1509","31","Leoz/Leotz"]
["1516","31","Lerga"]
["1521","31","Lerín"]
["1537","31","Lesaka"]
["1542","31","Lezáun"]
["1555","31","Liédena"]
["1568","31","Lizoáin-Arriasgoiti"]
["1574","31","Lodosa"]
["1580","31","Lónguida/Longida"]
["1593","31","Lumbier"]
["1607","31","Luquin"]
["2482","31","Luzaide/Valcarlos"]
["1614","31","Mañeru"]
["1629","31","Marañón"]
["1635","31","Marcilla"]
["1640","31","Mélida"]
["1653","31","Mendavia"]
["1666","31","Mendaza"]
["1672","31","Mendigorría"]
["1688","31","Metauten"]
["1691","31","Milagro"]
["1705","31","Mirafuentes"]
["1712","31","Miranda de Arga"]
["1727","31","Monreal/Elo"]
["1733","31","Monteagudo"]
["1748","31","Morentin"]
["1751","31","Mues"]
["1764","31","Murchante"]
["1770","31","Murieta"]
["1786","31","Murillo el Cuende"]
["1799","31","Murillo el Fruto"]
["1803","31","Muruzábal"]
["1810","31","Navascués/Nabaskoze"]
["1825","31","Nazar"]
["0885","31","Noáin (Valle de Elorz)/Noain (Elortzibar)"]
["1831","31","Obanos"]
["1859","31","Ochagavía/Otsagabia"]
["1846","31","Oco"]
["1862","31","Odieta"]
["1878","31","Oiz"]
["1884","31","Olaibar"]
["1897","31","Olazti/Olazagutía"]
["1901","31","Olejua"]
["1918","31","Olite/Erriberri"]
["1944","31","Ollo"]
["1923","31","Olóriz/Oloritz"]
["1957","31","Orbaizeta"]
["1960","31","Orbara"]
["1976","31","Orísoain"]
["9061","31","Orkoien"]
["1982","31","Oronz/Orontze"]
["1995","31","Oroz-Betelu/Orotz-Betelu"]
["2114","31","Orreaga/Roncesvalles"]
["2009","31","Oteiza"]
["2016","31","Pamplona/Iruña"]
["2021","31","Peralta/Azkoien"]
["2037","31","Petilla de Aragón"]
["2042","31","Piedramillera"]
["2055","31","Pitillas"]
["2068","31","Puente la Reina/Gares"]
["2074","31","Pueyo"]
["2080","31","Ribaforada"]
["2093","31","Romanzado"]
["2107","31","Roncal/Erronkari"]
["2129","31","Sada"]
["2135","31","Saldías"]
["2140","31","Salinas de Oro/Jaitz"]
["2153","31","San Adrián"]
["2172","31","San Martín de Unx"]
["2166","31","Sangüesa/Zangoza"]
["2191","31","Sansol"]
["2205","31","Santacara"]
["2227","31","Sarriés/Sartze"]
["2233","31","Sartaguda"]
["2248","31","Sesma"]
["2251","31","Sorlada"]
["2264","31","Sunbilla"]
["2270","31","Tafalla"]
["2286","31","Tiebas-Muruarte de Reta"]
["2299","31","Tirapu"]
["2303","31","Torralba del Río"]
["2310","31","Torres del Río"]
["2325","31","Tudela"]
["2331","31","Tulebras"]
["2346","31","Ucar"]
["1234","31","Uharte Arakil"]
["2359","31","Ujué"]
["2362","31","Ultzama"]
["2378","31","Unciti"]
["2384","31","Unzué/Untzue"]
["2397","31","Urdazubi/Urdax"]
["2401","31","Urdiain"]
["2418","31","Urraul Alto"]
["2423","31","Urraul Bajo"]
["2444","31","Urroz"]
["2439","31","Urroz-Villa"]
["2457","31","Urzainqui/Urzainki"]
["2460","31","Uterga"]
["2476","31","Uztárroz/Uztarroze"]
["0863","31","Valle de Egüés"]
["2606","31","Valle de Yerri/Deierri"]
["2495","31","Valtierra"]
["2515","31","Viana"]
["2520","31","Vidángoz/Bidankoze"]
["2541","31","Villafranca"]
["2554","31","Villamayor de Monjardín"]
["2573","31","Villatuerta"]
["2589","31","Villava/Atarrabia"]
["2613","31","Yesa"]
["2628","31","Zabalza/Zabaltza"]
["0734","31","Ziordia"]
["9077","31","Zizur Mayor/Zizur Nagusia"]
["2634","31","Zubieta"]
["2649","31","Zugarramurdi"]
["2652","31","Zúñiga"]
["0013",32,"Allariz"]
["0028","32","Amoeiro"]
["0034","32","Arnoia, A"]
["0049","32","Avión"]
["0052","32","Baltar"]
["0065","32","Bande"]
["0071","32","Baños de Molgas"]
["0087","32","Barbadás"]
["0090","32","Barco de Valdeorras, O"]
["0104","32","Beade"]
["0111","32","Beariz"]
["0126","32","Blancos, Os"]
["0132","32","Boborás"]
["0147","32","Bola, A"]
["0150","32","Bolo, O"]
["0163","32","Calvos de Randín"]
["0185","32","Carballeda de Avia"]
["0179","32","Carballeda de Valdeorras"]
["0198","32","Carballiño, O"]
["0202","32","Cartelle"]
["0224","32","Castrelo de Miño"]
["0219","32","Castrelo do Val"]
["0230","32","Castro Caldelas"]
["0245","32","Celanova"]
["0258","32","Cenlle"]
["0296","32","Chandrexa de Queixa"]
["0261","32","Coles"]
["0277","32","Cortegada"]
["0283","32","Cualedro"]
["0300","32","Entrimo"]
["0317","32","Esgos"]
["0338","32","Gomesende"]
["0343","32","Gudiña, A"]
["0356","32","Irixo, O"]
["0381","32","Larouco"]
["0394","32","Laza"]
["0408","32","Leiro"]
["0415","32","Lobeira"]
["0420","32","Lobios"]
["0436","32","Maceda"]
["0441","32","Manzaneda"]
["0454","32","Maside"]
["0467","32","Melón"]
["0473","32","Merca, A"]
["0489","32","Mezquita, A"]
["0492","32","Montederramo"]
["0505","32","Monterrei"]
["0512","32","Muíños"]
["0527","32","Nogueira de Ramuín"]
["0533","32","Oímbra"]
["0548","32","Ourense"]
["0551","32","Paderne de Allariz"]
["0564","32","Padrenda"]
["0570","32","Parada de Sil"]
["0586","32","Pereiro de Aguiar, O"]
["0599","32","Peroxa, A"]
["0603","32","Petín"]
["0610","32","Piñor"]
["0631","32","Pobra de Trives, A"]
["0646","32","Pontedeva"]
["0625","32","Porqueira"]
["0659","32","Punxín"]
["0662","32","Quintela de Leirado"]
["0678","32","Rairiz de Veiga"]
["0684","32","Ramirás"]
["0697","32","Ribadavia"]
["0718","32","Riós"]
["0723","32","Rúa, A"]
["0739","32","Rubiá"]
["0744","32","San Amaro"]
["0757","32","San Cibrao das Viñas"]
["0760","32","San Cristovo de Cea"]
["0701","32","San Xoán de Río"]
["0776","32","Sandiás"]
["0782","32","Sarreaus"]
["0795","32","Taboadela"]
["0809","32","Teixeira, A"]
["0816","32","Toén"]
["0821","32","Trasmiras"]
["0837","32","Veiga, A"]
["0842","32","Verea"]
["0855","32","Verín"]
["0868","32","Viana do Bolo"]
["0874","32","Vilamarín"]
["0880","32","Vilamartín de Valdeorras"]
["0893","32","Vilar de Barrio"]
["0907","32","Vilar de Santos"]
["0914","32","Vilardevós"]
["0929","32","Vilariño de Conso"]
["0322","32","Xinzo de Limia"]
["0369","32","Xunqueira de Ambía"]
["0375","32","Xunqueira de Espadanedo"]
["0019",33,"Allande"]
["0024","33","Aller"]
["0030","33","Amieva"]
["0045","33","Avilés"]
["0058","33","Belmonte de Miranda"]
["0061","33","Bimenes"]
["0077","33","Boal"]
["0083","33","Cabrales"]
["0096","33","Cabranes"]
["0100","33","Candamo"]
["0122","33","Cangas de Onís"]
["0117","33","Cangas del Narcea"]
["0138","33","Caravia"]
["0143","33","Carreño"]
["0156","33","Caso"]
["0169","33","Castrillón"]
["0175","33","Castropol"]
["0181","33","Coaña"]
["0194","33","Colunga"]
["0208","33","Corvera de Asturias"]
["0215","33","Cudillero"]
["0220","33","Degaña"]
["0236","33","Franco, El"]
["0241","33","Gijón"]
["0254","33","Gozón"]
["0267","33","Grado"]
["0273","33","Grandas de Salime"]
["0289","33","Ibias"]
["0292","33","Illano"]
["0306","33","Illas"]
["0313","33","Langreo"]
["0328","33","Laviana"]
["0334","33","Lena"]
["0352","33","Llanera"]
["0365","33","Llanes"]
["0371","33","Mieres"]
["0387","33","Morcín"]
["0390","33","Muros de Nalón"]
["0404","33","Nava"]
["0411","33","Navia"]
["0426","33","Noreña"]
["0432","33","Onís"]
["0447","33","Oviedo"]
["0450","33","Parres"]
["0463","33","Peñamellera Alta"]
["0479","33","Peñamellera Baja"]
["0485","33","Pesoz"]
["0498","33","Piloña"]
["0501","33","Ponga"]
["0518","33","Pravia"]
["0523","33","Proaza"]
["0539","33","Quirós"]
["0544","33","Regueras, Las"]
["0557","33","Ribadedeva"]
["0560","33","Ribadesella"]
["0576","33","Ribera de Arriba"]
["0582","33","Riosa"]
["0595","33","Salas"]
["0616","33","San Martín de Oscos"]
["0609","33","San Martín del Rey Aurelio"]
["0637","33","San Tirso de Abres"]
["0621","33","Santa Eulalia de Oscos"]
["0642","33","Santo Adriano"]
["0655","33","Sariego"]
["0668","33","Siero"]
["0674","33","Sobrescobio"]
["0680","33","Somiedo"]
["0693","33","Soto del Barco"]
["0707","33","Tapia de Casariego"]
["0714","33","Taramundi"]
["0729","33","Teverga"]
["0735","33","Tineo"]
["0349","33","Valdés"]
["0740","33","Vegadeo"]
["0753","33","Villanueva de Oscos"]
["0766","33","Villaviciosa"]
["0772","33","Villayón"]
["0788","33","Yernes y Tameza"]
["0014",34,"Abarca de Campos"]
["0035","34","Abia de las Torres"]
["0040","34","Aguilar de Campoo"]
["0053","34","Alar del Rey"]
["0066","34","Alba de Cerrato"]
["0091","34","Amayuelas de Arriba"]
["0105","34","Ampudia"]
["0112","34","Amusco"]
["0127","34","Antigüedad"]
["0151","34","Arconada"]
["0170","34","Astudillo"]
["0186","34","Autilla del Pino"]
["0199","34","Autillo de Campos"]
["0203","34","Ayuela"]
["0225","34","Baltanás"]
["0246","34","Baquerín de Campos"]
["0259","34","Bárcena de Campos"]
["0278","34","Barruelo de Santullán"]
["0284","34","Báscones de Ojeda"]
["0297","34","Becerril de Campos"]
["0318","34","Belmonte de Campos"]
["0323","34","Berzosilla"]
["0339","34","Boada de Campos"]
["0357","34","Boadilla de Rioseco"]
["0344","34","Boadilla del Camino"]
["0360","34","Brañosera"]
["0376","34","Buenavista de Valdavia"]
["0382","34","Bustillo de la Vega"]
["0395","34","Bustillo del Páramo de Carrión"]
["0416","34","Calahorra de Boedo"]
["0421","34","Calzada de los Molinos"]
["0455","34","Capillas"]
["0468","34","Cardeñosa de Volpejera"]
["0474","34","Carrión de los Condes"]
["0480","34","Castil de Vela"]
["0493","34","Castrejón de la Peña"]
["0506","34","Castrillo de Don Juan"]
["0513","34","Castrillo de Onielo"]
["0528","34","Castrillo de Villavega"]
["0534","34","Castromocho"]
["0552","34","Cervatos de la Cueza"]
["0565","34","Cervera de Pisuerga"]
["0571","34","Cevico de la Torre"]
["0587","34","Cevico Navero"]
["0590","34","Cisneros"]
["0604","34","Cobos de Cerrato"]
["0611","34","Collazos de Boedo"]
["0626","34","Congosto de Valdavia"]
["0632","34","Cordovilla la Real"]
["0663","34","Cubillas de Cerrato"]
["0679","34","Dehesa de Montejo"]
["0685","34","Dehesa de Romanos"]
["0698","34","Dueñas"]
["0702","34","Espinosa de Cerrato"]
["0719","34","Espinosa de Villagonzalo"]
["0724","34","Frechilla"]
["0730","34","Fresno del Río"]
["0745","34","Frómista"]
["0761","34","Fuentes de Nava"]
["0777","34","Fuentes de Valdepero"]
["0796","34","Grijota"]
["0800","34","Guardo"]
["0817","34","Guaza de Campos"]
["0822","34","Hérmedes de Cerrato"]
["0838","34","Herrera de Pisuerga"]
["0843","34","Herrera de Valdecañas"]
["0869","34","Hontoria de Cerrato"]
["0875","34","Hornillos de Cerrato"]
["0881","34","Husillos"]
["0894","34","Itero de la Vega"]
["0915","34","Lagartos"]
["0920","34","Lantadilla"]
["0941","34","Ledigos"]
["9036","34","Loma de Ucieza"]
["0967","34","Lomas"]
["0989","34","Magaz de Pisuerga"]
["0992","34","Manquillos"]
["1006","34","Mantinos"]
["1013","34","Marcilla de Campos"]
["1028","34","Mazariegos"]
["1034","34","Mazuecos de Valdeginate"]
["1049","34","Melgar de Yuso"]
["1065","34","Meneses de Campos"]
["1071","34","Micieces de Ojeda"]
["1087","34","Monzón de Campos"]
["1090","34","Moratinos"]
["1104","34","Mudá"]
["1126","34","Nogal de las Huertas"]
["1132","34","Olea de Boedo"]
["1147","34","Olmos de Ojeda"]
["1163","34","Osornillo"]
["9015","34","Osorno la Mayor"]
["1202","34","Palencia"]
["1219","34","Palenzuela"]
["1224","34","Páramo de Boedo"]
["1230","34","Paredes de Nava"]
["1245","34","Payo de Ojeda"]
["1258","34","Pedraza de Campos"]
["1261","34","Pedrosa de la Vega"]
["1277","34","Perales"]
["9041","34","Pernía, La"]
["1296","34","Pino del Río"]
["1300","34","Piña de Campos"]
["1317","34","Población de Arroyo"]
["1322","34","Población de Campos"]
["1338","34","Población de Cerrato"]
["1343","34","Polentinos"]
["1356","34","Pomar de Valdivia"]
["1369","34","Poza de la Vega"]
["1375","34","Pozo de Urama"]
["1394","34","Prádanos de Ojeda"]
["1408","34","Puebla de Valdavia, La"]
["1415","34","Quintana del Puente"]
["1436","34","Quintanilla de Onsoña"]
["1467","34","Reinoso de Cerrato"]
["1473","34","Renedo de la Vega"]
["1492","34","Requena de Campos"]
["1512","34","Respenda de la Peña"]
["1527","34","Revenga de Campos"]
["1548","34","Revilla de Collazos"]
["1551","34","Ribas de Campos"]
["1564","34","Riberos de la Cueza"]
["1570","34","Saldaña"]
["1586","34","Salinas de Pisuerga"]
["1599","34","San Cebrián de Campos"]
["1603","34","San Cebrián de Mudá"]
["1610","34","San Cristóbal de Boedo"]
["1631","34","San Mamés de Campos"]
["1659","34","San Román de la Cuba"]
["1678","34","Santa Cecilia del Alcor"]
["1684","34","Santa Cruz de Boedo"]
["1697","34","Santervás de la Vega"]
["1701","34","Santibáñez de Ecla"]
["1718","34","Santibáñez de la Peña"]
["1744","34","Santoyo"]
["1757","34","Serna, La"]
["1776","34","Soto de Cerrato"]
["1760","34","Sotobañado y Priorato"]
["1782","34","Tabanera de Cerrato"]
["1795","34","Tabanera de Valdavia"]
["1809","34","Támara de Campos"]
["1816","34","Tariego de Cerrato"]
["1821","34","Torquemada"]
["1842","34","Torremormojón"]
["1855","34","Triollo"]
["1868","34","Valbuena de Pisuerga"]
["1893","34","Valdeolmillos"]
["1907","34","Valderrábano"]
["1929","34","Valde-Ucieza"]
["1966","34","Valle de Cerrato"]
["9020","34","Valle del Retortillo"]
["1991","34","Velilla del Río Carrión"]
["0231","34","Venta de Baños"]
["2012","34","Vertavillo"]
["0936","34","Vid de Ojeda, La"]
["2027","34","Villabasta de Valdavia"]
["2048","34","Villacidaler"]
["2051","34","Villaconancio"]
["2064","34","Villada"]
["2086","34","Villaeles de Valdavia"]
["2103","34","Villahán"]
["2110","34","Villaherreros"]
["2131","34","Villalaco"]
["2146","34","Villalba de Guardo"]
["2159","34","Villalcázar de Sirga"]
["2162","34","Villalcón"]
["2178","34","Villalobón"]
["2184","34","Villaluenga de la Vega"]
["2201","34","Villamartín de Campos"]
["2218","34","Villamediana"]
["2223","34","Villameriel"]
["2239","34","Villamoronta"]
["2244","34","Villamuera de la Cueza"]
["2257","34","Villamuriel de Cerrato"]
["2276","34","Villanueva del Rebollar"]
["2282","34","Villanuño de Valdavia"]
["2295","34","Villaprovedo"]
["2309","34","Villarmentero de Campos"]
["2316","34","Villarrabé"]
["2321","34","Villarramiel"]
["2337","34","Villasarracino"]
["2342","34","Villasila de Valdavia"]
["2368","34","Villaturde"]
["2374","34","Villaumbrales"]
["2380","34","Villaviudas"]
["2407","34","Villerías de Campos"]
["2414","34","Villodre"]
["2429","34","Villodrigo"]
["2435","34","Villoldo"]
["2453","34","Villota del Páramo"]
["2466","34","Villovieco"]
["0017",35,"Agaete"]
["0022","35","Agüimes"]
["0206","35","Aldea de San Nicolás, La"]
["0038","35","Antigua"]
["0043","35","Arrecife"]
["0056","35","Artenara"]
["0069","35","Arucas"]
["0075","35","Betancuria"]
["0081","35","Firgas"]
["0094","35","Gáldar"]
["0108","35","Haría"]
["0115","35","Ingenio"]
["0120","35","Mogán"]
["0136","35","Moya"]
["0141","35","Oliva, La"]
["0154","35","Pájara"]
["0167","35","Palmas de Gran Canaria, Las"]
["0173","35","Puerto del Rosario"]
["0189","35","San Bartolomé"]
["0192","35","San Bartolomé de Tirajana"]
["0213","35","Santa Brígida"]
["0228","35","Santa Lucía de Tirajana"]
["0234","35","Santa María de Guía de Gran Canaria"]
["0249","35","Teguise"]
["0252","35","Tejeda"]
["0265","35","Telde"]
["0271","35","Teror"]
["0287","35","Tías"]
["0290","35","Tinajo"]
["0304","35","Tuineje"]
["0326","35","Valleseco"]
["0311","35","Valsequillo de Gran Canaria"]
["0332","35","Vega de San Mateo"]
["0347","35","Yaiza"]
["0209",36,"Agolada"]
["0010","36","Arbo"]
["0031","36","Baiona"]
["0025","36","Barro"]
["0046","36","Bueu"]
["0059","36","Caldas de Reis"]
["0062","36","Cambados"]
["0078","36","Campo Lameiro"]
["0084","36","Cangas"]
["0097","36","Cañiza, A"]
["0101","36","Catoira"]
["0118","36","Cerdedo"]
["0123","36","Cotobade"]
["0139","36","Covelo"]
["0144","36","Crecente"]
["0157","36","Cuntis"]
["0160","36","Dozón"]
["0176","36","Estrada, A"]
["0182","36","Forcarei"]
["0195","36","Fornelos de Montes"]
["0216","36","Gondomar"]
["0221","36","Grove, O"]
["0237","36","Guarda, A"]
["9011","36","Illa de Arousa, A"]
["0242","36","Lalín"]
["0255","36","Lama, A"]
["0268","36","Marín"]
["0274","36","Meaño"]
["0280","36","Meis"]
["0293","36","Moaña"]
["0307","36","Mondariz"]
["0314","36","Mondariz-Balneario"]
["0329","36","Moraña"]
["0335","36","Mos"]
["0340","36","Neves, As"]
["0353","36","Nigrán"]
["0366","36","Oia"]
["0372","36","Pazos de Borbén"]
["0412","36","Poio"]
["0433","36","Ponte Caldelas"]
["0427","36","Ponteareas"]
["0448","36","Pontecesures"]
["0388","36","Pontevedra"]
["0391","36","Porriño, O"]
["0405","36","Portas"]
["0451","36","Redondela"]
["0464","36","Ribadumia"]
["0470","36","Rodeiro"]
["0486","36","Rosal, O"]
["0499","36","Salceda de Caselas"]
["0502","36","Salvaterra de Miño"]
["0519","36","Sanxenxo"]
["0524","36","Silleda"]
["0530","36","Soutomaior"]
["0545","36","Tomiño"]
["0558","36","Tui"]
["0561","36","Valga"]
["0577","36","Vigo"]
["0596","36","Vila de Cruces"]
["0583","36","Vilaboa"]
["0600","36","Vilagarcía de Arousa"]
["0617","36","Vilanova de Arousa"]
["0016",37,"Abusejo"]
["0021","37","Agallas"]
["0037","37","Ahigal de los Aceiteros"]
["0042","37","Ahigal de Villarino"]
["0055","37","Alameda de Gardón, La"]
["0068","37","Alamedilla, La"]
["0074","37","Alaraz"]
["0080","37","Alba de Tormes"]
["0093","37","Alba de Yeltes"]
["0107","37","Alberca, La"]
["0114","37","Alberguería de Argañán, La"]
["0129","37","Alconada"]
["0153","37","Aldea del Obispo"]
["0135","37","Aldeacipreste"]
["0140","37","Aldeadávila de la Ribera"]
["0166","37","Aldealengua"]
["0172","37","Aldeanueva de Figueroa"]
["0188","37","Aldeanueva de la Sierra"]
["0191","37","Aldearrodrigo"]
["0205","37","Aldearrubia"]
["0212","37","Aldeaseca de Alba"]
["0227","37","Aldeaseca de la Frontera"]
["0233","37","Aldeatejada"]
["0248","37","Aldeavieja de Tormes"]
["0251","37","Aldehuela de la Bóveda"]
["0264","37","Aldehuela de Yeltes"]
["0270","37","Almenara de Tormes"]
["0286","37","Almendra"]
["0299","37","Anaya de Alba"]
["0303","37","Añover de Tormes"]
["0310","37","Arabayona de Mógica"]
["0325","37","Arapiles"]
["0331","37","Arcediano"]
["0346","37","Arco, El"]
["0359","37","Armenteros"]
["0378","37","Atalaya, La"]
["0384","37","Babilafuente"]
["0397","37","Bañobárez"]
["0401","37","Barbadillo"]
["0418","37","Barbalos"]
["0423","37","Barceo"]
["0444","37","Barruecopardo"]
["0457","37","Bastida, La"]
["0460","37","Béjar"]
["0476","37","Beleña"]
["0495","37","Bermellar"]
["0508","37","Berrocal de Huebra"]
["0515","37","Berrocal de Salvatierra"]
["0520","37","Boada"]
["0541","37","Bodón, El"]
["0554","37","Bogajo"]
["0567","37","Bouza, La"]
["0573","37","Bóveda del Río Almar"]
["0589","37","Brincones"]
["0592","37","Buenamadre"]
["0606","37","Buenavista"]
["0613","37","Cabaco, El"]
["0634","37","Cabeza de Béjar, La"]
["0652","37","Cabeza del Caballo"]
["0628","37","Cabezabellosa de la Calzada"]
["0671","37","Cabrerizos"]
["0687","37","Cabrillas"]
["0690","37","Calvarrasa de Abajo"]
["0704","37","Calvarrasa de Arriba"]
["0711","37","Calzada de Béjar, La"]
["0726","37","Calzada de Don Diego"]
["0732","37","Calzada de Valdunciel"]
["0747","37","Campillo de Azaba"]
["0779","37","Campo de Peñaranda, El"]
["0785","37","Candelario"]
["0798","37","Canillas de Abajo"]
["0802","37","Cantagallo"]
["0819","37","Cantalapiedra"]
["0824","37","Cantalpino"]
["0830","37","Cantaracillo"]
["0858","37","Carbajosa de la Sagrada"]
["0861","37","Carpio de Azaba"]
["0877","37","Carrascal de Barregas"]
["0883","37","Carrascal del Obispo"]
["0896","37","Casafranca"]
["0900","37","Casas del Conde, Las"]
["0917","37","Casillas de Flores"]
["0922","37","Castellanos de Moriscos"]
["1857","37","Castellanos de Villiquera"]
["0969","37","Castillejo de Martín Viejo"]
["0975","37","Castraz"]
["0981","37","Cepeda"]
["0994","37","Cereceda de la Sierra"]
["1008","37","Cerezal de Peñahorcada"]
["1015","37","Cerralbo"]
["1020","37","Cerro, El"]
["1036","37","Cespedosa de Tormes"]
["1149","37","Chagarcía Medianero"]
["1041","37","Cilleros de la Bastida"]
["1067","37","Cipérez"]
["1073","37","Ciudad Rodrigo"]
["1089","37","Coca de Alba"]
["1092","37","Colmenar de Montemayor"]
["1106","37","Cordovilla"]
["1128","37","Cristóbal"]
["1134","37","Cubo de Don Sancho, El"]
["1152","37","Dios le Guarde"]
["1165","37","Doñinos de Ledesma"]
["1171","37","Doñinos de Salamanca"]
["1187","37","Ejeme"]
["1204","37","Encina de San Silvestre"]
["1190","37","Encina, La"]
["1211","37","Encinas de Abajo"]
["1226","37","Encinas de Arriba"]
["1232","37","Encinasola de los Comendadores"]
["1247","37","Endrinal"]
["1250","37","Escurial de la Sierra"]
["1263","37","Espadaña"]
["1279","37","Espeja"]
["1285","37","Espino de la Orbada"]
["1298","37","Florida de Liébana"]
["1302","37","Forfoleda"]
["1319","37","Frades de la Sierra"]
["1324","37","Fregeneda, La"]
["1330","37","Fresnedoso"]
["1345","37","Fresno Alhándiga"]
["1358","37","Fuente de San Esteban, La"]
["1361","37","Fuenteguinaldo"]
["1377","37","Fuenteliante"]
["1383","37","Fuenterroble de Salvatierra"]
["1396","37","Fuentes de Béjar"]
["1400","37","Fuentes de Oñoro"]
["1417","37","Gajates"]
["1422","37","Galindo y Perahuy"]
["1438","37","Galinduste"]
["1443","37","Galisancho"]
["1456","37","Gallegos de Argañán"]
["1469","37","Gallegos de Solmirón"]
["1475","37","Garcibuey"]
["1481","37","Garcihernández"]
["1494","37","Garcirrey"]
["1507","37","Gejuelo del Barro"]
["1514","37","Golpejas"]
["1529","37","Gomecello"]
["1540","37","Guadramiro"]
["1553","37","Guijo de Ávila"]
["1566","37","Guijuelo"]
["1572","37","Herguijuela de Ciudad Rodrigo"]
["1588","37","Herguijuela de la Sierra"]
["1591","37","Herguijuela del Campo"]
["1605","37","Hinojosa de Duero"]
["1612","37","Horcajo de Montemayor"]
["1627","37","Horcajo Medianero"]
["1633","37","Hoya, La"]
["1648","37","Huerta"]
["1651","37","Iruelos"]
["1664","37","Ituero de Azaba"]
["1670","37","Juzbado"]
["1686","37","Lagunilla"]
["1699","37","Larrodrigo"]
["1703","37","Ledesma"]
["1710","37","Ledrada"]
["1725","37","Linares de Riofrío"]
["1731","37","Lumbrales"]
["1759","37","Machacón"]
["1746","37","Macotera"]
["1762","37","Madroñal"]
["1778","37","Maíllo, El"]
["1784","37","Malpartida"]
["1797","37","Mancera de Abajo"]
["1801","37","Manzano, El"]
["1818","37","Martiago"]
["1839","37","Martín de Yeltes"]
["1823","37","Martinamor"]
["1844","37","Masueco"]
["1860","37","Mata de Ledesma, La"]
["1876","37","Matilla de los Caños del Río"]
["1882","37","Maya, La"]
["1895","37","Membribe de la Sierra"]
["1909","37","Mieza"]
["1916","37","Milano, El"]
["1921","37","Miranda de Azán"]
["1937","37","Miranda del Castañar"]
["1942","37","Mogarraz"]
["1955","37","Molinillo"]
["1968","37","Monforte de la Sierra"]
["1974","37","Monleón"]
["1980","37","Monleras"]
["1993","37","Monsagro"]
["2007","37","Montejo"]
["2014","37","Montemayor del Río"]
["2029","37","Monterrubio de Armuña"]
["2035","37","Monterrubio de la Sierra"]
["2040","37","Morasverdes"]
["2053","37","Morille"]
["2066","37","Moríñigo"]
["2072","37","Moriscos"]
["2088","37","Moronta"]
["2091","37","Mozárbez"]
["2112","37","Narros de Matalayegua"]
["2133","37","Nava de Béjar"]
["2148","37","Nava de Francia"]
["2151","37","Nava de Sotrobal"]
["2127","37","Navacarros"]
["2164","37","Navales"]
["2170","37","Navalmoral de Béjar"]
["2186","37","Navamorales"]
["2199","37","Navarredonda de la Rinconada"]
["2210","37","Navasfrías"]
["2225","37","Negrilla de Palencia"]
["2231","37","Olmedo de Camaces"]
["2246","37","Orbada, La"]
["2259","37","Pajares de la Laguna"]
["2262","37","Palacios del Arzobispo"]
["2284","37","Palaciosrubios"]
["2297","37","Palencia de Negrilla"]
["2301","37","Parada de Arriba"]
["2318","37","Parada de Rubiales"]
["2323","37","Paradinas de San Juan"]
["2339","37","Pastores"]
["2344","37","Payo, El"]
["2357","37","Pedraza de Alba"]
["2360","37","Pedrosillo de Alba"]
["2376","37","Pedrosillo de los Aires"]
["2382","37","Pedrosillo el Ralo"]
["2395","37","Pedroso de la Armuña, El"]
["2409","37","Pelabravo"]
["2416","37","Pelarrodríguez"]
["2421","37","Pelayos"]
["2437","37","Peña, La"]
["2442","37","Peñacaballera"]
["2455","37","Peñaparda"]
["2468","37","Peñaranda de Bracamonte"]
["2474","37","Peñarandilla"]
["2480","37","Peralejos de Abajo"]
["2493","37","Peralejos de Arriba"]
["2506","37","Pereña de la Ribera"]
["2513","37","Peromingo"]
["2528","37","Pinedas"]
["2534","37","Pino de Tormes, El"]
["2549","37","Pitiegua"]
["2552","37","Pizarral"]
["2565","37","Poveda de las Cintas"]
["2571","37","Pozos de Hinojo"]
["2587","37","Puebla de Azaba"]
["2590","37","Puebla de San Medel"]
["2604","37","Puebla de Yeltes"]
["2611","37","Puente del Congosto"]
["2626","37","Puertas"]
["2632","37","Puerto de Béjar"]
["2647","37","Puerto Seguro"]
["2650","37","Rágama"]
["2663","37","Redonda, La"]
["2679","37","Retortillo"]
["2685","37","Rinconada de la Sierra, La"]
["2698","37","Robleda"]
["2702","37","Robliza de Cojos"]
["2719","37","Rollán"]
["2724","37","Saelices el Chico"]
["2730","37","Sagrada, La"]
["3034","37","Sahugo, El"]
["2745","37","Salamanca"]
["2758","37","Saldeana"]
["2761","37","Salmoral"]
["2777","37","Salvatierra de Tormes"]
["2783","37","San Cristóbal de la Cuesta"]
["2843","37","San Esteban de la Sierra"]
["2856","37","San Felices de los Gallegos"]
["2869","37","San Martín del Castañar"]
["2875","37","San Miguel de Valero"]
["0362","37","San Miguel del Robledo"]
["2881","37","San Morales"]
["2894","37","San Muñoz"]
["2915","37","San Pedro de Rozados"]
["2908","37","San Pedro del Valle"]
["2920","37","San Pelayo de Guareña"]
["2800","37","Sanchón de la Ribera"]
["2817","37","Sanchón de la Sagrada"]
["2822","37","Sanchotello"]
["2796","37","Sancti-Spíritus"]
["2838","37","Sando"]
["2936","37","Santa María de Sando"]
["2941","37","Santa Marta de Tormes"]
["2967","37","Santiago de la Puebla"]
["2973","37","Santibáñez de Béjar"]
["2989","37","Santibáñez de la Sierra"]
["2992","37","Santiz"]
["3006","37","Santos, Los"]
["3013","37","Sardón de los Frailes"]
["3028","37","Saucelle"]
["3049","37","Sepulcro-Hilario"]
["3052","37","Sequeros"]
["3065","37","Serradilla del Arroyo"]
["3071","37","Serradilla del Llano"]
["3090","37","Sierpe, La"]
["3104","37","Sieteiglesias de Tormes"]
["3111","37","Sobradillo"]
["3126","37","Sorihuela"]
["3132","37","Sotoserrano"]
["3147","37","Tabera de Abajo"]
["3150","37","Tala, La"]
["3163","37","Tamames"]
["3179","37","Tarazona de Guareña"]
["3185","37","Tardáguila"]
["3198","37","Tejado, El"]
["3202","37","Tejeda y Segoyuela"]
["3219","37","Tenebrón"]
["3224","37","Terradillos"]
["3230","37","Topas"]
["3245","37","Tordillos"]
["3258","37","Tornadizo, El"]
["3277","37","Torresmenudas"]
["3283","37","Trabanca"]
["3296","37","Tremedal de Tormes"]
["3300","37","Valdecarros"]
["3317","37","Valdefuentes de Sangusín"]
["3322","37","Valdehijaderos"]
["3338","37","Valdelacasa"]
["3343","37","Valdelageve"]
["3356","37","Valdelosa"]
["3369","37","Valdemierque"]
["3375","37","Valderrodrigo"]
["3381","37","Valdunciel"]
["3394","37","Valero"]
["3436","37","Vallejera de Riofrío"]
["3408","37","Valsalabroso"]
["3415","37","Valverde de Valdelacasa"]
["3420","37","Valverdón"]
["3441","37","Vecinos"]
["3454","37","Vega de Tirados"]
["3467","37","Veguillas, Las"]
["3473","37","Vellés, La"]
["3489","37","Ventosa del Río Almar"]
["3492","37","Vídola, La"]
["3512","37","Villaflores"]
["3527","37","Villagonzalo de Tormes"]
["3533","37","Villalba de los Llanos"]
["3548","37","Villamayor"]
["3551","37","Villanueva del Conde"]
["3564","37","Villar de Argañán"]
["3570","37","Villar de Ciervo"]
["3586","37","Villar de Gallimazo"]
["3599","37","Villar de la Yegua"]
["3603","37","Villar de Peralonso"]
["3610","37","Villar de Samaniego"]
["3625","37","Villares de la Reina"]
["3631","37","Villares de Yeltes"]
["3646","37","Villarino de los Aires"]
["3659","37","Villarmayor"]
["3662","37","Villarmuerto"]
["3678","37","Villasbuenas"]
["3684","37","Villasdardo"]
["3697","37","Villaseco de los Gamitos"]
["3701","37","Villaseco de los Reyes"]
["3718","37","Villasrubias"]
["3723","37","Villaverde de Guareña"]
["3739","37","Villavieja de Yeltes"]
["3744","37","Villoria"]
["3757","37","Villoruela"]
["3505","37","Vilvestre"]
["3760","37","Vitigudino"]
["3776","37","Yecla de Yeltes"]
["3782","37","Zamarra"]
["3795","37","Zamayón"]
["3809","37","Zarapicos"]
["3816","37","Zarza de Pumareda, La"]
["3821","37","Zorita de la Frontera"]
["0012",38,"Adeje"]
["0027","38","Agulo"]
["0033","38","Alajeró"]
["0048","38","Arafo"]
["0051","38","Arico"]
["0064","38","Arona"]
["0070","38","Barlovento"]
["0086","38","Breña Alta"]
["0099","38","Breña Baja"]
["0103","38","Buenavista del Norte"]
["0110","38","Candelaria"]
["0125","38","Fasnia"]
["0131","38","Frontera"]
["0146","38","Fuencaliente de la Palma"]
["0159","38","Garachico"]
["0162","38","Garafía"]
["0178","38","Granadilla de Abona"]
["0184","38","Guancha, La"]
["0197","38","Guía de Isora"]
["0201","38","Güímar"]
["0218","38","Hermigua"]
["0223","38","Icod de los Vinos"]
["0244","38","Llanos de Aridane, Los"]
["0257","38","Matanza de Acentejo, La"]
["0260","38","Orotava, La"]
["0276","38","Paso, El"]
["9013","38","Pinar de El Hierro, El"]
["0282","38","Puerto de la Cruz"]
["0295","38","Puntagorda"]
["0309","38","Puntallana"]
["0316","38","Realejos, Los"]
["0321","38","Rosario, El"]
["0337","38","San Andrés y Sauces"]
["0239","38","San Cristóbal de La Laguna"]
["0342","38","San Juan de la Rambla"]
["0355","38","San Miguel de Abona"]
["0368","38","San Sebastián de la Gomera"]
["0374","38","Santa Cruz de la Palma"]
["0380","38","Santa Cruz de Tenerife"]
["0393","38","Santa Úrsula"]
["0407","38","Santiago del Teide"]
["0414","38","Sauzal, El"]
["0429","38","Silos, Los"]
["0435","38","Tacoronte"]
["0440","38","Tanque, El"]
["0453","38","Tazacorte"]
["0466","38","Tegueste"]
["0472","38","Tijarafe"]
["0491","38","Valle Gran Rey"]
["0504","38","Vallehermoso"]
["0488","38","Valverde"]
["0511","38","Victoria de Acentejo, La"]
["0526","38","Vilaflor de Chasna"]
["0532","38","Villa de Mazo"]
["0015",39,"Alfoz de Lloredo"]
["0020","39","Ampuero"]
["0036","39","Anievas"]
["0041","39","Arenas de Iguña"]
["0054","39","Argoños"]
["0067","39","Arnuero"]
["0073","39","Arredondo"]
["0089","39","Astillero, El"]
["0092","39","Bárcena de Cicero"]
["0106","39","Bárcena de Pie de Concha"]
["0113","39","Bareyo"]
["0128","39","Cabezón de la Sal"]
["0134","39","Cabezón de Liébana"]
["0149","39","Cabuérniga"]
["0152","39","Camaleño"]
["0165","39","Camargo"]
["0279","39","Campoo de Enmedio"]
["0171","39","Campoo de Yuso"]
["0187","39","Cartes"]
["0190","39","Castañeda"]
["0204","39","Castro-Urdiales"]
["0211","39","Cieza"]
["0226","39","Cillorigo de Liébana"]
["0232","39","Colindres"]
["0247","39","Comillas"]
["0250","39","Corrales de Buelna, Los"]
["0263","39","Corvera de Toranzo"]
["0285","39","Entrambasaguas"]
["0298","39","Escalante"]
["0302","39","Guriezo"]
["0319","39","Hazas de Cesto"]
["0324","39","Hermandad de Campoo de Suso"]
["0330","39","Herrerías"]
["0345","39","Lamasón"]
["0358","39","Laredo"]
["0361","39","Liendo"]
["0377","39","Liérganes"]
["0383","39","Limpias"]
["0396","39","Luena"]
["0400","39","Marina de Cudeyo"]
["0417","39","Mazcuerras"]
["0422","39","Medio Cudeyo"]
["0438","39","Meruelo"]
["0443","39","Miengo"]
["0456","39","Miera"]
["0469","39","Molledo"]
["0475","39","Noja"]
["0481","39","Penagos"]
["0494","39","Peñarrubia"]
["0507","39","Pesaguero"]
["0514","39","Pesquera"]
["0529","39","Piélagos"]
["0535","39","Polaciones"]
["0540","39","Polanco"]
["0553","39","Potes"]
["0566","39","Puente Viesgo"]
["0572","39","Ramales de la Victoria"]
["0588","39","Rasines"]
["0591","39","Reinosa"]
["0605","39","Reocín"]
["0612","39","Ribamontán al Mar"]
["0627","39","Ribamontán al Monte"]
["0633","39","Rionansa"]
["0648","39","Riotuerto"]
["0651","39","Rozas de Valdearroyo, Las"]
["0664","39","Ruente"]
["0670","39","Ruesga"]
["0686","39","Ruiloba"]
["0699","39","San Felices de Buelna"]
["0703","39","San Miguel de Aguayo"]
["0710","39","San Pedro del Romeral"]
["0725","39","San Roque de Riomiera"]
["0801","39","San Vicente de la Barquera"]
["0731","39","Santa Cruz de Bezana"]
["0746","39","Santa María de Cayón"]
["0759","39","Santander"]
["0762","39","Santillana del Mar"]
["0778","39","Santiurde de Reinosa"]
["0784","39","Santiurde de Toranzo"]
["0797","39","Santoña"]
["0818","39","Saro"]
["0823","39","Selaya"]
["0839","39","Soba"]
["0844","39","Solórzano"]
["0857","39","Suances"]
["0860","39","Tojos, Los"]
["0876","39","Torrelavega"]
["0882","39","Tresviso"]
["0895","39","Tudanca"]
["0909","39","Udías"]
["0955","39","Val de San Vicente"]
["0916","39","Valdáliga"]
["0921","39","Valdeolea"]
["0937","39","Valdeprado del Río"]
["0942","39","Valderredible"]
["1014","39","Valle de Villaverde"]
["0968","39","Vega de Liébana"]
["0974","39","Vega de Pas"]
["0980","39","Villacarriedo"]
["0993","39","Villaescusa"]
["1007","39","Villafufre"]
["1029","39","Voto"]
["0019",40,"Abades"]
["0024","40","Adrada de Pirón"]
["0030","40","Adrados"]
["0045","40","Aguilafuente"]
["0058","40","Alconada de Maderuelo"]
["0122","40","Aldea Real"]
["0061","40","Aldealcorvo"]
["0077","40","Aldealengua de Pedraza"]
["0083","40","Aldealengua de Santa María"]
["0096","40","Aldeanueva de la Serrezuela"]
["0100","40","Aldeanueva del Codonal"]
["0138","40","Aldeasoña"]
["0143","40","Aldehorno"]
["0156","40","Aldehuela del Codonal"]
["0169","40","Aldeonte"]
["0175","40","Anaya"]
["0181","40","Añe"]
["0194","40","Arahuetes"]
["0208","40","Arcones"]
["0215","40","Arevalillo de Cega"]
["0220","40","Armuña"]
["0241","40","Ayllón"]
["0254","40","Barbolla"]
["0267","40","Basardilla"]
["0289","40","Bercial"]
["0292","40","Bercimuel"]
["0306","40","Bernardos"]
["0313","40","Bernuy de Porreros"]
["0328","40","Boceguillas"]
["0334","40","Brieva"]
["0349","40","Caballar"]
["0352","40","Cabañas de Polendos"]
["0365","40","Cabezuela"]
["0371","40","Calabazas de Fuentidueña"]
["0390","40","Campo de San Pedro"]
["0404","40","Cantalejo"]
["0411","40","Cantimpalos"]
["0432","40","Carbonero el Mayor"]
["0447","40","Carrascal del Río"]
["0450","40","Casla"]
["0463","40","Castillejo de Mesleón"]
["0479","40","Castro de Fuentidueña"]
["0485","40","Castrojimeno"]
["0498","40","Castroserna de Abajo"]
["0518","40","Castroserracín"]
["0523","40","Cedillo de la Torre"]
["0539","40","Cerezo de Abajo"]
["0544","40","Cerezo de Arriba"]
["0655","40","Chañe"]
["0557","40","Cilleruelo de San Mamés"]
["0560","40","Cobos de Fuentidueña"]
["0576","40","Coca"]
["0582","40","Codorniz"]
["0595","40","Collado Hermoso"]
["0609","40","Condado de Castilnovo"]
["0616","40","Corral de Ayllón"]
["9025","40","Cozuelos de Fuentidueña"]
["0621","40","Cubillo"]
["0637","40","Cuéllar"]
["9059","40","Cuevas de Provanco"]
["0680","40","Domingo García"]
["0693","40","Donhierro"]
["0707","40","Duruelo"]
["0714","40","Encinas"]
["0729","40","Encinillas"]
["0735","40","Escalona del Prado"]
["0740","40","Escarabajosa de Cabezas"]
["0753","40","Escobar de Polendos"]
["0766","40","Espinar, El"]
["0772","40","Espirdo"]
["0788","40","Fresneda de Cuéllar"]
["0791","40","Fresno de Cantespino"]
["0805","40","Fresno de la Fuente"]
["0812","40","Frumales"]
["0827","40","Fuente de Santa Cruz"]
["0833","40","Fuente el Olmo de Fuentidueña"]
["0848","40","Fuente el Olmo de Íscar"]
["0864","40","Fuentepelayo"]
["0870","40","Fuentepiñel"]
["0886","40","Fuenterrebollo"]
["0899","40","Fuentesaúco de Fuentidueña"]
["0910","40","Fuentesoto"]
["0925","40","Fuentidueña"]
["0931","40","Gallegos"]
["0946","40","Garcillán"]
["0959","40","Gomezserracín"]
["0978","40","Grajera"]
["0997","40","Honrubia de la Cuesta"]
["1001","40","Hontalbilla"]
["1018","40","Hontanares de Eresma"]
["1039","40","Huertos, Los"]
["1044","40","Ituero y Lama"]
["1057","40","Juarros de Riomoros"]
["1060","40","Juarros de Voltoya"]
["1076","40","Labajos"]
["1082","40","Laguna de Contreras"]
["1095","40","Languilla"]
["1109","40","Lastras de Cuéllar"]
["1116","40","Lastras del Pozo"]
["1121","40","Lastrilla, La"]
["1137","40","Losa, La"]
["1155","40","Maderuelo"]
["9031","40","Marazoleja"]
["1180","40","Marazuela"]
["1193","40","Martín Miguel"]
["1207","40","Martín Muñoz de la Dehesa"]
["1214","40","Martín Muñoz de las Posadas"]
["1229","40","Marugán"]
["1240","40","Mata de Cuéllar"]
["1235","40","Matabuena"]
["1253","40","Matilla, La"]
["1266","40","Melque de Cercos"]
["1272","40","Membibre de la Hoz"]
["1288","40","Migueláñez"]
["1291","40","Montejo de Arévalo"]
["1305","40","Montejo de la Vega de la Serrezuela"]
["1312","40","Monterrubio"]
["1327","40","Moral de Hornuez"]
["1348","40","Mozoncillo"]
["1351","40","Muñopedro"]
["1364","40","Muñoveros"]
["1386","40","Nava de la Asunción"]
["1399","40","Navafría"]
["1403","40","Navalilla"]
["1410","40","Navalmanzano"]
["1425","40","Navares de Ayuso"]
["1431","40","Navares de Enmedio"]
["1446","40","Navares de las Cuevas"]
["1459","40","Navas de Oro"]
["9046","40","Navas de Riofrío"]
["1462","40","Navas de San Antonio"]
["1484","40","Nieva"]
["1497","40","Olombrada"]
["1500","40","Orejana"]
["1517","40","Ortigosa de Pestaño"]
["9010","40","Ortigosa del Monte"]
["1522","40","Otero de Herreros"]
["1543","40","Pajarejos"]
["1556","40","Palazuelos de Eresma"]
["1569","40","Pedraza"]
["1575","40","Pelayos del Arroyo"]
["1581","40","Perosillo"]
["1594","40","Pinarejos"]
["1608","40","Pinarnegrillo"]
["1615","40","Pradales"]
["1620","40","Prádena"]
["1636","40","Puebla de Pedraza"]
["1641","40","Rapariegos"]
["1811","40","Real Sitio de San Ildefonso"]
["1654","40","Rebollo"]
["1667","40","Remondo"]
["1689","40","Riaguas de San Bartolomé"]
["1706","40","Riaza"]
["1713","40","Ribota"]
["1728","40","Riofrío de Riaza"]
["1734","40","Roda de Eresma"]
["1749","40","Sacramenia"]
["1765","40","Samboal"]
["1771","40","San Cristóbal de Cuéllar"]
["1787","40","San Cristóbal de la Vega"]
["9062","40","San Cristóbal de Segovia"]
["1826","40","San Martín y Mudrián"]
["1832","40","San Miguel de Bernuy"]
["1847","40","San Pedro de Gaíllos"]
["1790","40","Sanchonuño"]
["1804","40","Sangarcía"]
["1850","40","Santa María la Real de Nieva"]
["1863","40","Santa Marta del Cerro"]
["1885","40","Santiuste de Pedraza"]
["1898","40","Santiuste de San Juan Bautista"]
["1902","40","Santo Domingo de Pirón"]
["1919","40","Santo Tomé del Puerto"]
["1924","40","Sauquillo de Cabezas"]
["1930","40","Sebúlcor"]
["1945","40","Segovia"]
["1958","40","Sepúlveda"]
["1961","40","Sequera de Fresno"]
["1983","40","Sotillo"]
["1996","40","Sotosalbos"]
["2000","40","Tabanera la Luenga"]
["2017","40","Tolocirio"]
["2069","40","Torre Val de San Pedro"]
["2022","40","Torreadrada"]
["2038","40","Torrecaballeros"]
["2043","40","Torrecilla del Pinar"]
["2056","40","Torreiglesias"]
["2075","40","Trescasas"]
["2081","40","Turégano"]
["2108","40","Urueñas"]
["2115","40","Valdeprados"]
["2120","40","Valdevacas de Montejo"]
["2136","40","Valdevacas y Guijar"]
["2189","40","Valle de Tabladillo"]
["2192","40","Vallelado"]
["2206","40","Valleruela de Pedraza"]
["2213","40","Valleruela de Sepúlveda"]
["2141","40","Valseca"]
["2154","40","Valtiendas"]
["2167","40","Valverde del Majano"]
["2228","40","Veganzones"]
["2234","40","Vegas de Matute"]
["2249","40","Ventosilla y Tejadilla"]
["2252","40","Villacastín"]
["2287","40","Villaverde de Íscar"]
["2290","40","Villaverde de Montejo"]
["2304","40","Villeguillo"]
["2311","40","Yanguas de Eresma"]
["2332","40","Zarzuela del Monte"]
["2347","40","Zarzuela del Pinar"]
["0016",41,"Aguadulce"]
["0021","41","Alanís"]
["0037","41","Albaida del Aljarafe"]
["0042","41","Alcalá de Guadaíra"]
["0055","41","Alcalá del Río"]
["0068","41","Alcolea del Río"]
["0074","41","Algaba, La"]
["0080","41","Algámitas"]
["0093","41","Almadén de la Plata"]
["0107","41","Almensilla"]
["0114","41","Arahal"]
["0129","41","Aznalcázar"]
["0135","41","Aznalcóllar"]
["0140","41","Badolatosa"]
["0153","41","Benacazón"]
["0166","41","Bollullos de la Mitación"]
["0172","41","Bormujos"]
["0188","41","Brenes"]
["0191","41","Burguillos"]
["0205","41","Cabezas de San Juan, Las"]
["0212","41","Camas"]
["0227","41","Campana, La"]
["0233","41","Cantillana"]
["9017","41","Cañada Rosal"]
["0248","41","Carmona"]
["0251","41","Carrión de los Céspedes"]
["0264","41","Casariche"]
["0270","41","Castilblanco de los Arroyos"]
["0286","41","Castilleja de Guzmán"]
["0299","41","Castilleja de la Cuesta"]
["0303","41","Castilleja del Campo"]
["0310","41","Castillo de las Guardas, El"]
["0325","41","Cazalla de la Sierra"]
["0331","41","Constantina"]
["0346","41","Coria del Río"]
["0359","41","Coripe"]
["0362","41","Coronil, El"]
["0378","41","Corrales, Los"]
["9038","41","Cuervo de Sevilla, El"]
["0384","41","Dos Hermanas"]
["0397","41","Écija"]
["0401","41","Espartinas"]
["0418","41","Estepa"]
["0423","41","Fuentes de Andalucía"]
["0439","41","Garrobo, El"]
["0444","41","Gelves"]
["0457","41","Gerena"]
["0460","41","Gilena"]
["0476","41","Gines"]
["0482","41","Guadalcanal"]
["0495","41","Guillena"]
["0508","41","Herrera"]
["0515","41","Huévar del Aljarafe"]
["9022","41","Isla Mayor"]
["0520","41","Lantejuela"]
["0536","41","Lebrija"]
["0541","41","Lora de Estepa"]
["0554","41","Lora del Río"]
["0567","41","Luisiana, La"]
["0573","41","Madroño, El"]
["0589","41","Mairena del Alcor"]
["0592","41","Mairena del Aljarafe"]
["0606","41","Marchena"]
["0613","41","Marinaleda"]
["0628","41","Martín de la Jara"]
["0634","41","Molares, Los"]
["0649","41","Montellano"]
["0652","41","Morón de la Frontera"]
["0665","41","Navas de la Concepción, Las"]
["0671","41","Olivares"]
["0687","41","Osuna"]
["0690","41","Palacios y Villafranca, Los"]
["0704","41","Palomares del Río"]
["0711","41","Paradas"]
["0726","41","Pedrera"]
["0732","41","Pedroso, El"]
["0747","41","Peñaflor"]
["0750","41","Pilas"]
["0763","41","Pruna"]
["0779","41","Puebla de Cazalla, La"]
["0785","41","Puebla de los Infantes, La"]
["0798","41","Puebla del Río, La"]
["0802","41","Real de la Jara, El"]
["0819","41","Rinconada, La"]
["0824","41","Roda de Andalucía, La"]
["0830","41","Ronquillo, El"]
["0845","41","Rubio, El"]
["0858","41","Salteras"]
["0861","41","San Juan de Aznalfarache"]
["0883","41","San Nicolás del Puerto"]
["0877","41","Sanlúcar la Mayor"]
["0896","41","Santiponce"]
["0900","41","Saucejo, El"]
["0917","41","Sevilla"]
["0922","41","Tocina"]
["0938","41","Tomares"]
["0943","41","Umbrete"]
["0956","41","Utrera"]
["0969","41","Valencina de la Concepción"]
["0975","41","Villamanrique de la Condesa"]
["1008","41","Villanueva de San Juan"]
["0981","41","Villanueva del Ariscal"]
["0994","41","Villanueva del Río y Minas"]
["1015","41","Villaverde del Río"]
["1020","41","Viso del Alcor, El"]
["0011",42,"Abejar"]
["0032","42","Adradas"]
["0047","42","Ágreda"]
["0063","42","Alconaba"]
["0079","42","Alcubilla de Avellaneda"]
["0085","42","Alcubilla de las Peñas"]
["0098","42","Aldealafuente"]
["0102","42","Aldealices"]
["0119","42","Aldealpozo"]
["0124","42","Aldealseñor"]
["0130","42","Aldehuela de Periáñez"]
["0145","42","Aldehuelas, Las"]
["0158","42","Alentisque"]
["0161","42","Aliud"]
["0177","42","Almajano"]
["0183","42","Almaluez"]
["0196","42","Almarza"]
["0200","42","Almazán"]
["0217","42","Almazul"]
["0222","42","Almenar de Soria"]
["0238","42","Alpanseque"]
["0243","42","Arancón"]
["0256","42","Arcos de Jalón"]
["0269","42","Arenillas"]
["0275","42","Arévalo de la Sierra"]
["0281","42","Ausejo de la Sierra"]
["0294","42","Baraona"]
["0308","42","Barca"]
["0315","42","Barcones"]
["0320","42","Bayubas de Abajo"]
["0336","42","Bayubas de Arriba"]
["0341","42","Beratón"]
["0354","42","Berlanga de Duero"]
["0367","42","Blacos"]
["0373","42","Bliecos"]
["0389","42","Borjabad"]
["0392","42","Borobia"]
["0413","42","Buberos"]
["0428","42","Buitrago"]
["0434","42","Burgo de Osma-Ciudad de Osma"]
["0449","42","Cabrejas del Campo"]
["0452","42","Cabrejas del Pinar"]
["0465","42","Calatañazor"]
["0487","42","Caltojar"]
["0490","42","Candilichera"]
["0503","42","Cañamaque"]
["0510","42","Carabantes"]
["0525","42","Caracena"]
["0531","42","Carrascosa de Abajo"]
["0546","42","Carrascosa de la Sierra"]
["0559","42","Casarejos"]
["0562","42","Castilfrío de la Sierra"]
["0584","42","Castillejo de Robledo"]
["0578","42","Castilruiz"]
["0597","42","Centenera de Andaluz"]
["0601","42","Cerbón"]
["0618","42","Cidones"]
["0623","42","Cigudosa"]
["0639","42","Cihuela"]
["0644","42","Ciria"]
["0657","42","Cirujales del Río"]
["0682","42","Coscurita"]
["0695","42","Covaleda"]
["0709","42","Cubilla"]
["0716","42","Cubo de la Solana"]
["0737","42","Cueva de Ágreda"]
["0755","42","Dévanos"]
["0768","42","Deza"]
["0780","42","Duruelo de la Sierra"]
["0793","42","Escobosa de Almazán"]
["0807","42","Espeja de San Marcelino"]
["0814","42","Espejón"]
["0829","42","Estepa de San Juan"]
["0835","42","Frechilla de Almazán"]
["0840","42","Fresno de Caracena"]
["0853","42","Fuentearmegil"]
["0866","42","Fuentecambrón"]
["0872","42","Fuentecantos"]
["0888","42","Fuentelmonge"]
["0891","42","Fuentelsaz de Soria"]
["0905","42","Fuentepinilla"]
["0927","42","Fuentes de Magaña"]
["0933","42","Fuentestrún"]
["0948","42","Garray"]
["0951","42","Golmayo"]
["0964","42","Gómara"]
["0970","42","Gormaz"]
["0986","42","Herrera de Soria"]
["1003","42","Hinojosa del Campo"]
["1031","42","Langa de Duero"]
["1059","42","Liceras"]
["1062","42","Losilla, La"]
["1078","42","Magaña"]
["1084","42","Maján"]
["1101","42","Matalebreras"]
["1118","42","Matamala de Almazán"]
["1139","42","Medinaceli"]
["1157","42","Miño de Medinaceli"]
["1160","42","Miño de San Esteban"]
["1176","42","Molinos de Duero"]
["1182","42","Momblona"]
["1195","42","Monteagudo de las Vicarías"]
["1209","42","Montejo de Tiermes"]
["1216","42","Montenegro de Cameros"]
["1237","42","Morón de Almazán"]
["1242","42","Muriel de la Fuente"]
["1255","42","Muriel Viejo"]
["1274","42","Nafría de Ucero"]
["1280","42","Narros"]
["1293","42","Navaleno"]
["1307","42","Nepas"]
["1314","42","Nolay"]
["1329","42","Noviercas"]
["1340","42","Ólvega"]
["1353","42","Oncala"]
["1391","42","Pinilla del Campo"]
["1405","42","Portillo de Soria"]
["1412","42","Póveda de Soria, La"]
["1427","42","Pozalmuro"]
["1448","42","Quintana Redonda"]
["1451","42","Quintanas de Gormaz"]
["1486","42","Quiñonería"]
["1499","42","Rábanos, Los"]
["1519","42","Rebollar"]
["1524","42","Recuerda"]
["1530","42","Rello"]
["1545","42","Renieblas"]
["1558","42","Retortillo de Soria"]
["1561","42","Reznos"]
["1577","42","Riba de Escalote, La"]
["1583","42","Rioseco de Soria"]
["1596","42","Rollamienta"]
["1600","42","Royo, El"]
["1617","42","Salduero"]
["1622","42","San Esteban de Gormaz"]
["1638","42","San Felices"]
["1643","42","San Leonardo de Yagüe"]
["1656","42","San Pedro Manrique"]
["1669","42","Santa Cruz de Yanguas"]
["1675","42","Santa María de Huerta"]
["1681","42","Santa María de las Hoyas"]
["1715","42","Serón de Nágima"]
["1720","42","Soliedra"]
["1736","42","Soria"]
["1741","42","Sotillo del Rincón"]
["1754","42","Suellacabras"]
["1767","42","Tajahuerce"]
["1773","42","Tajueco"]
["1789","42","Talveila"]
["1813","42","Tardelcuende"]
["1828","42","Taroda"]
["1834","42","Tejado"]
["1849","42","Torlengua"]
["1852","42","Torreblacos"]
["1871","42","Torrubia de Soria"]
["1887","42","Trévago"]
["1890","42","Ucero"]
["1904","42","Vadillo"]
["1911","42","Valdeavellano de Tera"]
["1926","42","Valdegeña"]
["1932","42","Valdelagua del Cerro"]
["1947","42","Valdemaluque"]
["1950","42","Valdenebro"]
["1963","42","Valdeprado"]
["1979","42","Valderrodilla"]
["1985","42","Valtajeros"]
["2002","42","Velamazán"]
["2019","42","Velilla de la Sierra"]
["2024","42","Velilla de los Ajos"]
["2045","42","Viana de Duero"]
["2058","42","Villaciervos"]
["2061","42","Villanueva de Gormaz"]
["2077","42","Villar del Ala"]
["2083","42","Villar del Campo"]
["2096","42","Villar del Río"]
["2117","42","Villares de Soria, Los"]
["2122","42","Villasayas"]
["2138","42","Villaseca de Arciel"]
["2156","42","Vinuesa"]
["2169","42","Vizmanos"]
["2175","42","Vozmediano"]
["2181","42","Yanguas"]
["2194","42","Yelo"]
["0017",43,"Aiguamúrcia"]
["0022","43","Albinyana"]
["0038","43","Albiol, L'"]
["0043","43","Alcanar"]
["0056","43","Alcover"]
["9044","43","Aldea, L'"]
["0069","43","Aldover"]
["0075","43","Aleixar, L'"]
["0081","43","Alfara de Carles"]
["0094","43","Alforja"]
["0108","43","Alió"]
["0115","43","Almoster"]
["0120","43","Altafulla"]
["0136","43","Ametlla de Mar, L'"]
["9060","43","Ampolla, L'"]
["0141","43","Amposta"]
["0167","43","Arboç, L'"]
["0154","43","Arbolí"]
["0173","43","Argentera, L'"]
["0189","43","Arnes"]
["0192","43","Ascó"]
["0206","43","Banyeres del Penedès"]
["0213","43","Barberà de la Conca"]
["0228","43","Batea"]
["0234","43","Bellmunt del Priorat"]
["0249","43","Bellvei"]
["0252","43","Benifallet"]
["0265","43","Benissanet"]
["0271","43","Bisbal de Falset, La"]
["0287","43","Bisbal del Penedès, La"]
["0290","43","Blancafort"]
["0304","43","Bonastre"]
["0311","43","Borges del Camp, Les"]
["0326","43","Bot"]
["0332","43","Botarell"]
["0347","43","Bràfim"]
["0350","43","Cabacés"]
["0363","43","Cabra del Camp"]
["0379","43","Calafell"]
["9039","43","Camarles"]
["0385","43","Cambrils"]
["9076","43","Canonja, La"]
["0398","43","Capafonts"]
["0402","43","Capçanes"]
["0419","43","Caseres"]
["0424","43","Castellvell del Camp"]
["0430","43","Catllar, El"]
["0458","43","Colldejou"]
["0461","43","Conesa"]
["0477","43","Constantí"]
["0483","43","Corbera d'Ebre"]
["0496","43","Cornudella de Montsant"]
["0509","43","Creixell"]
["0516","43","Cunit"]
["9018","43","Deltebre"]
["0537","43","Duesaigües"]
["0542","43","Espluga de Francolí, L'"]
["0555","43","Falset"]
["0568","43","Fatarella, La"]
["0574","43","Febró, La"]
["0580","43","Figuera, La"]
["0593","43","Figuerola del Camp"]
["0607","43","Flix"]
["0614","43","Forès"]
["0629","43","Freginals"]
["0635","43","Galera, La"]
["0640","43","Gandesa"]
["0653","43","Garcia"]
["0666","43","Garidells, Els"]
["0672","43","Ginestar"]
["0688","43","Godall"]
["0691","43","Gratallops"]
["0705","43","Guiamets, Els"]
["0712","43","Horta de Sant Joan"]
["0727","43","Lloar, El"]
["0733","43","Llorac"]
["0748","43","Llorenç del Penedès"]
["0764","43","Marçà"]
["0751","43","Margalef"]
["0770","43","Mas de Barberans"]
["0786","43","Masdenverge"]
["0799","43","Masllorenç"]
["0803","43","Masó, La"]
["0810","43","Maspujols"]
["0825","43","Masroig, El"]
["0831","43","Milà, El"]
["0846","43","Miravet"]
["0859","43","Molar, El"]
["0862","43","Montblanc"]
["0884","43","Montbrió del Camp"]
["0897","43","Montferri"]
["0901","43","Montmell, El"]
["0918","43","Mont-ral"]
["0923","43","Mont-roig del Camp"]
["0939","43","Móra d'Ebre"]
["0944","43","Móra la Nova"]
["0957","43","Morell, El"]
["0960","43","Morera de Montsant, La"]
["0976","43","Nou de Gaià, La"]
["0982","43","Nulles"]
["1009","43","Pallaresos, Els"]
["0995","43","Palma d'Ebre, La"]
["1016","43","Passanant i Belltall"]
["1021","43","Paüls"]
["1037","43","Perafort"]
["1042","43","Perelló, El"]
["1055","43","Piles, Les"]
["1068","43","Pinell de Brai, El"]
["1074","43","Pira"]
["1080","43","Pla de Santa Maria, El"]
["1093","43","Pobla de Mafumet, La"]
["1107","43","Pobla de Massaluca, La"]
["1114","43","Pobla de Montornès, La"]
["1129","43","Poboleda"]
["1135","43","Pont d'Armentera, El"]
["1418","43","Pontils"]
["1140","43","Porrera"]
["1153","43","Pradell de la Teixeta"]
["1166","43","Prades"]
["1172","43","Prat de Comte"]
["1188","43","Pratdip"]
["1191","43","Puigpelat"]
["1205","43","Querol"]
["1212","43","Rasquera"]
["1227","43","Renau"]
["1233","43","Reus"]
["1248","43","Riba, La"]
["1251","43","Riba-roja d'Ebre"]
["1264","43","Riera de Gaià, La"]
["1270","43","Riudecanyes"]
["1286","43","Riudecols"]
["1299","43","Riudoms"]
["1303","43","Rocafort de Queralt"]
["1310","43","Roda de Berà"]
["1325","43","Rodonyà"]
["1331","43","Roquetes"]
["1346","43","Rourell, El"]
["1359","43","Salomó"]
["9057","43","Salou"]
["1362","43","Sant Carles de la Ràpita"]
["1378","43","Sant Jaume dels Domenys"]
["9023","43","Sant Jaume d'Enveja"]
["1384","43","Santa Bàrbara"]
["1397","43","Santa Coloma de Queralt"]
["1401","43","Santa Oliva"]
["1423","43","Sarral"]
["1439","43","Savallà del Comtat"]
["1444","43","Secuita, La"]
["1457","43","Selva del Camp, La"]
["1460","43","Senan"]
["0445","43","Sénia, La"]
["1476","43","Solivella"]
["1482","43","Tarragona"]
["1495","43","Tivenys"]
["1508","43","Tivissa"]
["1515","43","Torre de Fontaubella, La"]
["1520","43","Torre de l'Espanyol, La"]
["1536","43","Torredembarra"]
["1541","43","Torroja del Priorat"]
["1554","43","Tortosa"]
["1567","43","Ulldecona"]
["1573","43","Ulldemolins"]
["1589","43","Vallclara"]
["1592","43","Vallfogona de Riucorb"]
["1606","43","Vallmoll"]
["1613","43","Valls"]
["1628","43","Vandellòs i l'Hospitalet de l'Infant"]
["1634","43","Vendrell, El"]
["1649","43","Vespella de Gaià"]
["1652","43","Vilabella"]
["1750","43","Vilalba dels Arcs"]
["1665","43","Vilallonga del Camp"]
["1687","43","Vilanova de Prades"]
["1671","43","Vilanova d'Escornalbou"]
["1690","43","Vilaplana"]
["1704","43","Vila-rodona"]
["1711","43","Vila-seca"]
["1726","43","Vilaverd"]
["1732","43","Vilella Alta, La"]
["1747","43","Vilella Baixa, La"]
["1763","43","Vimbodí i Poblet"]
["1779","43","Vinebre"]
["1785","43","Vinyols i els Arcs"]
["0521","43","Xerta"]
["0012",44,"Ababuj"]
["0027","44","Abejuela"]
["0033","44","Aguatón"]
["0048","44","Aguaviva"]
["0051","44","Aguilar del Alfambra"]
["0064","44","Alacón"]
["0070","44","Alba"]
["0086","44","Albalate del Arzobispo"]
["0099","44","Albarracín"]
["0103","44","Albentosa"]
["0110","44","Alcaine"]
["0125","44","Alcalá de la Selva"]
["0131","44","Alcañiz"]
["0146","44","Alcorisa"]
["0162","44","Alfambra"]
["0178","44","Aliaga"]
["0218","44","Allepuz"]
["0223","44","Alloza"]
["0239","44","Allueva"]
["0184","44","Almohaja"]
["0197","44","Alobras"]
["0201","44","Alpeñés"]
["0244","44","Anadón"]
["0257","44","Andorra"]
["0260","44","Arcos de las Salinas"]
["0276","44","Arens de Lledó"]
["0282","44","Argente"]
["0295","44","Ariño"]
["0316","44","Azaila"]
["0321","44","Bádenas"]
["0337","44","Báguena"]
["0342","44","Bañón"]
["0355","44","Barrachina"]
["0368","44","Bea"]
["0374","44","Beceite"]
["0393","44","Bello"]
["0380","44","Belmonte de San José"]
["0407","44","Berge"]
["0414","44","Bezas"]
["0429","44","Blancas"]
["0435","44","Blesa"]
["0440","44","Bordón"]
["0453","44","Bronchales"]
["0466","44","Bueña"]
["0472","44","Burbáguena"]
["0488","44","Cabra de Mora"]
["0491","44","Calaceite"]
["0504","44","Calamocha"]
["0511","44","Calanda"]
["0526","44","Calomarde"]
["0532","44","Camañas"]
["0547","44","Camarena de la Sierra"]
["0550","44","Camarillas"]
["0563","44","Caminreal"]
["0598","44","Cantavieja"]
["0602","44","Cañada de Benatanduz"]
["0619","44","Cañada de Verich, La"]
["0624","44","Cañada Vellida"]
["0630","44","Cañizar del Olivar"]
["0645","44","Cascante del Río"]
["0658","44","Castejón de Tornos"]
["0661","44","Castel de Cabra"]
["0700","44","Castellar, El"]
["0717","44","Castellote"]
["0677","44","Castelnou"]
["0683","44","Castelserás"]
["0743","44","Cedrillas"]
["0756","44","Celadas"]
["0769","44","Cella"]
["0775","44","Cerollera, La"]
["0808","44","Codoñera, La"]
["0820","44","Corbalán"]
["0841","44","Cortes de Aragón"]
["0854","44","Cosa"]
["0867","44","Cretas"]
["0873","44","Crivillén"]
["0889","44","Cuba, La"]
["0892","44","Cubla"]
["0906","44","Cucalón"]
["0928","44","Cuervo, El"]
["0934","44","Cuevas de Almudén"]
["0949","44","Cuevas Labradas"]
["0965","44","Ejulve"]
["0971","44","Escorihuela"]
["0990","44","Escucha"]
["1004","44","Estercuel"]
["1011","44","Ferreruela de Huerva"]
["1026","44","Fonfría"]
["1032","44","Formiche Alto"]
["1050","44","Fórnoles"]
["1063","44","Fortanete"]
["1079","44","Foz-Calanda"]
["1085","44","Fresneda, La"]
["1098","44","Frías de Albarracín"]
["1102","44","Fuenferrada"]
["1119","44","Fuentes Calientes"]
["1124","44","Fuentes Claras"]
["1130","44","Fuentes de Rubielos"]
["1145","44","Fuentespalda"]
["1158","44","Galve"]
["1161","44","Gargallo"]
["1177","44","Gea de Albarracín"]
["1183","44","Ginebrosa, La"]
["1196","44","Griegos"]
["1200","44","Guadalaviar"]
["1217","44","Gúdar"]
["1222","44","Híjar"]
["1238","44","Hinojosa de Jarque"]
["1243","44","Hoz de la Vieja, La"]
["1256","44","Huesa del Común"]
["1269","44","Iglesuela del Cid, La"]
["1275","44","Jabaloyas"]
["1281","44","Jarque de la Val"]
["1294","44","Jatiel"]
["1308","44","Jorcas"]
["1315","44","Josa"]
["1320","44","Lagueruela"]
["1336","44","Lanzuela"]
["1354","44","Libros"]
["1367","44","Lidón"]
["1373","44","Linares de Mora"]
["1413","44","Lledó"]
["1389","44","Loscos"]
["1428","44","Maicas"]
["1434","44","Manzanera"]
["1449","44","Martín del Río"]
["1452","44","Mas de las Matas"]
["1465","44","Mata de los Olmos, La"]
["1471","44","Mazaleón"]
["1487","44","Mezquita de Jarque"]
["1490","44","Mirambel"]
["1503","44","Miravete de la Sierra"]
["1510","44","Molinos"]
["1525","44","Monforte de Moyuela"]
["1531","44","Monreal del Campo"]
["1546","44","Monroyo"]
["1559","44","Montalbán"]
["1562","44","Monteagudo del Castillo"]
["1578","44","Monterde de Albarracín"]
["1584","44","Mora de Rubielos"]
["1597","44","Moscardón"]
["1601","44","Mosqueruela"]
["1618","44","Muniesa"]
["1639","44","Noguera de Albarracín"]
["1644","44","Nogueras"]
["1657","44","Nogueruelas"]
["1676","44","Obón"]
["1682","44","Odón"]
["1695","44","Ojos Negros"]
["1716","44","Olba"]
["1721","44","Oliete"]
["1737","44","Olmos, Los"]
["1742","44","Orihuela del Tremedal"]
["1755","44","Orrios"]
["1768","44","Palomar de Arroyos"]
["1774","44","Pancrudo"]
["1780","44","Parras de Castellote, Las"]
["1793","44","Peñarroya de Tastavins"]
["1807","44","Peracense"]
["1814","44","Peralejos"]
["1829","44","Perales del Alfambra"]
["1835","44","Pitarque"]
["1840","44","Plou"]
["1853","44","Pobo, El"]
["1872","44","Portellada, La"]
["1891","44","Pozondón"]
["1905","44","Pozuel del Campo"]
["1912","44","Puebla de Híjar, La"]
["1927","44","Puebla de Valverde, La"]
["1933","44","Puertomingalvo"]
["1948","44","Ráfales"]
["1951","44","Rillo"]
["1964","44","Riodeva"]
["1970","44","Ródenas"]
["1986","44","Royuela"]
["1999","44","Rubiales"]
["2003","44","Rubielos de la Cérida"]
["2010","44","Rubielos de Mora"]
["2031","44","Salcedillo"]
["2046","44","Saldón"]
["2059","44","Samper de Calanda"]
["2062","44","San Agustín"]
["2078","44","San Martín del Río"]
["2084","44","Santa Cruz de Nogueras"]
["2097","44","Santa Eulalia"]
["2101","44","Sarrión"]
["2118","44","Segura de los Baños"]
["2123","44","Seno"]
["2139","44","Singra"]
["2157","44","Terriente"]
["2160","44","Teruel"]
["2176","44","Toril y Masegoso"]
["2182","44","Tormón"]
["2195","44","Tornos"]
["2209","44","Torralba de los Sisones"]
["2237","44","Torre de Arcas"]
["2242","44","Torre de las Arcas"]
["2255","44","Torre del Compte"]
["2274","44","Torre los Negros"]
["2216","44","Torrecilla de Alcañiz"]
["2221","44","Torrecilla del Rebollar"]
["2268","44","Torrelacárcel"]
["2280","44","Torremocha de Jiloca"]
["2293","44","Torres de Albarracín"]
["2307","44","Torrevelilla"]
["2314","44","Torrijas"]
["2329","44","Torrijo del Campo"]
["2340","44","Tramacastiel"]
["2353","44","Tramacastilla"]
["2366","44","Tronchón"]
["2372","44","Urrea de Gaén"]
["2388","44","Utrillas"]
["2391","44","Valacloche"]
["2405","44","Valbona"]
["2412","44","Valdealgorfa"]
["2433","44","Valdecuenca"]
["2448","44","Valdelinares"]
["2451","44","Valdeltormo"]
["2464","44","Valderrobres"]
["2470","44","Valjunquera"]
["2499","44","Vallecillo, El"]
["2502","44","Veguillas de la Sierra"]
["2519","44","Villafranca del Campo"]
["2524","44","Villahermosa del Campo"]
["2561","44","Villanueva del Rebollar de la Sierra"]
["2577","44","Villar del Cobo"]
["2583","44","Villar del Salz"]
["2600","44","Villarluengo"]
["2617","44","Villarquemado"]
["2622","44","Villarroya de los Pinares"]
["2638","44","Villastar"]
["2643","44","Villel"]
["2656","44","Vinaceite"]
["2669","44","Visiedo"]
["2675","44","Vivel del Río Martín"]
["2681","44","Zoma, La"]
["0015",45,"Ajofrín"]
["0020","45","Alameda de la Sagra"]
["0036","45","Albarreal de Tajo"]
["0041","45","Alcabón"]
["0054","45","Alcañizo"]
["0067","45","Alcaudete de la Jara"]
["0073","45","Alcolea de Tajo"]
["0089","45","Aldea en Cabo"]
["0092","45","Aldeanueva de Barbarroya"]
["0106","45","Aldeanueva de San Bartolomé"]
["0113","45","Almendral de la Cañada"]
["0128","45","Almonacid de Toledo"]
["0134","45","Almorox"]
["0149","45","Añover de Tajo"]
["0152","45","Arcicóllar"]
["0165","45","Argés"]
["0171","45","Azután"]
["0187","45","Barcience"]
["0190","45","Bargas"]
["0204","45","Belvís de la Jara"]
["0211","45","Borox"]
["0226","45","Buenaventura"]
["0232","45","Burguillos de Toledo"]
["0247","45","Burujón"]
["0250","45","Cabañas de la Sagra"]
["0263","45","Cabañas de Yepes"]
["0279","45","Cabezamesada"]
["0285","45","Calera y Chozas"]
["0298","45","Caleruela"]
["0302","45","Calzada de Oropesa"]
["0319","45","Camarena"]
["0324","45","Camarenilla"]
["0330","45","Campillo de la Jara, El"]
["0345","45","Camuñas"]
["0358","45","Cardiel de los Montes"]
["0361","45","Carmena"]
["0377","45","Carpio de Tajo, El"]
["0383","45","Carranque"]
["0396","45","Carriches"]
["0400","45","Casar de Escalona, El"]
["0417","45","Casarrubios del Monte"]
["0422","45","Casasbuenas"]
["0438","45","Castillo de Bayuela"]
["0456","45","Cazalegas"]
["0469","45","Cebolla"]
["0475","45","Cedillo del Condado"]
["0481","45","Cerralbos, Los"]
["0494","45","Cervera de los Montes"]
["0566","45","Chozas de Canales"]
["0572","45","Chueca"]
["0507","45","Ciruelos"]
["0514","45","Cobeja"]
["0529","45","Cobisa"]
["0535","45","Consuegra"]
["0540","45","Corral de Almaguer"]
["0553","45","Cuerva"]
["0588","45","Domingo Pérez"]
["0591","45","Dosbarrios"]
["0605","45","Erustes"]
["0612","45","Escalona"]
["0627","45","Escalonilla"]
["0633","45","Espinoso del Rey"]
["0648","45","Esquivias"]
["0651","45","Estrella, La"]
["0664","45","Fuensalida"]
["0670","45","Gálvez"]
["0686","45","Garciotum"]
["0699","45","Gerindote"]
["0703","45","Guadamur"]
["0710","45","Guardia, La"]
["0725","45","Herencias, Las"]
["0731","45","Herreruela de Oropesa"]
["0746","45","Hinojosa de San Vicente"]
["0759","45","Hontanar"]
["0762","45","Hormigos"]
["0778","45","Huecas"]
["0784","45","Huerta de Valdecarábanos"]
["0797","45","Iglesuela, La"]
["0801","45","Illán de Vacas"]
["0818","45","Illescas"]
["0823","45","Lagartera"]
["0839","45","Layos"]
["0844","45","Lillo"]
["0857","45","Lominchar"]
["0860","45","Lucillos"]
["0876","45","Madridejos"]
["0882","45","Magán"]
["0895","45","Malpica de Tajo"]
["0909","45","Manzaneque"]
["0916","45","Maqueda"]
["0921","45","Marjaliza"]
["0937","45","Marrupe"]
["0942","45","Mascaraque"]
["0955","45","Mata, La"]
["0968","45","Mazarambroz"]
["0974","45","Mejorada"]
["0980","45","Menasalbas"]
["0993","45","Méntrida"]
["1007","45","Mesegar de Tajo"]
["1014","45","Miguel Esteban"]
["1029","45","Mocejón"]
["1035","45","Mohedas de la Jara"]
["1040","45","Montearagón"]
["1053","45","Montesclaros"]
["1066","45","Mora"]
["1072","45","Nambroca"]
["1088","45","Nava de Ricomalillo, La"]
["1091","45","Navahermosa"]
["1105","45","Navalcán"]
["1112","45","Navalmoralejo"]
["1127","45","Navalmorales, Los"]
["1133","45","Navalucillos, Los"]
["1148","45","Navamorcuende"]
["1151","45","Noblejas"]
["1164","45","Noez"]
["1170","45","Nombela"]
["1186","45","Novés"]
["1199","45","Numancia de la Sagra"]
["1203","45","Nuño Gómez"]
["1210","45","Ocaña"]
["1225","45","Olías del Rey"]
["1231","45","Ontígola"]
["1246","45","Orgaz"]
["1259","45","Oropesa"]
["1262","45","Otero"]
["1278","45","Palomeque"]
["1284","45","Pantoja"]
["1297","45","Paredes de Escalona"]
["1301","45","Parrillas"]
["1318","45","Pelahustán"]
["1323","45","Pepino"]
["1339","45","Polán"]
["1344","45","Portillo de Toledo"]
["1357","45","Puebla de Almoradiel, La"]
["1360","45","Puebla de Montalbán, La"]
["1376","45","Pueblanueva, La"]
["1382","45","Puente del Arzobispo, El"]
["1395","45","Puerto de San Vicente"]
["1409","45","Pulgar"]
["1416","45","Quero"]
["1421","45","Quintanar de la Orden"]
["1437","45","Quismondo"]
["1442","45","Real de San Vicente, El"]
["1455","45","Recas"]
["1468","45","Retamoso de la Jara"]
["1474","45","Rielves"]
["1480","45","Robledo del Mazo"]
["1493","45","Romeral, El"]
["1506","45","San Bartolomé de las Abiertas"]
["1513","45","San Martín de Montalbán"]
["1528","45","San Martín de Pusa"]
["1534","45","San Pablo de los Montes"]
["1549","45","San Román de los Montes"]
["1552","45","Santa Ana de Pusa"]
["1565","45","Santa Cruz de la Zarza"]
["1571","45","Santa Cruz del Retamar"]
["1587","45","Santa Olalla"]
["9016","45","Santo Domingo-Caudilla"]
["1590","45","Sartajada"]
["1604","45","Segurilla"]
["1611","45","Seseña"]
["1626","45","Sevilleja de la Jara"]
["1632","45","Sonseca"]
["1647","45","Sotillo de las Palomas"]
["1650","45","Talavera de la Reina"]
["1663","45","Tembleque"]
["1679","45","Toboso, El"]
["1685","45","Toledo"]
["1698","45","Torralba de Oropesa"]
["1719","45","Torre de Esteban Hambrán, La"]
["1702","45","Torrecilla de la Jara"]
["1724","45","Torrico"]
["1730","45","Torrijos"]
["1745","45","Totanés"]
["1758","45","Turleque"]
["1761","45","Ugena"]
["1777","45","Urda"]
["1796","45","Valdeverdeja"]
["1800","45","Valmojado"]
["1817","45","Velada"]
["1822","45","Ventas con Peña Aguilera, Las"]
["1838","45","Ventas de Retamosa, Las"]
["1843","45","Ventas de San Julián, Las"]
["1869","45","Villa de Don Fadrique, La"]
["1856","45","Villacañas"]
["1875","45","Villafranca de los Caballeros"]
["1881","45","Villaluenga de la Sagra"]
["1894","45","Villamiel de Toledo"]
["1908","45","Villaminaya"]
["1915","45","Villamuelas"]
["1920","45","Villanueva de Alcardete"]
["1936","45","Villanueva de Bogas"]
["1941","45","Villarejo de Montalbán"]
["1954","45","Villarrubia de Santiago"]
["1967","45","Villaseca de la Sagra"]
["1973","45","Villasequilla"]
["1989","45","Villatobas"]
["1992","45","Viso de San Juan, El"]
["2006","45","Yébenes, Los"]
["2013","45","Yeles"]
["2028","45","Yepes"]
["2034","45","Yuncler"]
["2049","45","Yunclillos"]
["2052","45","Yuncos"]
["0018",46,"Ademuz"]
["0023","46","Ador"]
["0044","46","Agullent"]
["0425","46","Aielo de Malferit"]
["0431","46","Aielo de Rugat"]
["0057","46","Alaquàs"]
["0060","46","Albaida"]
["0076","46","Albal"]
["0082","46","Albalat de la Ribera"]
["0095","46","Albalat dels Sorells"]
["0109","46","Albalat dels Tarongers"]
["0116","46","Alberic"]
["0121","46","Alborache"]
["0137","46","Alboraya"]
["0142","46","Albuixech"]
["0168","46","Alcàntera de Xúquer"]
["0155","46","Alcàsser"]
["0180","46","Alcublas"]
["0207","46","Alcúdia de Crespins, l'"]
["0193","46","Alcúdia, l'"]
["0214","46","Aldaia"]
["0229","46","Alfafar"]
["0240","46","Alfara de la Baronia"]
["0253","46","Alfara del Patriarca"]
["0266","46","Alfarp"]
["0272","46","Alfarrasí"]
["0235","46","Alfauir"]
["0288","46","Algar de Palancia"]
["0291","46","Algemesí"]
["0305","46","Algimia de Alfara"]
["0312","46","Alginet"]
["0327","46","Almàssera"]
["0333","46","Almiserà"]
["0348","46","Almoines"]
["0351","46","Almussafes"]
["0364","46","Alpuente"]
["0370","46","Alqueria de la Comtessa, l'"]
["0174","46","Alzira"]
["0386","46","Andilla"]
["0399","46","Anna"]
["0403","46","Antella"]
["0410","46","Aras de los Olmos"]
["0039","46","Atzeneta d'Albaida"]
["0446","46","Ayora"]
["0462","46","Barx"]
["0459","46","Barxeta"]
["0478","46","Bèlgida"]
["0484","46","Bellreguard"]
["0497","46","Bellús"]
["0500","46","Benagéber"]
["0517","46","Benaguasil"]
["0522","46","Benavites"]
["0538","46","Beneixida"]
["0543","46","Benetússer"]
["0556","46","Beniarjó"]
["0569","46","Beniatjar"]
["0575","46","Benicolet"]
["9045","46","Benicull de Xúquer"]
["0608","46","Benifaió"]
["0594","46","Benifairó de la Valldigna"]
["0581","46","Benifairó de les Valls"]
["0615","46","Beniflá"]
["0620","46","Benigànim"]
["0636","46","Benimodo"]
["0641","46","Benimuslem"]
["0654","46","Beniparrell"]
["0667","46","Benirredrà"]
["0673","46","Benisanó"]
["0689","46","Benissoda"]
["0692","46","Benisuera"]
["0706","46","Bétera"]
["0713","46","Bicorp"]
["0728","46","Bocairent"]
["0734","46","Bolbaite"]
["0749","46","Bonrepòs i Mirambell"]
["0752","46","Bufali"]
["0765","46","Bugarra"]
["0771","46","Buñol"]
["0787","46","Burjassot"]
["0790","46","Calles"]
["0804","46","Camporrobles"]
["0811","46","Canals"]
["0826","46","Canet d'En Berenguer"]
["0832","46","Carcaixent"]
["0847","46","Càrcer"]
["0850","46","Carlet"]
["0863","46","Carrícola"]
["0879","46","Casas Altas"]
["0885","46","Casas Bajas"]
["0898","46","Casinos"]
["0902","46","Castelló de Rugat"]
["0919","46","Castellonet de la Conquesta"]
["0924","46","Castielfabib"]
["0930","46","Catadau"]
["0945","46","Catarroja"]
["0958","46","Caudete de las Fuentes"]
["0961","46","Cerdà"]
["1075","46","Chella"]
["1069","46","Chelva"]
["1081","46","Chera"]
["1094","46","Cheste"]
["1115","46","Chiva"]
["1120","46","Chulilla"]
["0977","46","Cofrentes"]
["0983","46","Corbera"]
["0996","46","Cortes de Pallás"]
["1000","46","Cotes"]
["1056","46","Cullera"]
["1136","46","Daimús"]
["1141","46","Domeño"]
["1154","46","Dos Aguas"]
["1167","46","Eliana, l'"]
["1173","46","Emperador"]
["1189","46","Enguera"]
["1192","46","Ènova, l'"]
["1206","46","Estivella"]
["1213","46","Estubeny"]
["1228","46","Faura"]
["1234","46","Favara"]
["1265","46","Foios"]
["1287","46","Font de la Figuera, la"]
["1271","46","Font d'En Carròs, la"]
["1249","46","Fontanars dels Alforins"]
["1252","46","Fortaleny"]
["1290","46","Fuenterrobles"]
["1311","46","Gandia"]
["9024","46","Gátova"]
["1304","46","Gavarda"]
["1326","46","Genovés"]
["1332","46","Gestalgar"]
["1347","46","Gilet"]
["1350","46","Godella"]
["1363","46","Godelleta"]
["1379","46","Granja de la Costera, la"]
["1385","46","Guadasséquies"]
["1398","46","Guadassuar"]
["1402","46","Guardamar de la Safor"]
["1419","46","Higueruelas"]
["1424","46","Jalance"]
["1445","46","Jarafuel"]
["1542","46","Llanera de Ranes"]
["1555","46","Llaurí"]
["1477","46","Llíria"]
["1521","46","Llocnou de la Corona"]
["1537","46","Llocnou de Sant Jeroni"]
["1516","46","Llocnou d'En Fenollet"]
["1568","46","Llombai"]
["1574","46","Llosa de Ranes, la"]
["1509","46","Llutxent"]
["1483","46","Loriguilla"]
["1496","46","Losa del Obispo"]
["1580","46","Macastre"]
["1593","46","Manises"]
["1607","46","Manuel"]
["1614","46","Marines"]
["1629","46","Massalavés"]
["1635","46","Massalfassar"]
["1640","46","Massamagrell"]
["1653","46","Massanassa"]
["1666","46","Meliana"]
["1672","46","Millares"]
["1688","46","Miramar"]
["1691","46","Mislata"]
["1705","46","Mogente/Moixent"]
["1712","46","Moncada"]
["1733","46","Montaverner"]
["1748","46","Montesa"]
["1751","46","Montitxelvo/Montichelvo"]
["1764","46","Montroi/Montroy"]
["1727","46","Montserrat"]
["1770","46","Museros"]
["1786","46","Náquera"]
["1799","46","Navarrés"]
["1803","46","Novelé/Novetlè"]
["1810","46","Oliva"]
["1831","46","Olleria, l'"]
["1825","46","Olocau"]
["1846","46","Ontinyent"]
["1859","46","Otos"]
["1862","46","Paiporta"]
["1878","46","Palma de Gandía"]
["1884","46","Palmera"]
["1897","46","Palomar, el"]
["1901","46","Paterna"]
["1918","46","Pedralba"]
["1923","46","Petrés"]
["1939","46","Picanya"]
["1944","46","Picassent"]
["1957","46","Piles"]
["1960","46","Pinet"]
["1995","46","Pobla de Farnals, la"]
["2021","46","Pobla de Vallbona, la"]
["2009","46","Pobla del Duc, la"]
["2037","46","Pobla Llarga, la"]
["1976","46","Polinyà de Xúquer"]
["1982","46","Potries"]
["2055","46","Puçol"]
["2016","46","Puebla de San Miguel"]
["2042","46","Puig de Santa Maria, el"]
["1017","46","Quart de les Valls"]
["1022","46","Quart de Poblet"]
["1038","46","Quartell"]
["1043","46","Quatretonda"]
["2068","46","Quesa"]
["2074","46","Rafelbunyol"]
["2080","46","Rafelcofer"]
["2093","46","Rafelguaraf"]
["2107","46","Ráfol de Salem"]
["2129","46","Real"]
["2114","46","Real de Gandía"]
["2135","46","Requena"]
["2140","46","Riba-roja de Túria"]
["2153","46","Riola"]
["2166","46","Rocafort"]
["2172","46","Rotglà i Corberà"]
["2188","46","Rótova"]
["2191","46","Rugat"]
["2205","46","Sagunto/Sagunt"]
["2212","46","Salem"]
["9030","46","San Antonio de Benagéber"]
["2227","46","Sant Joanet"]
["2233","46","Sedaví"]
["2248","46","Segart"]
["2251","46","Sellent"]
["2264","46","Sempere"]
["2270","46","Senyera"]
["2286","46","Serra"]
["2299","46","Siete Aguas"]
["2303","46","Silla"]
["2310","46","Simat de la Valldigna"]
["2325","46","Sinarcas"]
["2331","46","Sollana"]
["2346","46","Sot de Chera"]
["2359","46","Sueca"]
["2362","46","Sumacàrcer"]
["2378","46","Tavernes Blanques"]
["2384","46","Tavernes de la Valldigna"]
["2397","46","Teresa de Cofrentes"]
["2401","46","Terrateig"]
["2418","46","Titaguas"]
["2423","46","Torrebaja"]
["2439","46","Torrella"]
["2444","46","Torrent"]
["2457","46","Torres Torres"]
["2460","46","Tous"]
["2476","46","Tuéjar"]
["2482","46","Turís"]
["2495","46","Utiel"]
["2508","46","Valencia"]
["2515","46","Vallada"]
["2520","46","Vallanca"]
["2536","46","Vallés"]
["2541","46","Venta del Moro"]
["2554","46","Vilallonga/Villalonga"]
["2567","46","Vilamarxant"]
["2573","46","Villanueva de Castellón"]
["2589","46","Villar del Arzobispo"]
["2592","46","Villargordo del Cabriel"]
["2606","46","Vinalesa"]
["1458","46","Xàtiva"]
["1430","46","Xeraco"]
["1461","46","Xeresa"]
["1108","46","Xirivella"]
["2613","46","Yátova"]
["2628","46","Yesa, La"]
["2634","46","Zarra"]
["0014",47,"Adalia"]
["0029","47","Aguasal"]
["0035","47","Aguilar de Campos"]
["0040","47","Alaejos"]
["0053","47","Alcazarén"]
["0066","47","Aldea de San Miguel"]
["0072","47","Aldeamayor de San Martín"]
["0088","47","Almenara de Adaja"]
["0091","47","Amusquillo"]
["0105","47","Arroyo de la Encomienda"]
["0112","47","Ataquines"]
["0127","47","Bahabón"]
["0133","47","Barcial de la Loma"]
["0148","47","Barruelo del Valle"]
["0151","47","Becilla de Valderaduey"]
["0164","47","Benafarces"]
["0170","47","Bercero"]
["0186","47","Berceruelo"]
["0199","47","Berrueces"]
["0203","47","Bobadilla del Campo"]
["0210","47","Bocigas"]
["0225","47","Bocos de Duero"]
["0231","47","Boecillo"]
["0246","47","Bolaños de Campos"]
["0259","47","Brahojos de Medina"]
["0262","47","Bustillo de Chaves"]
["0278","47","Cabezón de Pisuerga"]
["0284","47","Cabezón de Valderaduey"]
["0297","47","Cabreros del Monte"]
["0301","47","Campaspero"]
["0318","47","Campillo, El"]
["0323","47","Camporredondo"]
["0339","47","Canalejas de Peñafiel"]
["0344","47","Canillas de Esgueva"]
["0357","47","Carpio"]
["0360","47","Casasola de Arión"]
["0376","47","Castrejón de Trabancos"]
["0382","47","Castrillo de Duero"]
["0395","47","Castrillo-Tejeriego"]
["0409","47","Castrobol"]
["0416","47","Castrodeza"]
["0421","47","Castromembibre"]
["0437","47","Castromonte"]
["0442","47","Castronuevo de Esgueva"]
["0455","47","Castronuño"]
["0468","47","Castroponce"]
["0474","47","Castroverde de Cerrato"]
["0480","47","Ceinos de Campos"]
["0493","47","Cervillego de la Cruz"]
["0506","47","Cigales"]
["0513","47","Ciguñuela"]
["0528","47","Cistérniga"]
["0534","47","Cogeces de Íscar"]
["0549","47","Cogeces del Monte"]
["0552","47","Corcos"]
["0565","47","Corrales de Duero"]
["0571","47","Cubillas de Santa Marta"]
["0587","47","Cuenca de Campos"]
["0590","47","Curiel de Duero"]
["0604","47","Encinas de Esgueva"]
["0611","47","Esguevillas de Esgueva"]
["0626","47","Fombellida"]
["0632","47","Fompedraza"]
["0647","47","Fontihoyuelo"]
["0650","47","Fresno el Viejo"]
["0663","47","Fuensaldaña"]
["0679","47","Fuente el Sol"]
["0685","47","Fuente-Olmedo"]
["0698","47","Gallegos de Hornija"]
["0702","47","Gatón de Campos"]
["0719","47","Geria"]
["0730","47","Herrín de Campos"]
["0745","47","Hornillos de Eresma"]
["0758","47","Íscar"]
["0761","47","Laguna de Duero"]
["0777","47","Langayo"]
["0796","47","Llano de Olmedo"]
["0783","47","Lomoviejo"]
["0800","47","Manzanillo"]
["0817","47","Marzales"]
["0822","47","Matapozuelos"]
["0838","47","Matilla de los Caños"]
["0843","47","Mayorga"]
["0869","47","Medina de Rioseco"]
["0856","47","Medina del Campo"]
["0875","47","Megeces"]
["0881","47","Melgar de Abajo"]
["0894","47","Melgar de Arriba"]
["0908","47","Mojados"]
["0915","47","Monasterio de Vega"]
["0920","47","Montealegre de Campos"]
["0936","47","Montemayor de Pililla"]
["0941","47","Moral de la Reina"]
["0954","47","Moraleja de las Panaderas"]
["0967","47","Morales de Campos"]
["0973","47","Mota del Marqués"]
["0989","47","Mucientes"]
["0992","47","Mudarra, La"]
["1006","47","Muriel"]
["1013","47","Nava del Rey"]
["1028","47","Nueva Villa de las Torres"]
["1034","47","Olivares de Duero"]
["1049","47","Olmedo"]
["1052","47","Olmos de Esgueva"]
["1065","47","Olmos de Peñafiel"]
["1090","47","Palazuelo de Vedija"]
["1104","47","Parrilla, La"]
["1111","47","Pedraja de Portillo, La"]
["1126","47","Pedrajas de San Esteban"]
["1132","47","Pedrosa del Rey"]
["1147","47","Peñafiel"]
["1150","47","Peñaflor de Hornija"]
["1163","47","Pesquera de Duero"]
["1179","47","Piña de Esgueva"]
["1185","47","Piñel de Abajo"]
["1198","47","Piñel de Arriba"]
["1219","47","Pollos"]
["1224","47","Portillo"]
["1230","47","Pozal de Gallinas"]
["1245","47","Pozaldez"]
["1258","47","Pozuelo de la Orden"]
["1261","47","Puras"]
["1277","47","Quintanilla de Arriba"]
["1296","47","Quintanilla de Onésimo"]
["1300","47","Quintanilla de Trigueros"]
["1283","47","Quintanilla del Molar"]
["1317","47","Rábano"]
["1322","47","Ramiro"]
["1338","47","Renedo de Esgueva"]
["1343","47","Roales de Campos"]
["1356","47","Robladillo"]
["1375","47","Roturas"]
["1381","47","Rubí de Bracamonte"]
["1394","47","Rueda"]
["1408","47","Saelices de Mayorga"]
["1415","47","Salvador de Zapardiel"]
["1420","47","San Cebrián de Mazote"]
["1436","47","San Llorente"]
["1441","47","San Martín de Valvení"]
["1454","47","San Miguel del Arroyo"]
["1467","47","San Miguel del Pino"]
["1473","47","San Pablo de la Moraleja"]
["1489","47","San Pedro de Latarce"]
["1492","47","San Pelayo"]
["1505","47","San Román de Hornija"]
["1512","47","San Salvador"]
["1564","47","San Vicente del Palacio"]
["1527","47","Santa Eufemia del Arroyo"]
["1533","47","Santervás de Campos"]
["1548","47","Santibáñez de Valcorba"]
["1551","47","Santovenia de Pisuerga"]
["1570","47","Sardón de Duero"]
["1586","47","Seca, La"]
["1599","47","Serrada"]
["1603","47","Siete Iglesias de Trabancos"]
["1610","47","Simancas"]
["1625","47","Tamariz de Campos"]
["1631","47","Tiedra"]
["1646","47","Tordehumos"]
["1659","47","Tordesillas"]
["1697","47","Torre de Esgueva"]
["1701","47","Torre de Peñafiel"]
["1662","47","Torrecilla de la Abadesa"]
["1678","47","Torrecilla de la Orden"]
["1684","47","Torrecilla de la Torre"]
["1718","47","Torrelobatón"]
["1723","47","Torrescárcela"]
["1739","47","Traspinedo"]
["1744","47","Trigueros del Valle"]
["1757","47","Tudela de Duero"]
["1760","47","Unión de Campos, La"]
["1776","47","Urones de Castroponce"]
["1782","47","Urueña"]
["1795","47","Valbuena de Duero"]
["1809","47","Valdearcos de la Vega"]
["1816","47","Valdenebro de los Valles"]
["1821","47","Valdestillas"]
["1837","47","Valdunquillo"]
["1868","47","Valladolid"]
["1842","47","Valoria la Buena"]
["1855","47","Valverde de Campos"]
["1874","47","Vega de Ruiponce"]
["1880","47","Vega de Valdetronco"]
["1893","47","Velascálvaro"]
["1907","47","Velilla"]
["1914","47","Velliza"]
["1929","47","Ventosa de la Cuesta"]
["1935","47","Viana de Cega"]
["1953","47","Villabáñez"]
["1966","47","Villabaruz de Campos"]
["1972","47","Villabrágima"]
["1988","47","Villacarralón"]
["1991","47","Villacid de Campos"]
["2005","47","Villaco"]
["2033","47","Villafrades de Campos"]
["2048","47","Villafranca de Duero"]
["2051","47","Villafrechós"]
["2064","47","Villafuerte"]
["2070","47","Villagarcía de Campos"]
["2086","47","Villagómez la Nueva"]
["2099","47","Villalán de Campos"]
["2103","47","Villalar de los Comuneros"]
["2110","47","Villalba de la Loma"]
["2125","47","Villalba de los Alcores"]
["2131","47","Villalbarba"]
["2146","47","Villalón de Campos"]
["2159","47","Villamuriel de Campos"]
["2162","47","Villán de Tordesillas"]
["2178","47","Villanubla"]
["2184","47","Villanueva de Duero"]
["2197","47","Villanueva de la Condesa"]
["2201","47","Villanueva de los Caballeros"]
["2218","47","Villanueva de los Infantes"]
["2223","47","Villanueva de San Mancio"]
["2239","47","Villardefrades"]
["2244","47","Villarmentero de Esgueva"]
["2257","47","Villasexmir"]
["2260","47","Villavaquerín"]
["2276","47","Villavellid"]
["2282","47","Villaverde de Medina"]
["2295","47","Villavicencio de los Caballeros"]
["1940","47","Viloria"]
["2309","47","Wamba"]
["2316","47","Zaratán"]
["2321","47","Zarza, La"]
["0010",48,"Abadiño"]
["0025","48","Abanto y Ciérvana-Abanto Zierbena"]
["9119","48","Ajangiz"]
["9124","48","Alonsotegi"]
["0031","48","Amorebieta-Etxano"]
["0046","48","Amoroto"]
["0059","48","Arakaldo"]
["0062","48","Arantzazu"]
["0932","48","Areatza"]
["0097","48","Arrankudiaga"]
["9145","48","Arratzu"]
["0101","48","Arrieta"]
["0118","48","Arrigorriaga"]
["0237","48","Artea"]
["0084","48","Artzentales"]
["0911","48","Atxondo"]
["0708","48","Aulesti"]
["0123","48","Bakio"]
["0904","48","Balmaseda"]
["0139","48","Barakaldo"]
["0144","48","Barrika"]
["0157","48","Basauri"]
["0926","48","Bedia"]
["0160","48","Berango"]
["0176","48","Bermeo"]
["0182","48","Berriatua"]
["0195","48","Berriz"]
["0209","48","Bilbao"]
["0216","48","Busturia"]
["9011","48","Derio"]
["0268","48","Dima"]
["0274","48","Durango"]
["0280","48","Ea"]
["0314","48","Elantxobe"]
["0329","48","Elorrio"]
["9026","48","Erandio"]
["0335","48","Ereño"]
["0340","48","Ermua"]
["0792","48","Errigoiti"]
["0293","48","Etxebarri"]
["0307","48","Etxebarria"]
["9063","48","Forua"]
["0353","48","Fruiz"]
["0366","48","Galdakao"]
["0372","48","Galdames"]
["0388","48","Gamiz-Fika"]
["0391","48","Garai"]
["0405","48","Gatika"]
["0412","48","Gautegiz Arteaga"]
["0464","48","Gernika-Lumo"]
["0448","48","Getxo"]
["0470","48","Gizaburuaga"]
["0427","48","Gordexola"]
["0433","48","Gorliz"]
["0451","48","Güeñes"]
["0486","48","Ibarrangelu"]
["0947","48","Igorre"]
["0499","48","Ispaster"]
["9102","48","Iurreta"]
["0502","48","Izurtza"]
["0221","48","Karrantza Harana/Valle de Carranza"]
["9079","48","Kortezubi"]
["0519","48","Lanestosa"]
["0524","48","Larrabetzu"]
["0530","48","Laukiz"]
["0545","48","Leioa"]
["0577","48","Lekeitio"]
["0558","48","Lemoa"]
["0561","48","Lemoiz"]
["0813","48","Lezama"]
["9032","48","Loiu"]
["0583","48","Mallabia"]
["0596","48","Mañaria"]
["0600","48","Markina-Xemein"]
["0617","48","Maruri-Jatabe"]
["0622","48","Mendata"]
["0638","48","Mendexa"]
["0643","48","Meñaka"]
["0669","48","Morga"]
["0681","48","Mundaka"]
["0694","48","Mungia"]
["0078","48","Munitibar-Arbatzegi Gerrikaitz"]
["9085","48","Murueta"]
["0715","48","Muskiz"]
["0675","48","Muxika"]
["9098","48","Nabarniz"]
["0736","48","Ondarroa"]
["0754","48","Orozko"]
["0834","48","Ortuella"]
["0720","48","Otxandio"]
["0773","48","Plentzia"]
["0789","48","Portugalete"]
["0828","48","Santurtzi"]
["0849","48","Sestao"]
["9047","48","Sondika"]
["0852","48","Sopela"]
["0865","48","Sopuerta"]
["0767","48","Sukarrieta"]
["0871","48","Trucios-Turtzioz"]
["0887","48","Ubide"]
["0656","48","Ugao-Miraballes"]
["0890","48","Urduliz"]
["0741","48","Urduña/Orduña"]
["0806","48","Valle de Trápaga-Trapagaran"]
["0950","48","Zaldibar"]
["0963","48","Zalla"]
["9050","48","Zamudio"]
["0979","48","Zaratamo"]
["0242","48","Zeanuri"]
["0255","48","Zeberio"]
["9130","48","Zierbena"]
["9158","48","Ziortza-Bolibar"]
["0028",49,"Abezames"]
["0034","49","Alcañices"]
["0049","49","Alcubilla de Nogales"]
["0052","49","Alfaraz de Sayago"]
["0065","49","Algodre"]
["0071","49","Almaraz de Duero"]
["0087","49","Almeida de Sayago"]
["0090","49","Andavías"]
["0104","49","Arcenillas"]
["0111","49","Arcos de la Polvorosa"]
["0126","49","Argañín"]
["0132","49","Argujillo"]
["0147","49","Arquillinos"]
["0150","49","Arrabalde"]
["0163","49","Aspariegos"]
["0179","49","Asturianos"]
["0185","49","Ayoó de Vidriales"]
["0198","49","Barcial del Barco"]
["0202","49","Belver de los Montes"]
["0219","49","Benavente"]
["0224","49","Benegiles"]
["0230","49","Bermillo de Sayago"]
["0245","49","Bóveda de Toro, La"]
["0258","49","Bretó"]
["0261","49","Bretocino"]
["0277","49","Brime de Sog"]
["0283","49","Brime de Urz"]
["0296","49","Burganes de Valverde"]
["0300","49","Bustillo del Oro"]
["0317","49","Cabañas de Sayago"]
["0322","49","Calzadilla de Tera"]
["0338","49","Camarzana de Tera"]
["0343","49","Cañizal"]
["0356","49","Cañizo"]
["0369","49","Carbajales de Alba"]
["0375","49","Carbellino"]
["0381","49","Casaseca de Campeán"]
["0394","49","Casaseca de las Chanas"]
["0408","49","Castrillo de la Guareña"]
["0415","49","Castrogonzalo"]
["0420","49","Castronuevo"]
["0436","49","Castroverde de Campos"]
["0441","49","Cazurra"]
["0467","49","Cerecinos de Campos"]
["0473","49","Cerecinos del Carrizal"]
["0489","49","Cernadilla"]
["0505","49","Cobreros"]
["0527","49","Coomonte"]
["0533","49","Coreses"]
["0548","49","Corrales del Vino"]
["0551","49","Cotanes del Monte"]
["0564","49","Cubillos"]
["0570","49","Cubo de Benavente"]
["0586","49","Cubo de Tierra del Vino, El"]
["0599","49","Cuelgamures"]
["0610","49","Entrala"]
["0625","49","Espadañedo"]
["0631","49","Faramontanos de Tábara"]
["0646","49","Fariza"]
["0659","49","Fermoselle"]
["0662","49","Ferreras de Abajo"]
["0678","49","Ferreras de Arriba"]
["0684","49","Ferreruela"]
["0697","49","Figueruela de Arriba"]
["0718","49","Fonfría"]
["0757","49","Fresno de la Polvorosa"]
["0760","49","Fresno de la Ribera"]
["0776","49","Fresno de Sayago"]
["0782","49","Friera de Valverde"]
["0795","49","Fuente Encalada"]
["0809","49","Fuentelapeña"]
["0821","49","Fuentes de Ropel"]
["0816","49","Fuentesaúco"]
["0837","49","Fuentesecas"]
["0842","49","Fuentespreadas"]
["0855","49","Galende"]
["0868","49","Gallegos del Pan"]
["0874","49","Gallegos del Río"]
["0880","49","Gamones"]
["0907","49","Gema"]
["0914","49","Granja de Moreruela"]
["0929","49","Granucillo"]
["0935","49","Guarrate"]
["0940","49","Hermisende"]
["0953","49","Hiniesta, La"]
["0966","49","Jambrina"]
["0972","49","Justel"]
["0988","49","Losacino"]
["0991","49","Losacio"]
["1005","49","Lubián"]
["1012","49","Luelmo"]
["1027","49","Maderal, El"]
["1033","49","Madridanos"]
["1048","49","Mahide"]
["1051","49","Maire de Castroponce"]
["1070","49","Malva"]
["1086","49","Manganeses de la Lampreana"]
["1099","49","Manganeses de la Polvorosa"]
["1103","49","Manzanal de Arriba"]
["1125","49","Manzanal de los Infantes"]
["1110","49","Manzanal del Barco"]
["1131","49","Matilla de Arzón"]
["1146","49","Matilla la Seca"]
["1159","49","Mayalde"]
["1162","49","Melgar de Tera"]
["1178","49","Micereces de Tera"]
["1184","49","Milles de la Polvorosa"]
["1197","49","Molacillos"]
["1201","49","Molezuelas de la Carballeda"]
["1218","49","Mombuey"]
["1223","49","Monfarracinos"]
["1239","49","Montamarta"]
["1244","49","Moral de Sayago"]
["1260","49","Moraleja de Sayago"]
["1257","49","Moraleja del Vino"]
["1282","49","Morales de Rey"]
["1295","49","Morales de Toro"]
["1309","49","Morales de Valverde"]
["1276","49","Morales del Vino"]
["1316","49","Moralina"]
["1321","49","Moreruela de los Infanzones"]
["1337","49","Moreruela de Tábara"]
["1342","49","Muelas de los Caballeros"]
["1355","49","Muelas del Pan"]
["1368","49","Muga de Sayago"]
["1374","49","Navianos de Valverde"]
["1380","49","Olmillos de Castro"]
["1393","49","Otero de Bodas"]
["1414","49","Pajares de la Lampreana"]
["1435","49","Palacios de Sanabria"]
["1429","49","Palacios del Pan"]
["1453","49","Pedralba de la Pradería"]
["1466","49","Pego, El"]
["1472","49","Peleagonzalo"]
["1488","49","Peleas de Abajo"]
["1491","49","Peñausende"]
["1504","49","Peque"]
["1511","49","Perdigón, El"]
["1526","49","Pereruela"]
["1532","49","Perilla de Castro"]
["1547","49","Pías"]
["1550","49","Piedrahita de Castro"]
["1563","49","Pinilla de Toro"]
["1579","49","Pino del Oro"]
["1585","49","Piñero, El"]
["1602","49","Pobladura de Valderaduey"]
["1598","49","Pobladura del Valle"]
["1624","49","Porto"]
["1630","49","Pozoantiguo"]
["1645","49","Pozuelo de Tábara"]
["1658","49","Prado"]
["1661","49","Puebla de Sanabria"]
["1677","49","Pueblica de Valverde"]
["1700","49","Quintanilla de Urz"]
["1683","49","Quintanilla del Monte"]
["1696","49","Quintanilla del Olmo"]
["1717","49","Quiruelas de Vidriales"]
["1722","49","Rabanales"]
["1738","49","Rábano de Aliste"]
["1743","49","Requejo"]
["1756","49","Revellinos"]
["1769","49","Riofrío de Aliste"]
["1775","49","Rionegro del Puente"]
["1781","49","Roales"]
["1794","49","Robleda-Cervantes"]
["1808","49","Roelos de Sayago"]
["1815","49","Rosinos de la Requejada"]
["1836","49","Salce"]
["1841","49","Samir de los Caños"]
["1854","49","San Agustín del Pozo"]
["1867","49","San Cebrián de Castro"]
["1873","49","San Cristóbal de Entreviñas"]
["1889","49","San Esteban del Molar"]
["1892","49","San Justo"]
["1906","49","San Martín de Valderaduey"]
["1913","49","San Miguel de la Ribera"]
["1928","49","San Miguel del Valle"]
["1934","49","San Pedro de Ceque"]
["1949","49","San Pedro de la Nave-Almendra"]
["2085","49","San Vicente de la Cabeza"]
["2098","49","San Vitero"]
["1971","49","Santa Clara de Avedillo"]
["1990","49","Santa Colomba de las Monjas"]
["2004","49","Santa Cristina de la Polvorosa"]
["2011","49","Santa Croya de Tera"]
["2026","49","Santa Eufemia del Barco"]
["2032","49","Santa María de la Vega"]
["2047","49","Santa María de Valverde"]
["2050","49","Santibáñez de Tera"]
["2063","49","Santibáñez de Vidriales"]
["2079","49","Santovenia"]
["2102","49","Sanzoles"]
["2145","49","Tábara"]
["2161","49","Tapioles"]
["2196","49","Toro"]
["2200","49","Torre del Valle, La"]
["2217","49","Torregamones"]
["2222","49","Torres del Carrizal"]
["2238","49","Trabazos"]
["2243","49","Trefacio"]
["2256","49","Uña de Quintana"]
["2269","49","Vadillo de la Guareña"]
["2275","49","Valcabado"]
["2281","49","Valdefinjas"]
["2294","49","Valdescorriel"]
["2308","49","Vallesa de la Guareña"]
["2315","49","Vega de Tera"]
["2320","49","Vega de Villalobos"]
["2336","49","Vegalatrave"]
["2341","49","Venialbo"]
["2354","49","Vezdemarbán"]
["2367","49","Vidayanes"]
["2373","49","Videmala"]
["2389","49","Villabrázaro"]
["2392","49","Villabuena del Puente"]
["2406","49","Villadepera"]
["2413","49","Villaescusa"]
["2428","49","Villafáfila"]
["2434","49","Villaferrueña"]
["2449","49","Villageriz"]
["2452","49","Villalazán"]
["2465","49","Villalba de la Lampreana"]
["2471","49","Villalcampo"]
["2487","49","Villalobos"]
["2490","49","Villalonso"]
["2503","49","Villalpando"]
["2510","49","Villalube"]
["2525","49","Villamayor de Campos"]
["2559","49","Villamor de los Escuderos"]
["2562","49","Villanázar"]
["2578","49","Villanueva de Azoague"]
["2584","49","Villanueva de Campeán"]
["2597","49","Villanueva de las Peras"]
["2601","49","Villanueva del Campo"]
["2639","49","Villar de Fallaves"]
["2644","49","Villar del Buey"]
["2618","49","Villaralbo"]
["2623","49","Villardeciervos"]
["2657","49","Villardiegua de la Ribera"]
["2660","49","Villárdiga"]
["2676","49","Villardondiego"]
["2682","49","Villarrín de Campos"]
["2695","49","Villaseco del Pan"]
["2709","49","Villavendimio"]
["2721","49","Villaveza de Valverde"]
["2716","49","Villaveza del Agua"]
["2737","49","Viñas"]
["2755","49","Zamora"]
["0016",50,"Abanto"]
["0021","50","Acered"]
["0037","50","Agón"]
["0042","50","Aguarón"]
["0055","50","Aguilón"]
["0068","50","Ainzón"]
["0074","50","Aladrén"]
["0080","50","Alagón"]
["0093","50","Alarba"]
["0107","50","Alberite de San Juan"]
["0114","50","Albeta"]
["0129","50","Alborge"]
["0135","50","Alcalá de Ebro"]
["0140","50","Alcalá de Moncayo"]
["0153","50","Alconchel de Ariza"]
["0166","50","Aldehuela de Liestos"]
["0172","50","Alfajarín"]
["0188","50","Alfamén"]
["0191","50","Alforque"]
["0205","50","Alhama de Aragón"]
["0212","50","Almochuel"]
["0227","50","Almolda, La"]
["0233","50","Almonacid de la Cuba"]
["0248","50","Almonacid de la Sierra"]
["0251","50","Almunia de Doña Godina, La"]
["0264","50","Alpartir"]
["0270","50","Ambel"]
["0286","50","Anento"]
["0299","50","Aniñón"]
["0303","50","Añón de Moncayo"]
["0310","50","Aranda de Moncayo"]
["0325","50","Arándiga"]
["0331","50","Ardisa"]
["0346","50","Ariza"]
["0359","50","Artieda"]
["0362","50","Asín"]
["0378","50","Atea"]
["0384","50","Ateca"]
["0397","50","Azuara"]
["0401","50","Badules"]
["0418","50","Bagüés"]
["0423","50","Balconchán"]
["0439","50","Bárboles"]
["0444","50","Bardallur"]
["0457","50","Belchite"]
["0460","50","Belmonte de Gracián"]
["0476","50","Berdejo"]
["0482","50","Berrueco"]
["9017","50","Biel"]
["0508","50","Bijuesca"]
["0515","50","Biota"]
["0520","50","Bisimbre"]
["0536","50","Boquiñeni"]
["0541","50","Bordalba"]
["0554","50","Borja"]
["0567","50","Botorrita"]
["0573","50","Brea de Aragón"]
["0589","50","Bubierca"]
["0592","50","Bujaraloz"]
["0606","50","Bulbuente"]
["0613","50","Bureta"]
["0628","50","Burgo de Ebro, El"]
["0634","50","Buste, El"]
["0649","50","Cabañas de Ebro"]
["0652","50","Cabolafuente"]
["0665","50","Cadrete"]
["0671","50","Calatayud"]
["0687","50","Calatorao"]
["0690","50","Calcena"]
["0704","50","Calmarza"]
["0711","50","Campillo de Aragón"]
["0726","50","Carenas"]
["0732","50","Cariñena"]
["0747","50","Caspe"]
["0750","50","Castejón de Alarba"]
["0763","50","Castejón de las Armas"]
["0779","50","Castejón de Valdejasa"]
["0785","50","Castiliscar"]
["0798","50","Cervera de la Cañada"]
["0802","50","Cerveruela"]
["0819","50","Cetina"]
["0922","50","Chiprana"]
["0938","50","Chodes"]
["0824","50","Cimballa"]
["0830","50","Cinco Olivas"]
["0845","50","Clarés de Ribota"]
["0858","50","Codo"]
["0861","50","Codos"]
["0877","50","Contamina"]
["0883","50","Cosuenda"]
["0896","50","Cuarte de Huerva"]
["0900","50","Cubel"]
["0917","50","Cuerlas, Las"]
["0943","50","Daroca"]
["0956","50","Ejea de los Caballeros"]
["0969","50","Embid de Ariza"]
["0981","50","Encinacorba"]
["0994","50","Épila"]
["1008","50","Erla"]
["1015","50","Escatrón"]
["1020","50","Fabara"]
["1041","50","Farlete"]
["1054","50","Fayón"]
["1067","50","Fayos, Los"]
["1073","50","Figueruelas"]
["1089","50","Fombuena"]
["1092","50","Frago, El"]
["1106","50","Frasno, El"]
["1113","50","Fréscano"]
["1134","50","Fuendejalón"]
["1149","50","Fuendetodos"]
["1152","50","Fuentes de Ebro"]
["1165","50","Fuentes de Jiloca"]
["1171","50","Gallocanta"]
["1187","50","Gallur"]
["1190","50","Gelsa"]
["1204","50","Godojos"]
["1211","50","Gotor"]
["1226","50","Grisel"]
["1232","50","Grisén"]
["1247","50","Herrera de los Navarros"]
["1250","50","Ibdes"]
["1263","50","Illueca"]
["1285","50","Isuerre"]
["1298","50","Jaraba"]
["1302","50","Jarque"]
["1319","50","Jaulín"]
["1324","50","Joyosa, La"]
["1330","50","Lagata"]
["1345","50","Langa del Castillo"]
["1358","50","Layana"]
["1361","50","Lécera"]
["1383","50","Lechón"]
["1377","50","Leciñena"]
["1396","50","Letux"]
["1400","50","Litago"]
["1417","50","Lituénigo"]
["1422","50","Lobera de Onsella"]
["1438","50","Longares"]
["1443","50","Longás"]
["1469","50","Lucena de Jalón"]
["1475","50","Luceni"]
["1481","50","Luesia"]
["1494","50","Luesma"]
["1507","50","Lumpiaque"]
["1514","50","Luna"]
["1529","50","Maella"]
["1535","50","Magallón"]
["1540","50","Mainar"]
["1553","50","Malanquilla"]
["1566","50","Maleján"]
["1605","50","Mallén"]
["1572","50","Malón"]
["1591","50","Maluenda"]
["1612","50","Manchones"]
["1627","50","Mara"]
["1633","50","María de Huerva"]
["9022","50","Marracos"]
["1648","50","Mediana de Aragón"]
["1651","50","Mequinenza"]
["1664","50","Mesones de Isuela"]
["1670","50","Mezalocha"]
["1686","50","Mianos"]
["1699","50","Miedes de Aragón"]
["1703","50","Monegrillo"]
["1710","50","Moneva"]
["1725","50","Monreal de Ariza"]
["1731","50","Monterde"]
["1746","50","Montón"]
["1759","50","Morata de Jalón"]
["1762","50","Morata de Jiloca"]
["1778","50","Morés"]
["1784","50","Moros"]
["1797","50","Moyuela"]
["1801","50","Mozota"]
["1818","50","Muel"]
["1823","50","Muela, La"]
["1839","50","Munébrega"]
["1844","50","Murero"]
["1857","50","Murillo de Gállego"]
["1860","50","Navardún"]
["1876","50","Nigüella"]
["1882","50","Nombrevilla"]
["1895","50","Nonaspe"]
["1909","50","Novallas"]
["1916","50","Novillas"]
["1921","50","Nuévalos"]
["1937","50","Nuez de Ebro"]
["1942","50","Olvés"]
["1955","50","Orcajo"]
["1968","50","Orera"]
["1974","50","Orés"]
["1980","50","Oseja"]
["1993","50","Osera de Ebro"]
["2007","50","Paniza"]
["2014","50","Paracuellos de Jiloca"]
["2029","50","Paracuellos de la Ribera"]
["2035","50","Pastriz"]
["2040","50","Pedrola"]
["2053","50","Pedrosas, Las"]
["2066","50","Perdiguera"]
["2072","50","Piedratajada"]
["2088","50","Pina de Ebro"]
["2091","50","Pinseque"]
["2105","50","Pintanos, Los"]
["2112","50","Plasencia de Jalón"]
["2127","50","Pleitas"]
["2133","50","Plenas"]
["2148","50","Pomer"]
["2151","50","Pozuel de Ariza"]
["2164","50","Pozuelo de Aragón"]
["2170","50","Pradilla de Ebro"]
["2186","50","Puebla de Albortón"]
["2199","50","Puebla de Alfindén, La"]
["2203","50","Puendeluna"]
["2210","50","Purujosa"]
["2225","50","Quinto"]
["2231","50","Remolinos"]
["2246","50","Retascón"]
["2259","50","Ricla"]
["2278","50","Romanos"]
["2284","50","Rueda de Jalón"]
["2297","50","Ruesca"]
["2416","50","Sabiñán"]
["2301","50","Sádaba"]
["2318","50","Salillas de Jalón"]
["2323","50","Salvatierra de Esca"]
["2339","50","Samper del Salz"]
["2344","50","San Martín de la Virgen de Moncayo"]
["2357","50","San Mateo de Gállego"]
["2360","50","Santa Cruz de Grío"]
["2376","50","Santa Cruz de Moncayo"]
["2382","50","Santa Eulalia de Gállego"]
["2395","50","Santed"]
["2409","50","Sástago"]
["2421","50","Sediles"]
["2437","50","Sestrica"]
["2442","50","Sierra de Luna"]
["2455","50","Sigüés"]
["2468","50","Sisamón"]
["2474","50","Sobradiel"]
["2480","50","Sos del Rey Católico"]
["2493","50","Tabuenca"]
["2506","50","Talamantes"]
["2513","50","Tarazona"]
["2528","50","Tauste"]
["2534","50","Terrer"]
["2549","50","Tierga"]
["2552","50","Tobed"]
["2565","50","Torralba de los Frailes"]
["2571","50","Torralba de Ribota"]
["2587","50","Torralbilla"]
["2590","50","Torrehermosa"]
["2604","50","Torrelapaja"]
["2611","50","Torrellas"]
["2626","50","Torres de Berrellén"]
["2632","50","Torrijo de la Cañada"]
["2647","50","Tosos"]
["2650","50","Trasmoz"]
["2663","50","Trasobares"]
["2679","50","Uncastillo"]
["2685","50","Undués de Lerda"]
["2698","50","Urrea de Jalón"]
["2702","50","Urriés"]
["2719","50","Used"]
["2724","50","Utebo"]
["2745","50","Val de San Martín"]
["2730","50","Valdehorna"]
["2758","50","Valmadrid"]
["2761","50","Valpalmas"]
["2777","50","Valtorres"]
["2783","50","Velilla de Ebro"]
["2796","50","Velilla de Jiloca"]
["2800","50","Vera de Moncayo"]
["2817","50","Vierlas"]
["2838","50","Villadoz"]
["2843","50","Villafeliche"]
["2856","50","Villafranca de Ebro"]
["2869","50","Villalba de Perejil"]
["2875","50","Villalengua"]
["9038","50","Villamayor de Gállego"]
["2881","50","Villanueva de Gállego"]
["2908","50","Villanueva de Huerva"]
["2894","50","Villanueva de Jiloca"]
["2915","50","Villar de los Navarros"]
["2920","50","Villarreal de Huerva"]
["2936","50","Villarroya de la Sierra"]
["2941","50","Villarroya del Campo"]
["2822","50","Vilueña, La"]
["2954","50","Vistabella"]
["2967","50","Zaida, La"]
["2973","50","Zaragoza"]
["2989","50","Zuera"]
["0013",51,"Ceuta"]
["0018",52,"Melilla"]

{"sheet":"Codigos_ComunidadesAutonomas","index":4,"n_rows":21,"n_cols":30,"rows_kept":21,"cut":false,"hidden":true,"merged":[]}
["CodComunidad","NomComunidad"]
[0]
[1,"Andalucia"]
[2,"Aragón",null,null,null,null,null,null,null,null,null,null,null,null,null,null,null,null,null,null,null,null,null,null,null,null,null,null,null,100]
[3,"Asturias",null,null,null,null,null,null,null,null,null,null,null,null,null,null,null,null,null,null,null,null,null,null,null,null,null,null,null,200]
[4,"Baleares",null,null,null,null,null,null,null,null,null,null,null,null,null,null,null,null,null,null,null,null,null,null,null,null,null,null,null,300]
[5,"Canarias",null,null,null,null,null,null,null,null,null,null,null,null,null,null,null,null,null,null,null,null,null,null,null,null,null,null,null,300]
[6,"Cantabria"]
[7,"Castilla y León"]
[8,"Castilla - La Mancha"]
[9,"Cataluña"]
[10,"Comunidad Valenciana"]
[11,"Extremadura"]
[12,"Galicia"]
[13,"Madrid"]
[14,"Murcia"]
[15,"Navarra"]
[16,"País Vasco"]
[17,"Rioja (La)"]
[18,"Ceuta"]
[19,"Melilla"]

{"sheet":"Codigos_CNAE","index":5,"n_rows":630,"n_cols":3,"rows_kept":630,"cut":false,"hidden":false,"merged":[]}
["Codigo","Titulo Actividad","Conjunta"]
["A0111","Cultivo de cereales (excepto arroz), leguminosas y semillas oleaginosas",{"$f":"A2&\" \" &B2","v":"A0111 Cultivo de cereales (excepto arroz), leguminosas y semillas oleaginosas"}]
["A0112","Cultivo de arroz",{"$f":"A3&\" \" &B3","v":"A0112 Cultivo de arroz"}]
["A0113","Cultivo de hortalizas, raíces y tubérculos",{"$f":"A4&\" \" &B4","v":"A0113 Cultivo de hortalizas, raíces y tubérculos"}]
["A0114","Cultivo de caña de azúcar","A0114 Cultivo de caña de azúcar"]
["A0115","Cultivo de tabaco","A0115 Cultivo de tabaco"]
["A0116","Cultivo de plantas para fibras textiles","A0116 Cultivo de plantas para fibras textiles"]
["A0119","Otros cultivos no perennes","A0119 Otros cultivos no perennes"]
["A0121","Cultivo de la vid","A0121 Cultivo de la vid"]
["A0122","Cultivo de frutos tropicales y subtropicales","A0122 Cultivo de frutos tropicales y subtropicales"]
["A0123","Cultivo de cítricos","A0123 Cultivo de cítricos"]
["A0124","Cultivo de frutos con hueso y pepitas","A0124 Cultivo de frutos con hueso y pepitas"]
["A0125","Cultivo de otros árboles y arbustos frutales y frutos secos","A0125 Cultivo de otros árboles y arbustos frutales y frutos secos"]
["A0126","Cultivo de frutos oleaginosos","A0126 Cultivo de frutos oleaginosos"]
["A0127","Cultivo de plantas para bebidas","A0127 Cultivo de plantas para bebidas"]
["A0128","Cultivo de especias, plantas aromáticas, medicinales y farmacéuticas","A0128 Cultivo de especias, plantas aromáticas, medicinales y farmacéuticas"]
["A0129","Otros cultivos perennes","A0129 Otros cultivos perennes"]
["A0130","Propagación de plantas","A0130 Propagación de plantas"]
["A0141","Explotación de ganado bovino para la producción de leche","A0141 Explotación de ganado bovino para la producción de leche"]
["A0142","Explotación de otro ganado bovino y búfalos","A0142 Explotación de otro ganado bovino y búfalos"]
["A0143","Explotación de caballos y otros equinos","A0143 Explotación de caballos y otros equinos"]
["A0144","Explotación de camellos y otros camélidos","A0144 Explotación de camellos y otros camélidos"]
["A0145","Explotación de ganado ovino y caprino","A0145 Explotación de ganado ovino y caprino"]
["A0146","Explotación de ganado porcino","A0146 Explotación de ganado porcino"]
["A0147","Avicultura","A0147 Avicultura"]
["A0149","Otras explotaciones de ganado","A0149 Otras explotaciones de ganado"]
["A0150","Producción agrícola combinada con la producción ganadera","A0150 Producción agrícola combinada con la producción ganadera"]
["A0161","Actividades de apoyo a la agricultura","A0161 Actividades de apoyo a la agricultura"]
["A0162","Actividades de apoyo a la ganadería","A0162 Actividades de apoyo a la ganadería"]
["A0163","Actividades de preparación posterior a la cosecha","A0163 Actividades de preparación posterior a la cosecha"]
["A0164","Tratamiento de semillas para reproducción","A0164 Tratamiento de semillas para reproducción"]
["A0170","Caza, captura de animales y servicios relacionados con las mismas","A0170 Caza, captura de animales y servicios relacionados con las mismas"]
["A0210","Silvicultura y otras actividades forestales","A0210 Silvicultura y otras actividades forestales"]
["A0220","Explotación de la madera","A0220 Explotación de la madera"]
["A0230","Recolección de productos silvestres, excepto madera","A0230 Recolección de productos silvestres, excepto madera"]
["A0240","Servicios de apoyo a la silvicultura","A0240 Servicios de apoyo a la silvicultura"]
["A0311","Pesca marina","A0311 Pesca marina"]
["A0312","Pesca en agua dulce","A0312 Pesca en agua dulce"]
["A0321","Acuicultura marina","A0321 Acuicultura marina"]
["A0322","Acuicultura en agua dulce","A0322 Acuicultura en agua dulce"]
["B0510","Extracción de antracita y hulla","B0510 Extracción de antracita y hulla"]
["B0520","Extracción de lignito","B0520 Extracción de lignito"]
["B0610","Extracción de crudo de petróleo","B0610 Extracción de crudo de petróleo"]
["B0620","Extracción de gas natural","B0620 Extracción de gas natural"]
["B0710","Extracción de minerales de hierro","B0710 Extracción de minerales de hierro"]
["B0721","Extracción de minerales de uranio y torio","B0721 Extracción de minerales de uranio y torio"]
["B0729","Extracción de otros minerales metálicos no férreos","B0729 Extracción de otros minerales metálicos no férreos"]
["B0811","Extracción de piedra ornamental y para la construcción, piedra caliza, yeso, creta y pizarra","B0811 Extracción de piedra ornamental y para la construcción, piedra caliza, yeso, creta y pizarra"]
["B0812","Extracción de gravas y arenas; extracción de arcilla y caolín","B0812 Extracción de gravas y arenas; extracción de arcilla y caolín"]
["B0891","Extracción de minerales para productos químicos y fertilizantes","B0891 Extracción de minerales para productos químicos y fertilizantes"]
["B0892","Extracción de turba","B0892 Extracción de turba"]
["B0893","Extracción de sal","B0893 Extracción de sal"]
["B0899","Otras industrias extractivas n.c.o.p.","B0899 Otras industrias extractivas n.c.o.p."]
["B0910","Actividades de apoyo a la extracción de petróleo y gas natural","B0910 Actividades de apoyo a la extracción de petróleo y gas natural"]
["B0990","Actividades de apoyo a otras industrias extractivas","B0990 Actividades de apoyo a otras industrias extractivas"]
["C1011","Procesado y conservación de carne","C1011 Procesado y conservación de carne"]
["C1012","Procesado y conservación de volatería","C1012 Procesado y conservación de volatería"]
["C1013","Elaboración de productos cárnicos y de volatería","C1013 Elaboración de productos cárnicos y de volatería"]
["C1021","Procesado de pescados, crustáceos y moluscos","C1021 Procesado de pescados, crustáceos y moluscos"]
["C1022","Fabricación de conservas de pescado","C1022 Fabricación de conservas de pescado"]
["C1031","Procesado y conservación de patatas","C1031 Procesado y conservación de patatas"]
["C1032","Elaboración de zumos de frutas y hortalizas","C1032 Elaboración de zumos de frutas y hortalizas"]
["C1039","Otro procesado y conservación de frutas y hortalizas","C1039 Otro procesado y conservación de frutas y hortalizas"]
["C1042","Fabricación de margarina y grasas comestibles similares","C1042 Fabricación de margarina y grasas comestibles similares"]
["C1043","Fabricación de aceite de oliva","C1043 Fabricación de aceite de oliva"]
["C1044","Fabricación de otros aceites y grasas","C1044 Fabricación de otros aceites y grasas"]
["C1052","Elaboración de helados","C1052 Elaboración de helados"]
["C1053","Fabricación de quesos",{"$f":"A68&\" \" &B68","v":"C1053 Fabricación de quesos"}]
["C1054","Preparación de leche y otros productos lácteos","C1054 Preparación de leche y otros productos lácteos"]
["C1061","Fabricación de productos de molinería","C1061 Fabricación de productos de molinería"]
["C1062","Fabricación de almidones y productos amiláceos","C1062 Fabricación de almidones y productos amiláceos"]
["C1071","Fabricación de pan y de productos frescos de panadería y pastelería","C1071 Fabricación de pan y de productos frescos de panadería y pastelería"]
["C1072","Fabricación de galletas y productos de panadería y pastelería de larga duración","C1072 Fabricación de galletas y productos de panadería y pastelería de larga duración"]
["C1073","Fabricación de pastas alimenticias, cuscús y productos similares","C1073 Fabricación de pastas alimenticias, cuscús y productos similares"]
["C1081","Fabricación de azúcar","C1081 Fabricación de azúcar"]
["C1082","Fabricación de cacao, chocolate y productos de confitería","C1082 Fabricación de cacao, chocolate y productos de confitería"]
["C1083","Elaboración de café, té e infusiones","C1083 Elaboración de café, té e infusiones"]
["C1084","Elaboración de especias, salsas y condimentos","C1084 Elaboración de especias, salsas y condimentos"]
["C1085","Elaboración de platos y comidas preparados","C1085 Elaboración de platos y comidas preparados"]
["C1086","Elaboración de preparados alimenticios homogeneizados y alimentos dietéticos","C1086 Elaboración de preparados alimenticios homogeneizados y alimentos dietéticos"]
["C1089","Elaboración de otros productos alimenticios n.c.o.p.","C1089 Elaboración de otros productos alimenticios n.c.o.p."]
["C1091","Fabricación de productos para la alimentación de animales de granja","C1091 Fabricación de productos para la alimentación de animales de granja"]
["C1092","Fabricación de productos para la alimentación de animales de compañía","C1092 Fabricación de productos para la alimentación de animales de compañía"]
["C1101","Destilación, rectificación y mezcla de bebidas alcohólicas","C1101 Destilación, rectificación y mezcla de bebidas alcohólicas"]
["C1102","Elaboración de vinos","C1102 Elaboración de vinos"]
["C1103","Elaboración de sidra y otras bebidas fermentadas a partir de frutas","C1103 Elaboración de sidra y otras bebidas fermentadas a partir de frutas"]
["C1104","Elaboración de otras bebidas no destiladas, procedentes de la fermentación","C1104 Elaboración de otras bebidas no destiladas, procedentes de la fermentación"]
["C1105","Fabricación de cerveza","C1105 Fabricación de cerveza"]
["C1106","Fabricación de malta","C1106 Fabricación de malta"]
["C1107","Fabricación de bebidas no alcohólicas; producción de aguas minerales y otras aguas embotelladas","C1107 Fabricación de bebidas no alcohólicas; producción de aguas minerales y otras aguas embotelladas"]
["C1200","Industria del tabaco","C1200 Industria del tabaco"]
["C1310","Preparación e hilado de fibras textiles","C1310 Preparación e hilado de fibras textiles"]
["C1320","Fabricación de tejidos textiles","C1320 Fabricación de tejidos textiles"]
["C1330","Acabado de textiles","C1330 Acabado de textiles"]
["C1391","Fabricación de tejidos de punto","C1391 Fabricación de tejidos de punto"]
["C1392","Fabricación de artículos confeccionados con textiles, excepto prendas de vestir","C1392 Fabricación de artículos confeccionados con textiles, excepto prendas de vestir"]
["C1393","Fabricación de alfombras y moquetas","C1393 Fabricación de alfombras y moquetas"]
["C1394","Fabricación de cuerdas, cordeles, bramantes y redes","C1394 Fabricación de cuerdas, cordeles, bramantes y redes"]
["C1395","Fabricación de telas no tejidas y artículos confeccionados con ellas, excepto prendas de vestir","C1395 Fabricación de telas no tejidas y artículos confeccionados con ellas, excepto prendas de vestir"]
["C1396","Fabricación de otros productos textiles de uso técnico e industrial","C1396 Fabricación de otros productos textiles de uso técnico e industrial"]
["C1399","Fabricación de otros productos textiles n.c.o.p.","C1399 Fabricación de otros productos textiles n.c.o.p."]
["C1411","Confección de prendas de vestir de cuero","C1411 Confección de prendas de vestir de cuero"]
["C1412","Confección de ropa de trabajo","C1412 Confección de ropa de trabajo"]
["C1413","Confección de otras prendas de vestir exteriores","C1413 Confección de otras prendas de vestir exteriores"]
["C1414","Confección de ropa interior","C1414 Confección de ropa interior"]
["C1419","Confección de otras prendas de vestir y accesorios","C1419 Confección de otras prendas de vestir y accesorios"]
["C1420","Fabricación de artículos de peletería","C1420 Fabricación de artículos de peletería"]
["C1431","Confección de calcetería","C1431 Confección de calcetería"]
["C1439","Confección de otras prendas de vestir de punto","C1439 Confección de otras prendas de vestir de punto"]
["C1511","Preparación, curtido y acabado del cuero; preparación y teñido de pieles","C1511 Preparación, curtido y acabado del cuero; preparación y teñido de pieles"]
["C1512","Fabricación de artículos de marroquinería, viaje y de guarnicionería y talabartería","C1512 Fabricación de artículos de marroquinería, viaje y de guarnicionería y talabartería"]
["C1520","Fabricación de calzado","C1520 Fabricación de calzado"]
["C1610","Aserrado y cepillado de la madera","C1610 Aserrado y cepillado de la madera"]
["C1621","Fabricación de chapas y tableros de madera","C1621 Fabricación de chapas y tableros de madera"]
["C1622","Fabricación de suelos de madera ensamblados","C1622 Fabricación de suelos de madera ensamblados"]
["C1623","Fabricación de otras estructuras de madera y piezas de carpintería y ebanistería para la construcción","C1623 Fabricación de otras estructuras de madera y piezas de carpintería y ebanistería para la construcción"]
["C1624","Fabricación de envases y embalajes de madera","C1624 Fabricación de envases y embalajes de madera"]
["C1629","Fabricación de otros productos de madera; artículos de corcho, cestería y espartería","C1629 Fabricación de otros productos de madera; artículos de corcho, cestería y espartería"]
["C1711","Fabricación de pasta papelera","C1711 Fabricación de pasta papelera"]
["C1712","Fabricación de papel y cartón","C1712 Fabricación de papel y cartón"]
["C1721","Fabricación de papel y cartón ondulados; fabricación de envases y embalajes de papel y cartón","C1721 Fabricación de papel y cartón ondulados; fabricación de envases y embalajes de papel y cartón"]
["C1722","Fabricación de artículos de papel y cartón para uso doméstico, sanitario e higiénico","C1722 Fabricación de artículos de papel y cartón para uso doméstico, sanitario e higiénico"]
["C1723","Fabricación de artículos de papelería","C1723 Fabricación de artículos de papelería"]
["C1724","Fabricación de papeles pintados","C1724 Fabricación de papeles pintados"]
["C1729","Fabricación de otros artículos de papel y cartón","C1729 Fabricación de otros artículos de papel y cartón"]
["C1811","Artes gráficas y servicios relacionados con las mismas","C1811 Artes gráficas y servicios relacionados con las mismas"]
["C1812","Otras actividades de impresión y artes gráficas","C1812 Otras actividades de impresión y artes gráficas"]
["C1813","Servicios de preimpresión y preparación de soportes","C1813 Servicios de preimpresión y preparación de soportes"]
["C1814","Encuadernación y servicios relacionados con la misma","C1814 Encuadernación y servicios relacionados con la misma"]
["C1820","Reproducción de soportes grabados","C1820 Reproducción de soportes grabados"]
["C1910","Coquerías","C1910 Coquerías"]
["C1920","Refino de petróleo",{"$f":"A132&\" \" &B132","v":"C1920 Refino de petróleo"}]
["C2011","Fabricación de gases industriales","C2011 Fabricación de gases industriales"]
["C2012","Fabricación de colorantes y pigmentos","C2012 Fabricación de colorantes y pigmentos"]
["C2013","Fabricación de otros productos básicos de química inorgánica","C2013 Fabricación de otros productos básicos de química inorgánica"]
["C2014","Fabricación de otros productos básicos de química orgánica","C2014 Fabricación de otros productos básicos de química orgánica"]
["C2015","Fabricación de fertilizantes y compuestos nitrogenados","C2015 Fabricación de fertilizantes y compuestos nitrogenados"]
["C2016","Fabricación de plásticos en formas primarias","C2016 Fabricación de plásticos en formas primarias"]
["C2017","Fabricación de caucho sintético en formas primarias","C2017 Fabricación de caucho sintético en formas primarias"]
["C2020","Fabricación de pesticidas y otros productos agroquímicos","C2020 Fabricación de pesticidas y otros productos agroquímicos"]
["C2030","Fabricación de pinturas, barnices y revestimientos similares; tintas de imprenta y masillas","C2030 Fabricación de pinturas, barnices y revestimientos similares; tintas de imprenta y masillas"]
["C2041","Fabricación de jabones, detergentes y otros artículos de limpieza y abrillantamiento","C2041 Fabricación de jabones, detergentes y otros artículos de limpieza y abrillantamiento"]
["C2042","Fabricación de perfumes y cosméticos","C2042 Fabricación de perfumes y cosméticos"]
["C2051","Fabricación de explosivos","C2051 Fabricación de explosivos"]
["C2052","Fabricación de colas","C2052 Fabricación de colas"]
["C2053","Fabricación de aceites esenciales","C2053 Fabricación de aceites esenciales"]
["C2059","Fabricación de otros productos químicos n.c.o.p.","C2059 Fabricación de otros productos químicos n.c.o.p."]
["C2060","Fabricación de fibras artificiales y sintéticas","C2060 Fabricación de fibras artificiales y sintéticas"]
["C2110","Fabricación de productos farmacéuticos de base","C2110 Fabricación de productos farmacéuticos de base"]
["C2120","Fabricación de especialidades farmacéuticas","C2120 Fabricación de especialidades farmacéuticas"]
["C2211","Fabricación de neumáticos y cámaras de caucho; reconstrucción y recauchutado de neumáticos","C2211 Fabricación de neumáticos y cámaras de caucho; reconstrucción y recauchutado de neumáticos"]
["C2219","Fabricación de otros productos de caucho","C2219 Fabricación de otros productos de caucho"]
["C2221","Fabricación de placas, hojas, tubos y perfiles de plástico","C2221 Fabricación de placas, hojas, tubos y perfiles de plástico"]
["C2222","Fabricación de envases y embalajes de plástico","C2222 Fabricación de envases y embalajes de plástico"]
["C2223","Fabricación de productos de plástico para la construcción","C2223 Fabricación de productos de plástico para la construcción"]
["C2229","Fabricación de otros productos de plástico","C2229 Fabricación de otros productos de plástico"]
["C2311","Fabricación de vidrio plano","C2311 Fabricación de vidrio plano"]
["C2312","Manipulado y transformación de vidrio plano","C2312 Manipulado y transformación de vidrio plano"]
["C2313","Fabricación de vidrio hueco","C2313 Fabricación de vidrio hueco"]
["C2314","Fabricación de fibra de vidrio","C2314 Fabricación de fibra de vidrio"]
["C2319","Fabricación y manipulado de otro vidrio, incluido el vidrio técnico","C2319 Fabricación y manipulado de otro vidrio, incluido el vidrio técnico"]
["C2320","Fabricación de productos cerámicos refractarios","C2320 Fabricación de productos cerámicos refractarios"]
["C2331","Fabricación de azulejos y baldosas de cerámica","C2331 Fabricación de azulejos y baldosas de cerámica"]
["C2332","Fabricación de ladrillos, tejas y productos de tierras cocidas para la construcción","C2332 Fabricación de ladrillos, tejas y productos de tierras cocidas para la construcción"]
["C2341","Fabricación de artículos cerámicos de uso doméstico y ornamental","C2341 Fabricación de artículos cerámicos de uso doméstico y ornamental"]
["C2342","Fabricación de aparatos sanitarios cerámicos","C2342 Fabricación de aparatos sanitarios cerámicos"]
["C2343","Fabricación de aisladores y piezas aislantes de material cerámico","C2343 Fabricación de aisladores y piezas aislantes de material cerámico"]
["C2344","Fabricación de otros productos cerámicos de uso técnico","C2344 Fabricación de otros productos cerámicos de uso técnico"]
["C2349","Fabricación de otros productos cerámicos","C2349 Fabricación de otros productos cerámicos"]
["C2351","Fabricación de cemento","C2351 Fabricación de cemento"]
["C2352","Fabricación de cal y yeso","C2352 Fabricación de cal y yeso"]
["C2361","Fabricación de elementos de hormigón para la construcción","C2361 Fabricación de elementos de hormigón para la construcción"]
["C2362","Fabricación de elementos de yeso para la construcción","C2362 Fabricación de elementos de yeso para la construcción"]
["C2363","Fabricación de hormigón fresco","C2363 Fabricación de hormigón fresco"]
["C2364","Fabricación de mortero","C2364 Fabricación de mortero"]
["C2365","Fabricación de fibrocemento","C2365 Fabricación de fibrocemento"]
["C2369","Fabricación de otros productos de hormigón, yeso y cemento","C2369 Fabricación de otros productos de hormigón, yeso y cemento"]
["C2370","Corte, tallado y acabado de la piedra","C2370 Corte, tallado y acabado de la piedra"]
["C2391","Fabricación de productos abrasivos","C2391 Fabricación de productos abrasivos"]
["C2399","Fabricación de otros productos minerales no metálicos n.c.o.p.","C2399 Fabricación de otros productos minerales no metálicos n.c.o.p."]
["C2410","Fabricación de productos básicos de hierro, acero y ferroaleaciones","C2410 Fabricación de productos básicos de hierro, acero y ferroaleaciones"]
["C2420","Fabricación de tubos, tuberías, perfiles huecos y sus accesorios, de acero","C2420 Fabricación de tubos, tuberías, perfiles huecos y sus accesorios, de acero"]
["C2431","Estirado en frío","C2431 Estirado en frío"]
["C2432","Laminación en frío","C2432 Laminación en frío"]
["C2433","Producción de perfiles en frío por conformación con plegado","C2433 Producción de perfiles en frío por conformación con plegado"]
["C2434","Trefilado en frío","C2434 Trefilado en frío"]
["C2441","Producción de metales preciosos","C2441 Producción de metales preciosos"]
["C2442","Producción de aluminio","C2442 Producción de aluminio"]
["C2443","Producción de plomo, zinc y estaño","C2443 Producción de plomo, zinc y estaño"]
["C2444","Producción de cobre","C2444 Producción de cobre"]
["C2445","Producción de otros metales no férreos","C2445 Producción de otros metales no férreos"]
["C2446","Procesamiento de combustibles nucleares","C2446 Procesamiento de combustibles nucleares"]
["C2451","Fundición de hierro","C2451 Fundición de hierro"]
["C2452","Fundición de acero","C2452 Fundición de acero"]
["C2453","Fundición de metales ligeros","C2453 Fundición de metales ligeros"]
["C2454","Fundición de otros metales no férreos",{"$f":"A196&\" \" &B196","v":"C2454 Fundición de otros metales no férreos"}]
["C2511","Fabricación de estructuras metálicas y sus componentes","C2511 Fabricación de estructuras metálicas y sus componentes"]
["C2512","Fabricación de carpintería metálica","C2512 Fabricación de carpintería metálica"]
["C2521","Fabricación de radiadores y calderas para calefacción central","C2521 Fabricación de radiadores y calderas para calefacción central"]
["C2529","Fabricación de otras cisternas, grandes depósitos y contenedores de metal","C2529 Fabricación de otras cisternas, grandes depósitos y contenedores de metal"]
["C2530","Fabricación de generadores de vapor, excepto calderas de calefacción central","C2530 Fabricación de generadores de vapor, excepto calderas de calefacción central"]
["C2540","Fabricación de armas y municiones","C2540 Fabricación de armas y municiones"]
["C2550","Forja, estampación y embutición de metales; metalurgia de polvos","C2550 Forja, estampación y embutición de metales; metalurgia de polvos"]
["C2561","Tratamiento y revestimiento de metales","C2561 Tratamiento y revestimiento de metales"]
["C2562","Ingeniería mecánica por cuenta de terceros","C2562 Ingeniería mecánica por cuenta de terceros"]
["C2571","Fabricación de artículos de cuchillería y cubertería","C2571 Fabricación de artículos de cuchillería y cubertería"]
["C2572","Fabricación de cerraduras y herrajes","C2572 Fabricación de cerraduras y herrajes"]
["C2573","Fabricación de herramientas","C2573 Fabricación de herramientas"]
["C2591","Fabricación de bidones y toneles de hierro o acero","C2591 Fabricación de bidones y toneles de hierro o acero"]
["C2592","Fabricación de envases y embalajes metálicos ligeros","C2592 Fabricación de envases y embalajes metálicos ligeros"]
["C2593","Fabricación de productos de alambre, cadenas y muelles","C2593 Fabricación de productos de alambre, cadenas y muelles"]
["C2594","Fabricación de pernos y productos de tornillería","C2594 Fabricación de pernos y productos de tornillería"]
["C2599","Fabricación de otros productos metálicos n.c.o.p.","C2599 Fabricación de otros productos metálicos n.c.o.p."]
["C2611","Fabricación de componentes electrónicos","C2611 Fabricación de componentes electrónicos"]
["C2612","Fabricación de circuitos impresos ensamblados","C2612 Fabricación de circuitos impresos ensamblados"]
["C2620","Fabricación de ordenadores y equipos periféricos","C2620 Fabricación de ordenadores y equipos periféricos"]
["C2630","Fabricación de equipos de telecomunicaciones","C2630 Fabricación de equipos de telecomunicaciones"]
["C2640","Fabricación de productos electrónicos de consumo","C2640 Fabricación de productos electrónicos de consumo"]
["C2651","Fabricación de instrumentos y aparatos de medida, verificación y navegación","C2651 Fabricación de instrumentos y aparatos de medida, verificación y navegación"]
["C2652","Fabricación de relojes","C2652 Fabricación de relojes"]
["C2660","Fabricación de equipos de radiación, electromédicos y electroterapéuticos","C2660 Fabricación de equipos de radiación, electromédicos y electroterapéuticos"]
["C2670","Fabricación de instrumentos de óptica y equipo fotográfico","C2670 Fabricación de instrumentos de óptica y equipo fotográfico"]
["C2680","Fabricación de soportes magnéticos y ópticos","C2680 Fabricación de soportes magnéticos y ópticos"]
["C2711","Fabricación de motores, generadores y transformadores eléctricos","C2711 Fabricación de motores, generadores y transformadores eléctricos"]
["C2712","Fabricación de aparatos de distribución y control eléctrico","C2712 Fabricación de aparatos de distribución y control eléctrico"]
["C2720","Fabricación de pilas y acumuladores eléctricos","C2720 Fabricación de pilas y acumuladores eléctricos"]
["C2731","Fabricación de cables de fibra óptica","C2731 Fabricación de cables de fibra óptica"]
["C2732","Fabricación de otros hilos y cables electrónicos y eléctricos","C2732 Fabricación de otros hilos y cables electrónicos y eléctricos"]
["C2733","Fabricación de dispositivos de cableado","C2733 Fabricación de dispositivos de cableado"]
["C2740","Fabricación de lámparas y aparatos eléctricos de iluminación","C2740 Fabricación de lámparas y aparatos eléctricos de iluminación"]
["C2751","Fabricación de electrodomésticos","C2751 Fabricación de electrodomésticos"]
["C2752","Fabricación de aparatos domésticos no eléctricos","C2752 Fabricación de aparatos domésticos no eléctricos"]
["C2790","Fabricación de otro material y equipo eléctrico","C2790 Fabricación de otro material y equipo eléctrico"]
["C2811","Fabricación de motores y turbinas, excepto los destinados a aeronaves, vehículos automóviles y ciclomotores","C2811 Fabricación de motores y turbinas, excepto los destinados a aeronaves, vehículos automóviles y ciclomotores"]
["C2812","Fabricación de equipos de transmisión hidráulica y neumática","C2812 Fabricación de equipos de transmisión hidráulica y neumática"]
["C2813","Fabricación de otras bombas y compresores","C2813 Fabricación de otras bombas y compresores"]
["C2814","Fabricación de otra grifería y válvulas","C2814 Fabricación de otra grifería y válvulas"]
["C2815","Fabricación de cojinetes, engranajes y órganos mecánicos de transmisión","C2815 Fabricación de cojinetes, engranajes y órganos mecánicos de transmisión"]
["C2821","Fabricación de hornos y quemadores","C2821 Fabricación de hornos y quemadores"]
["C2822","Fabricación de maquinaria de elevación y manipulación","C2822 Fabricación de maquinaria de elevación y manipulación"]
["C2823","Fabricación de máquinas y equipos de oficina, excepto equipos informáticos","C2823 Fabricación de máquinas y equipos de oficina, excepto equipos informáticos"]
["C2824","Fabricación de herramientas eléctricas manuales","C2824 Fabricación de herramientas eléctricas manuales"]
["C2825","Fabricación de maquinaria de ventilación y refrigeración no doméstica","C2825 Fabricación de maquinaria de ventilación y refrigeración no doméstica"]
["C2829","Fabricación de otra maquinaria de uso general n.c.o.p.","C2829 Fabricación de otra maquinaria de uso general n.c.o.p."]
["C2830","Fabricación de maquinaria agraria y forestal","C2830 Fabricación de maquinaria agraria y forestal"]
["C2841","Fabricación de máquinas herramienta para trabajar el metal","C2841 Fabricación de máquinas herramienta para trabajar el metal"]
["C2849","Fabricación de otras máquinas herramienta","C2849 Fabricación de otras máquinas herramienta"]
["C2891","Fabricación de maquinaria para la industria metalúrgica","C2891 Fabricación de maquinaria para la industria metalúrgica"]
["C2892","Fabricación de maquinaria para las industrias extractivas y de la construcción","C2892 Fabricación de maquinaria para las industrias extractivas y de la construcción"]
["C2893","Fabricación de maquinaria para la industria de la alimentación, bebidas y tabaco","C2893 Fabricación de maquinaria para la industria de la alimentación, bebidas y tabaco"]
["C2894","Fabricación de maquinaria para las industrias textil, de la confección y del cuero","C2894 Fabricación de maquinaria para las industrias textil, de la confección y del cuero"]
["C2895","Fabricación de maquinaria para la industria del papel y del cartón","C2895 Fabricación de maquinaria para la industria del papel y del cartón"]
["C2896","Fabricación de maquinaria para la industria del plástico y el caucho","C2896 Fabricación de maquinaria para la industria del plástico y el caucho"]
["C2899","Fabricación de otra maquinaria para usos específicos n.c.o.p.","C2899 Fabricación de otra maquinaria para usos específicos n.c.o.p."]
["C2910","Fabricación de vehículos de motor","C2910 Fabricación de vehículos de motor"]
["C2920","Fabricación de carrocerías para vehículos de motor; fabricación de remolques y semirremolques","C2920 Fabricación de carrocerías para vehículos de motor; fabricación de remolques y semirremolques"]
["C2931","Fabricación de equipos eléctricos y electrónicos para vehículos de motor","C2931 Fabricación de equipos eléctricos y electrónicos para vehículos de motor"]
["C2932","Fabricación de otros componentes, piezas y accesorios para vehículos de motor","C2932 Fabricación de otros componentes, piezas y accesorios para vehículos de motor"]
["C3011","Construcción de barcos y estructuras flotantes","C3011 Construcción de barcos y estructuras flotantes"]
["C3012","Construcción de embarcaciones de recreo y deporte",{"$f":"A260&\" \" &B260","v":"C3012 Construcción de embarcaciones de recreo y deporte"}]
["C3020","Fabricación de locomotoras y material ferroviario","C3020 Fabricación de locomotoras y material ferroviario"]
["C3030","Construcción aeronáutica y espacial y su maquinaria","C3030 Construcción aeronáutica y espacial y su maquinaria"]
["C3040","Fabricación de vehículos militares de combate","C3040 Fabricación de vehículos militares de combate"]
["C3091","Fabricación de motocicletas","C3091 Fabricación de motocicletas"]
["C3092","Fabricación de bicicletas y de vehículos para personas con discapacidad","C3092 Fabricación de bicicletas y de vehículos para personas con discapacidad"]
["C3099","Fabricación de otro material de transporte n.c.o.p.","C3099 Fabricación de otro material de transporte n.c.o.p."]
["C3101","Fabricación de muebles de oficina y de establecimientos comerciales","C3101 Fabricación de muebles de oficina y de establecimientos comerciales"]
["C3102","Fabricación de muebles de cocina","C3102 Fabricación de muebles de cocina"]
["C3103","Fabricación de colchones","C3103 Fabricación de colchones"]
["C3109","Fabricación de otros muebles","C3109 Fabricación de otros muebles"]
["C3211","Fabricación de monedas","C3211 Fabricación de monedas"]
["C3212","Fabricación de artículos de joyería y artículos similares","C3212 Fabricación de artículos de joyería y artículos similares"]
["C3213","Fabricación de artículos de bisutería y artículos similares","C3213 Fabricación de artículos de bisutería y artículos similares"]
["C3220","Fabricación de instrumentos musicales","C3220 Fabricación de instrumentos musicales"]
["C3230","Fabricación de artículos de deporte","C3230 Fabricación de artículos de deporte"]
["C3240","Fabricación de juegos y juguetes","C3240 Fabricación de juegos y juguetes"]
["C3250","Fabricación de instrumentos y suministros médicos y odontológicos","C3250 Fabricación de instrumentos y suministros médicos y odontológicos"]
["C3291","Fabricación de escobas, brochas y cepillos","C3291 Fabricación de escobas, brochas y cepillos"]
["C3299","Otras industrias manufactureras n.c.o.p.","C3299 Otras industrias manufactureras n.c.o.p."]
["C3311","Reparación de productos metálicos","C3311 Reparación de productos metálicos"]
["C3312","Reparación de maquinaria","C3312 Reparación de maquinaria"]
["C3313","Reparación de equipos electrónicos y ópticos","C3313 Reparación de equipos electrónicos y ópticos"]
["C3314","Reparación de equipos eléctricos","C3314 Reparación de equipos eléctricos"]
["C3315","Reparación y mantenimiento naval","C3315 Reparación y mantenimiento naval"]
["C3316","Reparación y mantenimiento aeronáutico y espacial","C3316 Reparación y mantenimiento aeronáutico y espacial"]
["C3317","Reparación y mantenimiento de otro material de transporte","C3317 Reparación y mantenimiento de otro material de transporte"]
["C3319","Reparación de otros equipos","C3319 Reparación de otros equipos"]
["C3320","Instalación de máquinas y equipos industriales","C3320 Instalación de máquinas y equipos industriales"]
["D3512","Transporte de energía eléctrica","D3512 Transporte de energía eléctrica"]
["D3513","Distribución de energía eléctrica","D3513 Distribución de energía eléctrica"]
["D3514","Comercio de energía eléctrica","D3514 Comercio de energía eléctrica"]
["D3515","Producción de energía hidroeléctrica","D3515 Producción de energía hidroeléctrica"]
["D3516","Producción de energía eléctrica de origen térmico convencional","D3516 Producción de energía eléctrica de origen térmico convencional"]
["D3517","Producción de energía eléctrica de origen nuclear","D3517 Producción de energía eléctrica de origen nuclear"]
["D3518","Producción de energía eléctrica de origen eólico","D3518 Producción de energía eléctrica de origen eólico"]
["D3519","Producción de energía eléctrica de otros tipos","D3519 Producción de energía eléctrica de otros tipos"]
["D3521","Producción de gas","D3521 Producción de gas"]
["D3522","Distribución por tubería de combustibles gaseosos","D3522 Distribución por tubería de combustibles gaseosos"]
["D3523","Comercio de gas por tubería","D3523 Comercio de gas por tubería"]
["D3530","Suministro de vapor y aire acondicionado","D3530 Suministro de vapor y aire acondicionado"]
["E3600","Captación, depuración y distribución de agua","E3600 Captación, depuración y distribución de agua"]
["E3700","Recogida y tratamiento de aguas residuales","E3700 Recogida y tratamiento de aguas residuales"]
["E3811","Recogida de residuos no peligrosos","E3811 Recogida de residuos no peligrosos"]
["E3812","Recogida de residuos peligrosos","E3812 Recogida de residuos peligrosos"]
["E3821","Tratamiento y eliminación de residuos no peligrosos","E3821 Tratamiento y eliminación de residuos no peligrosos"]
["E3822","Tratamiento y eliminación de residuos peligrosos","E3822 Tratamiento y eliminación de residuos peligrosos"]
["E3831","Separación y clasificación de materiales","E3831 Separación y clasificación de materiales"]
["E3832","Valorización de materiales ya clasificados","E3832 Valorización de materiales ya clasificados"]
["E3900","Actividades de descontaminación y otros servicios de gestión de residuos","E3900 Actividades de descontaminación y otros servicios de gestión de residuos"]
["F4110","Promoción inmobiliaria","F4110 Promoción inmobiliaria"]
["F4121","Construcción de edificios residenciales","F4121 Construcción de edificios residenciales"]
["F4122","Construcción de edificios no residenciales","F4122 Construcción de edificios no residenciales"]
["F4211","Construcción de carreteras y autopistas","F4211 Construcción de carreteras y autopistas"]
["F4212","Construcción de vías férreas de superficie y subterráneas","F4212 Construcción de vías férreas de superficie y subterráneas"]
["F4213","Construcción de puentes y túneles","F4213 Construcción de puentes y túneles"]
["F4221","Construcción de redes para fluidos","F4221 Construcción de redes para fluidos"]
["F4222","Construcción de redes eléctricas y de telecomunicaciones","F4222 Construcción de redes eléctricas y de telecomunicaciones"]
["F4291","Obras hidráulicas","F4291 Obras hidráulicas"]
["F4299","Construcción de otros proyectos de ingeniería civil n.c.o.p.","F4299 Construcción de otros proyectos de ingeniería civil n.c.o.p."]
["F4311","Demolición","F4311 Demolición"]
["F4312","Preparación de terrenos","F4312 Preparación de terrenos"]
["F4313","Perforaciones y sondeos","F4313 Perforaciones y sondeos"]
["F4321","Instalaciones eléctricas","F4321 Instalaciones eléctricas"]
["F4322","Fontanería, instalaciones de sistemas de calefacción y aire acondicionado",{"$f":"A324&\" \" &B324","v":"F4322 Fontanería, instalaciones de sistemas de calefacción y aire acondicionado"}]
["F4329","Otras instalaciones en obras de construcción","F4329 Otras instalaciones en obras de construcción"]
["F4331","Revocamiento","F4331 Revocamiento"]
["F4332","Instalación de carpintería","F4332 Instalación de carpintería"]
["F4333","Revestimiento de suelos y paredes","F4333 Revestimiento de suelos y paredes"]
["F4334","Pintura y acristalamiento","F4334 Pintura y acristalamiento"]
["F4339","Otro acabado de edificios","F4339 Otro acabado de edificios"]
["F4391","Construcción de cubiertas","F4391 Construcción de cubiertas"]
["F4399","Otras actividades de construcción especializada n.c.o.p.","F4399 Otras actividades de construcción especializada n.c.o.p."]
["G4511","Venta de automóviles y vehículos de motor ligeros","G4511 Venta de automóviles y vehículos de motor ligeros"]
["G4519","Venta de otros vehículos de motor","G4519 Venta de otros vehículos de motor"]
["G4520","Mantenimiento y reparación de vehículos de motor","G4520 Mantenimiento y reparación de vehículos de motor"]
["G4531","Comercio al por mayor de repuestos y accesorios de vehículos de motor","G4531 Comercio al por mayor de repuestos y accesorios de vehículos de motor"]
["G4532","Comercio al por menor de repuestos y accesorios de vehículos de motor","G4532 Comercio al por menor de repuestos y accesorios de vehículos de motor"]
["G4540","Venta, mantenimiento y reparación de motocicletas y de sus repuestos y accesorios","G4540 Venta, mantenimiento y reparación de motocicletas y de sus repuestos y accesorios"]
["G4611","Intermediarios del comercio de materias primas agrarias, animales vivos, materias primas textiles y productos semielaborados","G4611 Intermediarios del comercio de materias primas agrarias, animales vivos, materias primas textiles y productos semielaborados"]
["G4612","Intermediarios del comercio de combustibles, minerales, metales y productos químicos industriales","G4612 Intermediarios del comercio de combustibles, minerales, metales y productos químicos industriales"]
["G4613","Intermediarios del comercio de la madera y materiales de construcción","G4613 Intermediarios del comercio de la madera y materiales de construcción"]
["G4614","Intermediarios del comercio de maquinaria, equipo industrial, embarcaciones y aeronaves","G4614 Intermediarios del comercio de maquinaria, equipo industrial, embarcaciones y aeronaves"]
["G4615","Intermediarios del comercio de muebles, artículos para el hogar y ferretería","G4615 Intermediarios del comercio de muebles, artículos para el hogar y ferretería"]
["G4616","Intermediarios del comercio de textiles, prendas de vestir, peletería, calzado y artículos de cuero","G4616 Intermediarios del comercio de textiles, prendas de vestir, peletería, calzado y artículos de cuero"]
["G4617","Intermediarios del comercio de productos alimenticios, bebidas y tabaco","G4617 Intermediarios del comercio de productos alimenticios, bebidas y tabaco"]
["G4618","Intermediarios del comercio especializados en la venta de otros productos específicos","G4618 Intermediarios del comercio especializados en la venta de otros productos específicos"]
["G4619","Intermediarios del comercio de productos diversos","G4619 Intermediarios del comercio de productos diversos"]
["G4621","Comercio al por mayor de cereales, tabaco en rama, simientes y alimentos para animales","G4621 Comercio al por mayor de cereales, tabaco en rama, simientes y alimentos para animales"]
["G4622","Comercio al por mayor de flores y plantas","G4622 Comercio al por mayor de flores y plantas"]
["G4623","Comercio al por mayor de animales vivos","G4623 Comercio al por mayor de animales vivos"]
["G4624","Comercio al por mayor de cueros y pieles","G4624 Comercio al por mayor de cueros y pieles"]
["G4631","Comercio al por mayor de frutas y hortalizas","G4631 Comercio al por mayor de frutas y hortalizas"]
["G4632","Comercio al por mayor de carne y productos cárnicos","G4632 Comercio al por mayor de carne y productos cárnicos"]
["G4633","Comercio al por mayor de productos lácteos, huevos, aceites y grasas comestibles","G4633 Comercio al por mayor de productos lácteos, huevos, aceites y grasas comestibles"]
["G4634","Comercio al por mayor de bebidas","G4634 Comercio al por mayor de bebidas"]
["G4635","Comercio al por mayor de productos del tabaco","G4635 Comercio al por mayor de productos del tabaco"]
["G4636","Comercio al por mayor de azúcar, chocolate y confitería","G4636 Comercio al por mayor de azúcar, chocolate y confitería"]
["G4637","Comercio al por mayor de café, té, cacao y especias","G4637 Comercio al por mayor de café, té, cacao y especias"]
["G4638","Comercio al por mayor de pescados y mariscos y otros productos alimenticios","G4638 Comercio al por mayor de pescados y mariscos y otros productos alimenticios"]
["G4639","Comercio al por mayor, no especializado, de productos alimenticios, bebidas y tabaco","G4639 Comercio al por mayor, no especializado, de productos alimenticios, bebidas y tabaco"]
["G4641","Comercio al por mayor de textiles","G4641 Comercio al por mayor de textiles"]
["G4642","Comercio al por mayor de prendas de vestir y calzado","G4642 Comercio al por mayor de prendas de vestir y calzado"]
["G4643","Comercio al por mayor de aparatos electrodomésticos","G4643 Comercio al por mayor de aparatos electrodomésticos"]
["G4644","Comercio al por mayor de porcelana, cristalería y artículos de limpieza","G4644 Comercio al por mayor de porcelana, cristalería y artículos de limpieza"]
["G4645","Comercio al por mayor de productos perfumería y cosmética","G4645 Comercio al por mayor de productos perfumería y cosmética"]
["G4646","Comercio al por mayor de productos farmacéuticos","G4646 Comercio al por mayor de productos farmacéuticos"]
["G4647","Comercio al por mayor de muebles, alfombras y aparatos de iluminación","G4647 Comercio al por mayor de muebles, alfombras y aparatos de iluminación"]
["G4648","Comercio al por mayor de artículos de relojería y joyería","G4648 Comercio al por mayor de artículos de relojería y joyería"]
["G4649","Comercio al por mayor de otros artículos de uso doméstico","G4649 Comercio al por mayor de otros artículos de uso doméstico"]
["G4651","Comercio al por mayor de ordenadores, equipos periféricos y programas informáticos","G4651 Comercio al por mayor de ordenadores, equipos periféricos y programas informáticos"]
["G4652","Comercio al por mayor de equipos electrónicos y de telecomunicaciones y sus componentes","G4652 Comercio al por mayor de equipos electrónicos y de telecomunicaciones y sus componentes"]
["G4661","Comercio al por mayor de maquinaria, equipos y suministros agrícolas","G4661 Comercio al por mayor de maquinaria, equipos y suministros agrícolas"]
["G4662","Comercio al por mayor de máquinas herramienta","G4662 Comercio al por mayor de máquinas herramienta"]
["G4663","Comercio al por mayor de maquinaria para la minería, la construcción y la ingeniería civil","G4663 Comercio al por mayor de maquinaria para la minería, la construcción y la ingeniería civil"]
["G4664","Comercio al por mayor de maquinaria para la industria textil y de máquinas de coser y tricotar","G4664 Comercio al por mayor de maquinaria para la industria textil y de máquinas de coser y tricotar"]
["G4665","Comercio al por mayor de muebles de oficina","G4665 Comercio al por mayor de muebles de oficina"]
["G4666","Comercio al por mayor de otra maquinaria y equipo de oficina","G4666 Comercio al por mayor de otra maquinaria y equipo de oficina"]
["G4669","Comercio al por mayor de otra maquinaria y equipo","G4669 Comercio al por mayor de otra maquinaria y equipo"]
["G4671","Comercio al por mayor de combustibles sólidos, líquidos y gaseosos, y productos similares","G4671 Comercio al por mayor de combustibles sólidos, líquidos y gaseosos, y productos similares"]
["G4672","Comercio al por mayor de metales y minerales metálicos","G4672 Comercio al por mayor de metales y minerales metálicos"]
["G4673","Comercio al por mayor de madera, materiales de construcción y aparatos sanitarios","G4673 Comercio al por mayor de madera, materiales de construcción y aparatos sanitarios"]
["G4674","Comercio al por mayor de ferretería, fontanería y calefacción","G4674 Comercio al por mayor de ferretería, fontanería y calefacción"]
["G4675","Comercio al por mayor de productos químicos","G4675 Comercio al por mayor de productos químicos"]
["G4676","Comercio al por mayor de otros productos semielaborados","G4676 Comercio al por mayor de otros productos semielaborados"]
["G4677","Comercio al por mayor de chatarra y productos de desecho","G4677 Comercio al por mayor de chatarra y productos de desecho"]
["G4690","Comercio al por mayor no especializado","G4690 Comercio al por mayor no especializado"]
["G4711","Comercio al por menor en establecimientos no especializados, con predominio en productos alimenticios, bebidas y tabaco","G4711 Comercio al por menor en establecimientos no especializados, con predominio en productos alimenticios, bebidas y tabaco"]
["G4719","Otro comercio al por menor en establecimientos no especializados",{"$f":"A388&\" \" &B388","v":"G4719 Otro comercio al por menor en establecimientos no especializados"}]
["G4721","Comercio al por menor de frutas y hortalizas en establecimientos especializados","G4721 Comercio al por menor de frutas y hortalizas en establecimientos especializados"]
["G4722","Comercio al por menor de carne y productos cárnicos en establecimientos especializados","G4722 Comercio al por menor de carne y productos cárnicos en establecimientos especializados"]
["G4723","Comercio al por menor de pescados y mariscos en establecimientos especializados","G4723 Comercio al por menor de pescados y mariscos en establecimientos especializados"]
["G4724","Comercio al por menor de pan y productos de panadería, confitería y pastelería en establecimientos especializados","G4724 Comercio al por menor de pan y productos de panadería, confitería y pastelería en establecimientos especializados"]
["G4725","Comercio al por menor de bebidas en establecimientos especializados","G4725 Comercio al por menor de bebidas en establecimientos especializados"]
["G4726","Comercio al por menor de productos de tabaco en establecimientos especializados","G4726 Comercio al por menor de productos de tabaco en establecimientos especializados"]
["G4729","Otro comercio al por menor de productos alimenticios en establecimientos especializados","G4729 Otro comercio al por menor de productos alimenticios en establecimientos especializados"]
["G4730","Comercio al por menor de combustible para la automoción en establecimientos especializados","G4730 Comercio al por menor de combustible para la automoción en establecimientos especializados"]
["G4741","Comercio al por menor de ordenadores, equipos periféricos y programas informáticos en establecimientos especializados","G4741 Comercio al por menor de ordenadores, equipos periféricos y programas informáticos en establecimientos especializados"]
["G4742","Comercio al por menor de equipos de telecomunicaciones en establecimientos especializados","G4742 Comercio al por menor de equipos de telecomunicaciones en establecimientos especializados"]
["G4743","Comercio al por menor de equipos de audio y vídeo en establecimientos especializados","G4743 Comercio al por menor de equipos de audio y vídeo en establecimientos especializados"]
["G4751","Comercio al por menor de textiles en establecimientos especializados","G4751 Comercio al por menor de textiles en establecimientos especializados"]
["G4752","Comercio al por menor de ferretería, pintura y vidrio en establecimientos especializados","G4752 Comercio al por menor de ferretería, pintura y vidrio en establecimientos especializados"]
["G4753","Comercio al por menor de alfombras, moquetas y revestimientos de paredes y suelos en establecimientos especializados","G4753 Comercio al por menor de alfombras, moquetas y revestimientos de paredes y suelos en establecimientos especializados"]
["G4754","Comercio al por menor de aparatos electrodomésticos en establecimientos especializados","G4754 Comercio al por menor de aparatos electrodomésticos en establecimientos especializados"]
["G4759","Comercio al por menor de muebles, aparatos de iluminación y otros artículos de uso doméstico en establecimientos especializados","G4759 Comercio al por menor de muebles, aparatos de iluminación y otros artículos de uso doméstico en establecimientos especializados"]
["G4761","Comercio al por menor de libros en establecimientos especializados","G4761 Comercio al por menor de libros en establecimientos especializados"]
["G4762","Comercio al por menor de periódicos y artículos de papelería en establecimientos especializados","G4762 Comercio al por menor de periódicos y artículos de papelería en establecimientos especializados"]
["G4763","Comercio al por menor de grabaciones de música y vídeo en establecimientos especializados","G4763 Comercio al por menor de grabaciones de música y vídeo en establecimientos especializados"]
["G4764","Comercio al por menor de artículos deportivos en establecimientos especializados","G4764 Comercio al por menor de artículos deportivos en establecimientos especializados"]
["G4765","Comercio al por menor de juegos y juguetes en establecimientos especializados","G4765 Comercio al por menor de juegos y juguetes en establecimientos especializados"]
["G4771","Comercio al por menor de prendas de vestir en establecimientos especializados","G4771 Comercio al por menor de prendas de vestir en establecimientos especializados"]
["G4772","Comercio al por menor de calzado y artículos de cuero en establecimientos especializados","G4772 Comercio al por menor de calzado y artículos de cuero en establecimientos especializados"]
["G4773","Comercio al por menor de productos farmacéuticos en establecimientos especializados","G4773 Comercio al por menor de productos farmacéuticos en establecimientos especializados"]
["G4774","Comercio al por menor de artículos médicos y ortopédicos en establecimientos especializados","G4774 Comercio al por menor de artículos médicos y ortopédicos en establecimientos especializados"]
["G4775","Comercio al por menor de productos cosméticos e higiénicos en establecimientos especializados","G4775 Comercio al por menor de productos cosméticos e higiénicos en establecimientos especializados"]
["G4776","Comercio al por menor de flores, plantas, semillas, fertilizantes, animales de compañía y alimentos para los mismos en establecimientos especializados","G4776 Comercio al por menor de flores, plantas, semillas, fertilizantes, animales de compañía y alimentos para los mismos en establecimientos especializados"]
["G4777","Comercio al por menor de artículos de relojería y joyería en establecimientos especializados","G4777 Comercio al por menor de artículos de relojería y joyería en establecimientos especializados"]
["G4778","Otro comercio al por menor de artículos nuevos en establecimientos especializados","G4778 Otro comercio al por menor de artículos nuevos en establecimientos especializados"]
["G4779","Comercio al por menor de artículos de segunda mano en establecimientos","G4779 Comercio al por menor de artículos de segunda mano en establecimientos"]
["G4781","Comercio al por menor de productos alimenticios, bebidas y tabaco en puestos de venta y en mercadillos","G4781 Comercio al por menor de productos alimenticios, bebidas y tabaco en puestos de venta y en mercadillos"]
["G4782","Comercio al por menor de productos textiles, prendas de vestir y calzado en puestos de venta y en mercadillos","G4782 Comercio al por menor de productos textiles, prendas de vestir y calzado en puestos de venta y en mercadillos"]
["G4789","Comercio al por menor de otros productos en puestos de venta y en mercadillos","G4789 Comercio al por menor de otros productos en puestos de venta y en mercadillos"]
["G4791","Comercio al por menor por correspondencia o Internet","G4791 Comercio al por menor por correspondencia o Internet"]
["G4799","Otro comercio al por menor no realizado ni en establecimientos, ni en puestos de venta ni en mercadillos","G4799 Otro comercio al por menor no realizado ni en establecimientos, ni en puestos de venta ni en mercadillos"]
["H4910","Transporte interurbano de pasajeros por ferrocarril","H4910 Transporte interurbano de pasajeros por ferrocarril"]
["H4920","Transporte de mercancías por ferrocarril","H4920 Transporte de mercancías por ferrocarril"]
["H4931","Transporte terrestre urbano y suburbano de pasajeros","H4931 Transporte terrestre urbano y suburbano de pasajeros"]
["H4932","Transporte por taxi","H4932 Transporte por taxi"]
["H4939","tipos de transporte terrestre de pasajeros n.c.o.p.","H4939 tipos de transporte terrestre de pasajeros n.c.o.p."]
["H4941","Transporte de mercancías por carretera","H4941 Transporte de mercancías por carretera"]
["H4942","Servicios de mudanza","H4942 Servicios de mudanza"]
["H4950","Transporte por tubería","H4950 Transporte por tubería"]
["H5010","Transporte marítimo de pasajeros","H5010 Transporte marítimo de pasajeros"]
["H5020","Transporte marítimo de mercancías","H5020 Transporte marítimo de mercancías"]
["H5030","Transporte de pasajeros por vías navegables interiores","H5030 Transporte de pasajeros por vías navegables interiores"]
["H5040","Transporte de mercancías por vías navegables interiores","H5040 Transporte de mercancías por vías navegables interiores"]
["H5110","Transporte aéreo de pasajeros","H5110 Transporte aéreo de pasajeros"]
["H5121","Transporte aéreo de mercancías","H5121 Transporte aéreo de mercancías"]
["H5122","Transporte espacial","H5122 Transporte espacial"]
["H5210","Depósito y almacenamiento","H5210 Depósito y almacenamiento"]
["H5221","Actividades anexas al transporte terrestre","H5221 Actividades anexas al transporte terrestre"]
["H5222","Actividades anexas al transporte marítimo y por vías navegables interiores","H5222 Actividades anexas al transporte marítimo y por vías navegables interiores"]
["H5223","Actividades anexas al transporte aéreo","H5223 Actividades anexas al transporte aéreo"]
["H5224","Manipulación de mercancías","H5224 Manipulación de mercancías"]
["H5229","Otras actividades anexas al transporte","H5229 Otras actividades anexas al transporte"]
["H5310","Actividades postales sometidas a la obligación del servicio universal","H5310 Actividades postales sometidas a la obligación del servicio universal"]
["H5320","Otras actividades postales y de correos","H5320 Otras actividades postales y de correos"]
["I5510","Hoteles y alojamientos similares","I5510 Hoteles y alojamientos similares"]
["I5520","Alojamientos turísticos y otros alojamientos de corta estancia","I5520 Alojamientos turísticos y otros alojamientos de corta estancia"]
["I5530","Campings y aparcamientos para caravanas","I5530 Campings y aparcamientos para caravanas"]
["I5590","Otros alojamientos","I5590 Otros alojamientos"]
["I5610","Restaurantes y puestos de comidas","I5610 Restaurantes y puestos de comidas"]
["I5621","Provisión de comidas preparadas para eventos",{"$f":"A452&\" \" &B452","v":"I5621 Provisión de comidas preparadas para eventos"}]
["I5629","Otros servicios de comidas","I5629 Otros servicios de comidas"]
["I5630","Establecimientos de bebidas","I5630 Establecimientos de bebidas"]
["J5811","Edición de libros","J5811 Edición de libros"]
["J5812","Edición de directorios y guías de direcciones postales","J5812 Edición de directorios y guías de direcciones postales"]
["J5813","Edición de periódicos","J5813 Edición de periódicos"]
["J5814","Edición de revistas","J5814 Edición de revistas"]
["J5819","Otras actividades editoriales","J5819 Otras actividades editoriales"]
["J5821","Edición de videojuegos","J5821 Edición de videojuegos"]
["J5829","Edición de otros programas informáticos","J5829 Edición de otros programas informáticos"]
["J5912","Actividades de postproducción cinematográfica, de vídeo y de programas de televisión","J5912 Actividades de postproducción cinematográfica, de vídeo y de programas de televisión"]
["J5914","Actividades de exhibición cinematográfica","J5914 Actividades de exhibición cinematográfica"]
["J5915","Actividades de producción cinematográfica y de vídeo","J5915 Actividades de producción cinematográfica y de vídeo"]
["J5916","Actividades de producciones de programas de televisión","J5916 Actividades de producciones de programas de televisión"]
["J5917","Actividades de distribución cinematográfica y de vídeo","J5917 Actividades de distribución cinematográfica y de vídeo"]
["J5918","Actividades de distribución de programas de televisión","J5918 Actividades de distribución de programas de televisión"]
["J5920","Actividades de grabación de sonido y edición musical","J5920 Actividades de grabación de sonido y edición musical"]
["J6010","Actividades de radiodifusión","J6010 Actividades de radiodifusión"]
["J6020","Actividades de programación y emisión de televisión","J6020 Actividades de programación y emisión de televisión"]
["J6110","Telecomunicaciones por cable","J6110 Telecomunicaciones por cable"]
["J6120","Telecomunicaciones inalámbricas","J6120 Telecomunicaciones inalámbricas"]
["J6130","Telecomunicaciones por satélite","J6130 Telecomunicaciones por satélite"]
["J6190","Otras actividades de telecomunicaciones","J6190 Otras actividades de telecomunicaciones"]
["J6201","Actividades de programación informática","J6201 Actividades de programación informática"]
["J6202","Actividades de consultoría informática","J6202 Actividades de consultoría informática"]
["J6203","Gestión de recursos informáticos","J6203 Gestión de recursos informáticos"]
["J6209","Otros servicios relacionados con las tecnologías de la información y la informática","J6209 Otros servicios relacionados con las tecnologías de la información y la informática"]
["J6311","Proceso de datos, hosting y actividades relacionadas","J6311 Proceso de datos, hosting y actividades relacionadas"]
["J6312","Portales web","J6312 Portales web"]
["J6391","Actividades de las agencias de noticias","J6391 Actividades de las agencias de noticias"]
["J6399","Otros servicios de información n.c.o.p.","J6399 Otros servicios de información n.c.o.p."]
["K6411","Banco central","K6411 Banco central"]
["K6419","Otra intermediación monetaria","K6419 Otra intermediación monetaria"]
["K6420","Actividades de las sociedades holding","K6420 Actividades de las sociedades holding"]
["K6430","Inversión colectiva, fondos y entidades financieras similares","K6430 Inversión colectiva, fondos y entidades financieras similares"]
["K6491","Arrendamiento financiero","K6491 Arrendamiento financiero"]
["K6492","Otras actividades crediticias","K6492 Otras actividades crediticias"]
["K6499","Otros servicios financieros, excepto seguros y fondos de pensiones n.c.o.p.","K6499 Otros servicios financieros, excepto seguros y fondos de pensiones n.c.o.p."]
["K6511","Seguros de vida","K6511 Seguros de vida"]
["K6512","Seguros distintos de los seguros de vida","K6512 Seguros distintos de los seguros de vida"]
["K6520","Reaseguros","K6520 Reaseguros"]
["K6530","Fondos de pensiones","K6530 Fondos de pensiones"]
["K6611","Administración de mercados financieros","K6611 Administración de mercados financieros"]
["K6612","Actividades de intermediación en operaciones con valores y otros activos","K6612 Actividades de intermediación en operaciones con valores y otros activos"]
["K6619","Otras actividades auxiliares a los servicios financieros, excepto seguros y fondos de pensiones","K6619 Otras actividades auxiliares a los servicios financieros, excepto seguros y fondos de pensiones"]
["K6621","Evaluación de riesgos y daños","K6621 Evaluación de riesgos y daños"]
["K6622","Actividades de agentes y corredores de seguros","K6622 Actividades de agentes y corredores de seguros"]
["K6629","Otras actividades auxiliares a seguros y fondos de pensiones","K6629 Otras actividades auxiliares a seguros y fondos de pensiones"]
["K6630","Actividades de gestión de fondos","K6630 Actividades de gestión de fondos"]
["L6810","Compraventa de bienes inmobiliarios por cuenta propia","L6810 Compraventa de bienes inmobiliarios por cuenta propia"]
["L6820","Alquiler de bienes inmobiliarios por cuenta propia","L6820 Alquiler de bienes inmobiliarios por cuenta propia"]
["L6831","Agentes de la propiedad inmobiliaria","L6831 Agentes de la propiedad inmobiliaria"]
["L6832","Gestión y administración de la propiedad inmobiliaria","L6832 Gestión y administración de la propiedad inmobiliaria"]
["M6910","Actividades jurídicas","M6910 Actividades jurídicas"]
["M6920","Actividades de contabilidad, teneduría de libros, auditoría y asesoría fiscal","M6920 Actividades de contabilidad, teneduría de libros, auditoría y asesoría fiscal"]
["M7010","Actividades de las sedes centrales","M7010 Actividades de las sedes centrales"]
["M7021","Relaciones públicas y comunicación","M7021 Relaciones públicas y comunicación"]
["M7022","Otras actividades de consultoría de gestión empresarial","M7022 Otras actividades de consultoría de gestión empresarial"]
["M7111","Servicios técnicos de arquitectura","M7111 Servicios técnicos de arquitectura"]
["M7112","Servicios técnicos de ingeniería y otras actividades relacionadas con el asesoramiento técnico","M7112 Servicios técnicos de ingeniería y otras actividades relacionadas con el asesoramiento técnico"]
["M7120","Ensayos y análisis técnicos","M7120 Ensayos y análisis técnicos"]
["M7211","Investigación y desarrollo experimental en biotecnología","M7211 Investigación y desarrollo experimental en biotecnología"]
["M7219","Otra investigación y desarrollo experimental en ciencias naturales y técnicas","M7219 Otra investigación y desarrollo experimental en ciencias naturales y técnicas"]
["M7220","Investigación y desarrollo experimental en ciencias sociales y humanidades","M7220 Investigación y desarrollo experimental en ciencias sociales y humanidades"]
["M7311","Agencias de publicidad",{"$f":"A516&\" \" &B516","v":"M7311 Agencias de publicidad"}]
["M7312","Servicios de representación de medios de comunicación","M7312 Servicios de representación de medios de comunicación"]
["M7320","Estudio de mercado y realización de encuestas de opinión pública","M7320 Estudio de mercado y realización de encuestas de opinión pública"]
["M7410","Actividades de diseño especializado","M7410 Actividades de diseño especializado"]
["M7420","Actividades de fotografía","M7420 Actividades de fotografía"]
["M7430","Actividades de traducción e interpretación","M7430 Actividades de traducción e interpretación"]
["M7490","Otras actividades profesionales, científicas y técnicas n.c.o.p.","M7490 Otras actividades profesionales, científicas y técnicas n.c.o.p."]
["M7500","Actividades veterinarias","M7500 Actividades veterinarias"]
["N7711","Alquiler de automóviles y vehículos de motor ligeros","N7711 Alquiler de automóviles y vehículos de motor ligeros"]
["N7712","Alquiler de camiones","N7712 Alquiler de camiones"]
["N7721","Alquiler de artículos de ocio y deportivos","N7721 Alquiler de artículos de ocio y deportivos"]
["N7722","Alquiler de cintas de vídeo y discos","N7722 Alquiler de cintas de vídeo y discos"]
["N7729","Alquiler de otros efectos personales y artículos de uso doméstico","N7729 Alquiler de otros efectos personales y artículos de uso doméstico"]
["N7731","Alquiler de maquinaria y equipo de uso agrícola","N7731 Alquiler de maquinaria y equipo de uso agrícola"]
["N7732","Alquiler de maquinaria y equipo para la construcción e ingeniería civil","N7732 Alquiler de maquinaria y equipo para la construcción e ingeniería civil"]
["N7733","Alquiler de maquinaria y equipo de oficina, incluidos ordenadores","N7733 Alquiler de maquinaria y equipo de oficina, incluidos ordenadores"]
["N7734","Alquiler de medios de navegación","N7734 Alquiler de medios de navegación"]
["N7735","Alquiler de medios de transporte aéreo","N7735 Alquiler de medios de transporte aéreo"]
["N7739","Alquiler de otra maquinaria, equipos y bienes tangibles n.c.o.p.","N7739 Alquiler de otra maquinaria, equipos y bienes tangibles n.c.o.p."]
["N7740","Arrendamiento de la propiedad intelectual y productos similares, excepto trabajos protegidos por los derechos de autor","N7740 Arrendamiento de la propiedad intelectual y productos similares, excepto trabajos protegidos por los derechos de autor"]
["N7810","Actividades de las agencias de colocación","N7810 Actividades de las agencias de colocación"]
["N7820","Actividades de las empresas de trabajo temporal","N7820 Actividades de las empresas de trabajo temporal"]
["N7830","Otra provisión de recursos humanos","N7830 Otra provisión de recursos humanos"]
["N7911","Actividades de las agencias de viajes","N7911 Actividades de las agencias de viajes"]
["N7912","Actividades de los operadores turísticos","N7912 Actividades de los operadores turísticos"]
["N7990","Otros servicios de reservas y actividades relacionadas con los mismos","N7990 Otros servicios de reservas y actividades relacionadas con los mismos"]
["N8010","Actividades de seguridad privada","N8010 Actividades de seguridad privada"]
["N8020","Servicios de sistemas de seguridad","N8020 Servicios de sistemas de seguridad"]
["N8030","Actividades de investigación","N8030 Actividades de investigación"]
["N8110","Servicios integrales a edificios e instalaciones","N8110 Servicios integrales a edificios e instalaciones"]
["N8121","Limpieza general de edificios","N8121 Limpieza general de edificios"]
["N8122","Otras actividades de limpieza industrial y de edificios","N8122 Otras actividades de limpieza industrial y de edificios"]
["N8129","Otras actividades de limpieza","N8129 Otras actividades de limpieza"]
["N8130","Actividades de jardinería","N8130 Actividades de jardinería"]
["N8211","Servicios administrativos combinados","N8211 Servicios administrativos combinados"]
["N8219","Actividades de fotocopiado, preparación de documentos y otras actividades especializadas de oficina","N8219 Actividades de fotocopiado, preparación de documentos y otras actividades especializadas de oficina"]
["N8220","Actividades de los centros de llamadas","N8220 Actividades de los centros de llamadas"]
["N8230","Organización de convenciones y ferias de muestras","N8230 Organización de convenciones y ferias de muestras"]
["N8291","Actividades de las agencias de cobros y de información comercial","N8291 Actividades de las agencias de cobros y de información comercial"]
["N8292","Actividades de envasado y empaquetado","N8292 Actividades de envasado y empaquetado"]
["N8299","Otras actividades de apoyo a las empresas n.c.o.p.","N8299 Otras actividades de apoyo a las empresas n.c.o.p."]
["O8411","Actividades generales de la Administración Pública","O8411 Actividades generales de la Administración Pública"]
["O8412","Regulación de las actividades sanitarias, educativas y culturales y otros servicios sociales, excepto Seguridad Social","O8412 Regulación de las actividades sanitarias, educativas y culturales y otros servicios sociales, excepto Seguridad Social"]
["O8413","Regulación de la actividad económica y contribución a su mayor eficiencia","O8413 Regulación de la actividad económica y contribución a su mayor eficiencia"]
["O8421","Asuntos exteriores","O8421 Asuntos exteriores"]
["O8422","Defensa","O8422 Defensa"]
["O8423","Justicia","O8423 Justicia"]
["O8424","Orden público y seguridad","O8424 Orden público y seguridad"]
["O8425","Protección civil","O8425 Protección civil"]
["O8430","Seguridad Social obligatoria","O8430 Seguridad Social obligatoria"]
["P8510","Educación preprimaria","P8510 Educación preprimaria"]
["P8520","Educación primaria","P8520 Educación primaria"]
["P8531","Educación secundaria general","P8531 Educación secundaria general"]
["P8532","Educación secundaria técnica y profesional","P8532 Educación secundaria técnica y profesional"]
["P8541","Educación postsecundaria no terciaria","P8541 Educación postsecundaria no terciaria"]
["P8543","Educación universitaria","P8543 Educación universitaria"]
["P8544","Educación terciaria no universitaria","P8544 Educación terciaria no universitaria"]
["P8551","Educación deportiva y recreativa","P8551 Educación deportiva y recreativa"]
["P8552","Educación cultural","P8552 Educación cultural"]
["P8553","Actividades de las escuelas de conducción y pilotaje","P8553 Actividades de las escuelas de conducción y pilotaje"]
["P8559","Otra educación n.c.o.p.","P8559 Otra educación n.c.o.p."]
["P8560","Actividades auxiliares a la educación","P8560 Actividades auxiliares a la educación"]
["Q8610","Actividades hospitalarias","Q8610 Actividades hospitalarias"]
["Q8621","Actividades de medicina general","Q8621 Actividades de medicina general"]
["Q8622","Actividades de medicina especializada",{"$f":"A580&\" \" &B580","v":"Q8622 Actividades de medicina especializada"}]
["Q8623","Actividades odontológicas","Q8623 Actividades odontológicas"]
["Q8690","Otras actividades sanitarias","Q8690 Otras actividades sanitarias"]
["Q8710","Asistencia en establecimientos residenciales con cuidados sanitarios","Q8710 Asistencia en establecimientos residenciales con cuidados sanitarios"]
["Q8720","Asistencia en establecimientos residenciales para personas con discapacidad intelectual, enfermedad mental y drogodependencia","Q8720 Asistencia en establecimientos residenciales para personas con discapacidad intelectual, enfermedad mental y drogodependencia"]
["Q8731","Asistencia en establecimientos residenciales para personas mayores","Q8731 Asistencia en establecimientos residenciales para personas mayores"]
["Q8732","Asistencia en establecimientos residenciales para personas con discapacidad física","Q8732 Asistencia en establecimientos residenciales para personas con discapacidad física"]
["Q8790","Otras actividades de asistencia en establecimientos residenciales","Q8790 Otras actividades de asistencia en establecimientos residenciales"]
["Q8811","Actividades de servicios sociales sin alojamiento para personas mayores","Q8811 Actividades de servicios sociales sin alojamiento para personas mayores"]
["Q8812","Actividades de servicios sociales sin alojamiento para personas con discapacidad","Q8812 Actividades de servicios sociales sin alojamiento para personas con discapacidad"]
["Q8891","Actividades de cuidado diurno de niños","Q8891 Actividades de cuidado diurno de niños"]
["Q8899","Otros actividades de servicios sociales sin alojamiento n.c.o.p.","Q8899 Otros actividades de servicios sociales sin alojamiento n.c.o.p."]
["R9001","Artes escénicas","R9001 Artes escénicas"]
["R9002","Actividades auxiliares a las artes escénicas","R9002 Actividades auxiliares a las artes escénicas"]
["R9003","Creación artística y literaria","R9003 Creación artística y literaria"]
["R9004","Gestión de salas de espectáculos","R9004 Gestión de salas de espectáculos"]
["R9102","Actividades de museos","R9102 Actividades de museos"]
["R9103","Gestión de lugares y edificios históricos","R9103 Gestión de lugares y edificios históricos"]
["R9104","Actividades de los jardines botánicos, parques zoológicos y reservas naturales","R9104 Actividades de los jardines botánicos, parques zoológicos y reservas naturales"]
["R9105","Actividades de bibliotecas","R9105 Actividades de bibliotecas"]
["R9106","Actividades de archivos","R9106 Actividades de archivos"]
["R9200","Actividades de juegos de azar y apuestas","R9200 Actividades de juegos de azar y apuestas"]
["R9311","Gestión de instalaciones deportivas","R9311 Gestión de instalaciones deportivas"]
["R9312","Actividades de los clubes deportivos","R9312 Actividades de los clubes deportivos"]
["R9313","Actividades de los gimnasios","R9313 Actividades de los gimnasios"]
["R9319","Otras actividades deportivas","R9319 Otras actividades deportivas"]
["R9321","Actividades de los parques de atracciones y los parques temáticos","R9321 Actividades de los parques de atracciones y los parques temáticos"]
["R9329","Otras actividades recreativas y de entretenimiento","R9329 Otras actividades recreativas y de entretenimiento"]
["S9411","Actividades de organizaciones empresariales y patronales","S9411 Actividades de organizaciones empresariales y patronales"]
["S9412","Actividades de organizaciones profesionales","S9412 Actividades de organizaciones profesionales"]
["S9420","Actividades sindicales","S9420 Actividades sindicales"]
["S9491","Actividades de organizaciones religiosas","S9491 Actividades de organizaciones religiosas"]
["S9492","Actividades de organizaciones políticas","S9492 Actividades de organizaciones políticas"]
["S9499","Otras actividades asociativas n.c.o.p.","S9499 Otras actividades asociativas n.c.o.p."]
["S9511","Reparación de ordenadores y equipos periféricos","S9511 Reparación de ordenadores y equipos periféricos"]
["S9512","Reparación de equipos de comunicación","S9512 Reparación de equipos de comunicación"]
["S9521","Reparación de aparatos electrónicos de audio y vídeo de uso doméstico","S9521 Reparación de aparatos electrónicos de audio y vídeo de uso doméstico"]
["S9522","Reparación de aparatos electrodomésticos y de equipos para el hogar y el jardín","S9522 Reparación de aparatos electrodomésticos y de equipos para el hogar y el jardín"]
["S9523","Reparación de calzado y artículos de cuero","S9523 Reparación de calzado y artículos de cuero"]
["S9524","Reparación de muebles y artículos de menaje","S9524 Reparación de muebles y artículos de menaje"]
["S9525","Reparación de relojes y joyería","S9525 Reparación de relojes y joyería"]
["S9529","Reparación de otros efectos personales y artículos de uso doméstico","S9529 Reparación de otros efectos personales y artículos de uso doméstico"]
["S9601","Lavado y limpieza de prendas textiles y de piel","S9601 Lavado y limpieza de prendas textiles y de piel"]
["S9602","Peluquería y otros tratamientos de belleza","S9602 Peluquería y otros tratamientos de belleza"]
["S9603","Pompas fúnebres y actividades relacionadas","S9603 Pompas fúnebres y actividades relacionadas"]
["S9604","Actividades de mantenimiento físico","S9604 Actividades de mantenimiento físico"]
["S9609","Otras servicios personales n.c.o.p.","S9609 Otras servicios personales n.c.o.p."]
["T9700","Actividades de los hogares como empleadores de personal doméstico","T9700 Actividades de los hogares como empleadores de personal doméstico"]
["T9810","Actividades de los hogares como productores de bienes para uso propio","T9810 Actividades de los hogares como productores de bienes para uso propio"]
["T9820","Actividades de los hogares como productores de servicios para uso propio","T9820 Actividades de los hogares como productores de servicios para uso propio"]
["U9900","Actividades de organizaciones y organismos extraterritoriales","U9900 Actividades de organizaciones y organismos extraterritoriales"]